Workbook

Sheet Data (hidden)
A1: 1 | B1: =A1+1 -> 2 | C1: =B1+1 -> 3 | D1: 4 | E1: 5 | F1: 6 | G1: 7 | H1: 8 | I1: 9 | J1: 10 | K1: 11 | L1: 12 | M1: 13 | N1: 14 | O1: 15 | P1: 16 | Q1: 17 | R1: 18 | S1: 19 | T1: 20 | U1: 21 | V1: 22 | W1: 23 | X1: 24 | Y1: 25 | Z1: =Y1+1 -> 26 | AA1: 27 | AB1: 28 | AC1: 29 | AD1: 30 | AE1: 31 | AF1: 32 | AG1: 33 | AH1: 34 | AI1: 35 | AJ1: 36 | AK1: 37 | AL1: 38 | AM1: 39 | AN1: 40 | AO1: 41 | AP1: 42 | AQ1: 43 | AR1: 44 | AS1: 45 | AT1: 46 | AU1: 47 | AV1: 48 | AW1: 49 | AX1: 50
A2: NO | B2: FN | C2: FAC_NO | D2: FAC_NAME | E2: ID | F2: BEG_DATE | G2: END_DATE | H2: CY | I2: Open/Close_STATUS | J2: COUNTY_NAME | K2: HSA | L2: HFPA | M2: TYPE_CNTRL | N2: TYPE_HOSP | O2: TEACH_RURL | P2: WEB_SITE | Q2: WEB_SITE2 | R2: HEALTH_SYS | S2: PHONE | T2: ADDRESS | U2: CITY | V2: ZIP_CODE | W2: CEO | X2: IN MODEL | Y2: FY | Z2: COMMERCIAL MANAGED CARE - HEALTH PLAN OWNED HOSPITALS | AA2: COMMERCIAL MANAGED CARE | AB2: COMMERCIAL FEE- FOR-SERVICE | AC2: MEDI-CAL MANAGED CARE- HEALTH PLAN OWNED HOSPITALS | AD2: MEDI-CAL MANAGED CARE | AE2: MEDI-CAL FEE-FOR-SERVICE | AF2: HOSPITAL FEE % TO TOTAL FEE | AG2: CHILDREN'S COVERAGE RELATED TO HOSPITAL FEE | AH2: TOTAL ASSESSED FEE | AI2: OUTPATIENT SUPPLEMENTAL PAYMENT | AJ2: INPATIENT SUPPLEMENTAL PAYMENT | AK2: SUBACUTE SUPPLEMENTAL PAYMENT | AL2: PSYCHIATRIC SUPPLEMENTAL PAYMENT | AM2: ACUITY SUPPLEMENTAL PAYMENT | AN2: TRAUMA SUPPLEMENTAL PAYMENT | AO2: TRANSPLANT SUPPLEMENTAL PAYMENT | AP2: ACUITY SUPPMENTAL PAYMENT - RURAL HOSPITALS | AQ2: TOTAL SUPPLEMENTAL PAYMENTS | AR2: MANAGED CARE PASSTHROUGH PAYMENTS | AS2: MANAGED CARE DIRECT PAYMENTS | AT2: TOTAL MANAGED CARE PAYMENTS | AU2: NET REVENUE TO FEE PERCENTAGE | AV2: Taxed Hospital | AW2: Projected Net Revenue | AX2: HEALTH_SYS_CHILDREN
A3: 1 | B3: ADVENTIST HEALTH BAKERSFIELD | C3: 106150788 | D3: ADVENTIST HEALTH BAKERSFIELD | F3: =IFERROR(INDEX('8. 2018 OSHPD (FEE) DAYS'!G:G,MATCH(C3,'8. 2018 OSHPD (FEE) DAYS'!A:A,0)),0) -> 2018-01-01 | G3: =IFERROR(INDEX('8. 2018 OSHPD (FEE) DAYS'!H:H,MATCH(C3,'8. 2018 OSHPD (FEE) DAYS'!A:A,0)),0) -> 2018-12-31 | H3: =IFERROR(INDEX('8. 2018 OSHPD (FEE) DAYS'!W:W,MATCH(C3,'8. 2018 OSHPD (FEE) DAYS'!A:A,0)),0) -> 2018-01-01 | I3: =IFERROR(INDEX('11. Hospital Statuses'!M:M,MATCH(C3,'11. Hospital Statuses'!A:A,0)),"") -> Open | J3: Kern | K3: 9 | L3: 617 | M3: Non-Profit | N3: Comparable | P3: WWW.ADVENTISTHEALTH.ORG/BAKERSFIELD | R3: ADVENTIST HEALTH | S3: 661-395-3000 | T3: 2615 CHESTER AVENUE | U3: BAKERSFIELD | V3: 93301 | W3: SHARLET BRIGGS | X3: =IFERROR(IF(INDEX(#REF!,MATCH(C3,#REF!,0)),"Yes","No"),"") ->  | Y3: CY 2022 | Z3: =IFERROR(IF($Y3="CY 2022",INDEX('6. CY 2022'!R:R,MATCH($C3,'6. CY 2022'!$A:$A,0)),0),0) -> 0 | AA3: =IFERROR(IF($Y3="CY 2022",INDEX('6. CY 2022'!S:S,MATCH($C3,'6. CY 2022'!$A:$A,0)),0),0) -> 8029554.5 | AB3: =IFERROR(IF($Y3="CY 2022",INDEX('6. CY 2022'!T:T,MATCH($C3,'6. CY 2022'!$A:$A,0)),0),0) -> 5596120.92 | AC3: =IFERROR(IF($Y3="CY 2022",INDEX('6. CY 2022'!U:U,MATCH($C3,'6. CY 2022'!$A:$A,0)),0),0) -> 0 | AD3: =IFERROR(IF($Y3="CY 2022",INDEX('6. CY 2022'!V:V,MATCH($C3,'6. CY 2022'!$A:$A,0)),0),0) -> 7048244.5 | AE3: =IFERROR(IF($Y3="CY 2022",INDEX('6. CY 2022'!W:W,MATCH($C3,'6. CY 2022'!$A:$A,0)),0),0) -> 1935701.25 | AF3: =IFERROR(IF($Y3="CY 2022",INDEX('6. CY 2022'!X:X,MATCH($C3,'6. CY 2022'!$A:$A,0)),0),0) -> 22609621.17 | AG3: =IFERROR(IF(Y3="CY 2022",AF3/'4. Calculated Fee'!$D$35*'4. Calculated Fee'!$D$26,0),0) -> 6646048.199 | AH3: =IFERROR(IF($Y3="CY 2022",INDEX('6. CY 2022'!X:X,MATCH($C3,'6. CY 2022'!$A:$A,0)),0),0) -> 22609621.17 | AI3: =IFERROR(IF(Y3="CY 2022",INDEX('6. CY 2022'!AG:AG,MATCH(C3,'6. CY 2022'!A:A,0)),0),0) -> 3466027.426 | AJ3: =IFERROR(IF($Y3="CY 2022",INDEX('6. CY 2022'!AH:AH,MATCH($C3,'6. CY 2022'!$A:$A,0)),0),0) -> 6037446.969 | AK3: =IFERROR(IF($Y3="CY 2022",INDEX('6. CY 2022'!AI:AI,MATCH($C3,'6. CY 2022'!$A:$A,0)),0),0) -> 0 | AL3: =IFERROR(IF($Y3="CY 2022",INDEX('6. CY 2022'!AJ:AJ,MATCH($C3,'6. CY 2022'!$A:$A,0)),0),0) -> 0 | AM3: =IFERROR(IF($Y3="CY 2022",INDEX('6. CY 2022'!AK:AK,MATCH($C3,'6. CY 2022'!$A:$A,0)),0),0) -> 1272500 | AN3: =IFERROR(IF($Y3="CY 2022",INDEX('6. CY 2022'!AL:AL,MATCH($C3,'6. CY 2022'!$A:$A,0)),0),0) -> 0 | AO3: =IFERROR(IF($Y3="CY 2022",INDEX('6. CY 2022'!AM:AM,MATCH($C3,'6. CY 2022'!$A:$A,0)),0),0) -> 0 | AP3: =IFERROR(IF($Y3="CY 2022",INDEX('6. CY 2022'!AN:AN,MATCH($C3,'6. CY 2022'!$A:$A,0)),0),0) -> 0 | AQ3: =IFERROR(IF($Y3="CY 2022",INDEX('6. CY 2022'!AQ:AQ,MATCH($C3,'6. CY 2022'!$A:$A,0)),0),0) -> 10775974.39 | AR3: =IFERROR(IF($Y3="CY 2022",INDEX('6. CY 2022'!AS:AS,MATCH($C3,'6. CY 2022'!A:A,0)),0),0) -> 5973687.53 | AS3: =IFERROR(IF(Y3="CY 2022",INDEX('6. CY 2022'!AT:AT,MATCH(C3,'6. CY 2022'!A:A,0)),0),0) -> 26815465.12 | AT3: =IFERROR(IF($Y3="CY 2022",INDEX('6. CY 2022'!AU:AU,MATCH($C3,'6. CY 2022'!A:A,0)),0),0) -> 32789152.65 | AW3: =IFERROR(IF(Y3="CY 2022",INDEX('6. CY 2022'!H:H,MATCH(C3,'6. CY 2022'!A:A,0)),0),0) -> 509979053.7 | AX3: =SUM(AG3:AG16) -> 25298225.44 | AZ3: 106194010
A4: 2 | B4: ADVENTIST HEALTH CLEARLAKE | C4: 106171049 | D4: ADVENTIST HEALTH CLEARLAKE | F4: =IFERROR(INDEX('8. 2018 OSHPD (FEE) DAYS'!G:G,MATCH(C4,'8. 2018 OSHPD (FEE) DAYS'!A:A,0)),0) -> 2018-01-01 | G4: =IFERROR(INDEX('8. 2018 OSHPD (FEE) DAYS'!H:H,MATCH(C4,'8. 2018 OSHPD (FEE) DAYS'!A:A,0)),0) -> 2018-12-31 | H4: =IFERROR(INDEX('8. 2018 OSHPD (FEE) DAYS'!W:W,MATCH(C4,'8. 2018 OSHPD (FEE) DAYS'!A:A,0)),0) -> 2018-01-01 | I4: =IFERROR(INDEX('11. Hospital Statuses'!M:M,MATCH(C4,'11. Hospital Statuses'!A:A,0)),"") -> Open | J4: Lake | K4: 1 | L4: 115 | M4: Non-Profit | N4: Comparable | O4: Rural | P4: https://www.adventisthealth.org/clear-lake/ | R4: ADVENTIST HEALTH | S4: 707-995-5705 | T4: 15630 18TH AVENUE | U4: CLEARLAKE | V4: 95422 | W4: DAVID SANTOS | X4: =IFERROR(IF(INDEX(#REF!,MATCH(C4,#REF!,0)),"Yes","No"),"") ->  | Y4: CY 2022 | Z4: =IFERROR(IF($Y4="CY 2022",INDEX('6. CY 2022'!R:R,MATCH($C4,'6. CY 2022'!$A:$A,0)),0),0) -> 0 | AA4: =IFERROR(IF($Y4="CY 2022",INDEX('6. CY 2022'!S:S,MATCH($C4,'6. CY 2022'!$A:$A,0)),0),0) -> 0 | AB4: =IFERROR(IF($Y4="CY 2022",INDEX('6. CY 2022'!T:T,MATCH($C4,'6. CY 2022'!$A:$A,0)),0),0) -> 0 | AC4: =IFERROR(IF($Y4="CY 2022",INDEX('6. CY 2022'!U:U,MATCH($C4,'6. CY 2022'!$A:$A,0)),0),0) -> 0 | AD4: =IFERROR(IF($Y4="CY 2022",INDEX('6. CY 2022'!V:V,MATCH($C4,'6. CY 2022'!$A:$A,0)),0),0) -> 0 | AE4: =IFERROR(IF($Y4="CY 2022",INDEX('6. CY 2022'!W:W,MATCH($C4,'6. CY 2022'!$A:$A,0)),0),0) -> 0 | AF4: =IFERROR(IF($Y4="CY 2022",INDEX('6. CY 2022'!X:X,MATCH($C4,'6. CY 2022'!$A:$A,0)),0),0) -> 0 | AG4: =IFERROR(IF(Y4="CY 2022",AF4/'4. Calculated Fee'!$D$35*'4. Calculated Fee'!$D$26,0),0) -> 0 | AH4: =IFERROR(IF($Y4="CY 2022",INDEX('6. CY 2022'!X:X,MATCH($C4,'6. CY 2022'!$A:$A,0)),0),0) -> 0 | AI4: =IFERROR(IF(Y4="CY 2022",INDEX('6. CY 2022'!AG:AG,MATCH(C4,'6. CY 2022'!A:A,0)),0),0) -> 488488.039 | AJ4: =IFERROR(IF($Y4="CY 2022",INDEX('6. CY 2022'!AH:AH,MATCH($C4,'6. CY 2022'!$A:$A,0)),0),0) -> 249861.6694 | AK4: =IFERROR(IF($Y4="CY 2022",INDEX('6. CY 2022'!AI:AI,MATCH($C4,'6. CY 2022'!$A:$A,0)),0),0) -> 0 | AL4: =IFERROR(IF($Y4="CY 2022",INDEX('6. CY 2022'!AJ:AJ,MATCH($C4,'6. CY 2022'!$A:$A,0)),0),0) -> 0 | AM4: =IFERROR(IF($Y4="CY 2022",INDEX('6. CY 2022'!AK:AK,MATCH($C4,'6. CY 2022'!$A:$A,0)),0),0) -> 0 | AN4: =IFERROR(IF($Y4="CY 2022",INDEX('6. CY 2022'!AL:AL,MATCH($C4,'6. CY 2022'!$A:$A,0)),0),0) -> 0 | AO4: =IFERROR(IF($Y4="CY 2022",INDEX('6. CY 2022'!AM:AM,MATCH($C4,'6. CY 2022'!$A:$A,0)),0),0) -> 0 | AP4: =IFERROR(IF($Y4="CY 2022",INDEX('6. CY 2022'!AN:AN,MATCH($C4,'6. CY 2022'!$A:$A,0)),0),0) -> 27500 | AQ4: =IFERROR(IF($Y4="CY 2022",INDEX('6. CY 2022'!AQ:AQ,MATCH($C4,'6. CY 2022'!$A:$A,0)),0),0) -> 765849.7083 | AR4: =IFERROR(IF($Y4="CY 2022",INDEX('6. CY 2022'!AS:AS,MATCH($C4,'6. CY 2022'!A:A,0)),0),0) -> 2108373.72 | AS4: =IFERROR(IF(Y4="CY 2022",INDEX('6. CY 2022'!AT:AT,MATCH(C4,'6. CY 2022'!A:A,0)),0),0) -> 7135495.33 | AT4: =IFERROR(IF($Y4="CY 2022",INDEX('6. CY 2022'!AU:AU,MATCH($C4,'6. CY 2022'!A:A,0)),0),0) -> 9243869.05 | AW4: =IFERROR(IF(Y4="CY 2022",INDEX('6. CY 2022'!H:H,MATCH(C4,'6. CY 2022'!A:A,0)),0),0) -> 123877607.9 | AZ4: 106400683
A5: 3 | B5: ADVENTIST HEALTH FEATHER RIVER | C5: 106040875 | D5: ADVENTIST HEALTH FEATHER RIVER | F5: =IFERROR(INDEX('8. 2018 OSHPD (FEE) DAYS'!G:G,MATCH(C5,'8. 2018 OSHPD (FEE) DAYS'!A:A,0)),0) -> 2018-01-01 | G5: =IFERROR(INDEX('8. 2018 OSHPD (FEE) DAYS'!H:H,MATCH(C5,'8. 2018 OSHPD (FEE) DAYS'!A:A,0)),0) -> 2018-12-31 | H5: =IFERROR(INDEX('8. 2018 OSHPD (FEE) DAYS'!W:W,MATCH(C5,'8. 2018 OSHPD (FEE) DAYS'!A:A,0)),0) -> 2018-01-01 | I5: =IFERROR(INDEX('11. Hospital Statuses'!M:M,MATCH(C5,'11. Hospital Statuses'!A:A,0)),"") -> Closed | P5: https://www.adventisthealth.org/feather-river/ | X5: =IFERROR(IF(INDEX(#REF!,MATCH(C5,#REF!,0)),"Yes","No"),"") ->  | Y5: CY 2022 | Z5: =IFERROR(IF($Y5="CY 2022",INDEX('6. CY 2022'!R:R,MATCH($C5,'6. CY 2022'!$A:$A,0)),0),0) -> 0 | AA5: =IFERROR(IF($Y5="CY 2022",INDEX('6. CY 2022'!S:S,MATCH($C5,'6. CY 2022'!$A:$A,0)),0),0) -> 0 | AB5: =IFERROR(IF($Y5="CY 2022",INDEX('6. CY 2022'!T:T,MATCH($C5,'6. CY 2022'!$A:$A,0)),0),0) -> 0 | AC5: =IFERROR(IF($Y5="CY 2022",INDEX('6. CY 2022'!U:U,MATCH($C5,'6. CY 2022'!$A:$A,0)),0),0) -> 0 | AD5: =IFERROR(IF($Y5="CY 2022",INDEX('6. CY 2022'!V:V,MATCH($C5,'6. CY 2022'!$A:$A,0)),0),0) -> 0 | AE5: =IFERROR(IF($Y5="CY 2022",INDEX('6. CY 2022'!W:W,MATCH($C5,'6. CY 2022'!$A:$A,0)),0),0) -> 0 | AF5: =IFERROR(IF($Y5="CY 2022",INDEX('6. CY 2022'!X:X,MATCH($C5,'6. CY 2022'!$A:$A,0)),0),0) -> 0 | AG5: =IFERROR(IF(Y5="CY 2022",AF5/'4. Calculated Fee'!$D$35*'4. Calculated Fee'!$D$26,0),0) -> 0 | AH5: =IFERROR(IF($Y5="CY 2022",INDEX('6. CY 2022'!X:X,MATCH($C5,'6. CY 2022'!$A:$A,0)),0),0) -> 0 | AI5: =IFERROR(IF(Y5="CY 2022",INDEX('6. CY 2022'!AG:AG,MATCH(C5,'6. CY 2022'!A:A,0)),0),0) -> 0 | AJ5: =IFERROR(IF($Y5="CY 2022",INDEX('6. CY 2022'!AH:AH,MATCH($C5,'6. CY 2022'!$A:$A,0)),0),0) -> 0 | AK5: =IFERROR(IF($Y5="CY 2022",INDEX('6. CY 2022'!AI:AI,MATCH($C5,'6. CY 2022'!$A:$A,0)),0),0) -> 0 | AL5: =IFERROR(IF($Y5="CY 2022",INDEX('6. CY 2022'!AJ:AJ,MATCH($C5,'6. CY 2022'!$A:$A,0)),0),0) -> 0 | AM5: =IFERROR(IF($Y5="CY 2022",INDEX('6. CY 2022'!AK:AK,MATCH($C5,'6. CY 2022'!$A:$A,0)),0),0) -> 0 | AN5: =IFERROR(IF($Y5="CY 2022",INDEX('6. CY 2022'!AL:AL,MATCH($C5,'6. CY 2022'!$A:$A,0)),0),0) -> 0 | AO5: =IFERROR(IF($Y5="CY 2022",INDEX('6. CY 2022'!AM:AM,MATCH($C5,'6. CY 2022'!$A:$A,0)),0),0) -> 0 | AP5: =IFERROR(IF($Y5="CY 2022",INDEX('6. CY 2022'!AN:AN,MATCH($C5,'6. CY 2022'!$A:$A,0)),0),0) -> 0 | AQ5: =IFERROR(IF($Y5="CY 2022",INDEX('6. CY 2022'!AQ:AQ,MATCH($C5,'6. CY 2022'!$A:$A,0)),0),0) -> 0 | AR5: =IFERROR(IF($Y5="CY 2022",INDEX('6. CY 2022'!AS:AS,MATCH($C5,'6. CY 2022'!A:A,0)),0),0) -> 0 | AS5: =IFERROR(IF(Y5="CY 2022",INDEX('6. CY 2022'!AT:AT,MATCH(C5,'6. CY 2022'!A:A,0)),0),0) -> 0 | AT5: =IFERROR(IF($Y5="CY 2022",INDEX('6. CY 2022'!AU:AU,MATCH($C5,'6. CY 2022'!A:A,0)),0),0) -> 0 | AW5: =IFERROR(IF(Y5="CY 2022",INDEX('6. CY 2022'!H:H,MATCH(C5,'6. CY 2022'!A:A,0)),0),0) -> 226565492.2 | AZ5: 106044006
A6: 4 | B6: ADVENTIST HEALTH GLENDALE | C6: 106190323 | D6: ADVENTIST HEALTH GLENDALE | F6: =IFERROR(INDEX('8. 2018 OSHPD (FEE) DAYS'!G:G,MATCH(C6,'8. 2018 OSHPD (FEE) DAYS'!A:A,0)),0) -> 2018-01-01 | G6: =IFERROR(INDEX('8. 2018 OSHPD (FEE) DAYS'!H:H,MATCH(C6,'8. 2018 OSHPD (FEE) DAYS'!A:A,0)),0) -> 2018-12-31 | H6: =IFERROR(INDEX('8. 2018 OSHPD (FEE) DAYS'!W:W,MATCH(C6,'8. 2018 OSHPD (FEE) DAYS'!A:A,0)),0) -> 2018-01-01 | I6: =IFERROR(INDEX('11. Hospital Statuses'!M:M,MATCH(C6,'11. Hospital Statuses'!A:A,0)),"") -> Open | J6: Los Angeles | K6: 11 | L6: 909 | M6: Non-Profit | N6: Comparable | P6: http://www.glendaleadventist.com | R6: ADVENTIST HEALTH | S6: 818-409-8000 | T6: 1509 WILSON TERRACE | U6: GLENDALE | V6: 91206 | W6: ALICE ISSAI | X6: =IFERROR(IF(INDEX(#REF!,MATCH(C6,#REF!,0)),"Yes","No"),"") ->  | Y6: CY 2022 | Z6: =IFERROR(IF($Y6="CY 2022",INDEX('6. CY 2022'!R:R,MATCH($C6,'6. CY 2022'!$A:$A,0)),0),0) -> 0 | AA6: =IFERROR(IF($Y6="CY 2022",INDEX('6. CY 2022'!S:S,MATCH($C6,'6. CY 2022'!$A:$A,0)),0),0) -> 6135681 | AB6: =IFERROR(IF($Y6="CY 2022",INDEX('6. CY 2022'!T:T,MATCH($C6,'6. CY 2022'!$A:$A,0)),0),0) -> 14710302.36 | AC6: =IFERROR(IF($Y6="CY 2022",INDEX('6. CY 2022'!U:U,MATCH($C6,'6. CY 2022'!$A:$A,0)),0),0) -> 0 | AD6: =IFERROR(IF($Y6="CY 2022",INDEX('6. CY 2022'!V:V,MATCH($C6,'6. CY 2022'!$A:$A,0)),0),0) -> 7038777.75 | AE6: =IFERROR(IF($Y6="CY 2022",INDEX('6. CY 2022'!W:W,MATCH($C6,'6. CY 2022'!$A:$A,0)),0),0) -> 6113527.5 | AF6: =IFERROR(IF($Y6="CY 2022",INDEX('6. CY 2022'!X:X,MATCH($C6,'6. CY 2022'!$A:$A,0)),0),0) -> 33998288.61 | AG6: =IFERROR(IF(Y6="CY 2022",AF6/'4. Calculated Fee'!$D$35*'4. Calculated Fee'!$D$26,0),0) -> 9993721.837 | AH6: =IFERROR(IF($Y6="CY 2022",INDEX('6. CY 2022'!X:X,MATCH($C6,'6. CY 2022'!$A:$A,0)),0),0) -> 33998288.61 | AI6: =IFERROR(IF(Y6="CY 2022",INDEX('6. CY 2022'!AG:AG,MATCH(C6,'6. CY 2022'!A:A,0)),0),0) -> 2878255.709 | AJ6: =IFERROR(IF($Y6="CY 2022",INDEX('6. CY 2022'!AH:AH,MATCH($C6,'6. CY 2022'!$A:$A,0)),0),0) -> 6556896.229 | AK6: =IFERROR(IF($Y6="CY 2022",INDEX('6. CY 2022'!AI:AI,MATCH($C6,'6. CY 2022'!$A:$A,0)),0),0) -> 0 | AL6: =IFERROR(IF($Y6="CY 2022",INDEX('6. CY 2022'!AJ:AJ,MATCH($C6,'6. CY 2022'!$A:$A,0)),0),0) -> 629850 | AM6: =IFERROR(IF($Y6="CY 2022",INDEX('6. CY 2022'!AK:AK,MATCH($C6,'6. CY 2022'!$A:$A,0)),0),0) -> 980000 | AN6: =IFERROR(IF($Y6="CY 2022",INDEX('6. CY 2022'!AL:AL,MATCH($C6,'6. CY 2022'!$A:$A,0)),0),0) -> 0 | AO6: =IFERROR(IF($Y6="CY 2022",INDEX('6. CY 2022'!AM:AM,MATCH($C6,'6. CY 2022'!$A:$A,0)),0),0) -> 0 | AP6: =IFERROR(IF($Y6="CY 2022",INDEX('6. CY 2022'!AN:AN,MATCH($C6,'6. CY 2022'!$A:$A,0)),0),0) -> 0 | AQ6: =IFERROR(IF($Y6="CY 2022",INDEX('6. CY 2022'!AQ:AQ,MATCH($C6,'6. CY 2022'!$A:$A,0)),0),0) -> 11045001.94 | AR6: =IFERROR(IF($Y6="CY 2022",INDEX('6. CY 2022'!AS:AS,MATCH($C6,'6. CY 2022'!A:A,0)),0),0) -> 13151597.13 | AS6: =IFERROR(IF(Y6="CY 2022",INDEX('6. CY 2022'!AT:AT,MATCH(C6,'6. CY 2022'!A:A,0)),0),0) -> 22740574.64 | AT6: =IFERROR(IF($Y6="CY 2022",INDEX('6. CY 2022'!AU:AU,MATCH($C6,'6. CY 2022'!A:A,0)),0),0) -> 35892171.77 | AW6: =IFERROR(IF(Y6="CY 2022",INDEX('6. CY 2022'!H:H,MATCH(C6,'6. CY 2022'!A:A,0)),0),0) -> 557067673.1 | AZ6: 106384202
A7: 5 | B7: ADVENTIST HEALTH HANFORD | C7: 106164029 | D7: ADVENTIST HEALTH HANFORD | F7: =IFERROR(INDEX('8. 2018 OSHPD (FEE) DAYS'!G:G,MATCH(C7,'8. 2018 OSHPD (FEE) DAYS'!A:A,0)),0) -> 2018-01-01 | G7: =IFERROR(INDEX('8. 2018 OSHPD (FEE) DAYS'!H:H,MATCH(C7,'8. 2018 OSHPD (FEE) DAYS'!A:A,0)),0) -> 2018-12-31 | H7: =IFERROR(INDEX('8. 2018 OSHPD (FEE) DAYS'!W:W,MATCH(C7,'8. 2018 OSHPD (FEE) DAYS'!A:A,0)),0) -> 2018-01-01 | I7: =IFERROR(INDEX('11. Hospital Statuses'!M:M,MATCH(C7,'11. Hospital Statuses'!A:A,0)),"") -> Open | J7: Kings | K7: 9 | L7: 615 | M7: Non-Profit | N7: Comparable | O7: Rural | P7: HTTPS://WWW.ADVENTISTHEALTH.ORG/HANFORD/ | R7: ADVENTIST HEALTH | S7: 559-582-9000 | T7: 115 MALL DRIVE | U7: HANFORD | V7: 93232 | W7: ANDREA KOFL | X7: =IFERROR(IF(INDEX(#REF!,MATCH(C7,#REF!,0)),"Yes","No"),"") ->  | Y7: CY 2022 | Z7: =IFERROR(IF($Y7="CY 2022",INDEX('6. CY 2022'!R:R,MATCH($C7,'6. CY 2022'!$A:$A,0)),0),0) -> 0 | AA7: =IFERROR(IF($Y7="CY 2022",INDEX('6. CY 2022'!S:S,MATCH($C7,'6. CY 2022'!$A:$A,0)),0),0) -> 0 | AB7: =IFERROR(IF($Y7="CY 2022",INDEX('6. CY 2022'!T:T,MATCH($C7,'6. CY 2022'!$A:$A,0)),0),0) -> 0 | AC7: =IFERROR(IF($Y7="CY 2022",INDEX('6. CY 2022'!U:U,MATCH($C7,'6. CY 2022'!$A:$A,0)),0),0) -> 0 | AD7: =IFERROR(IF($Y7="CY 2022",INDEX('6. CY 2022'!V:V,MATCH($C7,'6. CY 2022'!$A:$A,0)),0),0) -> 0 | AE7: =IFERROR(IF($Y7="CY 2022",INDEX('6. CY 2022'!W:W,MATCH($C7,'6. CY 2022'!$A:$A,0)),0),0) -> 0 | AF7: =IFERROR(IF($Y7="CY 2022",INDEX('6. CY 2022'!X:X,MATCH($C7,'6. CY 2022'!$A:$A,0)),0),0) -> 0 | AG7: =IFERROR(IF(Y7="CY 2022",AF7/'4. Calculated Fee'!$D$35*'4. Calculated Fee'!$D$26,0),0) -> 0 | AH7: =IFERROR(IF($Y7="CY 2022",INDEX('6. CY 2022'!X:X,MATCH($C7,'6. CY 2022'!$A:$A,0)),0),0) -> 0 | AI7: =IFERROR(IF(Y7="CY 2022",INDEX('6. CY 2022'!AG:AG,MATCH(C7,'6. CY 2022'!A:A,0)),0),0) -> 3828826.983 | AJ7: =IFERROR(IF($Y7="CY 2022",INDEX('6. CY 2022'!AH:AH,MATCH($C7,'6. CY 2022'!$A:$A,0)),0),0) -> 5628462.868 | AK7: =IFERROR(IF($Y7="CY 2022",INDEX('6. CY 2022'!AI:AI,MATCH($C7,'6. CY 2022'!$A:$A,0)),0),0) -> 0 | AL7: =IFERROR(IF($Y7="CY 2022",INDEX('6. CY 2022'!AJ:AJ,MATCH($C7,'6. CY 2022'!$A:$A,0)),0),0) -> 0 | AM7: =IFERROR(IF($Y7="CY 2022",INDEX('6. CY 2022'!AK:AK,MATCH($C7,'6. CY 2022'!$A:$A,0)),0),0) -> 0 | AN7: =IFERROR(IF($Y7="CY 2022",INDEX('6. CY 2022'!AL:AL,MATCH($C7,'6. CY 2022'!$A:$A,0)),0),0) -> 0 | AO7: =IFERROR(IF($Y7="CY 2022",INDEX('6. CY 2022'!AM:AM,MATCH($C7,'6. CY 2022'!$A:$A,0)),0),0) -> 0 | AP7: =IFERROR(IF($Y7="CY 2022",INDEX('6. CY 2022'!AN:AN,MATCH($C7,'6. CY 2022'!$A:$A,0)),0),0) -> 535000 | AQ7: =IFERROR(IF($Y7="CY 2022",INDEX('6. CY 2022'!AQ:AQ,MATCH($C7,'6. CY 2022'!$A:$A,0)),0),0) -> 9992289.851 | AR7: =IFERROR(IF($Y7="CY 2022",INDEX('6. CY 2022'!AS:AS,MATCH($C7,'6. CY 2022'!A:A,0)),0),0) -> 10794400.16 | AS7: =IFERROR(IF(Y7="CY 2022",INDEX('6. CY 2022'!AT:AT,MATCH(C7,'6. CY 2022'!A:A,0)),0),0) -> 37426757.57 | AT7: =IFERROR(IF($Y7="CY 2022",INDEX('6. CY 2022'!AU:AU,MATCH($C7,'6. CY 2022'!A:A,0)),0),0) -> 48221157.73 | AW7: =IFERROR(IF(Y7="CY 2022",INDEX('6. CY 2022'!H:H,MATCH(C7,'6. CY 2022'!A:A,0)),0),0) -> 382857660.6 | AZ7: 106384176
A8: 6 | B8: ADVENTIST HEALTH HOWARD MEMORIAL | C8: 106234038 | D8: ADVENTIST HEALTH HOWARD MEMORIAL | F8: =IFERROR(INDEX('8. 2018 OSHPD (FEE) DAYS'!G:G,MATCH(C8,'8. 2018 OSHPD (FEE) DAYS'!A:A,0)),0) -> 2018-01-01 | G8: =IFERROR(INDEX('8. 2018 OSHPD (FEE) DAYS'!H:H,MATCH(C8,'8. 2018 OSHPD (FEE) DAYS'!A:A,0)),0) -> 2018-12-31 | H8: =IFERROR(INDEX('8. 2018 OSHPD (FEE) DAYS'!W:W,MATCH(C8,'8. 2018 OSHPD (FEE) DAYS'!A:A,0)),0) -> 2018-01-01 | I8: =IFERROR(INDEX('11. Hospital Statuses'!M:M,MATCH(C8,'11. Hospital Statuses'!A:A,0)),"") -> Open | J8: Mendocino | K8: 1 | L8: 112 | M8: Non-Profit | N8: Comparable | O8: Rural | P8: https://www.adventisthealth.org/howard-memorial/ | R8: ADVENTIST HEALTH | S8: 707-459-6801 | T8: 1 MARCELA DRIVE | U8: WILLITS | V8: 95490 | W8: JASON WELLS | X8: =IFERROR(IF(INDEX(#REF!,MATCH(C8,#REF!,0)),"Yes","No"),"") ->  | Y8: CY 2022 | Z8: =IFERROR(IF($Y8="CY 2022",INDEX('6. CY 2022'!R:R,MATCH($C8,'6. CY 2022'!$A:$A,0)),0),0) -> 0 | AA8: =IFERROR(IF($Y8="CY 2022",INDEX('6. CY 2022'!S:S,MATCH($C8,'6. CY 2022'!$A:$A,0)),0),0) -> 0 | AB8: =IFERROR(IF($Y8="CY 2022",INDEX('6. CY 2022'!T:T,MATCH($C8,'6. CY 2022'!$A:$A,0)),0),0) -> 0 | AC8: =IFERROR(IF($Y8="CY 2022",INDEX('6. CY 2022'!U:U,MATCH($C8,'6. CY 2022'!$A:$A,0)),0),0) -> 0 | AD8: =IFERROR(IF($Y8="CY 2022",INDEX('6. CY 2022'!V:V,MATCH($C8,'6. CY 2022'!$A:$A,0)),0),0) -> 0 | AE8: =IFERROR(IF($Y8="CY 2022",INDEX('6. CY 2022'!W:W,MATCH($C8,'6. CY 2022'!$A:$A,0)),0),0) -> 0 | AF8: =IFERROR(IF($Y8="CY 2022",INDEX('6. CY 2022'!X:X,MATCH($C8,'6. CY 2022'!$A:$A,0)),0),0) -> 0 | AG8: =IFERROR(IF(Y8="CY 2022",AF8/'4. Calculated Fee'!$D$35*'4. Calculated Fee'!$D$26,0),0) -> 0 | AH8: =IFERROR(IF($Y8="CY 2022",INDEX('6. CY 2022'!X:X,MATCH($C8,'6. CY 2022'!$A:$A,0)),0),0) -> 0 | AI8: =IFERROR(IF(Y8="CY 2022",INDEX('6. CY 2022'!AG:AG,MATCH(C8,'6. CY 2022'!A:A,0)),0),0) -> 300822.1579 | AJ8: =IFERROR(IF($Y8="CY 2022",INDEX('6. CY 2022'!AH:AH,MATCH($C8,'6. CY 2022'!$A:$A,0)),0),0) -> 603613.1907 | AK8: =IFERROR(IF($Y8="CY 2022",INDEX('6. CY 2022'!AI:AI,MATCH($C8,'6. CY 2022'!$A:$A,0)),0),0) -> 0 | AL8: =IFERROR(IF($Y8="CY 2022",INDEX('6. CY 2022'!AJ:AJ,MATCH($C8,'6. CY 2022'!$A:$A,0)),0),0) -> 0 | AM8: =IFERROR(IF($Y8="CY 2022",INDEX('6. CY 2022'!AK:AK,MATCH($C8,'6. CY 2022'!$A:$A,0)),0),0) -> 0 | AN8: =IFERROR(IF($Y8="CY 2022",INDEX('6. CY 2022'!AL:AL,MATCH($C8,'6. CY 2022'!$A:$A,0)),0),0) -> 0 | AO8: =IFERROR(IF($Y8="CY 2022",INDEX('6. CY 2022'!AM:AM,MATCH($C8,'6. CY 2022'!$A:$A,0)),0),0) -> 0 | AP8: =IFERROR(IF($Y8="CY 2022",INDEX('6. CY 2022'!AN:AN,MATCH($C8,'6. CY 2022'!$A:$A,0)),0),0) -> 240000 | AQ8: =IFERROR(IF($Y8="CY 2022",INDEX('6. CY 2022'!AQ:AQ,MATCH($C8,'6. CY 2022'!$A:$A,0)),0),0) -> 1144435.349 | AR8: =IFERROR(IF($Y8="CY 2022",INDEX('6. CY 2022'!AS:AS,MATCH($C8,'6. CY 2022'!A:A,0)),0),0) -> 1282027.76 | AS8: =IFERROR(IF(Y8="CY 2022",INDEX('6. CY 2022'!AT:AT,MATCH(C8,'6. CY 2022'!A:A,0)),0),0) -> 4541319.25 | AT8: =IFERROR(IF($Y8="CY 2022",INDEX('6. CY 2022'!AU:AU,MATCH($C8,'6. CY 2022'!A:A,0)),0),0) -> 5823347.01 | AW8: =IFERROR(IF(Y8="CY 2022",INDEX('6. CY 2022'!H:H,MATCH(C8,'6. CY 2022'!A:A,0)),0),0) -> 83867261.26 | AZ8: 106190155
A9: 7 | B9: ADVENTIST HEALTH LODI MEMORIAL | C9: 106390923 | D9: ADVENTIST HEALTH LODI MEMORIAL | F9: =IFERROR(INDEX('8. 2018 OSHPD (FEE) DAYS'!G:G,MATCH(C9,'8. 2018 OSHPD (FEE) DAYS'!A:A,0)),0) -> 2018-01-01 | G9: =IFERROR(INDEX('8. 2018 OSHPD (FEE) DAYS'!H:H,MATCH(C9,'8. 2018 OSHPD (FEE) DAYS'!A:A,0)),0) -> 2018-12-31 | H9: =IFERROR(INDEX('8. 2018 OSHPD (FEE) DAYS'!W:W,MATCH(C9,'8. 2018 OSHPD (FEE) DAYS'!A:A,0)),0) -> 2018-01-01 | I9: =IFERROR(INDEX('11. Hospital Statuses'!M:M,MATCH(C9,'11. Hospital Statuses'!A:A,0)),"") -> Open | J9: San Joaquin | K9: 6 | L9: 505 | M9: Non-Profit | N9: Comparable | P9: https://www.adventisthealth.org/LODIMEMORIAL/PAGES/HOME | R9: LODI MEMORIAL HOSPITAL ASSOCIATION, INC. | S9: 209-334-3411 | T9: 975 SOUTH FAIRMONT AVENUE | U9: LODI | V9: 95240-5118 | W9: DANIEL WOLCOTT | X9: =IFERROR(IF(INDEX(#REF!,MATCH(C9,#REF!,0)),"Yes","No"),"") ->  | Y9: CY 2022 | Z9: =IFERROR(IF($Y9="CY 2022",INDEX('6. CY 2022'!R:R,MATCH($C9,'6. CY 2022'!$A:$A,0)),0),0) -> 0 | AA9: =IFERROR(IF($Y9="CY 2022",INDEX('6. CY 2022'!S:S,MATCH($C9,'6. CY 2022'!$A:$A,0)),0),0) -> 2105824.25 | AB9: =IFERROR(IF($Y9="CY 2022",INDEX('6. CY 2022'!T:T,MATCH($C9,'6. CY 2022'!$A:$A,0)),0),0) -> 4868799.78 | AC9: =IFERROR(IF($Y9="CY 2022",INDEX('6. CY 2022'!U:U,MATCH($C9,'6. CY 2022'!$A:$A,0)),0),0) -> 0 | AD9: =IFERROR(IF($Y9="CY 2022",INDEX('6. CY 2022'!V:V,MATCH($C9,'6. CY 2022'!$A:$A,0)),0),0) -> 3809121.25 | AE9: =IFERROR(IF($Y9="CY 2022",INDEX('6. CY 2022'!W:W,MATCH($C9,'6. CY 2022'!$A:$A,0)),0),0) -> 1220214.25 | AF9: =IFERROR(IF($Y9="CY 2022",INDEX('6. CY 2022'!X:X,MATCH($C9,'6. CY 2022'!$A:$A,0)),0),0) -> 12003959.53 | AG9: =IFERROR(IF(Y9="CY 2022",AF9/'4. Calculated Fee'!$D$35*'4. Calculated Fee'!$D$26,0),0) -> 3528537.388 | AH9: =IFERROR(IF($Y9="CY 2022",INDEX('6. CY 2022'!X:X,MATCH($C9,'6. CY 2022'!$A:$A,0)),0),0) -> 12003959.53 | AI9: =IFERROR(IF(Y9="CY 2022",INDEX('6. CY 2022'!AG:AG,MATCH(C9,'6. CY 2022'!A:A,0)),0),0) -> 3325307.005 | AJ9: =IFERROR(IF($Y9="CY 2022",INDEX('6. CY 2022'!AH:AH,MATCH($C9,'6. CY 2022'!$A:$A,0)),0),0) -> 4172689.878 | AK9: =IFERROR(IF($Y9="CY 2022",INDEX('6. CY 2022'!AI:AI,MATCH($C9,'6. CY 2022'!$A:$A,0)),0),0) -> 0 | AL9: =IFERROR(IF($Y9="CY 2022",INDEX('6. CY 2022'!AJ:AJ,MATCH($C9,'6. CY 2022'!$A:$A,0)),0),0) -> 0 | AM9: =IFERROR(IF($Y9="CY 2022",INDEX('6. CY 2022'!AK:AK,MATCH($C9,'6. CY 2022'!$A:$A,0)),0),0) -> 452500 | AN9: =IFERROR(IF($Y9="CY 2022",INDEX('6. CY 2022'!AL:AL,MATCH($C9,'6. CY 2022'!$A:$A,0)),0),0) -> 0 | AO9: =IFERROR(IF($Y9="CY 2022",INDEX('6. CY 2022'!AM:AM,MATCH($C9,'6. CY 2022'!$A:$A,0)),0),0) -> 0 | AP9: =IFERROR(IF($Y9="CY 2022",INDEX('6. CY 2022'!AN:AN,MATCH($C9,'6. CY 2022'!$A:$A,0)),0),0) -> 0 | AQ9: =IFERROR(IF($Y9="CY 2022",INDEX('6. CY 2022'!AQ:AQ,MATCH($C9,'6. CY 2022'!$A:$A,0)),0),0) -> 7950496.884 | AR9: =IFERROR(IF($Y9="CY 2022",INDEX('6. CY 2022'!AS:AS,MATCH($C9,'6. CY 2022'!A:A,0)),0),0) -> 4030215.24 | AS9: =IFERROR(IF(Y9="CY 2022",INDEX('6. CY 2022'!AT:AT,MATCH(C9,'6. CY 2022'!A:A,0)),0),0) -> 15546872.38 | AT9: =IFERROR(IF($Y9="CY 2022",INDEX('6. CY 2022'!AU:AU,MATCH($C9,'6. CY 2022'!A:A,0)),0),0) -> 19577087.62 | AW9: =IFERROR(IF(Y9="CY 2022",INDEX('6. CY 2022'!H:H,MATCH(C9,'6. CY 2022'!A:A,0)),0),0) -> 284403023.6 | AZ9: 106105125
A10: 8 | B10: ADVENTIST HEALTH REEDLEY | C10: 106100797 | D10: ADVENTIST HEALTH REEDLEY | F10: =IFERROR(INDEX('8. 2018 OSHPD (FEE) DAYS'!G:G,MATCH(C10,'8. 2018 OSHPD (FEE) DAYS'!A:A,0)),0) -> 2018-01-01 | G10: =IFERROR(INDEX('8. 2018 OSHPD (FEE) DAYS'!H:H,MATCH(C10,'8. 2018 OSHPD (FEE) DAYS'!A:A,0)),0) -> 2018-12-31 | H10: =IFERROR(INDEX('8. 2018 OSHPD (FEE) DAYS'!W:W,MATCH(C10,'8. 2018 OSHPD (FEE) DAYS'!A:A,0)),0) -> 2018-01-01 | I10: =IFERROR(INDEX('11. Hospital Statuses'!M:M,MATCH(C10,'11. Hospital Statuses'!A:A,0)),"") -> Open | J10: Fresno | K10: 9 | L10: 607 | M10: Non-Profit | N10: Comparable | O10: Rural | P10: HTTPS://WWW.ADVENTISTHEALTH.ORG/REEDLEY/ | R10: ADVENTIST HEALTH | S10: 559-638-8155 | T10: 372 WEST CYPRESS AVENUE | U10: REEDLEY | V10: 93654 | W10: ANDREA KOFL | X10: =IFERROR(IF(INDEX(#REF!,MATCH(C10,#REF!,0)),"Yes","No"),"") ->  | Y10: CY 2022 | Z10: =IFERROR(IF($Y10="CY 2022",INDEX('6. CY 2022'!R:R,MATCH($C10,'6. CY 2022'!$A:$A,0)),0),0) -> 0 | AA10: =IFERROR(IF($Y10="CY 2022",INDEX('6. CY 2022'!S:S,MATCH($C10,'6. CY 2022'!$A:$A,0)),0),0) -> 0 | AB10: =IFERROR(IF($Y10="CY 2022",INDEX('6. CY 2022'!T:T,MATCH($C10,'6. CY 2022'!$A:$A,0)),0),0) -> 0 | AC10: =IFERROR(IF($Y10="CY 2022",INDEX('6. CY 2022'!U:U,MATCH($C10,'6. CY 2022'!$A:$A,0)),0),0) -> 0 | AD10: =IFERROR(IF($Y10="CY 2022",INDEX('6. CY 2022'!V:V,MATCH($C10,'6. CY 2022'!$A:$A,0)),0),0) -> 0 | AE10: =IFERROR(IF($Y10="CY 2022",INDEX('6. CY 2022'!W:W,MATCH($C10,'6. CY 2022'!$A:$A,0)),0),0) -> 0 | AF10: =IFERROR(IF($Y10="CY 2022",INDEX('6. CY 2022'!X:X,MATCH($C10,'6. CY 2022'!$A:$A,0)),0),0) -> 0 | AG10: =IFERROR(IF(Y10="CY 2022",AF10/'4. Calculated Fee'!$D$35*'4. Calculated Fee'!$D$26,0),0) -> 0 | AH10: =IFERROR(IF($Y10="CY 2022",INDEX('6. CY 2022'!X:X,MATCH($C10,'6. CY 2022'!$A:$A,0)),0),0) -> 0 | AI10: =IFERROR(IF(Y10="CY 2022",INDEX('6. CY 2022'!AG:AG,MATCH(C10,'6. CY 2022'!A:A,0)),0),0) -> 1496942 | AJ10: =IFERROR(IF($Y10="CY 2022",INDEX('6. CY 2022'!AH:AH,MATCH($C10,'6. CY 2022'!$A:$A,0)),0),0) -> 1408430.778 | AK10: =IFERROR(IF($Y10="CY 2022",INDEX('6. CY 2022'!AI:AI,MATCH($C10,'6. CY 2022'!$A:$A,0)),0),0) -> 0 | AL10: =IFERROR(IF($Y10="CY 2022",INDEX('6. CY 2022'!AJ:AJ,MATCH($C10,'6. CY 2022'!$A:$A,0)),0),0) -> 0 | AM10: =IFERROR(IF($Y10="CY 2022",INDEX('6. CY 2022'!AK:AK,MATCH($C10,'6. CY 2022'!$A:$A,0)),0),0) -> 0 | AN10: =IFERROR(IF($Y10="CY 2022",INDEX('6. CY 2022'!AL:AL,MATCH($C10,'6. CY 2022'!$A:$A,0)),0),0) -> 0 | AO10: =IFERROR(IF($Y10="CY 2022",INDEX('6. CY 2022'!AM:AM,MATCH($C10,'6. CY 2022'!$A:$A,0)),0),0) -> 0 | AP10: =IFERROR(IF($Y10="CY 2022",INDEX('6. CY 2022'!AN:AN,MATCH($C10,'6. CY 2022'!$A:$A,0)),0),0) -> 0 | AQ10: =IFERROR(IF($Y10="CY 2022",INDEX('6. CY 2022'!AQ:AQ,MATCH($C10,'6. CY 2022'!$A:$A,0)),0),0) -> 2905372.779 | AR10: =IFERROR(IF($Y10="CY 2022",INDEX('6. CY 2022'!AS:AS,MATCH($C10,'6. CY 2022'!A:A,0)),0),0) -> 3214937.59 | AS10: =IFERROR(IF(Y10="CY 2022",INDEX('6. CY 2022'!AT:AT,MATCH(C10,'6. CY 2022'!A:A,0)),0),0) -> 19082859.28 | AT10: =IFERROR(IF($Y10="CY 2022",INDEX('6. CY 2022'!AU:AU,MATCH($C10,'6. CY 2022'!A:A,0)),0),0) -> 22297796.87 | AW10: =IFERROR(IF(Y10="CY 2022",INDEX('6. CY 2022'!H:H,MATCH(C10,'6. CY 2022'!A:A,0)),0),0) -> 203601100.5 | AZ10: 106434051
A11: 9 | B11: ADVENTIST HEALTH SIMI VALLEY | C11: 106560525 | D11: ADVENTIST HEALTH SIMI VALLEY | F11: =IFERROR(INDEX('8. 2018 OSHPD (FEE) DAYS'!G:G,MATCH(C11,'8. 2018 OSHPD (FEE) DAYS'!A:A,0)),0) -> 2018-01-01 | G11: =IFERROR(INDEX('8. 2018 OSHPD (FEE) DAYS'!H:H,MATCH(C11,'8. 2018 OSHPD (FEE) DAYS'!A:A,0)),0) -> 2018-12-31 | H11: =IFERROR(INDEX('8. 2018 OSHPD (FEE) DAYS'!W:W,MATCH(C11,'8. 2018 OSHPD (FEE) DAYS'!A:A,0)),0) -> 2018-01-01 | I11: =IFERROR(INDEX('11. Hospital Statuses'!M:M,MATCH(C11,'11. Hospital Statuses'!A:A,0)),"") -> Open | J11: Ventura | K11: 10 | L11: 813 | M11: Non-Profit | N11: Comparable | P11: https://www.adventisthealth.org/simi-valley/ | R11: ADVENTIST HEALTH | S11: 805-955-6000 | T11: 2975 N SYCAMORE DRIVE | U11: SIMI VALLEY | V11: 93065 | W11: JENNIFER SWENSON | X11: =IFERROR(IF(INDEX(#REF!,MATCH(C11,#REF!,0)),"Yes","No"),"") ->  | Y11: CY 2022 | Z11: =IFERROR(IF($Y11="CY 2022",INDEX('6. CY 2022'!R:R,MATCH($C11,'6. CY 2022'!$A:$A,0)),0),0) -> 0 | AA11: =IFERROR(IF($Y11="CY 2022",INDEX('6. CY 2022'!S:S,MATCH($C11,'6. CY 2022'!$A:$A,0)),0),0) -> 2339277.25 | AB11: =IFERROR(IF($Y11="CY 2022",INDEX('6. CY 2022'!T:T,MATCH($C11,'6. CY 2022'!$A:$A,0)),0),0) -> 3663074.22 | AC11: =IFERROR(IF($Y11="CY 2022",INDEX('6. CY 2022'!U:U,MATCH($C11,'6. CY 2022'!$A:$A,0)),0),0) -> 0 | AD11: =IFERROR(IF($Y11="CY 2022",INDEX('6. CY 2022'!V:V,MATCH($C11,'6. CY 2022'!$A:$A,0)),0),0) -> 1769285.75 | AE11: =IFERROR(IF($Y11="CY 2022",INDEX('6. CY 2022'!W:W,MATCH($C11,'6. CY 2022'!$A:$A,0)),0),0) -> 614840.5 | AF11: =IFERROR(IF($Y11="CY 2022",INDEX('6. CY 2022'!X:X,MATCH($C11,'6. CY 2022'!$A:$A,0)),0),0) -> 8386477.72 | AG11: =IFERROR(IF(Y11="CY 2022",AF11/'4. Calculated Fee'!$D$35*'4. Calculated Fee'!$D$26,0),0) -> 2465186.601 | AH11: =IFERROR(IF($Y11="CY 2022",INDEX('6. CY 2022'!X:X,MATCH($C11,'6. CY 2022'!$A:$A,0)),0),0) -> 8386477.72 | AI11: =IFERROR(IF(Y11="CY 2022",INDEX('6. CY 2022'!AG:AG,MATCH(C11,'6. CY 2022'!A:A,0)),0),0) -> 680071.6081 | AJ11: =IFERROR(IF($Y11="CY 2022",INDEX('6. CY 2022'!AH:AH,MATCH($C11,'6. CY 2022'!$A:$A,0)),0),0) -> 1701689.474 | AK11: =IFERROR(IF($Y11="CY 2022",INDEX('6. CY 2022'!AI:AI,MATCH($C11,'6. CY 2022'!$A:$A,0)),0),0) -> 0 | AL11: =IFERROR(IF($Y11="CY 2022",INDEX('6. CY 2022'!AJ:AJ,MATCH($C11,'6. CY 2022'!$A:$A,0)),0),0) -> 0 | AM11: =IFERROR(IF($Y11="CY 2022",INDEX('6. CY 2022'!AK:AK,MATCH($C11,'6. CY 2022'!$A:$A,0)),0),0) -> 450000 | AN11: =IFERROR(IF($Y11="CY 2022",INDEX('6. CY 2022'!AL:AL,MATCH($C11,'6. CY 2022'!$A:$A,0)),0),0) -> 0 | AO11: =IFERROR(IF($Y11="CY 2022",INDEX('6. CY 2022'!AM:AM,MATCH($C11,'6. CY 2022'!$A:$A,0)),0),0) -> 0 | AP11: =IFERROR(IF($Y11="CY 2022",INDEX('6. CY 2022'!AN:AN,MATCH($C11,'6. CY 2022'!$A:$A,0)),0),0) -> 0 | AQ11: =IFERROR(IF($Y11="CY 2022",INDEX('6. CY 2022'!AQ:AQ,MATCH($C11,'6. CY 2022'!$A:$A,0)),0),0) -> 2831761.083 | AR11: =IFERROR(IF($Y11="CY 2022",INDEX('6. CY 2022'!AS:AS,MATCH($C11,'6. CY 2022'!A:A,0)),0),0) -> 1796413.05 | AS11: =IFERROR(IF(Y11="CY 2022",INDEX('6. CY 2022'!AT:AT,MATCH(C11,'6. CY 2022'!A:A,0)),0),0) -> 7305069.61 | AT11: =IFERROR(IF($Y11="CY 2022",INDEX('6. CY 2022'!AU:AU,MATCH($C11,'6. CY 2022'!A:A,0)),0),0) -> 9101482.66 | AW11: =IFERROR(IF(Y11="CY 2022",INDEX('6. CY 2022'!H:H,MATCH(C11,'6. CY 2022'!A:A,0)),0),0) -> 197679588.6 | AZ11: 106105051
A12: 10 | B12: ADVENTIST HEALTH SONORA - GREENLEY | C12: 106554011 | D12: ADVENTIST HEALTH SONORA - GREENLEY | F12: =IFERROR(INDEX('8. 2018 OSHPD (FEE) DAYS'!G:G,MATCH(C12,'8. 2018 OSHPD (FEE) DAYS'!A:A,0)),0) -> 2018-01-01 | G12: =IFERROR(INDEX('8. 2018 OSHPD (FEE) DAYS'!H:H,MATCH(C12,'8. 2018 OSHPD (FEE) DAYS'!A:A,0)),0) -> 2018-12-31 | H12: =IFERROR(INDEX('8. 2018 OSHPD (FEE) DAYS'!W:W,MATCH(C12,'8. 2018 OSHPD (FEE) DAYS'!A:A,0)),0) -> 2018-01-01 | I12: =IFERROR(INDEX('11. Hospital Statuses'!M:M,MATCH(C12,'11. Hospital Statuses'!A:A,0)),"") -> Open | J12: Tuolumne | K12: 6 | L12: 513 | M12: Non-Profit | N12: Comparable | O12: Rural | P12: https://www.adventisthealth.org/sonora/ | R12: ADVENTIST HEALTH | S12: 209-536-5000 | T12: 1000 GREENLEY ROAD | U12: SONORA | V12: 95370 | W12: MICHELLE FUENTES | X12: =IFERROR(IF(INDEX(#REF!,MATCH(C12,#REF!,0)),"Yes","No"),"") ->  | Y12: CY 2022 | Z12: =IFERROR(IF($Y12="CY 2022",INDEX('6. CY 2022'!R:R,MATCH($C12,'6. CY 2022'!$A:$A,0)),0),0) -> 0 | AA12: =IFERROR(IF($Y12="CY 2022",INDEX('6. CY 2022'!S:S,MATCH($C12,'6. CY 2022'!$A:$A,0)),0),0) -> 0 | AB12: =IFERROR(IF($Y12="CY 2022",INDEX('6. CY 2022'!T:T,MATCH($C12,'6. CY 2022'!$A:$A,0)),0),0) -> 0 | AC12: =IFERROR(IF($Y12="CY 2022",INDEX('6. CY 2022'!U:U,MATCH($C12,'6. CY 2022'!$A:$A,0)),0),0) -> 0 | AD12: =IFERROR(IF($Y12="CY 2022",INDEX('6. CY 2022'!V:V,MATCH($C12,'6. CY 2022'!$A:$A,0)),0),0) -> 0 | AE12: =IFERROR(IF($Y12="CY 2022",INDEX('6. CY 2022'!W:W,MATCH($C12,'6. CY 2022'!$A:$A,0)),0),0) -> 0 | AF12: =IFERROR(IF($Y12="CY 2022",INDEX('6. CY 2022'!X:X,MATCH($C12,'6. CY 2022'!$A:$A,0)),0),0) -> 0 | AG12: =IFERROR(IF(Y12="CY 2022",AF12/'4. Calculated Fee'!$D$35*'4. Calculated Fee'!$D$26,0),0) -> 0 | AH12: =IFERROR(IF($Y12="CY 2022",INDEX('6. CY 2022'!X:X,MATCH($C12,'6. CY 2022'!$A:$A,0)),0),0) -> 0 | AI12: =IFERROR(IF(Y12="CY 2022",INDEX('6. CY 2022'!AG:AG,MATCH(C12,'6. CY 2022'!A:A,0)),0),0) -> 1789530.653 | AJ12: =IFERROR(IF($Y12="CY 2022",INDEX('6. CY 2022'!AH:AH,MATCH($C12,'6. CY 2022'!$A:$A,0)),0),0) -> 1119117.266 | AK12: =IFERROR(IF($Y12="CY 2022",INDEX('6. CY 2022'!AI:AI,MATCH($C12,'6. CY 2022'!$A:$A,0)),0),0) -> 0 | AL12: =IFERROR(IF($Y12="CY 2022",INDEX('6. CY 2022'!AJ:AJ,MATCH($C12,'6. CY 2022'!$A:$A,0)),0),0) -> 0 | AM12: =IFERROR(IF($Y12="CY 2022",INDEX('6. CY 2022'!AK:AK,MATCH($C12,'6. CY 2022'!$A:$A,0)),0),0) -> 0 | AN12: =IFERROR(IF($Y12="CY 2022",INDEX('6. CY 2022'!AL:AL,MATCH($C12,'6. CY 2022'!$A:$A,0)),0),0) -> 0 | AO12: =IFERROR(IF($Y12="CY 2022",INDEX('6. CY 2022'!AM:AM,MATCH($C12,'6. CY 2022'!$A:$A,0)),0),0) -> 0 | AP12: =IFERROR(IF($Y12="CY 2022",INDEX('6. CY 2022'!AN:AN,MATCH($C12,'6. CY 2022'!$A:$A,0)),0),0) -> 0 | AQ12: =IFERROR(IF($Y12="CY 2022",INDEX('6. CY 2022'!AQ:AQ,MATCH($C12,'6. CY 2022'!$A:$A,0)),0),0) -> 2908647.919 | AR12: =IFERROR(IF($Y12="CY 2022",INDEX('6. CY 2022'!AS:AS,MATCH($C12,'6. CY 2022'!A:A,0)),0),0) -> 2326852.05 | AS12: =IFERROR(IF(Y12="CY 2022",INDEX('6. CY 2022'!AT:AT,MATCH(C12,'6. CY 2022'!A:A,0)),0),0) -> 9753644.26 | AT12: =IFERROR(IF($Y12="CY 2022",INDEX('6. CY 2022'!AU:AU,MATCH($C12,'6. CY 2022'!A:A,0)),0),0) -> 12080496.31 | AW12: =IFERROR(IF(Y12="CY 2022",INDEX('6. CY 2022'!H:H,MATCH(C12,'6. CY 2022'!A:A,0)),0),0) -> 315668146.9 | AZ12: 106154160
A13: 11 | B13: ADVENTIST HEALTH ST. HELENA | C13: 106281078 | D13: ADVENTIST HEALTH ST. HELENA | F13: =IFERROR(INDEX('8. 2018 OSHPD (FEE) DAYS'!G:G,MATCH(C13,'8. 2018 OSHPD (FEE) DAYS'!A:A,0)),0) -> 2018-01-01 | G13: =IFERROR(INDEX('8. 2018 OSHPD (FEE) DAYS'!H:H,MATCH(C13,'8. 2018 OSHPD (FEE) DAYS'!A:A,0)),0) -> 2018-12-31 | H13: =IFERROR(INDEX('8. 2018 OSHPD (FEE) DAYS'!W:W,MATCH(C13,'8. 2018 OSHPD (FEE) DAYS'!A:A,0)),0) -> 2018-01-01 | I13: =IFERROR(INDEX('11. Hospital Statuses'!M:M,MATCH(C13,'11. Hospital Statuses'!A:A,0)),"") -> Open | J13: Napa | K13: 3 | L13: 407 | M13: Non-Profit | N13: Comparable | P13: http://www.sthelenahospital.org | R13: ST. HELENA | S13: 707-963-3611 | T13: 10 WOODLAND ROAD | U13: ST. HELENA | V13: 94574 | W13: STEVEN HERBER, M.D. | X13: =IFERROR(IF(INDEX(#REF!,MATCH(C13,#REF!,0)),"Yes","No"),"") ->  | Y13: CY 2022 | Z13: =IFERROR(IF($Y13="CY 2022",INDEX('6. CY 2022'!R:R,MATCH($C13,'6. CY 2022'!$A:$A,0)),0),0) -> 0 | AA13: =IFERROR(IF($Y13="CY 2022",INDEX('6. CY 2022'!S:S,MATCH($C13,'6. CY 2022'!$A:$A,0)),0),0) -> 1046349.75 | AB13: =IFERROR(IF($Y13="CY 2022",INDEX('6. CY 2022'!T:T,MATCH($C13,'6. CY 2022'!$A:$A,0)),0),0) -> 3805272.12 | AC13: =IFERROR(IF($Y13="CY 2022",INDEX('6. CY 2022'!U:U,MATCH($C13,'6. CY 2022'!$A:$A,0)),0),0) -> 0 | AD13: =IFERROR(IF($Y13="CY 2022",INDEX('6. CY 2022'!V:V,MATCH($C13,'6. CY 2022'!$A:$A,0)),0),0) -> 1438447.75 | AE13: =IFERROR(IF($Y13="CY 2022",INDEX('6. CY 2022'!W:W,MATCH($C13,'6. CY 2022'!$A:$A,0)),0),0) -> 2775252.5 | AF13: =IFERROR(IF($Y13="CY 2022",INDEX('6. CY 2022'!X:X,MATCH($C13,'6. CY 2022'!$A:$A,0)),0),0) -> 9065322.12 | AG13: =IFERROR(IF(Y13="CY 2022",AF13/'4. Calculated Fee'!$D$35*'4. Calculated Fee'!$D$26,0),0) -> 2664731.412 | AH13: =IFERROR(IF($Y13="CY 2022",INDEX('6. CY 2022'!X:X,MATCH($C13,'6. CY 2022'!$A:$A,0)),0),0) -> 9065322.12 | AI13: =IFERROR(IF(Y13="CY 2022",INDEX('6. CY 2022'!AG:AG,MATCH(C13,'6. CY 2022'!A:A,0)),0),0) -> 287371.6488 | AJ13: =IFERROR(IF($Y13="CY 2022",INDEX('6. CY 2022'!AH:AH,MATCH($C13,'6. CY 2022'!$A:$A,0)),0),0) -> 878461.027 | AK13: =IFERROR(IF($Y13="CY 2022",INDEX('6. CY 2022'!AI:AI,MATCH($C13,'6. CY 2022'!$A:$A,0)),0),0) -> 0 | AL13: =IFERROR(IF($Y13="CY 2022",INDEX('6. CY 2022'!AJ:AJ,MATCH($C13,'6. CY 2022'!$A:$A,0)),0),0) -> 644475 | AM13: =IFERROR(IF($Y13="CY 2022",INDEX('6. CY 2022'!AK:AK,MATCH($C13,'6. CY 2022'!$A:$A,0)),0),0) -> 270000 | AN13: =IFERROR(IF($Y13="CY 2022",INDEX('6. CY 2022'!AL:AL,MATCH($C13,'6. CY 2022'!$A:$A,0)),0),0) -> 0 | AO13: =IFERROR(IF($Y13="CY 2022",INDEX('6. CY 2022'!AM:AM,MATCH($C13,'6. CY 2022'!$A:$A,0)),0),0) -> 0 | AP13: =IFERROR(IF($Y13="CY 2022",INDEX('6. CY 2022'!AN:AN,MATCH($C13,'6. CY 2022'!$A:$A,0)),0),0) -> 0 | AQ13: =IFERROR(IF($Y13="CY 2022",INDEX('6. CY 2022'!AQ:AQ,MATCH($C13,'6. CY 2022'!$A:$A,0)),0),0) -> 2080307.676 | AR13: =IFERROR(IF($Y13="CY 2022",INDEX('6. CY 2022'!AS:AS,MATCH($C13,'6. CY 2022'!A:A,0)),0),0) -> 6659035.78 | AS13: =IFERROR(IF(Y13="CY 2022",INDEX('6. CY 2022'!AT:AT,MATCH(C13,'6. CY 2022'!A:A,0)),0),0) -> 7525049.56 | AT13: =IFERROR(IF($Y13="CY 2022",INDEX('6. CY 2022'!AU:AU,MATCH($C13,'6. CY 2022'!A:A,0)),0),0) -> 14184085.34 | AW13: =IFERROR(IF(Y13="CY 2022",INDEX('6. CY 2022'!H:H,MATCH(C13,'6. CY 2022'!A:A,0)),0),0) -> 253814302.2 | AZ13: 106344170
A14: 12 | B14: ADVENTIST HEALTH TEHACHAPI VALLEY | C14: 106154168 | D14: ADVENTIST HEALTH TEHACHAPI VALLEY | F14: =IFERROR(INDEX('8. 2018 OSHPD (FEE) DAYS'!G:G,MATCH(C14,'8. 2018 OSHPD (FEE) DAYS'!A:A,0)),0) -> 2018-01-01 | G14: =IFERROR(INDEX('8. 2018 OSHPD (FEE) DAYS'!H:H,MATCH(C14,'8. 2018 OSHPD (FEE) DAYS'!A:A,0)),0) -> 2018-10-31 | H14: =IFERROR(INDEX('8. 2018 OSHPD (FEE) DAYS'!W:W,MATCH(C14,'8. 2018 OSHPD (FEE) DAYS'!A:A,0)),0) -> 2018-01-01 | I14: =IFERROR(INDEX('11. Hospital Statuses'!M:M,MATCH(C14,'11. Hospital Statuses'!A:A,0)),"") -> Open | J14: Kern | K14: 9 | L14: 623 | M14: Non-Profit | N14: Comparable | O14: Rural | P14: https://www.adventisthealth.org/tehachapi-valley/ | R14: ADVENTIST HEALTH | S14: 661-771-8600 | T14: 1100 MAGELLAN DRIVE | U14: TEHACHAPI | V14: 93561 | W14: JEFF LINGERFELT | X14: =IFERROR(IF(INDEX(#REF!,MATCH(C14,#REF!,0)),"Yes","No"),"") ->  | Y14: CY 2022 | Z14: =IFERROR(IF($Y14="CY 2022",INDEX('6. CY 2022'!R:R,MATCH($C14,'6. CY 2022'!$A:$A,0)),0),0) -> 0 | AA14: =IFERROR(IF($Y14="CY 2022",INDEX('6. CY 2022'!S:S,MATCH($C14,'6. CY 2022'!$A:$A,0)),0),0) -> 0 | AB14: =IFERROR(IF($Y14="CY 2022",INDEX('6. CY 2022'!T:T,MATCH($C14,'6. CY 2022'!$A:$A,0)),0),0) -> 0 | AC14: =IFERROR(IF($Y14="CY 2022",INDEX('6. CY 2022'!U:U,MATCH($C14,'6. CY 2022'!$A:$A,0)),0),0) -> 0 | AD14: =IFERROR(IF($Y14="CY 2022",INDEX('6. CY 2022'!V:V,MATCH($C14,'6. CY 2022'!$A:$A,0)),0),0) -> 0 | AE14: =IFERROR(IF($Y14="CY 2022",INDEX('6. CY 2022'!W:W,MATCH($C14,'6. CY 2022'!$A:$A,0)),0),0) -> 0 | AF14: =IFERROR(IF($Y14="CY 2022",INDEX('6. CY 2022'!X:X,MATCH($C14,'6. CY 2022'!$A:$A,0)),0),0) -> 0 | AG14: =IFERROR(IF(Y14="CY 2022",AF14/'4. Calculated Fee'!$D$35*'4. Calculated Fee'!$D$26,0),0) -> 0 | AH14: =IFERROR(IF($Y14="CY 2022",INDEX('6. CY 2022'!X:X,MATCH($C14,'6. CY 2022'!$A:$A,0)),0),0) -> 0 | AI14: =IFERROR(IF(Y14="CY 2022",INDEX('6. CY 2022'!AG:AG,MATCH(C14,'6. CY 2022'!A:A,0)),0),0) -> 374906.6436 | AJ14: =IFERROR(IF($Y14="CY 2022",INDEX('6. CY 2022'!AH:AH,MATCH($C14,'6. CY 2022'!$A:$A,0)),0),0) -> 10520.49134 | AK14: =IFERROR(IF($Y14="CY 2022",INDEX('6. CY 2022'!AI:AI,MATCH($C14,'6. CY 2022'!$A:$A,0)),0),0) -> 0 | AL14: =IFERROR(IF($Y14="CY 2022",INDEX('6. CY 2022'!AJ:AJ,MATCH($C14,'6. CY 2022'!$A:$A,0)),0),0) -> 0 | AM14: =IFERROR(IF($Y14="CY 2022",INDEX('6. CY 2022'!AK:AK,MATCH($C14,'6. CY 2022'!$A:$A,0)),0),0) -> 0 | AN14: =IFERROR(IF($Y14="CY 2022",INDEX('6. CY 2022'!AL:AL,MATCH($C14,'6. CY 2022'!$A:$A,0)),0),0) -> 0 | AO14: =IFERROR(IF($Y14="CY 2022",INDEX('6. CY 2022'!AM:AM,MATCH($C14,'6. CY 2022'!$A:$A,0)),0),0) -> 0 | AP14: =IFERROR(IF($Y14="CY 2022",INDEX('6. CY 2022'!AN:AN,MATCH($C14,'6. CY 2022'!$A:$A,0)),0),0) -> 0 | AQ14: =IFERROR(IF($Y14="CY 2022",INDEX('6. CY 2022'!AQ:AQ,MATCH($C14,'6. CY 2022'!$A:$A,0)),0),0) -> 385427.135 | AR14: =IFERROR(IF($Y14="CY 2022",INDEX('6. CY 2022'!AS:AS,MATCH($C14,'6. CY 2022'!A:A,0)),0),0) -> 7745.28 | AS14: =IFERROR(IF(Y14="CY 2022",INDEX('6. CY 2022'!AT:AT,MATCH(C14,'6. CY 2022'!A:A,0)),0),0) -> 2169193.54 | AT14: =IFERROR(IF($Y14="CY 2022",INDEX('6. CY 2022'!AU:AU,MATCH($C14,'6. CY 2022'!A:A,0)),0),0) -> 2176938.82 | AW14: =IFERROR(IF(Y14="CY 2022",INDEX('6. CY 2022'!H:H,MATCH(C14,'6. CY 2022'!A:A,0)),0),0) -> 44390803.75 | AZ14: 106344188
A15: 13 | B15: ADVENTIST HEALTH UKIAH VALLEY | C15: 106231396 | D15: ADVENTIST HEALTH UKIAH VALLEY | F15: =IFERROR(INDEX('8. 2018 OSHPD (FEE) DAYS'!G:G,MATCH(C15,'8. 2018 OSHPD (FEE) DAYS'!A:A,0)),0) -> 2018-01-01 | G15: =IFERROR(INDEX('8. 2018 OSHPD (FEE) DAYS'!H:H,MATCH(C15,'8. 2018 OSHPD (FEE) DAYS'!A:A,0)),0) -> 2018-12-31 | H15: =IFERROR(INDEX('8. 2018 OSHPD (FEE) DAYS'!W:W,MATCH(C15,'8. 2018 OSHPD (FEE) DAYS'!A:A,0)),0) -> 2018-01-01 | I15: =IFERROR(INDEX('11. Hospital Statuses'!M:M,MATCH(C15,'11. Hospital Statuses'!A:A,0)),"") -> Open | J15: Mendocino | K15: 1 | L15: 113 | M15: Non-Profit | N15: Comparable | O15: Rural | P15: http://www.adventisthealth.org/UKIAH-VALLEY | R15: ADVENTIST HEALTH | S15: 707-462-3111 | T15: 275 HOSPITAL DRIVE | U15: UKIAH | V15: 95482 | W15: JASON WELLS | X15: =IFERROR(IF(INDEX(#REF!,MATCH(C15,#REF!,0)),"Yes","No"),"") ->  | Y15: CY 2022 | Z15: =IFERROR(IF($Y15="CY 2022",INDEX('6. CY 2022'!R:R,MATCH($C15,'6. CY 2022'!$A:$A,0)),0),0) -> 0 | AA15: =IFERROR(IF($Y15="CY 2022",INDEX('6. CY 2022'!S:S,MATCH($C15,'6. CY 2022'!$A:$A,0)),0),0) -> 0 | AB15: =IFERROR(IF($Y15="CY 2022",INDEX('6. CY 2022'!T:T,MATCH($C15,'6. CY 2022'!$A:$A,0)),0),0) -> 0 | AC15: =IFERROR(IF($Y15="CY 2022",INDEX('6. CY 2022'!U:U,MATCH($C15,'6. CY 2022'!$A:$A,0)),0),0) -> 0 | AD15: =IFERROR(IF($Y15="CY 2022",INDEX('6. CY 2022'!V:V,MATCH($C15,'6. CY 2022'!$A:$A,0)),0),0) -> 0 | AE15: =IFERROR(IF($Y15="CY 2022",INDEX('6. CY 2022'!W:W,MATCH($C15,'6. CY 2022'!$A:$A,0)),0),0) -> 0 | AF15: =IFERROR(IF($Y15="CY 2022",INDEX('6. CY 2022'!X:X,MATCH($C15,'6. CY 2022'!$A:$A,0)),0),0) -> 0 | AG15: =IFERROR(IF(Y15="CY 2022",AF15/'4. Calculated Fee'!$D$35*'4. Calculated Fee'!$D$26,0),0) -> 0 | AH15: =IFERROR(IF($Y15="CY 2022",INDEX('6. CY 2022'!X:X,MATCH($C15,'6. CY 2022'!$A:$A,0)),0),0) -> 0 | AI15: =IFERROR(IF(Y15="CY 2022",INDEX('6. CY 2022'!AG:AG,MATCH(C15,'6. CY 2022'!A:A,0)),0),0) -> 1125607.028 | AJ15: =IFERROR(IF($Y15="CY 2022",INDEX('6. CY 2022'!AH:AH,MATCH($C15,'6. CY 2022'!$A:$A,0)),0),0) -> 1254568.592 | AK15: =IFERROR(IF($Y15="CY 2022",INDEX('6. CY 2022'!AI:AI,MATCH($C15,'6. CY 2022'!$A:$A,0)),0),0) -> 0 | AL15: =IFERROR(IF($Y15="CY 2022",INDEX('6. CY 2022'!AJ:AJ,MATCH($C15,'6. CY 2022'!$A:$A,0)),0),0) -> 0 | AM15: =IFERROR(IF($Y15="CY 2022",INDEX('6. CY 2022'!AK:AK,MATCH($C15,'6. CY 2022'!$A:$A,0)),0),0) -> 0 | AN15: =IFERROR(IF($Y15="CY 2022",INDEX('6. CY 2022'!AL:AL,MATCH($C15,'6. CY 2022'!$A:$A,0)),0),0) -> 0 | AO15: =IFERROR(IF($Y15="CY 2022",INDEX('6. CY 2022'!AM:AM,MATCH($C15,'6. CY 2022'!$A:$A,0)),0),0) -> 0 | AP15: =IFERROR(IF($Y15="CY 2022",INDEX('6. CY 2022'!AN:AN,MATCH($C15,'6. CY 2022'!$A:$A,0)),0),0) -> 147500 | AQ15: =IFERROR(IF($Y15="CY 2022",INDEX('6. CY 2022'!AQ:AQ,MATCH($C15,'6. CY 2022'!$A:$A,0)),0),0) -> 2527675.62 | AR15: =IFERROR(IF($Y15="CY 2022",INDEX('6. CY 2022'!AS:AS,MATCH($C15,'6. CY 2022'!A:A,0)),0),0) -> 2275748.26 | AS15: =IFERROR(IF(Y15="CY 2022",INDEX('6. CY 2022'!AT:AT,MATCH(C15,'6. CY 2022'!A:A,0)),0),0) -> 7440617.64 | AT15: =IFERROR(IF($Y15="CY 2022",INDEX('6. CY 2022'!AU:AU,MATCH($C15,'6. CY 2022'!A:A,0)),0),0) -> 9716365.9 | AW15: =IFERROR(IF(Y15="CY 2022",INDEX('6. CY 2022'!H:H,MATCH(C15,'6. CY 2022'!A:A,0)),0),0) -> 180328070.7 | AZ15: 106434220
A16: 14 | B16: ADVENTIST HEALTH VALLEJO | C16: 106481015 | D16: ADVENTIST HEALTH VALLEJO | F16: =IFERROR(INDEX('8. 2018 OSHPD (FEE) DAYS'!G:G,MATCH(C16,'8. 2018 OSHPD (FEE) DAYS'!A:A,0)),0) -> 2018-01-01 | G16: =IFERROR(INDEX('8. 2018 OSHPD (FEE) DAYS'!H:H,MATCH(C16,'8. 2018 OSHPD (FEE) DAYS'!A:A,0)),0) -> 2018-12-31 | H16: =IFERROR(INDEX('8. 2018 OSHPD (FEE) DAYS'!W:W,MATCH(C16,'8. 2018 OSHPD (FEE) DAYS'!A:A,0)),0) -> 2018-01-01 | I16: =IFERROR(INDEX('11. Hospital Statuses'!M:M,MATCH(C16,'11. Hospital Statuses'!A:A,0)),"") -> Open | J16: Solano | K16: 3 | L16: 409 | M16: Non-Profit | N16: Comparable | P16: https://www.adventisthealth.org/vallejo/ | R16: ST. HELENA HOSPITAL | S16: 707-648-2200 | T16: 525 OREGON STREET | U16: VALLEJO | V16: 94590 | W16: STEVEN HERBER, M.D. | X16: =IFERROR(IF(INDEX(#REF!,MATCH(C16,#REF!,0)),"Yes","No"),"") ->  | Y16: CY 2022 | Z16: =IFERROR(IF($Y16="CY 2022",INDEX('6. CY 2022'!R:R,MATCH($C16,'6. CY 2022'!$A:$A,0)),0),0) -> 0 | AA16: =IFERROR(IF($Y16="CY 2022",INDEX('6. CY 2022'!S:S,MATCH($C16,'6. CY 2022'!$A:$A,0)),0),0) -> 0 | AB16: =IFERROR(IF($Y16="CY 2022",INDEX('6. CY 2022'!T:T,MATCH($C16,'6. CY 2022'!$A:$A,0)),0),0) -> 0 | AC16: =IFERROR(IF($Y16="CY 2022",INDEX('6. CY 2022'!U:U,MATCH($C16,'6. CY 2022'!$A:$A,0)),0),0) -> 0 | AD16: =IFERROR(IF($Y16="CY 2022",INDEX('6. CY 2022'!V:V,MATCH($C16,'6. CY 2022'!$A:$A,0)),0),0) -> 0 | AE16: =IFERROR(IF($Y16="CY 2022",INDEX('6. CY 2022'!W:W,MATCH($C16,'6. CY 2022'!$A:$A,0)),0),0) -> 0 | AF16: =IFERROR(IF($Y16="CY 2022",INDEX('6. CY 2022'!X:X,MATCH($C16,'6. CY 2022'!$A:$A,0)),0),0) -> 0 | AG16: =IFERROR(IF(Y16="CY 2022",AF16/'4. Calculated Fee'!$D$35*'4. Calculated Fee'!$D$26,0),0) -> 0 | AH16: =IFERROR(IF($Y16="CY 2022",INDEX('6. CY 2022'!X:X,MATCH($C16,'6. CY 2022'!$A:$A,0)),0),0) -> 0 | AI16: =IFERROR(IF(Y16="CY 2022",INDEX('6. CY 2022'!AG:AG,MATCH(C16,'6. CY 2022'!A:A,0)),0),0) -> 0 | AJ16: =IFERROR(IF($Y16="CY 2022",INDEX('6. CY 2022'!AH:AH,MATCH($C16,'6. CY 2022'!$A:$A,0)),0),0) -> 0 | AK16: =IFERROR(IF($Y16="CY 2022",INDEX('6. CY 2022'!AI:AI,MATCH($C16,'6. CY 2022'!$A:$A,0)),0),0) -> 0 | AL16: =IFERROR(IF($Y16="CY 2022",INDEX('6. CY 2022'!AJ:AJ,MATCH($C16,'6. CY 2022'!$A:$A,0)),0),0) -> 0 | AM16: =IFERROR(IF($Y16="CY 2022",INDEX('6. CY 2022'!AK:AK,MATCH($C16,'6. CY 2022'!$A:$A,0)),0),0) -> 0 | AN16: =IFERROR(IF($Y16="CY 2022",INDEX('6. CY 2022'!AL:AL,MATCH($C16,'6. CY 2022'!$A:$A,0)),0),0) -> 0 | AO16: =IFERROR(IF($Y16="CY 2022",INDEX('6. CY 2022'!AM:AM,MATCH($C16,'6. CY 2022'!$A:$A,0)),0),0) -> 0 | AP16: =IFERROR(IF($Y16="CY 2022",INDEX('6. CY 2022'!AN:AN,MATCH($C16,'6. CY 2022'!$A:$A,0)),0),0) -> 0 | AQ16: =IFERROR(IF($Y16="CY 2022",INDEX('6. CY 2022'!AQ:AQ,MATCH($C16,'6. CY 2022'!$A:$A,0)),0),0) -> 0 | AR16: =IFERROR(IF($Y16="CY 2022",INDEX('6. CY 2022'!AS:AS,MATCH($C16,'6. CY 2022'!A:A,0)),0),0) -> 0 | AS16: =IFERROR(IF(Y16="CY 2022",INDEX('6. CY 2022'!AT:AT,MATCH(C16,'6. CY 2022'!A:A,0)),0),0) -> 0 | AT16: =IFERROR(IF($Y16="CY 2022",INDEX('6. CY 2022'!AU:AU,MATCH($C16,'6. CY 2022'!A:A,0)),0),0) -> 0 | AW16: =IFERROR(IF(Y16="CY 2022",INDEX('6. CY 2022'!H:H,MATCH(C16,'6. CY 2022'!A:A,0)),0),0) -> 32721821.76 | AZ16: 106484062
A17: 15 | B17: ADVENTIST HEALTH WHITE MEMORIAL | C17: 106190878 | D17: ADVENTIST HEALTH WHITE MEMORIAL | F17: =IFERROR(INDEX('8. 2018 OSHPD (FEE) DAYS'!G:G,MATCH(C17,'8. 2018 OSHPD (FEE) DAYS'!A:A,0)),0) -> 2018-01-01 | G17: =IFERROR(INDEX('8. 2018 OSHPD (FEE) DAYS'!H:H,MATCH(C17,'8. 2018 OSHPD (FEE) DAYS'!A:A,0)),0) -> 2018-12-31 | H17: =IFERROR(INDEX('8. 2018 OSHPD (FEE) DAYS'!W:W,MATCH(C17,'8. 2018 OSHPD (FEE) DAYS'!A:A,0)),0) -> 2018-01-01 | I17: =IFERROR(INDEX('11. Hospital Statuses'!M:M,MATCH(C17,'11. Hospital Statuses'!A:A,0)),"") -> Open | J17: Los Angeles | K17: 11 | L17: 925 | M17: Non-Profit | N17: Comparable | O17: Teaching | P17: https://www.adventisthealth.org/white-memorial/ | R17: ADVENTIST HEALTH | S17: 323-268-5000 | T17: 1720 CESAR E. CHAVEZ AVENUE | U17: LOS ANGELES | V17: 90033-2462 | W17: JOHN RAFFOUL | X17: =IFERROR(IF(INDEX(#REF!,MATCH(C17,#REF!,0)),"Yes","No"),"") ->  | Y17: CY 2022 | Z17: =IFERROR(IF($Y17="CY 2022",INDEX('6. CY 2022'!R:R,MATCH($C17,'6. CY 2022'!$A:$A,0)),0),0) -> 0 | AA17: =IFERROR(IF($Y17="CY 2022",INDEX('6. CY 2022'!S:S,MATCH($C17,'6. CY 2022'!$A:$A,0)),0),0) -> 3551222.25 | AB17: =IFERROR(IF($Y17="CY 2022",INDEX('6. CY 2022'!T:T,MATCH($C17,'6. CY 2022'!$A:$A,0)),0),0) -> 6023840.94 | AC17: =IFERROR(IF($Y17="CY 2022",INDEX('6. CY 2022'!U:U,MATCH($C17,'6. CY 2022'!$A:$A,0)),0),0) -> 0 | AD17: =IFERROR(IF($Y17="CY 2022",INDEX('6. CY 2022'!V:V,MATCH($C17,'6. CY 2022'!$A:$A,0)),0),0) -> 13553396.5 | AE17: =IFERROR(IF($Y17="CY 2022",INDEX('6. CY 2022'!W:W,MATCH($C17,'6. CY 2022'!$A:$A,0)),0),0) -> 9607754.75 | AF17: =IFERROR(IF($Y17="CY 2022",INDEX('6. CY 2022'!X:X,MATCH($C17,'6. CY 2022'!$A:$A,0)),0),0) -> 32736214.44 | AG17: =IFERROR(IF(Y17="CY 2022",AF17/'4. Calculated Fee'!$D$35*'4. Calculated Fee'!$D$26,0),0) -> 9622737.922 | AH17: =IFERROR(IF($Y17="CY 2022",INDEX('6. CY 2022'!X:X,MATCH($C17,'6. CY 2022'!$A:$A,0)),0),0) -> 32736214.44 | AI17: =IFERROR(IF(Y17="CY 2022",INDEX('6. CY 2022'!AG:AG,MATCH(C17,'6. CY 2022'!A:A,0)),0),0) -> 4359709.66 | AJ17: =IFERROR(IF($Y17="CY 2022",INDEX('6. CY 2022'!AH:AH,MATCH($C17,'6. CY 2022'!$A:$A,0)),0),0) -> 15870161.19 | AK17: =IFERROR(IF($Y17="CY 2022",INDEX('6. CY 2022'!AI:AI,MATCH($C17,'6. CY 2022'!$A:$A,0)),0),0) -> 0 | AL17: =IFERROR(IF($Y17="CY 2022",INDEX('6. CY 2022'!AJ:AJ,MATCH($C17,'6. CY 2022'!$A:$A,0)),0),0) -> 1068600 | AM17: =IFERROR(IF($Y17="CY 2022",INDEX('6. CY 2022'!AK:AK,MATCH($C17,'6. CY 2022'!$A:$A,0)),0),0) -> 0 | AN17: =IFERROR(IF($Y17="CY 2022",INDEX('6. CY 2022'!AL:AL,MATCH($C17,'6. CY 2022'!$A:$A,0)),0),0) -> 0 | AO17: =IFERROR(IF($Y17="CY 2022",INDEX('6. CY 2022'!AM:AM,MATCH($C17,'6. CY 2022'!$A:$A,0)),0),0) -> 0 | AP17: =IFERROR(IF($Y17="CY 2022",INDEX('6. CY 2022'!AN:AN,MATCH($C17,'6. CY 2022'!$A:$A,0)),0),0) -> 0 | AQ17: =IFERROR(IF($Y17="CY 2022",INDEX('6. CY 2022'!AQ:AQ,MATCH($C17,'6. CY 2022'!$A:$A,0)),0),0) -> 21298470.85 | AR17: =IFERROR(IF($Y17="CY 2022",INDEX('6. CY 2022'!AS:AS,MATCH($C17,'6. CY 2022'!A:A,0)),0),0) -> 19669865.2 | AS17: =IFERROR(IF(Y17="CY 2022",INDEX('6. CY 2022'!AT:AT,MATCH(C17,'6. CY 2022'!A:A,0)),0),0) -> 40777002.7 | AT17: =IFERROR(IF($Y17="CY 2022",INDEX('6. CY 2022'!AU:AU,MATCH($C17,'6. CY 2022'!A:A,0)),0),0) -> 60446867.9 | AW17: =IFERROR(IF(Y17="CY 2022",INDEX('6. CY 2022'!H:H,MATCH(C17,'6. CY 2022'!A:A,0)),0),0) -> 488706379.3 | AZ17: 106094002
A18: 16 | B18: AHMC ANAHEIM REGIONAL MEDICAL CENTER | C18: 106301098 | D18: AHMC ANAHEIM REGIONAL MEDICAL CENTER | F18: =IFERROR(INDEX('8. 2018 OSHPD (FEE) DAYS'!G:G,MATCH(C18,'8. 2018 OSHPD (FEE) DAYS'!A:A,0)),0) -> 2017-07-01 | G18: =IFERROR(INDEX('8. 2018 OSHPD (FEE) DAYS'!H:H,MATCH(C18,'8. 2018 OSHPD (FEE) DAYS'!A:A,0)),0) -> 2018-06-30 | H18: =IFERROR(INDEX('8. 2018 OSHPD (FEE) DAYS'!W:W,MATCH(C18,'8. 2018 OSHPD (FEE) DAYS'!A:A,0)),0) -> 2017-07-01 | I18: =IFERROR(INDEX('11. Hospital Statuses'!M:M,MATCH(C18,'11. Hospital Statuses'!A:A,0)),"") -> Open | J18: Orange | K18: 13 | L18: 1012 | M18: Investor | N18: Comparable | P18: https://www.anaheimregionalmc.com/ | R18: AHMC HEALTHCARE INC | S18: 714-774-1450 | T18: 111 WEST LA PALMA AVENUE | U18: ANAHEIM | V18: 92801 | W18: MARGARET PETERSON | X18: =IFERROR(IF(INDEX(#REF!,MATCH(C18,#REF!,0)),"Yes","No"),"") ->  | Y18: CY 2022 | Z18: =IFERROR(IF($Y18="CY 2022",INDEX('6. CY 2022'!R:R,MATCH($C18,'6. CY 2022'!$A:$A,0)),0),0) -> 0 | AA18: =IFERROR(IF($Y18="CY 2022",INDEX('6. CY 2022'!S:S,MATCH($C18,'6. CY 2022'!$A:$A,0)),0),0) -> 4100507 | AB18: =IFERROR(IF($Y18="CY 2022",INDEX('6. CY 2022'!T:T,MATCH($C18,'6. CY 2022'!$A:$A,0)),0),0) -> 4297192.38 | AC18: =IFERROR(IF($Y18="CY 2022",INDEX('6. CY 2022'!U:U,MATCH($C18,'6. CY 2022'!$A:$A,0)),0),0) -> 0 | AD18: =IFERROR(IF($Y18="CY 2022",INDEX('6. CY 2022'!V:V,MATCH($C18,'6. CY 2022'!$A:$A,0)),0),0) -> 4954598 | AE18: =IFERROR(IF($Y18="CY 2022",INDEX('6. CY 2022'!W:W,MATCH($C18,'6. CY 2022'!$A:$A,0)),0),0) -> 2380140.25 | AF18: =IFERROR(IF($Y18="CY 2022",INDEX('6. CY 2022'!X:X,MATCH($C18,'6. CY 2022'!$A:$A,0)),0),0) -> 15732437.63 | AG18: =IFERROR(IF(Y18="CY 2022",AF18/'4. Calculated Fee'!$D$35*'4. Calculated Fee'!$D$26,0),0) -> 4624515.289 | AH18: =IFERROR(IF($Y18="CY 2022",INDEX('6. CY 2022'!X:X,MATCH($C18,'6. CY 2022'!$A:$A,0)),0),0) -> 15732437.63 | AI18: =IFERROR(IF(Y18="CY 2022",INDEX('6. CY 2022'!AG:AG,MATCH(C18,'6. CY 2022'!A:A,0)),0),0) -> 2660784.509 | AJ18: =IFERROR(IF($Y18="CY 2022",INDEX('6. CY 2022'!AH:AH,MATCH($C18,'6. CY 2022'!$A:$A,0)),0),0) -> 6837004.311 | AK18: =IFERROR(IF($Y18="CY 2022",INDEX('6. CY 2022'!AI:AI,MATCH($C18,'6. CY 2022'!$A:$A,0)),0),0) -> 0 | AL18: =IFERROR(IF($Y18="CY 2022",INDEX('6. CY 2022'!AJ:AJ,MATCH($C18,'6. CY 2022'!$A:$A,0)),0),0) -> 0 | AM18: =IFERROR(IF($Y18="CY 2022",INDEX('6. CY 2022'!AK:AK,MATCH($C18,'6. CY 2022'!$A:$A,0)),0),0) -> 1872500 | AN18: =IFERROR(IF($Y18="CY 2022",INDEX('6. CY 2022'!AL:AL,MATCH($C18,'6. CY 2022'!$A:$A,0)),0),0) -> 0 | AO18: =IFERROR(IF($Y18="CY 2022",INDEX('6. CY 2022'!AM:AM,MATCH($C18,'6. CY 2022'!$A:$A,0)),0),0) -> 0 | AP18: =IFERROR(IF($Y18="CY 2022",INDEX('6. CY 2022'!AN:AN,MATCH($C18,'6. CY 2022'!$A:$A,0)),0),0) -> 0 | AQ18: =IFERROR(IF($Y18="CY 2022",INDEX('6. CY 2022'!AQ:AQ,MATCH($C18,'6. CY 2022'!$A:$A,0)),0),0) -> 11370288.82 | AR18: =IFERROR(IF($Y18="CY 2022",INDEX('6. CY 2022'!AS:AS,MATCH($C18,'6. CY 2022'!A:A,0)),0),0) -> 4386826.2 | AS18: =IFERROR(IF(Y18="CY 2022",INDEX('6. CY 2022'!AT:AT,MATCH(C18,'6. CY 2022'!A:A,0)),0),0) -> 17333702.69 | AT18: =IFERROR(IF($Y18="CY 2022",INDEX('6. CY 2022'!AU:AU,MATCH($C18,'6. CY 2022'!A:A,0)),0),0) -> 21720528.89 | AW18: =IFERROR(IF(Y18="CY 2022",INDEX('6. CY 2022'!H:H,MATCH(C18,'6. CY 2022'!A:A,0)),0),0) -> 218949637.3 | AX18: =SUM(AG18) -> 4624515.289 | AZ18: 106104089
A19: 17 | B19: ALAMEDA HOSPITAL | C19: 106010735 | D19: ALAMEDA HOSPITAL | F19: =IFERROR(INDEX('8. 2018 OSHPD (FEE) DAYS'!G:G,MATCH(C19,'8. 2018 OSHPD (FEE) DAYS'!A:A,0)),0) -> 2017-07-01 | G19: =IFERROR(INDEX('8. 2018 OSHPD (FEE) DAYS'!H:H,MATCH(C19,'8. 2018 OSHPD (FEE) DAYS'!A:A,0)),0) -> 2018-06-30 | H19: =IFERROR(INDEX('8. 2018 OSHPD (FEE) DAYS'!W:W,MATCH(C19,'8. 2018 OSHPD (FEE) DAYS'!A:A,0)),0) -> 2017-07-01 | I19: =IFERROR(INDEX('11. Hospital Statuses'!M:M,MATCH(C19,'11. Hospital Statuses'!A:A,0)),"") -> Open | J19: Alameda | K19: 5 | L19: 417 | M19: City/County | N19: Comparable | P19: http://www.alamedahealthsystem.org/locations/alameda-hospital/ | R19: ALAMEDA HEALTH SYSTEM | S19: 510-437-4800 | T19: 2070 CLINTON AVENUE | U19: ALAMEDA | V19: 94501 | W19: JAMES JACKSON | X19: =IFERROR(IF(INDEX(#REF!,MATCH(C19,#REF!,0)),"Yes","No"),"") ->  | Y19: CY 2022 | Z19: =IFERROR(IF($Y19="CY 2022",INDEX('6. CY 2022'!R:R,MATCH($C19,'6. CY 2022'!$A:$A,0)),0),0) -> 0 | AA19: =IFERROR(IF($Y19="CY 2022",INDEX('6. CY 2022'!S:S,MATCH($C19,'6. CY 2022'!$A:$A,0)),0),0) -> 0 | AB19: =IFERROR(IF($Y19="CY 2022",INDEX('6. CY 2022'!T:T,MATCH($C19,'6. CY 2022'!$A:$A,0)),0),0) -> 0 | AC19: =IFERROR(IF($Y19="CY 2022",INDEX('6. CY 2022'!U:U,MATCH($C19,'6. CY 2022'!$A:$A,0)),0),0) -> 0 | AD19: =IFERROR(IF($Y19="CY 2022",INDEX('6. CY 2022'!V:V,MATCH($C19,'6. CY 2022'!$A:$A,0)),0),0) -> 0 | AE19: =IFERROR(IF($Y19="CY 2022",INDEX('6. CY 2022'!W:W,MATCH($C19,'6. CY 2022'!$A:$A,0)),0),0) -> 0 | AF19: =IFERROR(IF($Y19="CY 2022",INDEX('6. CY 2022'!X:X,MATCH($C19,'6. CY 2022'!$A:$A,0)),0),0) -> 0 | AG19: =IFERROR(IF(Y19="CY 2022",AF19/'4. Calculated Fee'!$D$35*'4. Calculated Fee'!$D$26,0),0) -> 0 | AH19: =IFERROR(IF($Y19="CY 2022",INDEX('6. CY 2022'!X:X,MATCH($C19,'6. CY 2022'!$A:$A,0)),0),0) -> 0 | AI19: =IFERROR(IF(Y19="CY 2022",INDEX('6. CY 2022'!AG:AG,MATCH(C19,'6. CY 2022'!A:A,0)),0),0) -> 0 | AJ19: =IFERROR(IF($Y19="CY 2022",INDEX('6. CY 2022'!AH:AH,MATCH($C19,'6. CY 2022'!$A:$A,0)),0),0) -> 0 | AK19: =IFERROR(IF($Y19="CY 2022",INDEX('6. CY 2022'!AI:AI,MATCH($C19,'6. CY 2022'!$A:$A,0)),0),0) -> 0 | AL19: =IFERROR(IF($Y19="CY 2022",INDEX('6. CY 2022'!AJ:AJ,MATCH($C19,'6. CY 2022'!$A:$A,0)),0),0) -> 0 | AM19: =IFERROR(IF($Y19="CY 2022",INDEX('6. CY 2022'!AK:AK,MATCH($C19,'6. CY 2022'!$A:$A,0)),0),0) -> 0 | AN19: =IFERROR(IF($Y19="CY 2022",INDEX('6. CY 2022'!AL:AL,MATCH($C19,'6. CY 2022'!$A:$A,0)),0),0) -> 0 | AO19: =IFERROR(IF($Y19="CY 2022",INDEX('6. CY 2022'!AM:AM,MATCH($C19,'6. CY 2022'!$A:$A,0)),0),0) -> 0 | AP19: =IFERROR(IF($Y19="CY 2022",INDEX('6. CY 2022'!AN:AN,MATCH($C19,'6. CY 2022'!$A:$A,0)),0),0) -> 0 | AQ19: =IFERROR(IF($Y19="CY 2022",INDEX('6. CY 2022'!AQ:AQ,MATCH($C19,'6. CY 2022'!$A:$A,0)),0),0) -> 0 | AR19: =IFERROR(IF($Y19="CY 2022",INDEX('6. CY 2022'!AS:AS,MATCH($C19,'6. CY 2022'!A:A,0)),0),0) -> 0 | AS19: =IFERROR(IF(Y19="CY 2022",INDEX('6. CY 2022'!AT:AT,MATCH(C19,'6. CY 2022'!A:A,0)),0),0) -> 0 | AT19: =IFERROR(IF($Y19="CY 2022",INDEX('6. CY 2022'!AU:AU,MATCH($C19,'6. CY 2022'!A:A,0)),0),0) -> 0 | AW19: =IFERROR(IF(Y19="CY 2022",INDEX('6. CY 2022'!H:H,MATCH(C19,'6. CY 2022'!A:A,0)),0),0) -> 452701365 | AX19: =SUM(AG19:AG20) -> 2565826.858 | AZ19: 106197931
A20: 18 | B20: ALHAMBRA HOSPITAL MEDICAL CENTER | C20: 106190017 | D20: ALHAMBRA HOSPITAL MEDICAL CENTER | F20: =IFERROR(INDEX('8. 2018 OSHPD (FEE) DAYS'!G:G,MATCH(C20,'8. 2018 OSHPD (FEE) DAYS'!A:A,0)),0) -> 2017-07-01 | G20: =IFERROR(INDEX('8. 2018 OSHPD (FEE) DAYS'!H:H,MATCH(C20,'8. 2018 OSHPD (FEE) DAYS'!A:A,0)),0) -> 2018-06-30 | H20: =IFERROR(INDEX('8. 2018 OSHPD (FEE) DAYS'!W:W,MATCH(C20,'8. 2018 OSHPD (FEE) DAYS'!A:A,0)),0) -> 2017-07-01 | I20: =IFERROR(INDEX('11. Hospital Statuses'!M:M,MATCH(C20,'11. Hospital Statuses'!A:A,0)),"") -> Open | J20: Los Angeles | K20: 11 | L20: 913 | M20: Investor | N20: Comparable | P20: https://www.alhambrahospital.com/ | Q20: Link not working | R20: ALHAMBRA HOSPITAL MEDICAL CEMTER LP | S20: 626-570-1606 | T20: 100 SOUTH RAYMOND AVENUE | U20: ALHAMBRA | V20: 91802 | W20: IRIS LAI | X20: =IFERROR(IF(INDEX(#REF!,MATCH(C20,#REF!,0)),"Yes","No"),"") ->  | Y20: CY 2022 | Z20: =IFERROR(IF($Y20="CY 2022",INDEX('6. CY 2022'!R:R,MATCH($C20,'6. CY 2022'!$A:$A,0)),0),0) -> 0 | AA20: =IFERROR(IF($Y20="CY 2022",INDEX('6. CY 2022'!S:S,MATCH($C20,'6. CY 2022'!$A:$A,0)),0),0) -> 1751456 | AB20: =IFERROR(IF($Y20="CY 2022",INDEX('6. CY 2022'!T:T,MATCH($C20,'6. CY 2022'!$A:$A,0)),0),0) -> 3154822.32 | AC20: =IFERROR(IF($Y20="CY 2022",INDEX('6. CY 2022'!U:U,MATCH($C20,'6. CY 2022'!$A:$A,0)),0),0) -> 0 | AD20: =IFERROR(IF($Y20="CY 2022",INDEX('6. CY 2022'!V:V,MATCH($C20,'6. CY 2022'!$A:$A,0)),0),0) -> 3527111.75 | AE20: =IFERROR(IF($Y20="CY 2022",INDEX('6. CY 2022'!W:W,MATCH($C20,'6. CY 2022'!$A:$A,0)),0),0) -> 295462.25 | AF20: =IFERROR(IF($Y20="CY 2022",INDEX('6. CY 2022'!X:X,MATCH($C20,'6. CY 2022'!$A:$A,0)),0),0) -> 8728852.32 | AG20: =IFERROR(IF(Y20="CY 2022",AF20/'4. Calculated Fee'!$D$35*'4. Calculated Fee'!$D$26,0),0) -> 2565826.858 | AH20: =IFERROR(IF($Y20="CY 2022",INDEX('6. CY 2022'!X:X,MATCH($C20,'6. CY 2022'!$A:$A,0)),0),0) -> 8728852.32 | AI20: =IFERROR(IF(Y20="CY 2022",INDEX('6. CY 2022'!AG:AG,MATCH(C20,'6. CY 2022'!A:A,0)),0),0) -> 673925.1582 | AJ20: =IFERROR(IF($Y20="CY 2022",INDEX('6. CY 2022'!AH:AH,MATCH($C20,'6. CY 2022'!$A:$A,0)),0),0) -> 675941.5687 | AK20: =IFERROR(IF($Y20="CY 2022",INDEX('6. CY 2022'!AI:AI,MATCH($C20,'6. CY 2022'!$A:$A,0)),0),0) -> 1205690.818 | AL20: =IFERROR(IF($Y20="CY 2022",INDEX('6. CY 2022'!AJ:AJ,MATCH($C20,'6. CY 2022'!$A:$A,0)),0),0) -> 0 | AM20: =IFERROR(IF($Y20="CY 2022",INDEX('6. CY 2022'!AK:AK,MATCH($C20,'6. CY 2022'!$A:$A,0)),0),0) -> 120000 | AN20: =IFERROR(IF($Y20="CY 2022",INDEX('6. CY 2022'!AL:AL,MATCH($C20,'6. CY 2022'!$A:$A,0)),0),0) -> 0 | AO20: =IFERROR(IF($Y20="CY 2022",INDEX('6. CY 2022'!AM:AM,MATCH($C20,'6. CY 2022'!$A:$A,0)),0),0) -> 0 | AP20: =IFERROR(IF($Y20="CY 2022",INDEX('6. CY 2022'!AN:AN,MATCH($C20,'6. CY 2022'!$A:$A,0)),0),0) -> 0 | AQ20: =IFERROR(IF($Y20="CY 2022",INDEX('6. CY 2022'!AQ:AQ,MATCH($C20,'6. CY 2022'!$A:$A,0)),0),0) -> 2675557.544 | AR20: =IFERROR(IF($Y20="CY 2022",INDEX('6. CY 2022'!AS:AS,MATCH($C20,'6. CY 2022'!A:A,0)),0),0) -> 4906189.69 | AS20: =IFERROR(IF(Y20="CY 2022",INDEX('6. CY 2022'!AT:AT,MATCH(C20,'6. CY 2022'!A:A,0)),0),0) -> 9435477.32 | AT20: =IFERROR(IF($Y20="CY 2022",INDEX('6. CY 2022'!AU:AU,MATCH($C20,'6. CY 2022'!A:A,0)),0),0) -> 14341667.01 | AW20: =IFERROR(IF(Y20="CY 2022",INDEX('6. CY 2022'!H:H,MATCH(C20,'6. CY 2022'!A:A,0)),0),0) -> 87412069.19 | AX20: =SUM(AG20) -> 2565826.858 | AZ20: 106301781
A21: 19 | B21: ALTA BATES SUMMIT MEDICAL CENTER - ALTA BATES CAMPUS | C21: 106010739 | D21: ALTA BATES SUMMIT MEDICAL CENTER - ALTA BATES CAMPUS | F21: =IFERROR(INDEX('8. 2018 OSHPD (FEE) DAYS'!G:G,MATCH(C21,'8. 2018 OSHPD (FEE) DAYS'!A:A,0)),0) -> 2018-01-01 | G21: =IFERROR(INDEX('8. 2018 OSHPD (FEE) DAYS'!H:H,MATCH(C21,'8. 2018 OSHPD (FEE) DAYS'!A:A,0)),0) -> 2018-12-31 | H21: =IFERROR(INDEX('8. 2018 OSHPD (FEE) DAYS'!W:W,MATCH(C21,'8. 2018 OSHPD (FEE) DAYS'!A:A,0)),0) -> 2018-01-01 | I21: =IFERROR(INDEX('11. Hospital Statuses'!M:M,MATCH(C21,'11. Hospital Statuses'!A:A,0)),"") -> Open | J21: Alameda | K21: 5 | L21: 415 | M21: Non-Profit | N21: Comparable | P21: https://www.sutterhealth.org/find-location/facility/alta-bates-summit-medical-center-alta-bates-campus | R21: SUTTER HEALTH | S21: 510-204-4444 | T21: 2450 ASHBY AVENUE | U21: BERKELEY | V21: 94705 | W21: DR. GERALD KOZAI | X21: =IFERROR(IF(INDEX(#REF!,MATCH(C21,#REF!,0)),"Yes","No"),"") ->  | Y21: CY 2022 | Z21: =IFERROR(IF($Y21="CY 2022",INDEX('6. CY 2022'!R:R,MATCH($C21,'6. CY 2022'!$A:$A,0)),0),0) -> 0 | AA21: =IFERROR(IF($Y21="CY 2022",INDEX('6. CY 2022'!S:S,MATCH($C21,'6. CY 2022'!$A:$A,0)),0),0) -> 7066700.5 | AB21: =IFERROR(IF($Y21="CY 2022",INDEX('6. CY 2022'!T:T,MATCH($C21,'6. CY 2022'!$A:$A,0)),0),0) -> 7263074.52 | AC21: =IFERROR(IF($Y21="CY 2022",INDEX('6. CY 2022'!U:U,MATCH($C21,'6. CY 2022'!$A:$A,0)),0),0) -> 0 | AD21: =IFERROR(IF($Y21="CY 2022",INDEX('6. CY 2022'!V:V,MATCH($C21,'6. CY 2022'!$A:$A,0)),0),0) -> 6212679.25 | AE21: =IFERROR(IF($Y21="CY 2022",INDEX('6. CY 2022'!W:W,MATCH($C21,'6. CY 2022'!$A:$A,0)),0),0) -> 5007412.5 | AF21: =IFERROR(IF($Y21="CY 2022",INDEX('6. CY 2022'!X:X,MATCH($C21,'6. CY 2022'!$A:$A,0)),0),0) -> 25549866.77 | AG21: =IFERROR(IF(Y21="CY 2022",AF21/'4. Calculated Fee'!$D$35*'4. Calculated Fee'!$D$26,0),0) -> 7510326.899 | AH21: =IFERROR(IF($Y21="CY 2022",INDEX('6. CY 2022'!X:X,MATCH($C21,'6. CY 2022'!$A:$A,0)),0),0) -> 25549866.77 | AI21: =IFERROR(IF(Y21="CY 2022",INDEX('6. CY 2022'!AG:AG,MATCH(C21,'6. CY 2022'!A:A,0)),0),0) -> 2902569.562 | AJ21: =IFERROR(IF($Y21="CY 2022",INDEX('6. CY 2022'!AH:AH,MATCH($C21,'6. CY 2022'!$A:$A,0)),0),0) -> 16192351.24 | AK21: =IFERROR(IF($Y21="CY 2022",INDEX('6. CY 2022'!AI:AI,MATCH($C21,'6. CY 2022'!$A:$A,0)),0),0) -> 0 | AL21: =IFERROR(IF($Y21="CY 2022",INDEX('6. CY 2022'!AJ:AJ,MATCH($C21,'6. CY 2022'!$A:$A,0)),0),0) -> 819975 | AM21: =IFERROR(IF($Y21="CY 2022",INDEX('6. CY 2022'!AK:AK,MATCH($C21,'6. CY 2022'!$A:$A,0)),0),0) -> 3862500 | AN21: =IFERROR(IF($Y21="CY 2022",INDEX('6. CY 2022'!AL:AL,MATCH($C21,'6. CY 2022'!$A:$A,0)),0),0) -> 0 | AO21: =IFERROR(IF($Y21="CY 2022",INDEX('6. CY 2022'!AM:AM,MATCH($C21,'6. CY 2022'!$A:$A,0)),0),0) -> 0 | AP21: =IFERROR(IF($Y21="CY 2022",INDEX('6. CY 2022'!AN:AN,MATCH($C21,'6. CY 2022'!$A:$A,0)),0),0) -> 0 | AQ21: =IFERROR(IF($Y21="CY 2022",INDEX('6. CY 2022'!AQ:AQ,MATCH($C21,'6. CY 2022'!$A:$A,0)),0),0) -> 23777395.8 | AR21: =IFERROR(IF($Y21="CY 2022",INDEX('6. CY 2022'!AS:AS,MATCH($C21,'6. CY 2022'!A:A,0)),0),0) -> 8550667.51 | AS21: =IFERROR(IF(Y21="CY 2022",INDEX('6. CY 2022'!AT:AT,MATCH(C21,'6. CY 2022'!A:A,0)),0),0) -> 21011803.08 | AT21: =IFERROR(IF($Y21="CY 2022",INDEX('6. CY 2022'!AU:AU,MATCH($C21,'6. CY 2022'!A:A,0)),0),0) -> 29562470.59 | AW21: =IFERROR(IF(Y21="CY 2022",INDEX('6. CY 2022'!H:H,MATCH(C21,'6. CY 2022'!A:A,0)),0),0) -> 785489071.7 | AX21: =SUM(AG21:AG36) -> 29895275.83 | AZ21: 106196404
A22: 20 | B22: ALTA BATES SUMMIT MEDICAL CENTER - SUMMIT HAWTHORNE | C22: 106010937 | D22: ALTA BATES SUMMIT MEDICAL CENTER - SUMMIT HAWTHORNE | F22: =IFERROR(INDEX('8. 2018 OSHPD (FEE) DAYS'!G:G,MATCH(C22,'8. 2018 OSHPD (FEE) DAYS'!A:A,0)),0) -> 2018-01-01 | G22: =IFERROR(INDEX('8. 2018 OSHPD (FEE) DAYS'!H:H,MATCH(C22,'8. 2018 OSHPD (FEE) DAYS'!A:A,0)),0) -> 2018-12-31 | H22: =IFERROR(INDEX('8. 2018 OSHPD (FEE) DAYS'!W:W,MATCH(C22,'8. 2018 OSHPD (FEE) DAYS'!A:A,0)),0) -> 2018-01-01 | I22: =IFERROR(INDEX('11. Hospital Statuses'!M:M,MATCH(C22,'11. Hospital Statuses'!A:A,0)),"") -> Open | J22: Alameda | K22: 5 | L22: 417 | M22: Non-Profit | N22: Comparable | P22: https://www.sutterhealth.org/find-location/facility/alta-bates-summit-medical-center-summit-campus | R22: SUTTER HEALTH | S22: 510-655-4000 | T22: HAWTHORNE AVE & WEBSTER ST | U22: OAKLAND | V22: 94609 | W22: DR. GERALD KOZAI | X22: =IFERROR(IF(INDEX(#REF!,MATCH(C22,#REF!,0)),"Yes","No"),"") ->  | Y22: CY 2022 | Z22: =IFERROR(IF($Y22="CY 2022",INDEX('6. CY 2022'!R:R,MATCH($C22,'6. CY 2022'!$A:$A,0)),0),0) -> 0 | AA22: =IFERROR(IF($Y22="CY 2022",INDEX('6. CY 2022'!S:S,MATCH($C22,'6. CY 2022'!$A:$A,0)),0),0) -> 4271408 | AB22: =IFERROR(IF($Y22="CY 2022",INDEX('6. CY 2022'!T:T,MATCH($C22,'6. CY 2022'!$A:$A,0)),0),0) -> 10236840.9 | AC22: =IFERROR(IF($Y22="CY 2022",INDEX('6. CY 2022'!U:U,MATCH($C22,'6. CY 2022'!$A:$A,0)),0),0) -> 0 | AD22: =IFERROR(IF($Y22="CY 2022",INDEX('6. CY 2022'!V:V,MATCH($C22,'6. CY 2022'!$A:$A,0)),0),0) -> 6468779.75 | AE22: =IFERROR(IF($Y22="CY 2022",INDEX('6. CY 2022'!W:W,MATCH($C22,'6. CY 2022'!$A:$A,0)),0),0) -> 3121038 | AF22: =IFERROR(IF($Y22="CY 2022",INDEX('6. CY 2022'!X:X,MATCH($C22,'6. CY 2022'!$A:$A,0)),0),0) -> 24098066.65 | AG22: =IFERROR(IF(Y22="CY 2022",AF22/'4. Calculated Fee'!$D$35*'4. Calculated Fee'!$D$26,0),0) -> 7083573.46 | AH22: =IFERROR(IF($Y22="CY 2022",INDEX('6. CY 2022'!X:X,MATCH($C22,'6. CY 2022'!$A:$A,0)),0),0) -> 24098066.65 | AI22: =IFERROR(IF(Y22="CY 2022",INDEX('6. CY 2022'!AG:AG,MATCH(C22,'6. CY 2022'!A:A,0)),0),0) -> 842675.8652 | AJ22: =IFERROR(IF($Y22="CY 2022",INDEX('6. CY 2022'!AH:AH,MATCH($C22,'6. CY 2022'!$A:$A,0)),0),0) -> 4594824.593 | AK22: =IFERROR(IF($Y22="CY 2022",INDEX('6. CY 2022'!AI:AI,MATCH($C22,'6. CY 2022'!$A:$A,0)),0),0) -> 0 | AL22: =IFERROR(IF($Y22="CY 2022",INDEX('6. CY 2022'!AJ:AJ,MATCH($C22,'6. CY 2022'!$A:$A,0)),0),0) -> 56550 | AM22: =IFERROR(IF($Y22="CY 2022",INDEX('6. CY 2022'!AK:AK,MATCH($C22,'6. CY 2022'!$A:$A,0)),0),0) -> 757500 | AN22: =IFERROR(IF($Y22="CY 2022",INDEX('6. CY 2022'!AL:AL,MATCH($C22,'6. CY 2022'!$A:$A,0)),0),0) -> 0 | AO22: =IFERROR(IF($Y22="CY 2022",INDEX('6. CY 2022'!AM:AM,MATCH($C22,'6. CY 2022'!$A:$A,0)),0),0) -> 0 | AP22: =IFERROR(IF($Y22="CY 2022",INDEX('6. CY 2022'!AN:AN,MATCH($C22,'6. CY 2022'!$A:$A,0)),0),0) -> 0 | AQ22: =IFERROR(IF($Y22="CY 2022",INDEX('6. CY 2022'!AQ:AQ,MATCH($C22,'6. CY 2022'!$A:$A,0)),0),0) -> 6251550.459 | AR22: =IFERROR(IF($Y22="CY 2022",INDEX('6. CY 2022'!AS:AS,MATCH($C22,'6. CY 2022'!A:A,0)),0),0) -> 3424322.94 | AS22: =IFERROR(IF(Y22="CY 2022",INDEX('6. CY 2022'!AT:AT,MATCH(C22,'6. CY 2022'!A:A,0)),0),0) -> 21018772.32 | AT22: =IFERROR(IF($Y22="CY 2022",INDEX('6. CY 2022'!AU:AU,MATCH($C22,'6. CY 2022'!A:A,0)),0),0) -> 24443095.26 | AW22: =IFERROR(IF(Y22="CY 2022",INDEX('6. CY 2022'!H:H,MATCH(C22,'6. CY 2022'!A:A,0)),0),0) -> 618276972.2 | AZ22: 106434218
A23: 21 | B23: ALVARADO HOSPITAL | C23: 106370652 | D23: ALVARADO HOSPITAL | F23: =IFERROR(INDEX('8. 2018 OSHPD (FEE) DAYS'!G:G,MATCH(C23,'8. 2018 OSHPD (FEE) DAYS'!A:A,0)),0) -> 2018-01-01 | G23: =IFERROR(INDEX('8. 2018 OSHPD (FEE) DAYS'!H:H,MATCH(C23,'8. 2018 OSHPD (FEE) DAYS'!A:A,0)),0) -> 2018-12-31 | H23: =IFERROR(INDEX('8. 2018 OSHPD (FEE) DAYS'!W:W,MATCH(C23,'8. 2018 OSHPD (FEE) DAYS'!A:A,0)),0) -> 2018-01-01 | I23: =IFERROR(INDEX('11. Hospital Statuses'!M:M,MATCH(C23,'11. Hospital Statuses'!A:A,0)),"") -> Open | J23: San Diego | K23: 14 | L23: 1418 | M23: Investor | N23: Comparable | P23: https://www.alvaradohospital.com/ | R23: PRIME HEALTHCARE SERVICES, INC. | S23: 619-287-3270 | T23: 6655 ALVARADO ROAD | U23: SAN DIEGO | V23: 92120 | W23: LUIS LEON | X23: =IFERROR(IF(INDEX(#REF!,MATCH(C23,#REF!,0)),"Yes","No"),"") ->  | Y23: CY 2022 | Z23: =IFERROR(IF($Y23="CY 2022",INDEX('6. CY 2022'!R:R,MATCH($C23,'6. CY 2022'!$A:$A,0)),0),0) -> 0 | AA23: =IFERROR(IF($Y23="CY 2022",INDEX('6. CY 2022'!S:S,MATCH($C23,'6. CY 2022'!$A:$A,0)),0),0) -> 1784128.25 | AB23: =IFERROR(IF($Y23="CY 2022",INDEX('6. CY 2022'!T:T,MATCH($C23,'6. CY 2022'!$A:$A,0)),0),0) -> 3189456.66 | AC23: =IFERROR(IF($Y23="CY 2022",INDEX('6. CY 2022'!U:U,MATCH($C23,'6. CY 2022'!$A:$A,0)),0),0) -> 0 | AD23: =IFERROR(IF($Y23="CY 2022",INDEX('6. CY 2022'!V:V,MATCH($C23,'6. CY 2022'!$A:$A,0)),0),0) -> 2468828.75 | AE23: =IFERROR(IF($Y23="CY 2022",INDEX('6. CY 2022'!W:W,MATCH($C23,'6. CY 2022'!$A:$A,0)),0),0) -> 968099.75 | AF23: =IFERROR(IF($Y23="CY 2022",INDEX('6. CY 2022'!X:X,MATCH($C23,'6. CY 2022'!$A:$A,0)),0),0) -> 8410513.41 | AG23: =IFERROR(IF(Y23="CY 2022",AF23/'4. Calculated Fee'!$D$35*'4. Calculated Fee'!$D$26,0),0) -> 2472251.839 | AH23: =IFERROR(IF($Y23="CY 2022",INDEX('6. CY 2022'!X:X,MATCH($C23,'6. CY 2022'!$A:$A,0)),0),0) -> 8410513.41 | AI23: =IFERROR(IF(Y23="CY 2022",INDEX('6. CY 2022'!AG:AG,MATCH(C23,'6. CY 2022'!A:A,0)),0),0) -> 795122.6097 | AJ23: =IFERROR(IF($Y23="CY 2022",INDEX('6. CY 2022'!AH:AH,MATCH($C23,'6. CY 2022'!$A:$A,0)),0),0) -> 2317138.218 | AK23: =IFERROR(IF($Y23="CY 2022",INDEX('6. CY 2022'!AI:AI,MATCH($C23,'6. CY 2022'!$A:$A,0)),0),0) -> 0 | AL23: =IFERROR(IF($Y23="CY 2022",INDEX('6. CY 2022'!AJ:AJ,MATCH($C23,'6. CY 2022'!$A:$A,0)),0),0) -> 0 | AM23: =IFERROR(IF($Y23="CY 2022",INDEX('6. CY 2022'!AK:AK,MATCH($C23,'6. CY 2022'!$A:$A,0)),0),0) -> 562500 | AN23: =IFERROR(IF($Y23="CY 2022",INDEX('6. CY 2022'!AL:AL,MATCH($C23,'6. CY 2022'!$A:$A,0)),0),0) -> 0 | AO23: =IFERROR(IF($Y23="CY 2022",INDEX('6. CY 2022'!AM:AM,MATCH($C23,'6. CY 2022'!$A:$A,0)),0),0) -> 0 | AP23: =IFERROR(IF($Y23="CY 2022",INDEX('6. CY 2022'!AN:AN,MATCH($C23,'6. CY 2022'!$A:$A,0)),0),0) -> 0 | AQ23: =IFERROR(IF($Y23="CY 2022",INDEX('6. CY 2022'!AQ:AQ,MATCH($C23,'6. CY 2022'!$A:$A,0)),0),0) -> 3674760.828 | AR23: =IFERROR(IF($Y23="CY 2022",INDEX('6. CY 2022'!AS:AS,MATCH($C23,'6. CY 2022'!A:A,0)),0),0) -> 1672624.59 | AS23: =IFERROR(IF(Y23="CY 2022",INDEX('6. CY 2022'!AT:AT,MATCH(C23,'6. CY 2022'!A:A,0)),0),0) -> 6163545.6 | AT23: =IFERROR(IF($Y23="CY 2022",INDEX('6. CY 2022'!AU:AU,MATCH($C23,'6. CY 2022'!A:A,0)),0),0) -> 7836170.19 | AW23: =IFERROR(IF(Y23="CY 2022",INDEX('6. CY 2022'!H:H,MATCH(C23,'6. CY 2022'!A:A,0)),0),0) -> 129685438.4 | AZ23: 106190150
A24: 22 | B24: ALVARADO PARKWAY INSTITUTE BHS | C24: 106370749 | D24: ALVARADO PARKWAY INSTITUTE BHS | F24: =IFERROR(INDEX('8. 2018 OSHPD (FEE) DAYS'!G:G,MATCH(C24,'8. 2018 OSHPD (FEE) DAYS'!A:A,0)),0) -> 2018-01-01 | G24: =IFERROR(INDEX('8. 2018 OSHPD (FEE) DAYS'!H:H,MATCH(C24,'8. 2018 OSHPD (FEE) DAYS'!A:A,0)),0) -> 2018-12-31 | H24: =IFERROR(INDEX('8. 2018 OSHPD (FEE) DAYS'!W:W,MATCH(C24,'8. 2018 OSHPD (FEE) DAYS'!A:A,0)),0) -> 2018-01-01 | I24: =IFERROR(INDEX('11. Hospital Statuses'!M:M,MATCH(C24,'11. Hospital Statuses'!A:A,0)),"") -> Open | J24: San Diego | K24: 14 | L24: 1422 | M24: Investor | N24: Comparable | P24: https://apibhs.com/ | R24: BH-SD OPCO, LLC | S24: 619-465-4411 | T24: 7050 PARKWAY DRIVE | U24: LA MESA | V24: 92042 | W24: MEGAN MONTGOMERY-WEST | X24: =IFERROR(IF(INDEX(#REF!,MATCH(C24,#REF!,0)),"Yes","No"),"") ->  | Y24: CY 2022 | Z24: =IFERROR(IF($Y24="CY 2022",INDEX('6. CY 2022'!R:R,MATCH($C24,'6. CY 2022'!$A:$A,0)),0),0) -> 0 | AA24: =IFERROR(IF($Y24="CY 2022",INDEX('6. CY 2022'!S:S,MATCH($C24,'6. CY 2022'!$A:$A,0)),0),0) -> 0 | AB24: =IFERROR(IF($Y24="CY 2022",INDEX('6. CY 2022'!T:T,MATCH($C24,'6. CY 2022'!$A:$A,0)),0),0) -> 0 | AC24: =IFERROR(IF($Y24="CY 2022",INDEX('6. CY 2022'!U:U,MATCH($C24,'6. CY 2022'!$A:$A,0)),0),0) -> 0 | AD24: =IFERROR(IF($Y24="CY 2022",INDEX('6. CY 2022'!V:V,MATCH($C24,'6. CY 2022'!$A:$A,0)),0),0) -> 0 | AE24: =IFERROR(IF($Y24="CY 2022",INDEX('6. CY 2022'!W:W,MATCH($C24,'6. CY 2022'!$A:$A,0)),0),0) -> 0 | AF24: =IFERROR(IF($Y24="CY 2022",INDEX('6. CY 2022'!X:X,MATCH($C24,'6. CY 2022'!$A:$A,0)),0),0) -> 0 | AG24: =IFERROR(IF(Y24="CY 2022",AF24/'4. Calculated Fee'!$D$35*'4. Calculated Fee'!$D$26,0),0) -> 0 | AH24: =IFERROR(IF($Y24="CY 2022",INDEX('6. CY 2022'!X:X,MATCH($C24,'6. CY 2022'!$A:$A,0)),0),0) -> 0 | AI24: =IFERROR(IF(Y24="CY 2022",INDEX('6. CY 2022'!AG:AG,MATCH(C24,'6. CY 2022'!A:A,0)),0),0) -> 0 | AJ24: =IFERROR(IF($Y24="CY 2022",INDEX('6. CY 2022'!AH:AH,MATCH($C24,'6. CY 2022'!$A:$A,0)),0),0) -> 0 | AK24: =IFERROR(IF($Y24="CY 2022",INDEX('6. CY 2022'!AI:AI,MATCH($C24,'6. CY 2022'!$A:$A,0)),0),0) -> 0 | AL24: =IFERROR(IF($Y24="CY 2022",INDEX('6. CY 2022'!AJ:AJ,MATCH($C24,'6. CY 2022'!$A:$A,0)),0),0) -> 0 | AM24: =IFERROR(IF($Y24="CY 2022",INDEX('6. CY 2022'!AK:AK,MATCH($C24,'6. CY 2022'!$A:$A,0)),0),0) -> 0 | AN24: =IFERROR(IF($Y24="CY 2022",INDEX('6. CY 2022'!AL:AL,MATCH($C24,'6. CY 2022'!$A:$A,0)),0),0) -> 0 | AO24: =IFERROR(IF($Y24="CY 2022",INDEX('6. CY 2022'!AM:AM,MATCH($C24,'6. CY 2022'!$A:$A,0)),0),0) -> 0 | AP24: =IFERROR(IF($Y24="CY 2022",INDEX('6. CY 2022'!AN:AN,MATCH($C24,'6. CY 2022'!$A:$A,0)),0),0) -> 0 | AQ24: =IFERROR(IF($Y24="CY 2022",INDEX('6. CY 2022'!AQ:AQ,MATCH($C24,'6. CY 2022'!$A:$A,0)),0),0) -> 0 | AR24: =IFERROR(IF($Y24="CY 2022",INDEX('6. CY 2022'!AS:AS,MATCH($C24,'6. CY 2022'!A:A,0)),0),0) -> 0 | AS24: =IFERROR(IF(Y24="CY 2022",INDEX('6. CY 2022'!AT:AT,MATCH(C24,'6. CY 2022'!A:A,0)),0),0) -> 0 | AT24: =IFERROR(IF($Y24="CY 2022",INDEX('6. CY 2022'!AU:AU,MATCH($C24,'6. CY 2022'!A:A,0)),0),0) -> 0 | AW24: =IFERROR(IF(Y24="CY 2022",INDEX('6. CY 2022'!H:H,MATCH(C24,'6. CY 2022'!A:A,0)),0),0) -> 39944659.52 | AZ24: 106190599
A25: 23 | B25: ANAHEIM GLOBAL MEDICAL CENTER | C25: 106301188 | D25: ANAHEIM GLOBAL MEDICAL CENTER | F25: =IFERROR(INDEX('8. 2018 OSHPD (FEE) DAYS'!G:G,MATCH(C25,'8. 2018 OSHPD (FEE) DAYS'!A:A,0)),0) -> 2018-01-01 | G25: =IFERROR(INDEX('8. 2018 OSHPD (FEE) DAYS'!H:H,MATCH(C25,'8. 2018 OSHPD (FEE) DAYS'!A:A,0)),0) -> 2018-12-31 | H25: =IFERROR(INDEX('8. 2018 OSHPD (FEE) DAYS'!W:W,MATCH(C25,'8. 2018 OSHPD (FEE) DAYS'!A:A,0)),0) -> 2018-01-01 | I25: =IFERROR(INDEX('11. Hospital Statuses'!M:M,MATCH(C25,'11. Hospital Statuses'!A:A,0)),"") -> Open | J25: Orange | K25: 13 | L25: 1012 | M25: Investor | N25: Comparable | P25: HTTPS://ANAHEIM-GMC.COM/ | R25: KPC HEALTHCARE INC. | S25: 714-533-6220 | T25: 1025 SOUTH ANAHEIM BLVD | U25: ANAHEIM | V25: 92805-5806 | W25: PETER BARONOFF | X25: =IFERROR(IF(INDEX(#REF!,MATCH(C25,#REF!,0)),"Yes","No"),"") ->  | Y25: CY 2022 | Z25: =IFERROR(IF($Y25="CY 2022",INDEX('6. CY 2022'!R:R,MATCH($C25,'6. CY 2022'!$A:$A,0)),0),0) -> 0 | AA25: =IFERROR(IF($Y25="CY 2022",INDEX('6. CY 2022'!S:S,MATCH($C25,'6. CY 2022'!$A:$A,0)),0),0) -> 1529452.25 | AB25: =IFERROR(IF($Y25="CY 2022",INDEX('6. CY 2022'!T:T,MATCH($C25,'6. CY 2022'!$A:$A,0)),0),0) -> 2529433.14 | AC25: =IFERROR(IF($Y25="CY 2022",INDEX('6. CY 2022'!U:U,MATCH($C25,'6. CY 2022'!$A:$A,0)),0),0) -> 0 | AD25: =IFERROR(IF($Y25="CY 2022",INDEX('6. CY 2022'!V:V,MATCH($C25,'6. CY 2022'!$A:$A,0)),0),0) -> 3822574 | AE25: =IFERROR(IF($Y25="CY 2022",INDEX('6. CY 2022'!W:W,MATCH($C25,'6. CY 2022'!$A:$A,0)),0),0) -> 10101022.25 | AF25: =IFERROR(IF($Y25="CY 2022",INDEX('6. CY 2022'!X:X,MATCH($C25,'6. CY 2022'!$A:$A,0)),0),0) -> 17982481.64 | AG25: =IFERROR(IF(Y25="CY 2022",AF25/'4. Calculated Fee'!$D$35*'4. Calculated Fee'!$D$26,0),0) -> 5285910.756 | AH25: =IFERROR(IF($Y25="CY 2022",INDEX('6. CY 2022'!X:X,MATCH($C25,'6. CY 2022'!$A:$A,0)),0),0) -> 17982481.64 | AI25: =IFERROR(IF(Y25="CY 2022",INDEX('6. CY 2022'!AG:AG,MATCH(C25,'6. CY 2022'!A:A,0)),0),0) -> 1028849.802 | AJ25: =IFERROR(IF($Y25="CY 2022",INDEX('6. CY 2022'!AH:AH,MATCH($C25,'6. CY 2022'!$A:$A,0)),0),0) -> 3996471.648 | AK25: =IFERROR(IF($Y25="CY 2022",INDEX('6. CY 2022'!AI:AI,MATCH($C25,'6. CY 2022'!$A:$A,0)),0),0) -> 0 | AL25: =IFERROR(IF($Y25="CY 2022",INDEX('6. CY 2022'!AJ:AJ,MATCH($C25,'6. CY 2022'!$A:$A,0)),0),0) -> 2024100 | AM25: =IFERROR(IF($Y25="CY 2022",INDEX('6. CY 2022'!AK:AK,MATCH($C25,'6. CY 2022'!$A:$A,0)),0),0) -> 0 | AN25: =IFERROR(IF($Y25="CY 2022",INDEX('6. CY 2022'!AL:AL,MATCH($C25,'6. CY 2022'!$A:$A,0)),0),0) -> 0 | AO25: =IFERROR(IF($Y25="CY 2022",INDEX('6. CY 2022'!AM:AM,MATCH($C25,'6. CY 2022'!$A:$A,0)),0),0) -> 0 | AP25: =IFERROR(IF($Y25="CY 2022",INDEX('6. CY 2022'!AN:AN,MATCH($C25,'6. CY 2022'!$A:$A,0)),0),0) -> 0 | AQ25: =IFERROR(IF($Y25="CY 2022",INDEX('6. CY 2022'!AQ:AQ,MATCH($C25,'6. CY 2022'!$A:$A,0)),0),0) -> 7049421.451 | AR25: =IFERROR(IF($Y25="CY 2022",INDEX('6. CY 2022'!AS:AS,MATCH($C25,'6. CY 2022'!A:A,0)),0),0) -> 22260933.86 | AS25: =IFERROR(IF(Y25="CY 2022",INDEX('6. CY 2022'!AT:AT,MATCH(C25,'6. CY 2022'!A:A,0)),0),0) -> 6413314.88 | AT25: =IFERROR(IF($Y25="CY 2022",INDEX('6. CY 2022'!AU:AU,MATCH($C25,'6. CY 2022'!A:A,0)),0),0) -> 28674248.74 | AW25: =IFERROR(IF(Y25="CY 2022",INDEX('6. CY 2022'!H:H,MATCH(C25,'6. CY 2022'!A:A,0)),0),0) -> 98348899.64 | AX25: =SUM(AG25:AG28) -> 5285910.756 | AZ25: 106194981
A26: 24 | B26: ANTELOPE VALLEY HOSPITAL | C26: 106190034 | D26: ANTELOPE VALLEY HOSPITAL | F26: =IFERROR(INDEX('8. 2018 OSHPD (FEE) DAYS'!G:G,MATCH(C26,'8. 2018 OSHPD (FEE) DAYS'!A:A,0)),0) -> 2017-07-01 | G26: =IFERROR(INDEX('8. 2018 OSHPD (FEE) DAYS'!H:H,MATCH(C26,'8. 2018 OSHPD (FEE) DAYS'!A:A,0)),0) -> 2018-06-30 | H26: =IFERROR(INDEX('8. 2018 OSHPD (FEE) DAYS'!W:W,MATCH(C26,'8. 2018 OSHPD (FEE) DAYS'!A:A,0)),0) -> 2017-07-01 | I26: =IFERROR(INDEX('11. Hospital Statuses'!M:M,MATCH(C26,'11. Hospital Statuses'!A:A,0)),"") -> Open | J26: Los Angeles | K26: 11 | L26: 901 | M26: District | N26: Comparable | P26: https://www.avhospital.org/ | R26: ANTELOPE VALLEY HOSPITAL DISTRICT | S26: 661-949-5000 | T26: 1600 WEST AVENUE J | U26: LANCASTER | V26: 93534 | W26: EDWARD MIRZABEGIAN | X26: =IFERROR(IF(INDEX(#REF!,MATCH(C26,#REF!,0)),"Yes","No"),"") ->  | Y26: CY 2022 | Z26: =IFERROR(IF($Y26="CY 2022",INDEX('6. CY 2022'!R:R,MATCH($C26,'6. CY 2022'!$A:$A,0)),0),0) -> 0 | AA26: =IFERROR(IF($Y26="CY 2022",INDEX('6. CY 2022'!S:S,MATCH($C26,'6. CY 2022'!$A:$A,0)),0),0) -> 0 | AB26: =IFERROR(IF($Y26="CY 2022",INDEX('6. CY 2022'!T:T,MATCH($C26,'6. CY 2022'!$A:$A,0)),0),0) -> 0 | AC26: =IFERROR(IF($Y26="CY 2022",INDEX('6. CY 2022'!U:U,MATCH($C26,'6. CY 2022'!$A:$A,0)),0),0) -> 0 | AD26: =IFERROR(IF($Y26="CY 2022",INDEX('6. CY 2022'!V:V,MATCH($C26,'6. CY 2022'!$A:$A,0)),0),0) -> 0 | AE26: =IFERROR(IF($Y26="CY 2022",INDEX('6. CY 2022'!W:W,MATCH($C26,'6. CY 2022'!$A:$A,0)),0),0) -> 0 | AF26: =IFERROR(IF($Y26="CY 2022",INDEX('6. CY 2022'!X:X,MATCH($C26,'6. CY 2022'!$A:$A,0)),0),0) -> 0 | AG26: =IFERROR(IF(Y26="CY 2022",AF26/'4. Calculated Fee'!$D$35*'4. Calculated Fee'!$D$26,0),0) -> 0 | AH26: =IFERROR(IF($Y26="CY 2022",INDEX('6. CY 2022'!X:X,MATCH($C26,'6. CY 2022'!$A:$A,0)),0),0) -> 0 | AI26: =IFERROR(IF(Y26="CY 2022",INDEX('6. CY 2022'!AG:AG,MATCH(C26,'6. CY 2022'!A:A,0)),0),0) -> 0 | AJ26: =IFERROR(IF($Y26="CY 2022",INDEX('6. CY 2022'!AH:AH,MATCH($C26,'6. CY 2022'!$A:$A,0)),0),0) -> 0 | AK26: =IFERROR(IF($Y26="CY 2022",INDEX('6. CY 2022'!AI:AI,MATCH($C26,'6. CY 2022'!$A:$A,0)),0),0) -> 0 | AL26: =IFERROR(IF($Y26="CY 2022",INDEX('6. CY 2022'!AJ:AJ,MATCH($C26,'6. CY 2022'!$A:$A,0)),0),0) -> 0 | AM26: =IFERROR(IF($Y26="CY 2022",INDEX('6. CY 2022'!AK:AK,MATCH($C26,'6. CY 2022'!$A:$A,0)),0),0) -> 0 | AN26: =IFERROR(IF($Y26="CY 2022",INDEX('6. CY 2022'!AL:AL,MATCH($C26,'6. CY 2022'!$A:$A,0)),0),0) -> 0 | AO26: =IFERROR(IF($Y26="CY 2022",INDEX('6. CY 2022'!AM:AM,MATCH($C26,'6. CY 2022'!$A:$A,0)),0),0) -> 0 | AP26: =IFERROR(IF($Y26="CY 2022",INDEX('6. CY 2022'!AN:AN,MATCH($C26,'6. CY 2022'!$A:$A,0)),0),0) -> 0 | AQ26: =IFERROR(IF($Y26="CY 2022",INDEX('6. CY 2022'!AQ:AQ,MATCH($C26,'6. CY 2022'!$A:$A,0)),0),0) -> 0 | AR26: =IFERROR(IF($Y26="CY 2022",INDEX('6. CY 2022'!AS:AS,MATCH($C26,'6. CY 2022'!A:A,0)),0),0) -> 0 | AS26: =IFERROR(IF(Y26="CY 2022",INDEX('6. CY 2022'!AT:AT,MATCH(C26,'6. CY 2022'!A:A,0)),0),0) -> 0 | AT26: =IFERROR(IF($Y26="CY 2022",INDEX('6. CY 2022'!AU:AU,MATCH($C26,'6. CY 2022'!A:A,0)),0),0) -> 0 | AW26: =IFERROR(IF(Y26="CY 2022",INDEX('6. CY 2022'!H:H,MATCH(C26,'6. CY 2022'!A:A,0)),0),0) -> 504398343.4 | AZ26: 106304583
A27: 25 | B27: ARROWHEAD REGIONAL MEDICAL CENTER | C27: 106364231 | D27: ARROWHEAD REGIONAL MEDICAL CENTER | F27: =IFERROR(INDEX('8. 2018 OSHPD (FEE) DAYS'!G:G,MATCH(C27,'8. 2018 OSHPD (FEE) DAYS'!A:A,0)),0) -> 2017-07-01 | G27: =IFERROR(INDEX('8. 2018 OSHPD (FEE) DAYS'!H:H,MATCH(C27,'8. 2018 OSHPD (FEE) DAYS'!A:A,0)),0) -> 2018-06-30 | H27: =IFERROR(INDEX('8. 2018 OSHPD (FEE) DAYS'!W:W,MATCH(C27,'8. 2018 OSHPD (FEE) DAYS'!A:A,0)),0) -> 2017-07-01 | I27: =IFERROR(INDEX('11. Hospital Statuses'!M:M,MATCH(C27,'11. Hospital Statuses'!A:A,0)),"") -> Open | J27: San Bernardino | K27: 12 | L27: 1209 | M27: City/County | N27: Comparable | O27: Teaching | P27: https://www.arrowheadregional.org/ | R27: COUNTY OF SAN BERNARDINO | S27: 909-580-1000 | T27: 400 N PEPPER AVE | U27: COLTON | V27: 92324 | W27: WILLIAM GILBERT | X27: =IFERROR(IF(INDEX(#REF!,MATCH(C27,#REF!,0)),"Yes","No"),"") ->  | Y27: CY 2022 | Z27: =IFERROR(IF($Y27="CY 2022",INDEX('6. CY 2022'!R:R,MATCH($C27,'6. CY 2022'!$A:$A,0)),0),0) -> 0 | AA27: =IFERROR(IF($Y27="CY 2022",INDEX('6. CY 2022'!S:S,MATCH($C27,'6. CY 2022'!$A:$A,0)),0),0) -> 0 | AB27: =IFERROR(IF($Y27="CY 2022",INDEX('6. CY 2022'!T:T,MATCH($C27,'6. CY 2022'!$A:$A,0)),0),0) -> 0 | AC27: =IFERROR(IF($Y27="CY 2022",INDEX('6. CY 2022'!U:U,MATCH($C27,'6. CY 2022'!$A:$A,0)),0),0) -> 0 | AD27: =IFERROR(IF($Y27="CY 2022",INDEX('6. CY 2022'!V:V,MATCH($C27,'6. CY 2022'!$A:$A,0)),0),0) -> 0 | AE27: =IFERROR(IF($Y27="CY 2022",INDEX('6. CY 2022'!W:W,MATCH($C27,'6. CY 2022'!$A:$A,0)),0),0) -> 0 | AF27: =IFERROR(IF($Y27="CY 2022",INDEX('6. CY 2022'!X:X,MATCH($C27,'6. CY 2022'!$A:$A,0)),0),0) -> 0 | AG27: =IFERROR(IF(Y27="CY 2022",AF27/'4. Calculated Fee'!$D$35*'4. Calculated Fee'!$D$26,0),0) -> 0 | AH27: =IFERROR(IF($Y27="CY 2022",INDEX('6. CY 2022'!X:X,MATCH($C27,'6. CY 2022'!$A:$A,0)),0),0) -> 0 | AI27: =IFERROR(IF(Y27="CY 2022",INDEX('6. CY 2022'!AG:AG,MATCH(C27,'6. CY 2022'!A:A,0)),0),0) -> 0 | AJ27: =IFERROR(IF($Y27="CY 2022",INDEX('6. CY 2022'!AH:AH,MATCH($C27,'6. CY 2022'!$A:$A,0)),0),0) -> 0 | AK27: =IFERROR(IF($Y27="CY 2022",INDEX('6. CY 2022'!AI:AI,MATCH($C27,'6. CY 2022'!$A:$A,0)),0),0) -> 0 | AL27: =IFERROR(IF($Y27="CY 2022",INDEX('6. CY 2022'!AJ:AJ,MATCH($C27,'6. CY 2022'!$A:$A,0)),0),0) -> 0 | AM27: =IFERROR(IF($Y27="CY 2022",INDEX('6. CY 2022'!AK:AK,MATCH($C27,'6. CY 2022'!$A:$A,0)),0),0) -> 0 | AN27: =IFERROR(IF($Y27="CY 2022",INDEX('6. CY 2022'!AL:AL,MATCH($C27,'6. CY 2022'!$A:$A,0)),0),0) -> 0 | AO27: =IFERROR(IF($Y27="CY 2022",INDEX('6. CY 2022'!AM:AM,MATCH($C27,'6. CY 2022'!$A:$A,0)),0),0) -> 0 | AP27: =IFERROR(IF($Y27="CY 2022",INDEX('6. CY 2022'!AN:AN,MATCH($C27,'6. CY 2022'!$A:$A,0)),0),0) -> 0 | AQ27: =IFERROR(IF($Y27="CY 2022",INDEX('6. CY 2022'!AQ:AQ,MATCH($C27,'6. CY 2022'!$A:$A,0)),0),0) -> 0 | AR27: =IFERROR(IF($Y27="CY 2022",INDEX('6. CY 2022'!AS:AS,MATCH($C27,'6. CY 2022'!A:A,0)),0),0) -> 0 | AS27: =IFERROR(IF(Y27="CY 2022",INDEX('6. CY 2022'!AT:AT,MATCH(C27,'6. CY 2022'!A:A,0)),0),0) -> 0 | AT27: =IFERROR(IF($Y27="CY 2022",INDEX('6. CY 2022'!AU:AU,MATCH($C27,'6. CY 2022'!A:A,0)),0),0) -> 0 | AW27: =IFERROR(IF(Y27="CY 2022",INDEX('6. CY 2022'!H:H,MATCH(C27,'6. CY 2022'!A:A,0)),0),0) -> 405657560.8 | AZ27: 106244027
A28: 26 | B28: AURORA BEHAVIORAL HEALTHCARE - SANTA ROSA | C28: 106494048 | D28: AURORA BEHAVIORAL HEALTHCARE - SANTA ROSA | F28: =IFERROR(INDEX('8. 2018 OSHPD (FEE) DAYS'!G:G,MATCH(C28,'8. 2018 OSHPD (FEE) DAYS'!A:A,0)),0) -> 2018-01-01 | G28: =IFERROR(INDEX('8. 2018 OSHPD (FEE) DAYS'!H:H,MATCH(C28,'8. 2018 OSHPD (FEE) DAYS'!A:A,0)),0) -> 2018-12-31 | H28: =IFERROR(INDEX('8. 2018 OSHPD (FEE) DAYS'!W:W,MATCH(C28,'8. 2018 OSHPD (FEE) DAYS'!A:A,0)),0) -> 2018-01-01 | I28: =IFERROR(INDEX('11. Hospital Statuses'!M:M,MATCH(C28,'11. Hospital Statuses'!A:A,0)),"") -> Open | J28: Sonoma | K28: 3 | L28: 401 | M28: Investor | N28: Comparable | P28: https://www.aurorasantarosa.com/ | R28: SIGNATURE HEALTHCARE SERVICES | S28: 707-800-7700 | T28: 1287 FULTON ROAD | U28: SANTA ROSA | V28: 95401 | W28: SUSAN ROSE | X28: =IFERROR(IF(INDEX(#REF!,MATCH(C28,#REF!,0)),"Yes","No"),"") ->  | Y28: CY 2022 | Z28: =IFERROR(IF($Y28="CY 2022",INDEX('6. CY 2022'!R:R,MATCH($C28,'6. CY 2022'!$A:$A,0)),0),0) -> 0 | AA28: =IFERROR(IF($Y28="CY 2022",INDEX('6. CY 2022'!S:S,MATCH($C28,'6. CY 2022'!$A:$A,0)),0),0) -> 0 | AB28: =IFERROR(IF($Y28="CY 2022",INDEX('6. CY 2022'!T:T,MATCH($C28,'6. CY 2022'!$A:$A,0)),0),0) -> 0 | AC28: =IFERROR(IF($Y28="CY 2022",INDEX('6. CY 2022'!U:U,MATCH($C28,'6. CY 2022'!$A:$A,0)),0),0) -> 0 | AD28: =IFERROR(IF($Y28="CY 2022",INDEX('6. CY 2022'!V:V,MATCH($C28,'6. CY 2022'!$A:$A,0)),0),0) -> 0 | AE28: =IFERROR(IF($Y28="CY 2022",INDEX('6. CY 2022'!W:W,MATCH($C28,'6. CY 2022'!$A:$A,0)),0),0) -> 0 | AF28: =IFERROR(IF($Y28="CY 2022",INDEX('6. CY 2022'!X:X,MATCH($C28,'6. CY 2022'!$A:$A,0)),0),0) -> 0 | AG28: =IFERROR(IF(Y28="CY 2022",AF28/'4. Calculated Fee'!$D$35*'4. Calculated Fee'!$D$26,0),0) -> 0 | AH28: =IFERROR(IF($Y28="CY 2022",INDEX('6. CY 2022'!X:X,MATCH($C28,'6. CY 2022'!$A:$A,0)),0),0) -> 0 | AI28: =IFERROR(IF(Y28="CY 2022",INDEX('6. CY 2022'!AG:AG,MATCH(C28,'6. CY 2022'!A:A,0)),0),0) -> 0 | AJ28: =IFERROR(IF($Y28="CY 2022",INDEX('6. CY 2022'!AH:AH,MATCH($C28,'6. CY 2022'!$A:$A,0)),0),0) -> 0 | AK28: =IFERROR(IF($Y28="CY 2022",INDEX('6. CY 2022'!AI:AI,MATCH($C28,'6. CY 2022'!$A:$A,0)),0),0) -> 0 | AL28: =IFERROR(IF($Y28="CY 2022",INDEX('6. CY 2022'!AJ:AJ,MATCH($C28,'6. CY 2022'!$A:$A,0)),0),0) -> 0 | AM28: =IFERROR(IF($Y28="CY 2022",INDEX('6. CY 2022'!AK:AK,MATCH($C28,'6. CY 2022'!$A:$A,0)),0),0) -> 0 | AN28: =IFERROR(IF($Y28="CY 2022",INDEX('6. CY 2022'!AL:AL,MATCH($C28,'6. CY 2022'!$A:$A,0)),0),0) -> 0 | AO28: =IFERROR(IF($Y28="CY 2022",INDEX('6. CY 2022'!AM:AM,MATCH($C28,'6. CY 2022'!$A:$A,0)),0),0) -> 0 | AP28: =IFERROR(IF($Y28="CY 2022",INDEX('6. CY 2022'!AN:AN,MATCH($C28,'6. CY 2022'!$A:$A,0)),0),0) -> 0 | AQ28: =IFERROR(IF($Y28="CY 2022",INDEX('6. CY 2022'!AQ:AQ,MATCH($C28,'6. CY 2022'!$A:$A,0)),0),0) -> 0 | AR28: =IFERROR(IF($Y28="CY 2022",INDEX('6. CY 2022'!AS:AS,MATCH($C28,'6. CY 2022'!A:A,0)),0),0) -> 0 | AS28: =IFERROR(IF(Y28="CY 2022",INDEX('6. CY 2022'!AT:AT,MATCH(C28,'6. CY 2022'!A:A,0)),0),0) -> 0 | AT28: =IFERROR(IF($Y28="CY 2022",INDEX('6. CY 2022'!AU:AU,MATCH($C28,'6. CY 2022'!A:A,0)),0),0) -> 0 | AW28: =IFERROR(IF(Y28="CY 2022",INDEX('6. CY 2022'!H:H,MATCH(C28,'6. CY 2022'!A:A,0)),0),0) -> 44680972.2 | AX28: =SUM(AG28:AG33) -> 0 | AZ28: 106013687
A29: 27 | B29: AURORA CHARTER OAK | C29: 106190163 | D29: AURORA CHARTER OAK | F29: =IFERROR(INDEX('8. 2018 OSHPD (FEE) DAYS'!G:G,MATCH(C29,'8. 2018 OSHPD (FEE) DAYS'!A:A,0)),0) -> 2018-01-01 | G29: =IFERROR(INDEX('8. 2018 OSHPD (FEE) DAYS'!H:H,MATCH(C29,'8. 2018 OSHPD (FEE) DAYS'!A:A,0)),0) -> 2018-12-31 | H29: =IFERROR(INDEX('8. 2018 OSHPD (FEE) DAYS'!W:W,MATCH(C29,'8. 2018 OSHPD (FEE) DAYS'!A:A,0)),0) -> 2018-01-01 | I29: =IFERROR(INDEX('11. Hospital Statuses'!M:M,MATCH(C29,'11. Hospital Statuses'!A:A,0)),"") -> Open | J29: Los Angeles | K29: 11 | L29: 915 | M29: Investor | N29: Comparable | P29: https://www.charteroakhospital.com/ | R29: SIGNATURE HEALTHCARE SERVICES | S29: 626-966-1632 | T29: 1161 EAST COVINA BOULEVARD | U29: COVINA | V29: 91724 | W29: TODD A SMITH | X29: =IFERROR(IF(INDEX(#REF!,MATCH(C29,#REF!,0)),"Yes","No"),"") ->  | Y29: CY 2022 | Z29: =IFERROR(IF($Y29="CY 2022",INDEX('6. CY 2022'!R:R,MATCH($C29,'6. CY 2022'!$A:$A,0)),0),0) -> 0 | AA29: =IFERROR(IF($Y29="CY 2022",INDEX('6. CY 2022'!S:S,MATCH($C29,'6. CY 2022'!$A:$A,0)),0),0) -> 0 | AB29: =IFERROR(IF($Y29="CY 2022",INDEX('6. CY 2022'!T:T,MATCH($C29,'6. CY 2022'!$A:$A,0)),0),0) -> 0 | AC29: =IFERROR(IF($Y29="CY 2022",INDEX('6. CY 2022'!U:U,MATCH($C29,'6. CY 2022'!$A:$A,0)),0),0) -> 0 | AD29: =IFERROR(IF($Y29="CY 2022",INDEX('6. CY 2022'!V:V,MATCH($C29,'6. CY 2022'!$A:$A,0)),0),0) -> 0 | AE29: =IFERROR(IF($Y29="CY 2022",INDEX('6. CY 2022'!W:W,MATCH($C29,'6. CY 2022'!$A:$A,0)),0),0) -> 0 | AF29: =IFERROR(IF($Y29="CY 2022",INDEX('6. CY 2022'!X:X,MATCH($C29,'6. CY 2022'!$A:$A,0)),0),0) -> 0 | AG29: =IFERROR(IF(Y29="CY 2022",AF29/'4. Calculated Fee'!$D$35*'4. Calculated Fee'!$D$26,0),0) -> 0 | AH29: =IFERROR(IF($Y29="CY 2022",INDEX('6. CY 2022'!X:X,MATCH($C29,'6. CY 2022'!$A:$A,0)),0),0) -> 0 | AI29: =IFERROR(IF(Y29="CY 2022",INDEX('6. CY 2022'!AG:AG,MATCH(C29,'6. CY 2022'!A:A,0)),0),0) -> 0 | AJ29: =IFERROR(IF($Y29="CY 2022",INDEX('6. CY 2022'!AH:AH,MATCH($C29,'6. CY 2022'!$A:$A,0)),0),0) -> 0 | AK29: =IFERROR(IF($Y29="CY 2022",INDEX('6. CY 2022'!AI:AI,MATCH($C29,'6. CY 2022'!$A:$A,0)),0),0) -> 0 | AL29: =IFERROR(IF($Y29="CY 2022",INDEX('6. CY 2022'!AJ:AJ,MATCH($C29,'6. CY 2022'!$A:$A,0)),0),0) -> 0 | AM29: =IFERROR(IF($Y29="CY 2022",INDEX('6. CY 2022'!AK:AK,MATCH($C29,'6. CY 2022'!$A:$A,0)),0),0) -> 0 | AN29: =IFERROR(IF($Y29="CY 2022",INDEX('6. CY 2022'!AL:AL,MATCH($C29,'6. CY 2022'!$A:$A,0)),0),0) -> 0 | AO29: =IFERROR(IF($Y29="CY 2022",INDEX('6. CY 2022'!AM:AM,MATCH($C29,'6. CY 2022'!$A:$A,0)),0),0) -> 0 | AP29: =IFERROR(IF($Y29="CY 2022",INDEX('6. CY 2022'!AN:AN,MATCH($C29,'6. CY 2022'!$A:$A,0)),0),0) -> 0 | AQ29: =IFERROR(IF($Y29="CY 2022",INDEX('6. CY 2022'!AQ:AQ,MATCH($C29,'6. CY 2022'!$A:$A,0)),0),0) -> 0 | AR29: =IFERROR(IF($Y29="CY 2022",INDEX('6. CY 2022'!AS:AS,MATCH($C29,'6. CY 2022'!A:A,0)),0),0) -> 0 | AS29: =IFERROR(IF(Y29="CY 2022",INDEX('6. CY 2022'!AT:AT,MATCH(C29,'6. CY 2022'!A:A,0)),0),0) -> 0 | AT29: =IFERROR(IF($Y29="CY 2022",INDEX('6. CY 2022'!AU:AU,MATCH($C29,'6. CY 2022'!A:A,0)),0),0) -> 0 | AW29: =IFERROR(IF(Y29="CY 2022",INDEX('6. CY 2022'!H:H,MATCH(C29,'6. CY 2022'!A:A,0)),0),0) -> 50753742.99 | AZ29: 106190958
A30: 28 | B30: AURORA LAS ENCINAS HOSPITAL | C30: 106190462 | D30: AURORA LAS ENCINAS HOSPITAL | F30: =IFERROR(INDEX('8. 2018 OSHPD (FEE) DAYS'!G:G,MATCH(C30,'8. 2018 OSHPD (FEE) DAYS'!A:A,0)),0) -> 2018-01-01 | G30: =IFERROR(INDEX('8. 2018 OSHPD (FEE) DAYS'!H:H,MATCH(C30,'8. 2018 OSHPD (FEE) DAYS'!A:A,0)),0) -> 2018-12-31 | H30: =IFERROR(INDEX('8. 2018 OSHPD (FEE) DAYS'!W:W,MATCH(C30,'8. 2018 OSHPD (FEE) DAYS'!A:A,0)),0) -> 2018-01-01 | I30: =IFERROR(INDEX('11. Hospital Statuses'!M:M,MATCH(C30,'11. Hospital Statuses'!A:A,0)),"") -> Open | J30: Los Angeles | K30: 11 | L30: 911 | M30: Investor | N30: Comparable | P30: https://www.lasencinashospital.com/ | R30: SIGNATURE HEALTHCARE SERVICES | S30: 626-795-9901 | T30: 2900 E DEL MAR BLVD | U30: PASADENA | V30: 91107 | W30: TOM MAHLE | X30: =IFERROR(IF(INDEX(#REF!,MATCH(C30,#REF!,0)),"Yes","No"),"") ->  | Y30: CY 2022 | Z30: =IFERROR(IF($Y30="CY 2022",INDEX('6. CY 2022'!R:R,MATCH($C30,'6. CY 2022'!$A:$A,0)),0),0) -> 0 | AA30: =IFERROR(IF($Y30="CY 2022",INDEX('6. CY 2022'!S:S,MATCH($C30,'6. CY 2022'!$A:$A,0)),0),0) -> 0 | AB30: =IFERROR(IF($Y30="CY 2022",INDEX('6. CY 2022'!T:T,MATCH($C30,'6. CY 2022'!$A:$A,0)),0),0) -> 0 | AC30: =IFERROR(IF($Y30="CY 2022",INDEX('6. CY 2022'!U:U,MATCH($C30,'6. CY 2022'!$A:$A,0)),0),0) -> 0 | AD30: =IFERROR(IF($Y30="CY 2022",INDEX('6. CY 2022'!V:V,MATCH($C30,'6. CY 2022'!$A:$A,0)),0),0) -> 0 | AE30: =IFERROR(IF($Y30="CY 2022",INDEX('6. CY 2022'!W:W,MATCH($C30,'6. CY 2022'!$A:$A,0)),0),0) -> 0 | AF30: =IFERROR(IF($Y30="CY 2022",INDEX('6. CY 2022'!X:X,MATCH($C30,'6. CY 2022'!$A:$A,0)),0),0) -> 0 | AG30: =IFERROR(IF(Y30="CY 2022",AF30/'4. Calculated Fee'!$D$35*'4. Calculated Fee'!$D$26,0),0) -> 0 | AH30: =IFERROR(IF($Y30="CY 2022",INDEX('6. CY 2022'!X:X,MATCH($C30,'6. CY 2022'!$A:$A,0)),0),0) -> 0 | AI30: =IFERROR(IF(Y30="CY 2022",INDEX('6. CY 2022'!AG:AG,MATCH(C30,'6. CY 2022'!A:A,0)),0),0) -> 0 | AJ30: =IFERROR(IF($Y30="CY 2022",INDEX('6. CY 2022'!AH:AH,MATCH($C30,'6. CY 2022'!$A:$A,0)),0),0) -> 0 | AK30: =IFERROR(IF($Y30="CY 2022",INDEX('6. CY 2022'!AI:AI,MATCH($C30,'6. CY 2022'!$A:$A,0)),0),0) -> 0 | AL30: =IFERROR(IF($Y30="CY 2022",INDEX('6. CY 2022'!AJ:AJ,MATCH($C30,'6. CY 2022'!$A:$A,0)),0),0) -> 0 | AM30: =IFERROR(IF($Y30="CY 2022",INDEX('6. CY 2022'!AK:AK,MATCH($C30,'6. CY 2022'!$A:$A,0)),0),0) -> 0 | AN30: =IFERROR(IF($Y30="CY 2022",INDEX('6. CY 2022'!AL:AL,MATCH($C30,'6. CY 2022'!$A:$A,0)),0),0) -> 0 | AO30: =IFERROR(IF($Y30="CY 2022",INDEX('6. CY 2022'!AM:AM,MATCH($C30,'6. CY 2022'!$A:$A,0)),0),0) -> 0 | AP30: =IFERROR(IF($Y30="CY 2022",INDEX('6. CY 2022'!AN:AN,MATCH($C30,'6. CY 2022'!$A:$A,0)),0),0) -> 0 | AQ30: =IFERROR(IF($Y30="CY 2022",INDEX('6. CY 2022'!AQ:AQ,MATCH($C30,'6. CY 2022'!$A:$A,0)),0),0) -> 0 | AR30: =IFERROR(IF($Y30="CY 2022",INDEX('6. CY 2022'!AS:AS,MATCH($C30,'6. CY 2022'!A:A,0)),0),0) -> 0 | AS30: =IFERROR(IF(Y30="CY 2022",INDEX('6. CY 2022'!AT:AT,MATCH(C30,'6. CY 2022'!A:A,0)),0),0) -> 0 | AT30: =IFERROR(IF($Y30="CY 2022",INDEX('6. CY 2022'!AU:AU,MATCH($C30,'6. CY 2022'!A:A,0)),0),0) -> 0 | AW30: =IFERROR(IF(Y30="CY 2022",INDEX('6. CY 2022'!H:H,MATCH(C30,'6. CY 2022'!A:A,0)),0),0) -> 34733454.46 | AZ30: 106281266
A31: 29 | B31: AURORA SAN DIEGO | C31: 106374024 | D31: AURORA SAN DIEGO | F31: =IFERROR(INDEX('8. 2018 OSHPD (FEE) DAYS'!G:G,MATCH(C31,'8. 2018 OSHPD (FEE) DAYS'!A:A,0)),0) -> 2018-01-01 | G31: =IFERROR(INDEX('8. 2018 OSHPD (FEE) DAYS'!H:H,MATCH(C31,'8. 2018 OSHPD (FEE) DAYS'!A:A,0)),0) -> 2018-12-31 | H31: =IFERROR(INDEX('8. 2018 OSHPD (FEE) DAYS'!W:W,MATCH(C31,'8. 2018 OSHPD (FEE) DAYS'!A:A,0)),0) -> 2018-01-01 | I31: =IFERROR(INDEX('11. Hospital Statuses'!M:M,MATCH(C31,'11. Hospital Statuses'!A:A,0)),"") -> Open | J31: San Diego | K31: 14 | L31: 1412 | M31: Investor | N31: Comparable | P31: https://www.aurorasandiego.com/ | R31: SIGNATURE HEALTHCARE SERVICES | S31: 858-487-3200 | T31: 11878 AVENUE OF INDUSTRY | U31: SAN DIEGO | V31: 92128 | W31: ALAIN AZCONA | X31: =IFERROR(IF(INDEX(#REF!,MATCH(C31,#REF!,0)),"Yes","No"),"") ->  | Y31: CY 2022 | Z31: =IFERROR(IF($Y31="CY 2022",INDEX('6. CY 2022'!R:R,MATCH($C31,'6. CY 2022'!$A:$A,0)),0),0) -> 0 | AA31: =IFERROR(IF($Y31="CY 2022",INDEX('6. CY 2022'!S:S,MATCH($C31,'6. CY 2022'!$A:$A,0)),0),0) -> 0 | AB31: =IFERROR(IF($Y31="CY 2022",INDEX('6. CY 2022'!T:T,MATCH($C31,'6. CY 2022'!$A:$A,0)),0),0) -> 0 | AC31: =IFERROR(IF($Y31="CY 2022",INDEX('6. CY 2022'!U:U,MATCH($C31,'6. CY 2022'!$A:$A,0)),0),0) -> 0 | AD31: =IFERROR(IF($Y31="CY 2022",INDEX('6. CY 2022'!V:V,MATCH($C31,'6. CY 2022'!$A:$A,0)),0),0) -> 0 | AE31: =IFERROR(IF($Y31="CY 2022",INDEX('6. CY 2022'!W:W,MATCH($C31,'6. CY 2022'!$A:$A,0)),0),0) -> 0 | AF31: =IFERROR(IF($Y31="CY 2022",INDEX('6. CY 2022'!X:X,MATCH($C31,'6. CY 2022'!$A:$A,0)),0),0) -> 0 | AG31: =IFERROR(IF(Y31="CY 2022",AF31/'4. Calculated Fee'!$D$35*'4. Calculated Fee'!$D$26,0),0) -> 0 | AH31: =IFERROR(IF($Y31="CY 2022",INDEX('6. CY 2022'!X:X,MATCH($C31,'6. CY 2022'!$A:$A,0)),0),0) -> 0 | AI31: =IFERROR(IF(Y31="CY 2022",INDEX('6. CY 2022'!AG:AG,MATCH(C31,'6. CY 2022'!A:A,0)),0),0) -> 0 | AJ31: =IFERROR(IF($Y31="CY 2022",INDEX('6. CY 2022'!AH:AH,MATCH($C31,'6. CY 2022'!$A:$A,0)),0),0) -> 0 | AK31: =IFERROR(IF($Y31="CY 2022",INDEX('6. CY 2022'!AI:AI,MATCH($C31,'6. CY 2022'!$A:$A,0)),0),0) -> 0 | AL31: =IFERROR(IF($Y31="CY 2022",INDEX('6. CY 2022'!AJ:AJ,MATCH($C31,'6. CY 2022'!$A:$A,0)),0),0) -> 0 | AM31: =IFERROR(IF($Y31="CY 2022",INDEX('6. CY 2022'!AK:AK,MATCH($C31,'6. CY 2022'!$A:$A,0)),0),0) -> 0 | AN31: =IFERROR(IF($Y31="CY 2022",INDEX('6. CY 2022'!AL:AL,MATCH($C31,'6. CY 2022'!$A:$A,0)),0),0) -> 0 | AO31: =IFERROR(IF($Y31="CY 2022",INDEX('6. CY 2022'!AM:AM,MATCH($C31,'6. CY 2022'!$A:$A,0)),0),0) -> 0 | AP31: =IFERROR(IF($Y31="CY 2022",INDEX('6. CY 2022'!AN:AN,MATCH($C31,'6. CY 2022'!$A:$A,0)),0),0) -> 0 | AQ31: =IFERROR(IF($Y31="CY 2022",INDEX('6. CY 2022'!AQ:AQ,MATCH($C31,'6. CY 2022'!$A:$A,0)),0),0) -> 0 | AR31: =IFERROR(IF($Y31="CY 2022",INDEX('6. CY 2022'!AS:AS,MATCH($C31,'6. CY 2022'!A:A,0)),0),0) -> 0 | AS31: =IFERROR(IF(Y31="CY 2022",INDEX('6. CY 2022'!AT:AT,MATCH(C31,'6. CY 2022'!A:A,0)),0),0) -> 0 | AT31: =IFERROR(IF($Y31="CY 2022",INDEX('6. CY 2022'!AU:AU,MATCH($C31,'6. CY 2022'!A:A,0)),0),0) -> 0 | AW31: =IFERROR(IF(Y31="CY 2022",INDEX('6. CY 2022'!H:H,MATCH(C31,'6. CY 2022'!A:A,0)),0),0) -> 41970206 | AZ31: 106198495
A32: 30 | B32: AURORA VISTA DEL MAR HOSPITAL | C32: 106560203 | D32: AURORA VISTA DEL MAR HOSPITAL | F32: =IFERROR(INDEX('8. 2018 OSHPD (FEE) DAYS'!G:G,MATCH(C32,'8. 2018 OSHPD (FEE) DAYS'!A:A,0)),0) -> 2018-01-01 | G32: =IFERROR(INDEX('8. 2018 OSHPD (FEE) DAYS'!H:H,MATCH(C32,'8. 2018 OSHPD (FEE) DAYS'!A:A,0)),0) -> 2018-12-31 | H32: =IFERROR(INDEX('8. 2018 OSHPD (FEE) DAYS'!W:W,MATCH(C32,'8. 2018 OSHPD (FEE) DAYS'!A:A,0)),0) -> 2018-01-01 | I32: =IFERROR(INDEX('11. Hospital Statuses'!M:M,MATCH(C32,'11. Hospital Statuses'!A:A,0)),"") -> Open | J32: Ventura | K32: 10 | L32: 809 | M32: Investor | N32: Comparable | P32: https://www.vistadelmarhospital.com/ | R32: SIGNATURE HEALTHCARE SERVICES | S32: 805-653-6434 | T32: 801 SENECA STREET | U32: VENTURA | V32: 93001 | W32: JENIFER NYHUIS | X32: =IFERROR(IF(INDEX(#REF!,MATCH(C32,#REF!,0)),"Yes","No"),"") ->  | Y32: CY 2022 | Z32: =IFERROR(IF($Y32="CY 2022",INDEX('6. CY 2022'!R:R,MATCH($C32,'6. CY 2022'!$A:$A,0)),0),0) -> 0 | AA32: =IFERROR(IF($Y32="CY 2022",INDEX('6. CY 2022'!S:S,MATCH($C32,'6. CY 2022'!$A:$A,0)),0),0) -> 0 | AB32: =IFERROR(IF($Y32="CY 2022",INDEX('6. CY 2022'!T:T,MATCH($C32,'6. CY 2022'!$A:$A,0)),0),0) -> 0 | AC32: =IFERROR(IF($Y32="CY 2022",INDEX('6. CY 2022'!U:U,MATCH($C32,'6. CY 2022'!$A:$A,0)),0),0) -> 0 | AD32: =IFERROR(IF($Y32="CY 2022",INDEX('6. CY 2022'!V:V,MATCH($C32,'6. CY 2022'!$A:$A,0)),0),0) -> 0 | AE32: =IFERROR(IF($Y32="CY 2022",INDEX('6. CY 2022'!W:W,MATCH($C32,'6. CY 2022'!$A:$A,0)),0),0) -> 0 | AF32: =IFERROR(IF($Y32="CY 2022",INDEX('6. CY 2022'!X:X,MATCH($C32,'6. CY 2022'!$A:$A,0)),0),0) -> 0 | AG32: =IFERROR(IF(Y32="CY 2022",AF32/'4. Calculated Fee'!$D$35*'4. Calculated Fee'!$D$26,0),0) -> 0 | AH32: =IFERROR(IF($Y32="CY 2022",INDEX('6. CY 2022'!X:X,MATCH($C32,'6. CY 2022'!$A:$A,0)),0),0) -> 0 | AI32: =IFERROR(IF(Y32="CY 2022",INDEX('6. CY 2022'!AG:AG,MATCH(C32,'6. CY 2022'!A:A,0)),0),0) -> 0 | AJ32: =IFERROR(IF($Y32="CY 2022",INDEX('6. CY 2022'!AH:AH,MATCH($C32,'6. CY 2022'!$A:$A,0)),0),0) -> 0 | AK32: =IFERROR(IF($Y32="CY 2022",INDEX('6. CY 2022'!AI:AI,MATCH($C32,'6. CY 2022'!$A:$A,0)),0),0) -> 0 | AL32: =IFERROR(IF($Y32="CY 2022",INDEX('6. CY 2022'!AJ:AJ,MATCH($C32,'6. CY 2022'!$A:$A,0)),0),0) -> 0 | AM32: =IFERROR(IF($Y32="CY 2022",INDEX('6. CY 2022'!AK:AK,MATCH($C32,'6. CY 2022'!$A:$A,0)),0),0) -> 0 | AN32: =IFERROR(IF($Y32="CY 2022",INDEX('6. CY 2022'!AL:AL,MATCH($C32,'6. CY 2022'!$A:$A,0)),0),0) -> 0 | AO32: =IFERROR(IF($Y32="CY 2022",INDEX('6. CY 2022'!AM:AM,MATCH($C32,'6. CY 2022'!$A:$A,0)),0),0) -> 0 | AP32: =IFERROR(IF($Y32="CY 2022",INDEX('6. CY 2022'!AN:AN,MATCH($C32,'6. CY 2022'!$A:$A,0)),0),0) -> 0 | AQ32: =IFERROR(IF($Y32="CY 2022",INDEX('6. CY 2022'!AQ:AQ,MATCH($C32,'6. CY 2022'!$A:$A,0)),0),0) -> 0 | AR32: =IFERROR(IF($Y32="CY 2022",INDEX('6. CY 2022'!AS:AS,MATCH($C32,'6. CY 2022'!A:A,0)),0),0) -> 0 | AS32: =IFERROR(IF(Y32="CY 2022",INDEX('6. CY 2022'!AT:AT,MATCH(C32,'6. CY 2022'!A:A,0)),0),0) -> 0 | AT32: =IFERROR(IF($Y32="CY 2022",INDEX('6. CY 2022'!AU:AU,MATCH($C32,'6. CY 2022'!A:A,0)),0),0) -> 0 | AW32: =IFERROR(IF(Y32="CY 2022",INDEX('6. CY 2022'!H:H,MATCH(C32,'6. CY 2022'!A:A,0)),0),0) -> 17421689.18 | AZ32: 106361768
A33: 31 | B33: BAKERSFIELD BEHAVIORAL HEALTHCARE HOSPITAL | C33: 106154044 | D33: BAKERSFIELD BEHAVIORAL HEALTHCARE HOSPITAL | F33: =IFERROR(INDEX('8. 2018 OSHPD (FEE) DAYS'!G:G,MATCH(C33,'8. 2018 OSHPD (FEE) DAYS'!A:A,0)),0) -> 2018-01-01 | G33: =IFERROR(INDEX('8. 2018 OSHPD (FEE) DAYS'!H:H,MATCH(C33,'8. 2018 OSHPD (FEE) DAYS'!A:A,0)),0) -> 2018-12-31 | H33: =IFERROR(INDEX('8. 2018 OSHPD (FEE) DAYS'!W:W,MATCH(C33,'8. 2018 OSHPD (FEE) DAYS'!A:A,0)),0) -> 2018-01-01 | I33: =IFERROR(INDEX('11. Hospital Statuses'!M:M,MATCH(C33,'11. Hospital Statuses'!A:A,0)),"") -> Open | J33: Kern | K33: 9 | L33: 617 | M33: Investor | N33: Comparable | P33: https://www.bakersfieldbehavioral.com/ | R33: SIGNATURE HEALTHCARE SERVICES | S33: 877-755-4907 | T33: 5201 WHITE LANE | U33: BAKERSFIELD | V33: 93309-6200 | W33: EUGENE SUKSI | X33: =IFERROR(IF(INDEX(#REF!,MATCH(C33,#REF!,0)),"Yes","No"),"") ->  | Y33: CY 2022 | Z33: =IFERROR(IF($Y33="CY 2022",INDEX('6. CY 2022'!R:R,MATCH($C33,'6. CY 2022'!$A:$A,0)),0),0) -> 0 | AA33: =IFERROR(IF($Y33="CY 2022",INDEX('6. CY 2022'!S:S,MATCH($C33,'6. CY 2022'!$A:$A,0)),0),0) -> 0 | AB33: =IFERROR(IF($Y33="CY 2022",INDEX('6. CY 2022'!T:T,MATCH($C33,'6. CY 2022'!$A:$A,0)),0),0) -> 0 | AC33: =IFERROR(IF($Y33="CY 2022",INDEX('6. CY 2022'!U:U,MATCH($C33,'6. CY 2022'!$A:$A,0)),0),0) -> 0 | AD33: =IFERROR(IF($Y33="CY 2022",INDEX('6. CY 2022'!V:V,MATCH($C33,'6. CY 2022'!$A:$A,0)),0),0) -> 0 | AE33: =IFERROR(IF($Y33="CY 2022",INDEX('6. CY 2022'!W:W,MATCH($C33,'6. CY 2022'!$A:$A,0)),0),0) -> 0 | AF33: =IFERROR(IF($Y33="CY 2022",INDEX('6. CY 2022'!X:X,MATCH($C33,'6. CY 2022'!$A:$A,0)),0),0) -> 0 | AG33: =IFERROR(IF(Y33="CY 2022",AF33/'4. Calculated Fee'!$D$35*'4. Calculated Fee'!$D$26,0),0) -> 0 | AH33: =IFERROR(IF($Y33="CY 2022",INDEX('6. CY 2022'!X:X,MATCH($C33,'6. CY 2022'!$A:$A,0)),0),0) -> 0 | AI33: =IFERROR(IF(Y33="CY 2022",INDEX('6. CY 2022'!AG:AG,MATCH(C33,'6. CY 2022'!A:A,0)),0),0) -> 0 | AJ33: =IFERROR(IF($Y33="CY 2022",INDEX('6. CY 2022'!AH:AH,MATCH($C33,'6. CY 2022'!$A:$A,0)),0),0) -> 0 | AK33: =IFERROR(IF($Y33="CY 2022",INDEX('6. CY 2022'!AI:AI,MATCH($C33,'6. CY 2022'!$A:$A,0)),0),0) -> 0 | AL33: =IFERROR(IF($Y33="CY 2022",INDEX('6. CY 2022'!AJ:AJ,MATCH($C33,'6. CY 2022'!$A:$A,0)),0),0) -> 0 | AM33: =IFERROR(IF($Y33="CY 2022",INDEX('6. CY 2022'!AK:AK,MATCH($C33,'6. CY 2022'!$A:$A,0)),0),0) -> 0 | AN33: =IFERROR(IF($Y33="CY 2022",INDEX('6. CY 2022'!AL:AL,MATCH($C33,'6. CY 2022'!$A:$A,0)),0),0) -> 0 | AO33: =IFERROR(IF($Y33="CY 2022",INDEX('6. CY 2022'!AM:AM,MATCH($C33,'6. CY 2022'!$A:$A,0)),0),0) -> 0 | AP33: =IFERROR(IF($Y33="CY 2022",INDEX('6. CY 2022'!AN:AN,MATCH($C33,'6. CY 2022'!$A:$A,0)),0),0) -> 0 | AQ33: =IFERROR(IF($Y33="CY 2022",INDEX('6. CY 2022'!AQ:AQ,MATCH($C33,'6. CY 2022'!$A:$A,0)),0),0) -> 0 | AR33: =IFERROR(IF($Y33="CY 2022",INDEX('6. CY 2022'!AS:AS,MATCH($C33,'6. CY 2022'!A:A,0)),0),0) -> 0 | AS33: =IFERROR(IF(Y33="CY 2022",INDEX('6. CY 2022'!AT:AT,MATCH(C33,'6. CY 2022'!A:A,0)),0),0) -> 0 | AT33: =IFERROR(IF($Y33="CY 2022",INDEX('6. CY 2022'!AU:AU,MATCH($C33,'6. CY 2022'!A:A,0)),0),0) -> 0 | AW33: =IFERROR(IF(Y33="CY 2022",INDEX('6. CY 2022'!H:H,MATCH(C33,'6. CY 2022'!A:A,0)),0),0) -> 20613530.2 | AZ33: 106541123
A34: 32 | B34: BAKERSFIELD HEART HOSPITAL | C34: 106154101 | D34: BAKERSFIELD HEART HOSPITAL | F34: =IFERROR(INDEX('8. 2018 OSHPD (FEE) DAYS'!G:G,MATCH(C34,'8. 2018 OSHPD (FEE) DAYS'!A:A,0)),0) -> 2018-01-01 | G34: =IFERROR(INDEX('8. 2018 OSHPD (FEE) DAYS'!H:H,MATCH(C34,'8. 2018 OSHPD (FEE) DAYS'!A:A,0)),0) -> 2018-12-31 | H34: =IFERROR(INDEX('8. 2018 OSHPD (FEE) DAYS'!W:W,MATCH(C34,'8. 2018 OSHPD (FEE) DAYS'!A:A,0)),0) -> 2018-01-01 | I34: =IFERROR(INDEX('11. Hospital Statuses'!M:M,MATCH(C34,'11. Hospital Statuses'!A:A,0)),"") -> Open | J34: Kern | K34: 9 | L34: 617 | M34: Investor | N34: Comparable | P34: https://bakersfieldhearthospital.com/ | R34: CCG OF CALIFORNIA, LLC & DOCTOR'S HOSPITAL HOLDING, LLC | S34: 661-316-6000 | T34: 3001 SILLECT AVENUE | U34: BAKERSFIELD | V34: 93308 | W34: MICHELLE OXFORD | X34: =IFERROR(IF(INDEX(#REF!,MATCH(C34,#REF!,0)),"Yes","No"),"") ->  | Y34: CY 2022 | Z34: =IFERROR(IF($Y34="CY 2022",INDEX('6. CY 2022'!R:R,MATCH($C34,'6. CY 2022'!$A:$A,0)),0),0) -> 0 | AA34: =IFERROR(IF($Y34="CY 2022",INDEX('6. CY 2022'!S:S,MATCH($C34,'6. CY 2022'!$A:$A,0)),0),0) -> 0 | AB34: =IFERROR(IF($Y34="CY 2022",INDEX('6. CY 2022'!T:T,MATCH($C34,'6. CY 2022'!$A:$A,0)),0),0) -> 0 | AC34: =IFERROR(IF($Y34="CY 2022",INDEX('6. CY 2022'!U:U,MATCH($C34,'6. CY 2022'!$A:$A,0)),0),0) -> 0 | AD34: =IFERROR(IF($Y34="CY 2022",INDEX('6. CY 2022'!V:V,MATCH($C34,'6. CY 2022'!$A:$A,0)),0),0) -> 0 | AE34: =IFERROR(IF($Y34="CY 2022",INDEX('6. CY 2022'!W:W,MATCH($C34,'6. CY 2022'!$A:$A,0)),0),0) -> 0 | AF34: =IFERROR(IF($Y34="CY 2022",INDEX('6. CY 2022'!X:X,MATCH($C34,'6. CY 2022'!$A:$A,0)),0),0) -> 0 | AG34: =IFERROR(IF(Y34="CY 2022",AF34/'4. Calculated Fee'!$D$35*'4. Calculated Fee'!$D$26,0),0) -> 0 | AH34: =IFERROR(IF($Y34="CY 2022",INDEX('6. CY 2022'!X:X,MATCH($C34,'6. CY 2022'!$A:$A,0)),0),0) -> 0 | AI34: =IFERROR(IF(Y34="CY 2022",INDEX('6. CY 2022'!AG:AG,MATCH(C34,'6. CY 2022'!A:A,0)),0),0) -> 0 | AJ34: =IFERROR(IF($Y34="CY 2022",INDEX('6. CY 2022'!AH:AH,MATCH($C34,'6. CY 2022'!$A:$A,0)),0),0) -> 0 | AK34: =IFERROR(IF($Y34="CY 2022",INDEX('6. CY 2022'!AI:AI,MATCH($C34,'6. CY 2022'!$A:$A,0)),0),0) -> 0 | AL34: =IFERROR(IF($Y34="CY 2022",INDEX('6. CY 2022'!AJ:AJ,MATCH($C34,'6. CY 2022'!$A:$A,0)),0),0) -> 0 | AM34: =IFERROR(IF($Y34="CY 2022",INDEX('6. CY 2022'!AK:AK,MATCH($C34,'6. CY 2022'!$A:$A,0)),0),0) -> 0 | AN34: =IFERROR(IF($Y34="CY 2022",INDEX('6. CY 2022'!AL:AL,MATCH($C34,'6. CY 2022'!$A:$A,0)),0),0) -> 0 | AO34: =IFERROR(IF($Y34="CY 2022",INDEX('6. CY 2022'!AM:AM,MATCH($C34,'6. CY 2022'!$A:$A,0)),0),0) -> 0 | AP34: =IFERROR(IF($Y34="CY 2022",INDEX('6. CY 2022'!AN:AN,MATCH($C34,'6. CY 2022'!$A:$A,0)),0),0) -> 0 | AQ34: =IFERROR(IF($Y34="CY 2022",INDEX('6. CY 2022'!AQ:AQ,MATCH($C34,'6. CY 2022'!$A:$A,0)),0),0) -> 0 | AR34: =IFERROR(IF($Y34="CY 2022",INDEX('6. CY 2022'!AS:AS,MATCH($C34,'6. CY 2022'!A:A,0)),0),0) -> 0 | AS34: =IFERROR(IF(Y34="CY 2022",INDEX('6. CY 2022'!AT:AT,MATCH(C34,'6. CY 2022'!A:A,0)),0),0) -> 0 | AT34: =IFERROR(IF($Y34="CY 2022",INDEX('6. CY 2022'!AU:AU,MATCH($C34,'6. CY 2022'!A:A,0)),0),0) -> 0 | AW34: =IFERROR(IF(Y34="CY 2022",INDEX('6. CY 2022'!H:H,MATCH(C34,'6. CY 2022'!A:A,0)),0),0) -> 96443026.98 | AZ34: 106454068
A35: 33 | B35: BAKERSFIELD MEMORIAL HOSPITAL | C35: 106150722 | D35: BAKERSFIELD MEMORIAL HOSPITAL | F35: =IFERROR(INDEX('8. 2018 OSHPD (FEE) DAYS'!G:G,MATCH(C35,'8. 2018 OSHPD (FEE) DAYS'!A:A,0)),0) -> 2017-07-01 | G35: =IFERROR(INDEX('8. 2018 OSHPD (FEE) DAYS'!H:H,MATCH(C35,'8. 2018 OSHPD (FEE) DAYS'!A:A,0)),0) -> 2018-06-30 | H35: =IFERROR(INDEX('8. 2018 OSHPD (FEE) DAYS'!W:W,MATCH(C35,'8. 2018 OSHPD (FEE) DAYS'!A:A,0)),0) -> 2017-07-01 | I35: =IFERROR(INDEX('11. Hospital Statuses'!M:M,MATCH(C35,'11. Hospital Statuses'!A:A,0)),"") -> Open | J35: Kern | K35: 9 | L35: 617 | M35: Non-Profit | N35: Comparable | P35: https://www.dignityhealth.org/central-california/locations/memorial-hospital | R35: DIGNITY HEALTH | S35: 661-327-4647 | T35: 420 34TH STREET | U35: BAKERSFIELD | V35: 93302 | W35: KEN KELLER | X35: =IFERROR(IF(INDEX(#REF!,MATCH(C35,#REF!,0)),"Yes","No"),"") ->  | Y35: CY 2022 | Z35: =IFERROR(IF($Y35="CY 2022",INDEX('6. CY 2022'!R:R,MATCH($C35,'6. CY 2022'!$A:$A,0)),0),0) -> 0 | AA35: =IFERROR(IF($Y35="CY 2022",INDEX('6. CY 2022'!S:S,MATCH($C35,'6. CY 2022'!$A:$A,0)),0),0) -> 5107761.75 | AB35: =IFERROR(IF($Y35="CY 2022",INDEX('6. CY 2022'!T:T,MATCH($C35,'6. CY 2022'!$A:$A,0)),0),0) -> 4473461.46 | AC35: =IFERROR(IF($Y35="CY 2022",INDEX('6. CY 2022'!U:U,MATCH($C35,'6. CY 2022'!$A:$A,0)),0),0) -> 0 | AD35: =IFERROR(IF($Y35="CY 2022",INDEX('6. CY 2022'!V:V,MATCH($C35,'6. CY 2022'!$A:$A,0)),0),0) -> 10012333.75 | AE35: =IFERROR(IF($Y35="CY 2022",INDEX('6. CY 2022'!W:W,MATCH($C35,'6. CY 2022'!$A:$A,0)),0),0) -> 6068186.75 | AF35: =IFERROR(IF($Y35="CY 2022",INDEX('6. CY 2022'!X:X,MATCH($C35,'6. CY 2022'!$A:$A,0)),0),0) -> 25661743.71 | AG35: =IFERROR(IF(Y35="CY 2022",AF35/'4. Calculated Fee'!$D$35*'4. Calculated Fee'!$D$26,0),0) -> 7543212.878 | AH35: =IFERROR(IF($Y35="CY 2022",INDEX('6. CY 2022'!X:X,MATCH($C35,'6. CY 2022'!$A:$A,0)),0),0) -> 25661743.71 | AI35: =IFERROR(IF(Y35="CY 2022",INDEX('6. CY 2022'!AG:AG,MATCH(C35,'6. CY 2022'!A:A,0)),0),0) -> 4862292.836 | AJ35: =IFERROR(IF($Y35="CY 2022",INDEX('6. CY 2022'!AH:AH,MATCH($C35,'6. CY 2022'!$A:$A,0)),0),0) -> 10863722.37 | AK35: =IFERROR(IF($Y35="CY 2022",INDEX('6. CY 2022'!AI:AI,MATCH($C35,'6. CY 2022'!$A:$A,0)),0),0) -> 0 | AL35: =IFERROR(IF($Y35="CY 2022",INDEX('6. CY 2022'!AJ:AJ,MATCH($C35,'6. CY 2022'!$A:$A,0)),0),0) -> 0 | AM35: =IFERROR(IF($Y35="CY 2022",INDEX('6. CY 2022'!AK:AK,MATCH($C35,'6. CY 2022'!$A:$A,0)),0),0) -> 2965000 | AN35: =IFERROR(IF($Y35="CY 2022",INDEX('6. CY 2022'!AL:AL,MATCH($C35,'6. CY 2022'!$A:$A,0)),0),0) -> 0 | AO35: =IFERROR(IF($Y35="CY 2022",INDEX('6. CY 2022'!AM:AM,MATCH($C35,'6. CY 2022'!$A:$A,0)),0),0) -> 0 | AP35: =IFERROR(IF($Y35="CY 2022",INDEX('6. CY 2022'!AN:AN,MATCH($C35,'6. CY 2022'!$A:$A,0)),0),0) -> 0 | AQ35: =IFERROR(IF($Y35="CY 2022",INDEX('6. CY 2022'!AQ:AQ,MATCH($C35,'6. CY 2022'!$A:$A,0)),0),0) -> 18691015.21 | AR35: =IFERROR(IF($Y35="CY 2022",INDEX('6. CY 2022'!AS:AS,MATCH($C35,'6. CY 2022'!A:A,0)),0),0) -> 14803639.74 | AS35: =IFERROR(IF(Y35="CY 2022",INDEX('6. CY 2022'!AT:AT,MATCH(C35,'6. CY 2022'!A:A,0)),0),0) -> 34449575.52 | AT35: =IFERROR(IF($Y35="CY 2022",INDEX('6. CY 2022'!AU:AU,MATCH($C35,'6. CY 2022'!A:A,0)),0),0) -> 49253215.26 | AW35: =IFERROR(IF(Y35="CY 2022",INDEX('6. CY 2022'!H:H,MATCH(C35,'6. CY 2022'!A:A,0)),0),0) -> 274479933.2 | AX35: =SUM(AG35:AG59) -> 84489098.31 | AZ35: 106524017
A36: 34 | B36: BALLARD REHABILITATION HOSPITAL | C36: 106364121 | D36: BALLARD REHABILITATION HOSPITAL | F36: =IFERROR(INDEX('8. 2018 OSHPD (FEE) DAYS'!G:G,MATCH(C36,'8. 2018 OSHPD (FEE) DAYS'!A:A,0)),0) -> 2017-07-01 | G36: =IFERROR(INDEX('8. 2018 OSHPD (FEE) DAYS'!H:H,MATCH(C36,'8. 2018 OSHPD (FEE) DAYS'!A:A,0)),0) -> 2018-06-30 | H36: =IFERROR(INDEX('8. 2018 OSHPD (FEE) DAYS'!W:W,MATCH(C36,'8. 2018 OSHPD (FEE) DAYS'!A:A,0)),0) -> 2017-07-01 | I36: =IFERROR(INDEX('11. Hospital Statuses'!M:M,MATCH(C36,'11. Hospital Statuses'!A:A,0)),"") -> Open | J36: San Bernardino | K36: 12 | L36: 1209 | M36: Investor | N36: Comparable | P36: https://ballardrehab.com/ | R36: VIBRA HEALTHCARE LLC | S36: 619-260-8300 | T36: 1760 W. 16TH ST. | U36: SAN BERNARDINO | V36: 92411 | W36: MARY HUNT | X36: =IFERROR(IF(INDEX(#REF!,MATCH(C36,#REF!,0)),"Yes","No"),"") ->  | Y36: CY 2022 | Z36: =IFERROR(IF($Y36="CY 2022",INDEX('6. CY 2022'!R:R,MATCH($C36,'6. CY 2022'!$A:$A,0)),0),0) -> 0 | AA36: =IFERROR(IF($Y36="CY 2022",INDEX('6. CY 2022'!S:S,MATCH($C36,'6. CY 2022'!$A:$A,0)),0),0) -> 0 | AB36: =IFERROR(IF($Y36="CY 2022",INDEX('6. CY 2022'!T:T,MATCH($C36,'6. CY 2022'!$A:$A,0)),0),0) -> 0 | AC36: =IFERROR(IF($Y36="CY 2022",INDEX('6. CY 2022'!U:U,MATCH($C36,'6. CY 2022'!$A:$A,0)),0),0) -> 0 | AD36: =IFERROR(IF($Y36="CY 2022",INDEX('6. CY 2022'!V:V,MATCH($C36,'6. CY 2022'!$A:$A,0)),0),0) -> 0 | AE36: =IFERROR(IF($Y36="CY 2022",INDEX('6. CY 2022'!W:W,MATCH($C36,'6. CY 2022'!$A:$A,0)),0),0) -> 0 | AF36: =IFERROR(IF($Y36="CY 2022",INDEX('6. CY 2022'!X:X,MATCH($C36,'6. CY 2022'!$A:$A,0)),0),0) -> 0 | AG36: =IFERROR(IF(Y36="CY 2022",AF36/'4. Calculated Fee'!$D$35*'4. Calculated Fee'!$D$26,0),0) -> 0 | AH36: =IFERROR(IF($Y36="CY 2022",INDEX('6. CY 2022'!X:X,MATCH($C36,'6. CY 2022'!$A:$A,0)),0),0) -> 0 | AI36: =IFERROR(IF(Y36="CY 2022",INDEX('6. CY 2022'!AG:AG,MATCH(C36,'6. CY 2022'!A:A,0)),0),0) -> 0 | AJ36: =IFERROR(IF($Y36="CY 2022",INDEX('6. CY 2022'!AH:AH,MATCH($C36,'6. CY 2022'!$A:$A,0)),0),0) -> 0 | AK36: =IFERROR(IF($Y36="CY 2022",INDEX('6. CY 2022'!AI:AI,MATCH($C36,'6. CY 2022'!$A:$A,0)),0),0) -> 0 | AL36: =IFERROR(IF($Y36="CY 2022",INDEX('6. CY 2022'!AJ:AJ,MATCH($C36,'6. CY 2022'!$A:$A,0)),0),0) -> 0 | AM36: =IFERROR(IF($Y36="CY 2022",INDEX('6. CY 2022'!AK:AK,MATCH($C36,'6. CY 2022'!$A:$A,0)),0),0) -> 0 | AN36: =IFERROR(IF($Y36="CY 2022",INDEX('6. CY 2022'!AL:AL,MATCH($C36,'6. CY 2022'!$A:$A,0)),0),0) -> 0 | AO36: =IFERROR(IF($Y36="CY 2022",INDEX('6. CY 2022'!AM:AM,MATCH($C36,'6. CY 2022'!$A:$A,0)),0),0) -> 0 | AP36: =IFERROR(IF($Y36="CY 2022",INDEX('6. CY 2022'!AN:AN,MATCH($C36,'6. CY 2022'!$A:$A,0)),0),0) -> 0 | AQ36: =IFERROR(IF($Y36="CY 2022",INDEX('6. CY 2022'!AQ:AQ,MATCH($C36,'6. CY 2022'!$A:$A,0)),0),0) -> 0 | AR36: =IFERROR(IF($Y36="CY 2022",INDEX('6. CY 2022'!AS:AS,MATCH($C36,'6. CY 2022'!A:A,0)),0),0) -> 0 | AS36: =IFERROR(IF(Y36="CY 2022",INDEX('6. CY 2022'!AT:AT,MATCH(C36,'6. CY 2022'!A:A,0)),0),0) -> 0 | AT36: =IFERROR(IF($Y36="CY 2022",INDEX('6. CY 2022'!AU:AU,MATCH($C36,'6. CY 2022'!A:A,0)),0),0) -> 0 | AW36: =IFERROR(IF(Y36="CY 2022",INDEX('6. CY 2022'!H:H,MATCH(C36,'6. CY 2022'!A:A,0)),0),0) -> 44440354.12 | AX36: =SUM(AG36:AG41) -> 0 | AZ36: 106344011
A37: 35 | B37: BANNER LASSEN MEDICAL CENTER | C37: 106184008 | D37: BANNER LASSEN MEDICAL CENTER | F37: =IFERROR(INDEX('8. 2018 OSHPD (FEE) DAYS'!G:G,MATCH(C37,'8. 2018 OSHPD (FEE) DAYS'!A:A,0)),0) -> 2018-01-01 | G37: =IFERROR(INDEX('8. 2018 OSHPD (FEE) DAYS'!H:H,MATCH(C37,'8. 2018 OSHPD (FEE) DAYS'!A:A,0)),0) -> 2018-12-31 | H37: =IFERROR(INDEX('8. 2018 OSHPD (FEE) DAYS'!W:W,MATCH(C37,'8. 2018 OSHPD (FEE) DAYS'!A:A,0)),0) -> 2018-01-01 | I37: =IFERROR(INDEX('11. Hospital Statuses'!M:M,MATCH(C37,'11. Hospital Statuses'!A:A,0)),"") -> Open | J37: Lassen | K37: 1 | L37: 213 | M37: Non-Profit | N37: Comparable | O37: Rural | P37: https://www.bannerhealth.com/locations/susanville/banner-lassen-medical-center | R37: BANNER HEALTH SYSTEM | S37: 530-252-2000 | T37: 1800 SPRING RIDGE DRIVE | U37: SUSANVILLE | V37: 96130 | W37: SANDY DUGGER | X37: =IFERROR(IF(INDEX(#REF!,MATCH(C37,#REF!,0)),"Yes","No"),"") ->  | Y37: CY 2022 | Z37: =IFERROR(IF($Y37="CY 2022",INDEX('6. CY 2022'!R:R,MATCH($C37,'6. CY 2022'!$A:$A,0)),0),0) -> 0 | AA37: =IFERROR(IF($Y37="CY 2022",INDEX('6. CY 2022'!S:S,MATCH($C37,'6. CY 2022'!$A:$A,0)),0),0) -> 0 | AB37: =IFERROR(IF($Y37="CY 2022",INDEX('6. CY 2022'!T:T,MATCH($C37,'6. CY 2022'!$A:$A,0)),0),0) -> 0 | AC37: =IFERROR(IF($Y37="CY 2022",INDEX('6. CY 2022'!U:U,MATCH($C37,'6. CY 2022'!$A:$A,0)),0),0) -> 0 | AD37: =IFERROR(IF($Y37="CY 2022",INDEX('6. CY 2022'!V:V,MATCH($C37,'6. CY 2022'!$A:$A,0)),0),0) -> 0 | AE37: =IFERROR(IF($Y37="CY 2022",INDEX('6. CY 2022'!W:W,MATCH($C37,'6. CY 2022'!$A:$A,0)),0),0) -> 0 | AF37: =IFERROR(IF($Y37="CY 2022",INDEX('6. CY 2022'!X:X,MATCH($C37,'6. CY 2022'!$A:$A,0)),0),0) -> 0 | AG37: =IFERROR(IF(Y37="CY 2022",AF37/'4. Calculated Fee'!$D$35*'4. Calculated Fee'!$D$26,0),0) -> 0 | AH37: =IFERROR(IF($Y37="CY 2022",INDEX('6. CY 2022'!X:X,MATCH($C37,'6. CY 2022'!$A:$A,0)),0),0) -> 0 | AI37: =IFERROR(IF(Y37="CY 2022",INDEX('6. CY 2022'!AG:AG,MATCH(C37,'6. CY 2022'!A:A,0)),0),0) -> 172820.3776 | AJ37: =IFERROR(IF($Y37="CY 2022",INDEX('6. CY 2022'!AH:AH,MATCH($C37,'6. CY 2022'!$A:$A,0)),0),0) -> 191998.967 | AK37: =IFERROR(IF($Y37="CY 2022",INDEX('6. CY 2022'!AI:AI,MATCH($C37,'6. CY 2022'!$A:$A,0)),0),0) -> 0 | AL37: =IFERROR(IF($Y37="CY 2022",INDEX('6. CY 2022'!AJ:AJ,MATCH($C37,'6. CY 2022'!$A:$A,0)),0),0) -> 0 | AM37: =IFERROR(IF($Y37="CY 2022",INDEX('6. CY 2022'!AK:AK,MATCH($C37,'6. CY 2022'!$A:$A,0)),0),0) -> 0 | AN37: =IFERROR(IF($Y37="CY 2022",INDEX('6. CY 2022'!AL:AL,MATCH($C37,'6. CY 2022'!$A:$A,0)),0),0) -> 0 | AO37: =IFERROR(IF($Y37="CY 2022",INDEX('6. CY 2022'!AM:AM,MATCH($C37,'6. CY 2022'!$A:$A,0)),0),0) -> 0 | AP37: =IFERROR(IF($Y37="CY 2022",INDEX('6. CY 2022'!AN:AN,MATCH($C37,'6. CY 2022'!$A:$A,0)),0),0) -> 0 | AQ37: =IFERROR(IF($Y37="CY 2022",INDEX('6. CY 2022'!AQ:AQ,MATCH($C37,'6. CY 2022'!$A:$A,0)),0),0) -> 364819.3446 | AR37: =IFERROR(IF($Y37="CY 2022",INDEX('6. CY 2022'!AS:AS,MATCH($C37,'6. CY 2022'!A:A,0)),0),0) -> 616802.1 | AS37: =IFERROR(IF(Y37="CY 2022",INDEX('6. CY 2022'!AT:AT,MATCH(C37,'6. CY 2022'!A:A,0)),0),0) -> 2401519.35 | AT37: =IFERROR(IF($Y37="CY 2022",INDEX('6. CY 2022'!AU:AU,MATCH($C37,'6. CY 2022'!A:A,0)),0),0) -> 3018321.45 | AW37: =IFERROR(IF(Y37="CY 2022",INDEX('6. CY 2022'!H:H,MATCH(C37,'6. CY 2022'!A:A,0)),0),0) -> 49296147.01 | AZ37: 106394003
A38: 36 | B38: BARLOW RESPIRATORY HOSPITAL | C38: 106190052 | D38: BARLOW RESPIRATORY HOSPITAL | F38: =IFERROR(INDEX('8. 2018 OSHPD (FEE) DAYS'!G:G,MATCH(C38,'8. 2018 OSHPD (FEE) DAYS'!A:A,0)),0) -> 2017-09-01 | G38: =IFERROR(INDEX('8. 2018 OSHPD (FEE) DAYS'!H:H,MATCH(C38,'8. 2018 OSHPD (FEE) DAYS'!A:A,0)),0) -> 2018-08-31 | H38: =IFERROR(INDEX('8. 2018 OSHPD (FEE) DAYS'!W:W,MATCH(C38,'8. 2018 OSHPD (FEE) DAYS'!A:A,0)),0) -> 2017-09-01 | I38: =IFERROR(INDEX('11. Hospital Statuses'!M:M,MATCH(C38,'11. Hospital Statuses'!A:A,0)),"") -> Open | J38: Los Angeles | K38: 11 | L38: 925 | M38: Non-Profit | N38: Comparable | P38: https://www.barlowhospital.org/ | R38: BARLOW RESPIRATORY HOSPITAL | S38: 213-250-4200 | T38: 2000 STADIUM WAY | U38: LOS ANGELES | V38: 90026 | W38: AMIT MOHAN | X38: =IFERROR(IF(INDEX(#REF!,MATCH(C38,#REF!,0)),"Yes","No"),"") ->  | Y38: CY 2022 | Z38: =IFERROR(IF($Y38="CY 2022",INDEX('6. CY 2022'!R:R,MATCH($C38,'6. CY 2022'!$A:$A,0)),0),0) -> 0 | AA38: =IFERROR(IF($Y38="CY 2022",INDEX('6. CY 2022'!S:S,MATCH($C38,'6. CY 2022'!$A:$A,0)),0),0) -> 0 | AB38: =IFERROR(IF($Y38="CY 2022",INDEX('6. CY 2022'!T:T,MATCH($C38,'6. CY 2022'!$A:$A,0)),0),0) -> 0 | AC38: =IFERROR(IF($Y38="CY 2022",INDEX('6. CY 2022'!U:U,MATCH($C38,'6. CY 2022'!$A:$A,0)),0),0) -> 0 | AD38: =IFERROR(IF($Y38="CY 2022",INDEX('6. CY 2022'!V:V,MATCH($C38,'6. CY 2022'!$A:$A,0)),0),0) -> 0 | AE38: =IFERROR(IF($Y38="CY 2022",INDEX('6. CY 2022'!W:W,MATCH($C38,'6. CY 2022'!$A:$A,0)),0),0) -> 0 | AF38: =IFERROR(IF($Y38="CY 2022",INDEX('6. CY 2022'!X:X,MATCH($C38,'6. CY 2022'!$A:$A,0)),0),0) -> 0 | AG38: =IFERROR(IF(Y38="CY 2022",AF38/'4. Calculated Fee'!$D$35*'4. Calculated Fee'!$D$26,0),0) -> 0 | AH38: =IFERROR(IF($Y38="CY 2022",INDEX('6. CY 2022'!X:X,MATCH($C38,'6. CY 2022'!$A:$A,0)),0),0) -> 0 | AI38: =IFERROR(IF(Y38="CY 2022",INDEX('6. CY 2022'!AG:AG,MATCH(C38,'6. CY 2022'!A:A,0)),0),0) -> 0 | AJ38: =IFERROR(IF($Y38="CY 2022",INDEX('6. CY 2022'!AH:AH,MATCH($C38,'6. CY 2022'!$A:$A,0)),0),0) -> 0 | AK38: =IFERROR(IF($Y38="CY 2022",INDEX('6. CY 2022'!AI:AI,MATCH($C38,'6. CY 2022'!$A:$A,0)),0),0) -> 0 | AL38: =IFERROR(IF($Y38="CY 2022",INDEX('6. CY 2022'!AJ:AJ,MATCH($C38,'6. CY 2022'!$A:$A,0)),0),0) -> 0 | AM38: =IFERROR(IF($Y38="CY 2022",INDEX('6. CY 2022'!AK:AK,MATCH($C38,'6. CY 2022'!$A:$A,0)),0),0) -> 0 | AN38: =IFERROR(IF($Y38="CY 2022",INDEX('6. CY 2022'!AL:AL,MATCH($C38,'6. CY 2022'!$A:$A,0)),0),0) -> 0 | AO38: =IFERROR(IF($Y38="CY 2022",INDEX('6. CY 2022'!AM:AM,MATCH($C38,'6. CY 2022'!$A:$A,0)),0),0) -> 0 | AP38: =IFERROR(IF($Y38="CY 2022",INDEX('6. CY 2022'!AN:AN,MATCH($C38,'6. CY 2022'!$A:$A,0)),0),0) -> 0 | AQ38: =IFERROR(IF($Y38="CY 2022",INDEX('6. CY 2022'!AQ:AQ,MATCH($C38,'6. CY 2022'!$A:$A,0)),0),0) -> 0 | AR38: =IFERROR(IF($Y38="CY 2022",INDEX('6. CY 2022'!AS:AS,MATCH($C38,'6. CY 2022'!A:A,0)),0),0) -> 0 | AS38: =IFERROR(IF(Y38="CY 2022",INDEX('6. CY 2022'!AT:AT,MATCH(C38,'6. CY 2022'!A:A,0)),0),0) -> 0 | AT38: =IFERROR(IF($Y38="CY 2022",INDEX('6. CY 2022'!AU:AU,MATCH($C38,'6. CY 2022'!A:A,0)),0),0) -> 0 | AW38: =IFERROR(IF(Y38="CY 2022",INDEX('6. CY 2022'!H:H,MATCH(C38,'6. CY 2022'!A:A,0)),0),0) -> 73478581.49 | AZ38: 106404046
A39: 37 | B39: BARSTOW COMMUNITY HOSPITAL | C39: 106364430 | D39: BARSTOW COMMUNITY HOSPITAL | F39: =IFERROR(INDEX('8. 2018 OSHPD (FEE) DAYS'!G:G,MATCH(C39,'8. 2018 OSHPD (FEE) DAYS'!A:A,0)),0) -> 2018-01-01 | G39: =IFERROR(INDEX('8. 2018 OSHPD (FEE) DAYS'!H:H,MATCH(C39,'8. 2018 OSHPD (FEE) DAYS'!A:A,0)),0) -> 2018-12-31 | H39: =IFERROR(INDEX('8. 2018 OSHPD (FEE) DAYS'!W:W,MATCH(C39,'8. 2018 OSHPD (FEE) DAYS'!A:A,0)),0) -> 2018-01-01 | I39: =IFERROR(INDEX('11. Hospital Statuses'!M:M,MATCH(C39,'11. Hospital Statuses'!A:A,0)),"") -> Open | J39: San Bernardino | K39: 12 | L39: 1213 | M39: Investor | N39: Comparable | O39: Rural | P39: https://www.barstowhospital.com/ | R39: QUORUM HEALTH CORPORATION | S39: 760-256-1761 | T39: 820 EAST MOUNTAIN VIEW STREET | U39: BARSTOW | V39: 92311 | W39: J. KOLBE SHERIDAN | X39: =IFERROR(IF(INDEX(#REF!,MATCH(C39,#REF!,0)),"Yes","No"),"") ->  | Y39: CY 2022 | Z39: =IFERROR(IF($Y39="CY 2022",INDEX('6. CY 2022'!R:R,MATCH($C39,'6. CY 2022'!$A:$A,0)),0),0) -> 0 | AA39: =IFERROR(IF($Y39="CY 2022",INDEX('6. CY 2022'!S:S,MATCH($C39,'6. CY 2022'!$A:$A,0)),0),0) -> 0 | AB39: =IFERROR(IF($Y39="CY 2022",INDEX('6. CY 2022'!T:T,MATCH($C39,'6. CY 2022'!$A:$A,0)),0),0) -> 0 | AC39: =IFERROR(IF($Y39="CY 2022",INDEX('6. CY 2022'!U:U,MATCH($C39,'6. CY 2022'!$A:$A,0)),0),0) -> 0 | AD39: =IFERROR(IF($Y39="CY 2022",INDEX('6. CY 2022'!V:V,MATCH($C39,'6. CY 2022'!$A:$A,0)),0),0) -> 0 | AE39: =IFERROR(IF($Y39="CY 2022",INDEX('6. CY 2022'!W:W,MATCH($C39,'6. CY 2022'!$A:$A,0)),0),0) -> 0 | AF39: =IFERROR(IF($Y39="CY 2022",INDEX('6. CY 2022'!X:X,MATCH($C39,'6. CY 2022'!$A:$A,0)),0),0) -> 0 | AG39: =IFERROR(IF(Y39="CY 2022",AF39/'4. Calculated Fee'!$D$35*'4. Calculated Fee'!$D$26,0),0) -> 0 | AH39: =IFERROR(IF($Y39="CY 2022",INDEX('6. CY 2022'!X:X,MATCH($C39,'6. CY 2022'!$A:$A,0)),0),0) -> 0 | AI39: =IFERROR(IF(Y39="CY 2022",INDEX('6. CY 2022'!AG:AG,MATCH(C39,'6. CY 2022'!A:A,0)),0),0) -> 2998760.801 | AJ39: =IFERROR(IF($Y39="CY 2022",INDEX('6. CY 2022'!AH:AH,MATCH($C39,'6. CY 2022'!$A:$A,0)),0),0) -> 1896318.564 | AK39: =IFERROR(IF($Y39="CY 2022",INDEX('6. CY 2022'!AI:AI,MATCH($C39,'6. CY 2022'!$A:$A,0)),0),0) -> 0 | AL39: =IFERROR(IF($Y39="CY 2022",INDEX('6. CY 2022'!AJ:AJ,MATCH($C39,'6. CY 2022'!$A:$A,0)),0),0) -> 0 | AM39: =IFERROR(IF($Y39="CY 2022",INDEX('6. CY 2022'!AK:AK,MATCH($C39,'6. CY 2022'!$A:$A,0)),0),0) -> 0 | AN39: =IFERROR(IF($Y39="CY 2022",INDEX('6. CY 2022'!AL:AL,MATCH($C39,'6. CY 2022'!$A:$A,0)),0),0) -> 0 | AO39: =IFERROR(IF($Y39="CY 2022",INDEX('6. CY 2022'!AM:AM,MATCH($C39,'6. CY 2022'!$A:$A,0)),0),0) -> 0 | AP39: =IFERROR(IF($Y39="CY 2022",INDEX('6. CY 2022'!AN:AN,MATCH($C39,'6. CY 2022'!$A:$A,0)),0),0) -> 217500 | AQ39: =IFERROR(IF($Y39="CY 2022",INDEX('6. CY 2022'!AQ:AQ,MATCH($C39,'6. CY 2022'!$A:$A,0)),0),0) -> 5112579.366 | AR39: =IFERROR(IF($Y39="CY 2022",INDEX('6. CY 2022'!AS:AS,MATCH($C39,'6. CY 2022'!A:A,0)),0),0) -> 1031137.72 | AS39: =IFERROR(IF(Y39="CY 2022",INDEX('6. CY 2022'!AT:AT,MATCH(C39,'6. CY 2022'!A:A,0)),0),0) -> 4186155.83 | AT39: =IFERROR(IF($Y39="CY 2022",INDEX('6. CY 2022'!AU:AU,MATCH($C39,'6. CY 2022'!A:A,0)),0),0) -> 5217293.55 | AW39: =IFERROR(IF(Y39="CY 2022",INDEX('6. CY 2022'!H:H,MATCH(C39,'6. CY 2022'!A:A,0)),0),0) -> 72206991.82 | AZ39: 106424002
A40: 38 | B40: BARTON MEMORIAL HOSPITAL | C40: 106090793 | D40: BARTON MEMORIAL HOSPITAL | F40: =IFERROR(INDEX('8. 2018 OSHPD (FEE) DAYS'!G:G,MATCH(C40,'8. 2018 OSHPD (FEE) DAYS'!A:A,0)),0) -> 2018-01-01 | G40: =IFERROR(INDEX('8. 2018 OSHPD (FEE) DAYS'!H:H,MATCH(C40,'8. 2018 OSHPD (FEE) DAYS'!A:A,0)),0) -> 2018-12-31 | H40: =IFERROR(INDEX('8. 2018 OSHPD (FEE) DAYS'!W:W,MATCH(C40,'8. 2018 OSHPD (FEE) DAYS'!A:A,0)),0) -> 2018-01-01 | I40: =IFERROR(INDEX('11. Hospital Statuses'!M:M,MATCH(C40,'11. Hospital Statuses'!A:A,0)),"") -> Open | J40: El Dorado | K40: 2 | L40: 306 | M40: Non-Profit | N40: Comparable | O40: Rural | P40: https://www.bartonhealth.org/tahoe/home.aspx | R40: BARTON HEALTHCARE SYSTEM | S40: 530-541-3420 | T40: 2170 SOUTH AVENUE | U40: SOUTH LAKE TAHOE | V40: 96150 | W40: CLINT PURVANCE, MD | X40: =IFERROR(IF(INDEX(#REF!,MATCH(C40,#REF!,0)),"Yes","No"),"") ->  | Y40: CY 2022 | Z40: =IFERROR(IF($Y40="CY 2022",INDEX('6. CY 2022'!R:R,MATCH($C40,'6. CY 2022'!$A:$A,0)),0),0) -> 0 | AA40: =IFERROR(IF($Y40="CY 2022",INDEX('6. CY 2022'!S:S,MATCH($C40,'6. CY 2022'!$A:$A,0)),0),0) -> 0 | AB40: =IFERROR(IF($Y40="CY 2022",INDEX('6. CY 2022'!T:T,MATCH($C40,'6. CY 2022'!$A:$A,0)),0),0) -> 0 | AC40: =IFERROR(IF($Y40="CY 2022",INDEX('6. CY 2022'!U:U,MATCH($C40,'6. CY 2022'!$A:$A,0)),0),0) -> 0 | AD40: =IFERROR(IF($Y40="CY 2022",INDEX('6. CY 2022'!V:V,MATCH($C40,'6. CY 2022'!$A:$A,0)),0),0) -> 0 | AE40: =IFERROR(IF($Y40="CY 2022",INDEX('6. CY 2022'!W:W,MATCH($C40,'6. CY 2022'!$A:$A,0)),0),0) -> 0 | AF40: =IFERROR(IF($Y40="CY 2022",INDEX('6. CY 2022'!X:X,MATCH($C40,'6. CY 2022'!$A:$A,0)),0),0) -> 0 | AG40: =IFERROR(IF(Y40="CY 2022",AF40/'4. Calculated Fee'!$D$35*'4. Calculated Fee'!$D$26,0),0) -> 0 | AH40: =IFERROR(IF($Y40="CY 2022",INDEX('6. CY 2022'!X:X,MATCH($C40,'6. CY 2022'!$A:$A,0)),0),0) -> 0 | AI40: =IFERROR(IF(Y40="CY 2022",INDEX('6. CY 2022'!AG:AG,MATCH(C40,'6. CY 2022'!A:A,0)),0),0) -> 968797.0103 | AJ40: =IFERROR(IF($Y40="CY 2022",INDEX('6. CY 2022'!AH:AH,MATCH($C40,'6. CY 2022'!$A:$A,0)),0),0) -> 800872.4034 | AK40: =IFERROR(IF($Y40="CY 2022",INDEX('6. CY 2022'!AI:AI,MATCH($C40,'6. CY 2022'!$A:$A,0)),0),0) -> 0 | AL40: =IFERROR(IF($Y40="CY 2022",INDEX('6. CY 2022'!AJ:AJ,MATCH($C40,'6. CY 2022'!$A:$A,0)),0),0) -> 0 | AM40: =IFERROR(IF($Y40="CY 2022",INDEX('6. CY 2022'!AK:AK,MATCH($C40,'6. CY 2022'!$A:$A,0)),0),0) -> 0 | AN40: =IFERROR(IF($Y40="CY 2022",INDEX('6. CY 2022'!AL:AL,MATCH($C40,'6. CY 2022'!$A:$A,0)),0),0) -> 0 | AO40: =IFERROR(IF($Y40="CY 2022",INDEX('6. CY 2022'!AM:AM,MATCH($C40,'6. CY 2022'!$A:$A,0)),0),0) -> 0 | AP40: =IFERROR(IF($Y40="CY 2022",INDEX('6. CY 2022'!AN:AN,MATCH($C40,'6. CY 2022'!$A:$A,0)),0),0) -> 90000 | AQ40: =IFERROR(IF($Y40="CY 2022",INDEX('6. CY 2022'!AQ:AQ,MATCH($C40,'6. CY 2022'!$A:$A,0)),0),0) -> 1859669.414 | AR40: =IFERROR(IF($Y40="CY 2022",INDEX('6. CY 2022'!AS:AS,MATCH($C40,'6. CY 2022'!A:A,0)),0),0) -> 1369016.07 | AS40: =IFERROR(IF(Y40="CY 2022",INDEX('6. CY 2022'!AT:AT,MATCH(C40,'6. CY 2022'!A:A,0)),0),0) -> 4447632.83 | AT40: =IFERROR(IF($Y40="CY 2022",INDEX('6. CY 2022'!AU:AU,MATCH($C40,'6. CY 2022'!A:A,0)),0),0) -> 5816648.9 | AW40: =IFERROR(IF(Y40="CY 2022",INDEX('6. CY 2022'!H:H,MATCH(C40,'6. CY 2022'!A:A,0)),0),0) -> 156194341.6 | AZ40: 106124004
A41: 39 | B41: BEAR VALLEY COMMUNITY HOSPITAL | C41: 106361110 | D41: BEAR VALLEY COMMUNITY HOSPITAL | F41: =IFERROR(INDEX('8. 2018 OSHPD (FEE) DAYS'!G:G,MATCH(C41,'8. 2018 OSHPD (FEE) DAYS'!A:A,0)),0) -> 2017-07-01 | G41: =IFERROR(INDEX('8. 2018 OSHPD (FEE) DAYS'!H:H,MATCH(C41,'8. 2018 OSHPD (FEE) DAYS'!A:A,0)),0) -> 2018-06-30 | H41: =IFERROR(INDEX('8. 2018 OSHPD (FEE) DAYS'!W:W,MATCH(C41,'8. 2018 OSHPD (FEE) DAYS'!A:A,0)),0) -> 2017-07-01 | I41: =IFERROR(INDEX('11. Hospital Statuses'!M:M,MATCH(C41,'11. Hospital Statuses'!A:A,0)),"") -> Open | J41: San Bernardino | K41: 12 | L41: 1217 | M41: District | N41: Comparable | O41: Rural | P41: https://bearvalleycommunityhospital.com/ | Q41: =CONCATENATE("HTTPS.",P41) -> HTTPS.https://bearvalleycommunityhospital.com/ | R41: BEAR VALLEY COMMUNITY HOSPITAL | S41: 909-866-6501 | T41: 41870 GARSTIN, PO BOX 1649 | U41: BIG BEAR | V41: 92315 | W41: JOHN P FRIEL | X41: =IFERROR(IF(INDEX(#REF!,MATCH(C41,#REF!,0)),"Yes","No"),"") ->  | Y41: CY 2022 | Z41: =IFERROR(IF($Y41="CY 2022",INDEX('6. CY 2022'!R:R,MATCH($C41,'6. CY 2022'!$A:$A,0)),0),0) -> 0 | AA41: =IFERROR(IF($Y41="CY 2022",INDEX('6. CY 2022'!S:S,MATCH($C41,'6. CY 2022'!$A:$A,0)),0),0) -> 0 | AB41: =IFERROR(IF($Y41="CY 2022",INDEX('6. CY 2022'!T:T,MATCH($C41,'6. CY 2022'!$A:$A,0)),0),0) -> 0 | AC41: =IFERROR(IF($Y41="CY 2022",INDEX('6. CY 2022'!U:U,MATCH($C41,'6. CY 2022'!$A:$A,0)),0),0) -> 0 | AD41: =IFERROR(IF($Y41="CY 2022",INDEX('6. CY 2022'!V:V,MATCH($C41,'6. CY 2022'!$A:$A,0)),0),0) -> 0 | AE41: =IFERROR(IF($Y41="CY 2022",INDEX('6. CY 2022'!W:W,MATCH($C41,'6. CY 2022'!$A:$A,0)),0),0) -> 0 | AF41: =IFERROR(IF($Y41="CY 2022",INDEX('6. CY 2022'!X:X,MATCH($C41,'6. CY 2022'!$A:$A,0)),0),0) -> 0 | AG41: =IFERROR(IF(Y41="CY 2022",AF41/'4. Calculated Fee'!$D$35*'4. Calculated Fee'!$D$26,0),0) -> 0 | AH41: =IFERROR(IF($Y41="CY 2022",INDEX('6. CY 2022'!X:X,MATCH($C41,'6. CY 2022'!$A:$A,0)),0),0) -> 0 | AI41: =IFERROR(IF(Y41="CY 2022",INDEX('6. CY 2022'!AG:AG,MATCH(C41,'6. CY 2022'!A:A,0)),0),0) -> 0 | AJ41: =IFERROR(IF($Y41="CY 2022",INDEX('6. CY 2022'!AH:AH,MATCH($C41,'6. CY 2022'!$A:$A,0)),0),0) -> 0 | AK41: =IFERROR(IF($Y41="CY 2022",INDEX('6. CY 2022'!AI:AI,MATCH($C41,'6. CY 2022'!$A:$A,0)),0),0) -> 0 | AL41: =IFERROR(IF($Y41="CY 2022",INDEX('6. CY 2022'!AJ:AJ,MATCH($C41,'6. CY 2022'!$A:$A,0)),0),0) -> 0 | AM41: =IFERROR(IF($Y41="CY 2022",INDEX('6. CY 2022'!AK:AK,MATCH($C41,'6. CY 2022'!$A:$A,0)),0),0) -> 0 | AN41: =IFERROR(IF($Y41="CY 2022",INDEX('6. CY 2022'!AL:AL,MATCH($C41,'6. CY 2022'!$A:$A,0)),0),0) -> 0 | AO41: =IFERROR(IF($Y41="CY 2022",INDEX('6. CY 2022'!AM:AM,MATCH($C41,'6. CY 2022'!$A:$A,0)),0),0) -> 0 | AP41: =IFERROR(IF($Y41="CY 2022",INDEX('6. CY 2022'!AN:AN,MATCH($C41,'6. CY 2022'!$A:$A,0)),0),0) -> 0 | AQ41: =IFERROR(IF($Y41="CY 2022",INDEX('6. CY 2022'!AQ:AQ,MATCH($C41,'6. CY 2022'!$A:$A,0)),0),0) -> 0 | AR41: =IFERROR(IF($Y41="CY 2022",INDEX('6. CY 2022'!AS:AS,MATCH($C41,'6. CY 2022'!A:A,0)),0),0) -> 0 | AS41: =IFERROR(IF(Y41="CY 2022",INDEX('6. CY 2022'!AT:AT,MATCH(C41,'6. CY 2022'!A:A,0)),0),0) -> 0 | AT41: =IFERROR(IF($Y41="CY 2022",INDEX('6. CY 2022'!AU:AU,MATCH($C41,'6. CY 2022'!A:A,0)),0),0) -> 0 | AW41: =IFERROR(IF(Y41="CY 2022",INDEX('6. CY 2022'!H:H,MATCH(C41,'6. CY 2022'!A:A,0)),0),0) -> 32046210.94 | AZ41: 106374049
A42: 40 | B42: BEVERLY HOSPITAL | C42: 106190081 | D42: BEVERLY HOSPITAL | F42: =IFERROR(INDEX('8. 2018 OSHPD (FEE) DAYS'!G:G,MATCH(C42,'8. 2018 OSHPD (FEE) DAYS'!A:A,0)),0) -> 2018-01-01 | G42: =IFERROR(INDEX('8. 2018 OSHPD (FEE) DAYS'!H:H,MATCH(C42,'8. 2018 OSHPD (FEE) DAYS'!A:A,0)),0) -> 2018-12-31 | H42: =IFERROR(INDEX('8. 2018 OSHPD (FEE) DAYS'!W:W,MATCH(C42,'8. 2018 OSHPD (FEE) DAYS'!A:A,0)),0) -> 2018-01-01 | I42: =IFERROR(INDEX('11. Hospital Statuses'!M:M,MATCH(C42,'11. Hospital Statuses'!A:A,0)),"") -> Open | J42: Los Angeles | K42: 11 | L42: 919 | M42: Non-Profit | N42: Comparable | P42: https://beverly.org/ | Q42: HTTPS.https://beverly.org/ | R42: BEVERLY COMMUNITY HOSPITAL ASSOCIATION | S42: 323-726-1222 | T42: 309 WEST BEVERLY BOULEVARD | U42: MONTEBELLO | V42: 90640 | W42: ALICE CHENG | X42: =IFERROR(IF(INDEX(#REF!,MATCH(C42,#REF!,0)),"Yes","No"),"") ->  | Y42: CY 2022 | Z42: =IFERROR(IF($Y42="CY 2022",INDEX('6. CY 2022'!R:R,MATCH($C42,'6. CY 2022'!$A:$A,0)),0),0) -> 0 | AA42: =IFERROR(IF($Y42="CY 2022",INDEX('6. CY 2022'!S:S,MATCH($C42,'6. CY 2022'!$A:$A,0)),0),0) -> 2489234.5 | AB42: =IFERROR(IF($Y42="CY 2022",INDEX('6. CY 2022'!T:T,MATCH($C42,'6. CY 2022'!$A:$A,0)),0),0) -> 2989816.44 | AC42: =IFERROR(IF($Y42="CY 2022",INDEX('6. CY 2022'!U:U,MATCH($C42,'6. CY 2022'!$A:$A,0)),0),0) -> 0 | AD42: =IFERROR(IF($Y42="CY 2022",INDEX('6. CY 2022'!V:V,MATCH($C42,'6. CY 2022'!$A:$A,0)),0),0) -> 7879325.5 | AE42: =IFERROR(IF($Y42="CY 2022",INDEX('6. CY 2022'!W:W,MATCH($C42,'6. CY 2022'!$A:$A,0)),0),0) -> 1767292.75 | AF42: =IFERROR(IF($Y42="CY 2022",INDEX('6. CY 2022'!X:X,MATCH($C42,'6. CY 2022'!$A:$A,0)),0),0) -> 15125669.19 | AG42: =IFERROR(IF(Y42="CY 2022",AF42/'4. Calculated Fee'!$D$35*'4. Calculated Fee'!$D$26,0),0) -> 4446157.047 | AH42: =IFERROR(IF($Y42="CY 2022",INDEX('6. CY 2022'!X:X,MATCH($C42,'6. CY 2022'!$A:$A,0)),0),0) -> 15125669.19 | AI42: =IFERROR(IF(Y42="CY 2022",INDEX('6. CY 2022'!AG:AG,MATCH(C42,'6. CY 2022'!A:A,0)),0),0) -> 1549071.093 | AJ42: =IFERROR(IF($Y42="CY 2022",INDEX('6. CY 2022'!AH:AH,MATCH($C42,'6. CY 2022'!$A:$A,0)),0),0) -> 4355483.415 | AK42: =IFERROR(IF($Y42="CY 2022",INDEX('6. CY 2022'!AI:AI,MATCH($C42,'6. CY 2022'!$A:$A,0)),0),0) -> 0 | AL42: =IFERROR(IF($Y42="CY 2022",INDEX('6. CY 2022'!AJ:AJ,MATCH($C42,'6. CY 2022'!$A:$A,0)),0),0) -> 0 | AM42: =IFERROR(IF($Y42="CY 2022",INDEX('6. CY 2022'!AK:AK,MATCH($C42,'6. CY 2022'!$A:$A,0)),0),0) -> 605000 | AN42: =IFERROR(IF($Y42="CY 2022",INDEX('6. CY 2022'!AL:AL,MATCH($C42,'6. CY 2022'!$A:$A,0)),0),0) -> 0 | AO42: =IFERROR(IF($Y42="CY 2022",INDEX('6. CY 2022'!AM:AM,MATCH($C42,'6. CY 2022'!$A:$A,0)),0),0) -> 0 | AP42: =IFERROR(IF($Y42="CY 2022",INDEX('6. CY 2022'!AN:AN,MATCH($C42,'6. CY 2022'!$A:$A,0)),0),0) -> 0 | AQ42: =IFERROR(IF($Y42="CY 2022",INDEX('6. CY 2022'!AQ:AQ,MATCH($C42,'6. CY 2022'!$A:$A,0)),0),0) -> 6509554.509 | AR42: =IFERROR(IF($Y42="CY 2022",INDEX('6. CY 2022'!AS:AS,MATCH($C42,'6. CY 2022'!A:A,0)),0),0) -> 3224822.21 | AS42: =IFERROR(IF(Y42="CY 2022",INDEX('6. CY 2022'!AT:AT,MATCH(C42,'6. CY 2022'!A:A,0)),0),0) -> 21982026.89 | AT42: =IFERROR(IF($Y42="CY 2022",INDEX('6. CY 2022'!AU:AU,MATCH($C42,'6. CY 2022'!A:A,0)),0),0) -> 25206849.1 | AW42: =IFERROR(IF(Y42="CY 2022",INDEX('6. CY 2022'!H:H,MATCH(C42,'6. CY 2022'!A:A,0)),0),0) -> 225513316.5 | AZ42: 106491267
A43: 41 | B43: BHC ALHAMBRA HOSPITAL | C43: 106190020 | D43: BHC ALHAMBRA HOSPITAL | F43: =IFERROR(INDEX('8. 2018 OSHPD (FEE) DAYS'!G:G,MATCH(C43,'8. 2018 OSHPD (FEE) DAYS'!A:A,0)),0) -> 2018-01-01 | G43: =IFERROR(INDEX('8. 2018 OSHPD (FEE) DAYS'!H:H,MATCH(C43,'8. 2018 OSHPD (FEE) DAYS'!A:A,0)),0) -> 2018-12-31 | H43: =IFERROR(INDEX('8. 2018 OSHPD (FEE) DAYS'!W:W,MATCH(C43,'8. 2018 OSHPD (FEE) DAYS'!A:A,0)),0) -> 2018-01-01 | I43: =IFERROR(INDEX('11. Hospital Statuses'!M:M,MATCH(C43,'11. Hospital Statuses'!A:A,0)),"") -> Open | J43: Los Angeles | K43: 11 | L43: 913 | M43: Investor | N43: Comparable | P43: https://www.bhcalhambra.com/ | Q43: HTTPS.https://www.bhcalhambra.com/ | R43: UNIVERSAL HEALTH SERVICES, INC. | S43: 626-286-1191 | T43: 4619 N ROSEMEAD BLVD | U43: ROSEMEAD | V43: 91770 | W43: PEGGY MINNICK | X43: =IFERROR(IF(INDEX(#REF!,MATCH(C43,#REF!,0)),"Yes","No"),"") ->  | Y43: CY 2022 | Z43: =IFERROR(IF($Y43="CY 2022",INDEX('6. CY 2022'!R:R,MATCH($C43,'6. CY 2022'!$A:$A,0)),0),0) -> 0 | AA43: =IFERROR(IF($Y43="CY 2022",INDEX('6. CY 2022'!S:S,MATCH($C43,'6. CY 2022'!$A:$A,0)),0),0) -> 0 | AB43: =IFERROR(IF($Y43="CY 2022",INDEX('6. CY 2022'!T:T,MATCH($C43,'6. CY 2022'!$A:$A,0)),0),0) -> 0 | AC43: =IFERROR(IF($Y43="CY 2022",INDEX('6. CY 2022'!U:U,MATCH($C43,'6. CY 2022'!$A:$A,0)),0),0) -> 0 | AD43: =IFERROR(IF($Y43="CY 2022",INDEX('6. CY 2022'!V:V,MATCH($C43,'6. CY 2022'!$A:$A,0)),0),0) -> 0 | AE43: =IFERROR(IF($Y43="CY 2022",INDEX('6. CY 2022'!W:W,MATCH($C43,'6. CY 2022'!$A:$A,0)),0),0) -> 0 | AF43: =IFERROR(IF($Y43="CY 2022",INDEX('6. CY 2022'!X:X,MATCH($C43,'6. CY 2022'!$A:$A,0)),0),0) -> 0 | AG43: =IFERROR(IF(Y43="CY 2022",AF43/'4. Calculated Fee'!$D$35*'4. Calculated Fee'!$D$26,0),0) -> 0 | AH43: =IFERROR(IF($Y43="CY 2022",INDEX('6. CY 2022'!X:X,MATCH($C43,'6. CY 2022'!$A:$A,0)),0),0) -> 0 | AI43: =IFERROR(IF(Y43="CY 2022",INDEX('6. CY 2022'!AG:AG,MATCH(C43,'6. CY 2022'!A:A,0)),0),0) -> 0 | AJ43: =IFERROR(IF($Y43="CY 2022",INDEX('6. CY 2022'!AH:AH,MATCH($C43,'6. CY 2022'!$A:$A,0)),0),0) -> 0 | AK43: =IFERROR(IF($Y43="CY 2022",INDEX('6. CY 2022'!AI:AI,MATCH($C43,'6. CY 2022'!$A:$A,0)),0),0) -> 0 | AL43: =IFERROR(IF($Y43="CY 2022",INDEX('6. CY 2022'!AJ:AJ,MATCH($C43,'6. CY 2022'!$A:$A,0)),0),0) -> 0 | AM43: =IFERROR(IF($Y43="CY 2022",INDEX('6. CY 2022'!AK:AK,MATCH($C43,'6. CY 2022'!$A:$A,0)),0),0) -> 0 | AN43: =IFERROR(IF($Y43="CY 2022",INDEX('6. CY 2022'!AL:AL,MATCH($C43,'6. CY 2022'!$A:$A,0)),0),0) -> 0 | AO43: =IFERROR(IF($Y43="CY 2022",INDEX('6. CY 2022'!AM:AM,MATCH($C43,'6. CY 2022'!$A:$A,0)),0),0) -> 0 | AP43: =IFERROR(IF($Y43="CY 2022",INDEX('6. CY 2022'!AN:AN,MATCH($C43,'6. CY 2022'!$A:$A,0)),0),0) -> 0 | AQ43: =IFERROR(IF($Y43="CY 2022",INDEX('6. CY 2022'!AQ:AQ,MATCH($C43,'6. CY 2022'!$A:$A,0)),0),0) -> 0 | AR43: =IFERROR(IF($Y43="CY 2022",INDEX('6. CY 2022'!AS:AS,MATCH($C43,'6. CY 2022'!A:A,0)),0),0) -> 0 | AS43: =IFERROR(IF(Y43="CY 2022",INDEX('6. CY 2022'!AT:AT,MATCH(C43,'6. CY 2022'!A:A,0)),0),0) -> 0 | AT43: =IFERROR(IF($Y43="CY 2022",INDEX('6. CY 2022'!AU:AU,MATCH($C43,'6. CY 2022'!A:A,0)),0),0) -> 0 | AW43: =IFERROR(IF(Y43="CY 2022",INDEX('6. CY 2022'!H:H,MATCH(C43,'6. CY 2022'!A:A,0)),0),0) -> 52157805.2 | AX43: =SUM(AG43:AG52) -> 40280149.9 | AZ43: 106194967
A44: 42 | B44: CALIFORNIA HOSPITAL MEDICAL CENTER | C44: 106190125 | D44: CALIFORNIA HOSPITAL MEDICAL CENTER | F44: =IFERROR(INDEX('8. 2018 OSHPD (FEE) DAYS'!G:G,MATCH(C44,'8. 2018 OSHPD (FEE) DAYS'!A:A,0)),0) -> 2017-07-01 | G44: =IFERROR(INDEX('8. 2018 OSHPD (FEE) DAYS'!H:H,MATCH(C44,'8. 2018 OSHPD (FEE) DAYS'!A:A,0)),0) -> 2018-06-30 | H44: =IFERROR(INDEX('8. 2018 OSHPD (FEE) DAYS'!W:W,MATCH(C44,'8. 2018 OSHPD (FEE) DAYS'!A:A,0)),0) -> 2017-07-01 | I44: =IFERROR(INDEX('11. Hospital Statuses'!M:M,MATCH(C44,'11. Hospital Statuses'!A:A,0)),"") -> Open | J44: Los Angeles | K44: 11 | L44: 925 | M44: Non-Profit | N44: Comparable | P44: https://www.dignityhealth.org/socal/locations/californiahospital | Q44: HTTPS.https://www.dignityhealth.org/socal/locations/californiahospital | R44: DIGNITY HEALTH | S44: 213-748-2411 | T44: 1401 S. GRAND AVENUE | U44: LOS ANGELES | V44: 90015 | W44: ALINA MORAN | X44: =IFERROR(IF(INDEX(#REF!,MATCH(C44,#REF!,0)),"Yes","No"),"") ->  | Y44: CY 2022 | Z44: =IFERROR(IF($Y44="CY 2022",INDEX('6. CY 2022'!R:R,MATCH($C44,'6. CY 2022'!$A:$A,0)),0),0) -> 0 | AA44: =IFERROR(IF($Y44="CY 2022",INDEX('6. CY 2022'!S:S,MATCH($C44,'6. CY 2022'!$A:$A,0)),0),0) -> 2765133.5 | AB44: =IFERROR(IF($Y44="CY 2022",INDEX('6. CY 2022'!T:T,MATCH($C44,'6. CY 2022'!$A:$A,0)),0),0) -> 3348267.78 | AC44: =IFERROR(IF($Y44="CY 2022",INDEX('6. CY 2022'!U:U,MATCH($C44,'6. CY 2022'!$A:$A,0)),0),0) -> 0 | AD44: =IFERROR(IF($Y44="CY 2022",INDEX('6. CY 2022'!V:V,MATCH($C44,'6. CY 2022'!$A:$A,0)),0),0) -> 16275336.25 | AE44: =IFERROR(IF($Y44="CY 2022",INDEX('6. CY 2022'!W:W,MATCH($C44,'6. CY 2022'!$A:$A,0)),0),0) -> 9547964.75 | AF44: =IFERROR(IF($Y44="CY 2022",INDEX('6. CY 2022'!X:X,MATCH($C44,'6. CY 2022'!$A:$A,0)),0),0) -> 31936702.28 | AG44: =IFERROR(IF(Y44="CY 2022",AF44/'4. Calculated Fee'!$D$35*'4. Calculated Fee'!$D$26,0),0) -> 9387723.089 | AH44: =IFERROR(IF($Y44="CY 2022",INDEX('6. CY 2022'!X:X,MATCH($C44,'6. CY 2022'!$A:$A,0)),0),0) -> 31936702.28 | AI44: =IFERROR(IF(Y44="CY 2022",INDEX('6. CY 2022'!AG:AG,MATCH(C44,'6. CY 2022'!A:A,0)),0),0) -> 6656013.691 | AJ44: =IFERROR(IF($Y44="CY 2022",INDEX('6. CY 2022'!AH:AH,MATCH($C44,'6. CY 2022'!$A:$A,0)),0),0) -> 23175327.36 | AK44: =IFERROR(IF($Y44="CY 2022",INDEX('6. CY 2022'!AI:AI,MATCH($C44,'6. CY 2022'!$A:$A,0)),0),0) -> 0 | AL44: =IFERROR(IF($Y44="CY 2022",INDEX('6. CY 2022'!AJ:AJ,MATCH($C44,'6. CY 2022'!$A:$A,0)),0),0) -> 0 | AM44: =IFERROR(IF($Y44="CY 2022",INDEX('6. CY 2022'!AK:AK,MATCH($C44,'6. CY 2022'!$A:$A,0)),0),0) -> 0 | AN44: =IFERROR(IF($Y44="CY 2022",INDEX('6. CY 2022'!AL:AL,MATCH($C44,'6. CY 2022'!$A:$A,0)),0),0) -> 0 | AO44: =IFERROR(IF($Y44="CY 2022",INDEX('6. CY 2022'!AM:AM,MATCH($C44,'6. CY 2022'!$A:$A,0)),0),0) -> 0 | AP44: =IFERROR(IF($Y44="CY 2022",INDEX('6. CY 2022'!AN:AN,MATCH($C44,'6. CY 2022'!$A:$A,0)),0),0) -> 0 | AQ44: =IFERROR(IF($Y44="CY 2022",INDEX('6. CY 2022'!AQ:AQ,MATCH($C44,'6. CY 2022'!$A:$A,0)),0),0) -> 29831341.05 | AR44: =IFERROR(IF($Y44="CY 2022",INDEX('6. CY 2022'!AS:AS,MATCH($C44,'6. CY 2022'!A:A,0)),0),0) -> 13475110.31 | AS44: =IFERROR(IF(Y44="CY 2022",INDEX('6. CY 2022'!AT:AT,MATCH(C44,'6. CY 2022'!A:A,0)),0),0) -> 52352724.15 | AT44: =IFERROR(IF($Y44="CY 2022",INDEX('6. CY 2022'!AU:AU,MATCH($C44,'6. CY 2022'!A:A,0)),0),0) -> 65827834.46 | AW44: =IFERROR(IF(Y44="CY 2022",INDEX('6. CY 2022'!H:H,MATCH(C44,'6. CY 2022'!A:A,0)),0),0) -> 472077289.3 | AZ44: 106514001
A45: 43 | B45: CALIFORNIA PACIFIC MEDICAL CENTER | C45: 106380929 | D45: CALIFORNIA PACIFIC MEDICAL CENTER | F45: =IFERROR(INDEX('8. 2018 OSHPD (FEE) DAYS'!G:G,MATCH(C45,'8. 2018 OSHPD (FEE) DAYS'!A:A,0)),0) -> 2018-01-01 | G45: =IFERROR(INDEX('8. 2018 OSHPD (FEE) DAYS'!H:H,MATCH(C45,'8. 2018 OSHPD (FEE) DAYS'!A:A,0)),0) -> 2018-12-31 | H45: =IFERROR(INDEX('8. 2018 OSHPD (FEE) DAYS'!W:W,MATCH(C45,'8. 2018 OSHPD (FEE) DAYS'!A:A,0)),0) -> 2018-01-01 | I45: =IFERROR(INDEX('11. Hospital Statuses'!M:M,MATCH(C45,'11. Hospital Statuses'!A:A,0)),"") -> Closed | P45: https://www.sutterhealth.org/cpmc | Q45: HTTPS.https://www.sutterhealth.org/cpmc | X45: =IFERROR(IF(INDEX(#REF!,MATCH(C45,#REF!,0)),"Yes","No"),"") ->  | Y45: CY 2022 | Z45: =IFERROR(IF($Y45="CY 2022",INDEX('6. CY 2022'!R:R,MATCH($C45,'6. CY 2022'!$A:$A,0)),0),0) -> 0 | AA45: =IFERROR(IF($Y45="CY 2022",INDEX('6. CY 2022'!S:S,MATCH($C45,'6. CY 2022'!$A:$A,0)),0),0) -> 0 | AB45: =IFERROR(IF($Y45="CY 2022",INDEX('6. CY 2022'!T:T,MATCH($C45,'6. CY 2022'!$A:$A,0)),0),0) -> 0 | AC45: =IFERROR(IF($Y45="CY 2022",INDEX('6. CY 2022'!U:U,MATCH($C45,'6. CY 2022'!$A:$A,0)),0),0) -> 0 | AD45: =IFERROR(IF($Y45="CY 2022",INDEX('6. CY 2022'!V:V,MATCH($C45,'6. CY 2022'!$A:$A,0)),0),0) -> 0 | AE45: =IFERROR(IF($Y45="CY 2022",INDEX('6. CY 2022'!W:W,MATCH($C45,'6. CY 2022'!$A:$A,0)),0),0) -> 0 | AF45: =IFERROR(IF($Y45="CY 2022",INDEX('6. CY 2022'!X:X,MATCH($C45,'6. CY 2022'!$A:$A,0)),0),0) -> 0 | AG45: =IFERROR(IF(Y45="CY 2022",AF45/'4. Calculated Fee'!$D$35*'4. Calculated Fee'!$D$26,0),0) -> 0 | AH45: =IFERROR(IF($Y45="CY 2022",INDEX('6. CY 2022'!X:X,MATCH($C45,'6. CY 2022'!$A:$A,0)),0),0) -> 0 | AI45: =IFERROR(IF(Y45="CY 2022",INDEX('6. CY 2022'!AG:AG,MATCH(C45,'6. CY 2022'!A:A,0)),0),0) -> 0 | AJ45: =IFERROR(IF($Y45="CY 2022",INDEX('6. CY 2022'!AH:AH,MATCH($C45,'6. CY 2022'!$A:$A,0)),0),0) -> 0 | AK45: =IFERROR(IF($Y45="CY 2022",INDEX('6. CY 2022'!AI:AI,MATCH($C45,'6. CY 2022'!$A:$A,0)),0),0) -> 0 | AL45: =IFERROR(IF($Y45="CY 2022",INDEX('6. CY 2022'!AJ:AJ,MATCH($C45,'6. CY 2022'!$A:$A,0)),0),0) -> 0 | AM45: =IFERROR(IF($Y45="CY 2022",INDEX('6. CY 2022'!AK:AK,MATCH($C45,'6. CY 2022'!$A:$A,0)),0),0) -> 0 | AN45: =IFERROR(IF($Y45="CY 2022",INDEX('6. CY 2022'!AL:AL,MATCH($C45,'6. CY 2022'!$A:$A,0)),0),0) -> 0 | AO45: =IFERROR(IF($Y45="CY 2022",INDEX('6. CY 2022'!AM:AM,MATCH($C45,'6. CY 2022'!$A:$A,0)),0),0) -> 0 | AP45: =IFERROR(IF($Y45="CY 2022",INDEX('6. CY 2022'!AN:AN,MATCH($C45,'6. CY 2022'!$A:$A,0)),0),0) -> 0 | AQ45: =IFERROR(IF($Y45="CY 2022",INDEX('6. CY 2022'!AQ:AQ,MATCH($C45,'6. CY 2022'!$A:$A,0)),0),0) -> 0 | AR45: =IFERROR(IF($Y45="CY 2022",INDEX('6. CY 2022'!AS:AS,MATCH($C45,'6. CY 2022'!A:A,0)),0),0) -> 0 | AS45: =IFERROR(IF(Y45="CY 2022",INDEX('6. CY 2022'!AT:AT,MATCH(C45,'6. CY 2022'!A:A,0)),0),0) -> 0 | AT45: =IFERROR(IF($Y45="CY 2022",INDEX('6. CY 2022'!AU:AU,MATCH($C45,'6. CY 2022'!A:A,0)),0),0) -> 0 | AW45: =IFERROR(IF(Y45="CY 2022",INDEX('6. CY 2022'!H:H,MATCH(C45,'6. CY 2022'!A:A,0)),0),0) -> 333626013.9 | AZ45: 106190782
A46: 44 | B46: CALIFORNIA PACIFIC MEDICAL CTR - ST LUKES CAMPUS | C46: 106380964 | D46: CALIFORNIA PACIFIC MEDICAL CTR - ST LUKES CAMPUS | F46: =IFERROR(INDEX('8. 2018 OSHPD (FEE) DAYS'!G:G,MATCH(C46,'8. 2018 OSHPD (FEE) DAYS'!A:A,0)),0) -> 00:00:00 | G46: =IFERROR(INDEX('8. 2018 OSHPD (FEE) DAYS'!H:H,MATCH(C46,'8. 2018 OSHPD (FEE) DAYS'!A:A,0)),0) -> 00:00:00 | H46: =IFERROR(INDEX('8. 2018 OSHPD (FEE) DAYS'!W:W,MATCH(C46,'8. 2018 OSHPD (FEE) DAYS'!A:A,0)),0) -> 00:00:00 | I46: =IFERROR(INDEX('11. Hospital Statuses'!M:M,MATCH(C46,'11. Hospital Statuses'!A:A,0)),"") ->  | P46: https://www.sutterhealth.org/cpmc | Q46: HTTPS.https://www.sutterhealth.org/cpmc | X46: =IFERROR(IF(INDEX(#REF!,MATCH(C46,#REF!,0)),"Yes","No"),"") ->  | Y46: CY 2022 | Z46: =IFERROR(IF($Y46="CY 2022",INDEX('6. CY 2022'!R:R,MATCH($C46,'6. CY 2022'!$A:$A,0)),0),0) -> 0 | AA46: =IFERROR(IF($Y46="CY 2022",INDEX('6. CY 2022'!S:S,MATCH($C46,'6. CY 2022'!$A:$A,0)),0),0) -> 0 | AB46: =IFERROR(IF($Y46="CY 2022",INDEX('6. CY 2022'!T:T,MATCH($C46,'6. CY 2022'!$A:$A,0)),0),0) -> 0 | AC46: =IFERROR(IF($Y46="CY 2022",INDEX('6. CY 2022'!U:U,MATCH($C46,'6. CY 2022'!$A:$A,0)),0),0) -> 0 | AD46: =IFERROR(IF($Y46="CY 2022",INDEX('6. CY 2022'!V:V,MATCH($C46,'6. CY 2022'!$A:$A,0)),0),0) -> 0 | AE46: =IFERROR(IF($Y46="CY 2022",INDEX('6. CY 2022'!W:W,MATCH($C46,'6. CY 2022'!$A:$A,0)),0),0) -> 0 | AF46: =IFERROR(IF($Y46="CY 2022",INDEX('6. CY 2022'!X:X,MATCH($C46,'6. CY 2022'!$A:$A,0)),0),0) -> 0 | AG46: =IFERROR(IF(Y46="CY 2022",AF46/'4. Calculated Fee'!$D$35*'4. Calculated Fee'!$D$26,0),0) -> 0 | AH46: =IFERROR(IF($Y46="CY 2022",INDEX('6. CY 2022'!X:X,MATCH($C46,'6. CY 2022'!$A:$A,0)),0),0) -> 0 | AI46: =IFERROR(IF(Y46="CY 2022",INDEX('6. CY 2022'!AG:AG,MATCH(C46,'6. CY 2022'!A:A,0)),0),0) -> 0 | AJ46: =IFERROR(IF($Y46="CY 2022",INDEX('6. CY 2022'!AH:AH,MATCH($C46,'6. CY 2022'!$A:$A,0)),0),0) -> 0 | AK46: =IFERROR(IF($Y46="CY 2022",INDEX('6. CY 2022'!AI:AI,MATCH($C46,'6. CY 2022'!$A:$A,0)),0),0) -> 0 | AL46: =IFERROR(IF($Y46="CY 2022",INDEX('6. CY 2022'!AJ:AJ,MATCH($C46,'6. CY 2022'!$A:$A,0)),0),0) -> 0 | AM46: =IFERROR(IF($Y46="CY 2022",INDEX('6. CY 2022'!AK:AK,MATCH($C46,'6. CY 2022'!$A:$A,0)),0),0) -> 0 | AN46: =IFERROR(IF($Y46="CY 2022",INDEX('6. CY 2022'!AL:AL,MATCH($C46,'6. CY 2022'!$A:$A,0)),0),0) -> 0 | AO46: =IFERROR(IF($Y46="CY 2022",INDEX('6. CY 2022'!AM:AM,MATCH($C46,'6. CY 2022'!$A:$A,0)),0),0) -> 0 | AP46: =IFERROR(IF($Y46="CY 2022",INDEX('6. CY 2022'!AN:AN,MATCH($C46,'6. CY 2022'!$A:$A,0)),0),0) -> 0 | AQ46: =IFERROR(IF($Y46="CY 2022",INDEX('6. CY 2022'!AQ:AQ,MATCH($C46,'6. CY 2022'!$A:$A,0)),0),0) -> 0 | AR46: =IFERROR(IF($Y46="CY 2022",INDEX('6. CY 2022'!AS:AS,MATCH($C46,'6. CY 2022'!A:A,0)),0),0) -> 0 | AS46: =IFERROR(IF(Y46="CY 2022",INDEX('6. CY 2022'!AT:AT,MATCH(C46,'6. CY 2022'!A:A,0)),0),0) -> 0 | AT46: =IFERROR(IF($Y46="CY 2022",INDEX('6. CY 2022'!AU:AU,MATCH($C46,'6. CY 2022'!A:A,0)),0),0) -> 0 | AW46: =IFERROR(IF(Y46="CY 2022",INDEX('6. CY 2022'!H:H,MATCH(C46,'6. CY 2022'!A:A,0)),0),0) -> 0 | AZ46: 106014207
A47: 45 | B47: CANYON RIDGE HOSPITAL | C47: 106364050 | D47: CANYON RIDGE HOSPITAL | F47: =IFERROR(INDEX('8. 2018 OSHPD (FEE) DAYS'!G:G,MATCH(C47,'8. 2018 OSHPD (FEE) DAYS'!A:A,0)),0) -> 2018-01-01 | G47: =IFERROR(INDEX('8. 2018 OSHPD (FEE) DAYS'!H:H,MATCH(C47,'8. 2018 OSHPD (FEE) DAYS'!A:A,0)),0) -> 2018-12-31 | H47: =IFERROR(INDEX('8. 2018 OSHPD (FEE) DAYS'!W:W,MATCH(C47,'8. 2018 OSHPD (FEE) DAYS'!A:A,0)),0) -> 2018-01-01 | I47: =IFERROR(INDEX('11. Hospital Statuses'!M:M,MATCH(C47,'11. Hospital Statuses'!A:A,0)),"") -> Open | J47: San Bernardino | K47: 12 | L47: 1207 | M47: Investor | N47: Comparable | P47: https://canyonridgehospital.com/ | Q47: HTTPS.https://canyonridgehospital.com/ | R47: UNIVERSAL HEALTH SERVICES, INC. | S47: 909-590-3700 | T47: 5353 G STREET | U47: CHICO | V47: 91710 | W47: STEPHANIE BERNIER | X47: =IFERROR(IF(INDEX(#REF!,MATCH(C47,#REF!,0)),"Yes","No"),"") ->  | Y47: CY 2022 | Z47: =IFERROR(IF($Y47="CY 2022",INDEX('6. CY 2022'!R:R,MATCH($C47,'6. CY 2022'!$A:$A,0)),0),0) -> 0 | AA47: =IFERROR(IF($Y47="CY 2022",INDEX('6. CY 2022'!S:S,MATCH($C47,'6. CY 2022'!$A:$A,0)),0),0) -> 0 | AB47: =IFERROR(IF($Y47="CY 2022",INDEX('6. CY 2022'!T:T,MATCH($C47,'6. CY 2022'!$A:$A,0)),0),0) -> 0 | AC47: =IFERROR(IF($Y47="CY 2022",INDEX('6. CY 2022'!U:U,MATCH($C47,'6. CY 2022'!$A:$A,0)),0),0) -> 0 | AD47: =IFERROR(IF($Y47="CY 2022",INDEX('6. CY 2022'!V:V,MATCH($C47,'6. CY 2022'!$A:$A,0)),0),0) -> 0 | AE47: =IFERROR(IF($Y47="CY 2022",INDEX('6. CY 2022'!W:W,MATCH($C47,'6. CY 2022'!$A:$A,0)),0),0) -> 0 | AF47: =IFERROR(IF($Y47="CY 2022",INDEX('6. CY 2022'!X:X,MATCH($C47,'6. CY 2022'!$A:$A,0)),0),0) -> 0 | AG47: =IFERROR(IF(Y47="CY 2022",AF47/'4. Calculated Fee'!$D$35*'4. Calculated Fee'!$D$26,0),0) -> 0 | AH47: =IFERROR(IF($Y47="CY 2022",INDEX('6. CY 2022'!X:X,MATCH($C47,'6. CY 2022'!$A:$A,0)),0),0) -> 0 | AI47: =IFERROR(IF(Y47="CY 2022",INDEX('6. CY 2022'!AG:AG,MATCH(C47,'6. CY 2022'!A:A,0)),0),0) -> 0 | AJ47: =IFERROR(IF($Y47="CY 2022",INDEX('6. CY 2022'!AH:AH,MATCH($C47,'6. CY 2022'!$A:$A,0)),0),0) -> 0 | AK47: =IFERROR(IF($Y47="CY 2022",INDEX('6. CY 2022'!AI:AI,MATCH($C47,'6. CY 2022'!$A:$A,0)),0),0) -> 0 | AL47: =IFERROR(IF($Y47="CY 2022",INDEX('6. CY 2022'!AJ:AJ,MATCH($C47,'6. CY 2022'!$A:$A,0)),0),0) -> 0 | AM47: =IFERROR(IF($Y47="CY 2022",INDEX('6. CY 2022'!AK:AK,MATCH($C47,'6. CY 2022'!$A:$A,0)),0),0) -> 0 | AN47: =IFERROR(IF($Y47="CY 2022",INDEX('6. CY 2022'!AL:AL,MATCH($C47,'6. CY 2022'!$A:$A,0)),0),0) -> 0 | AO47: =IFERROR(IF($Y47="CY 2022",INDEX('6. CY 2022'!AM:AM,MATCH($C47,'6. CY 2022'!$A:$A,0)),0),0) -> 0 | AP47: =IFERROR(IF($Y47="CY 2022",INDEX('6. CY 2022'!AN:AN,MATCH($C47,'6. CY 2022'!$A:$A,0)),0),0) -> 0 | AQ47: =IFERROR(IF($Y47="CY 2022",INDEX('6. CY 2022'!AQ:AQ,MATCH($C47,'6. CY 2022'!$A:$A,0)),0),0) -> 0 | AR47: =IFERROR(IF($Y47="CY 2022",INDEX('6. CY 2022'!AS:AS,MATCH($C47,'6. CY 2022'!A:A,0)),0),0) -> 0 | AS47: =IFERROR(IF(Y47="CY 2022",INDEX('6. CY 2022'!AT:AT,MATCH(C47,'6. CY 2022'!A:A,0)),0),0) -> 0 | AT47: =IFERROR(IF($Y47="CY 2022",INDEX('6. CY 2022'!AU:AU,MATCH($C47,'6. CY 2022'!A:A,0)),0),0) -> 0 | AW47: =IFERROR(IF(Y47="CY 2022",INDEX('6. CY 2022'!H:H,MATCH(C47,'6. CY 2022'!A:A,0)),0),0) -> 44077846.43 | AZ47: 106314029
A48: 46 | B48: CASA COLINA HOSPITAL AND CENTER FOR HEALTH CARE | C48: 106190137 | D48: CASA COLINA HOSPITAL AND CENTER FOR HEALTH CARE | F48: =IFERROR(INDEX('8. 2018 OSHPD (FEE) DAYS'!G:G,MATCH(C48,'8. 2018 OSHPD (FEE) DAYS'!A:A,0)),0) -> 2018-04-01 | G48: =IFERROR(INDEX('8. 2018 OSHPD (FEE) DAYS'!H:H,MATCH(C48,'8. 2018 OSHPD (FEE) DAYS'!A:A,0)),0) -> 2019-03-31 | H48: =IFERROR(INDEX('8. 2018 OSHPD (FEE) DAYS'!W:W,MATCH(C48,'8. 2018 OSHPD (FEE) DAYS'!A:A,0)),0) -> 2018-04-01 | I48: =IFERROR(INDEX('11. Hospital Statuses'!M:M,MATCH(C48,'11. Hospital Statuses'!A:A,0)),"") -> Open | J48: Los Angeles | K48: 11 | L48: 917 | M48: Non-Profit | N48: Comparable | P48: https://www.casacolina.org/ | Q48: HTTPS.https://www.casacolina.org/ | R48: CASA COLINA, INC. | S48: 909-596-7733 | T48: 255 E. BONITA AVE. | U48: POMONA | V48: 91767 | W48: FELICE L. LOVERSO PH.D. | X48: =IFERROR(IF(INDEX(#REF!,MATCH(C48,#REF!,0)),"Yes","No"),"") ->  | Y48: CY 2022 | Z48: =IFERROR(IF($Y48="CY 2022",INDEX('6. CY 2022'!R:R,MATCH($C48,'6. CY 2022'!$A:$A,0)),0),0) -> 0 | AA48: =IFERROR(IF($Y48="CY 2022",INDEX('6. CY 2022'!S:S,MATCH($C48,'6. CY 2022'!$A:$A,0)),0),0) -> 0 | AB48: =IFERROR(IF($Y48="CY 2022",INDEX('6. CY 2022'!T:T,MATCH($C48,'6. CY 2022'!$A:$A,0)),0),0) -> 0 | AC48: =IFERROR(IF($Y48="CY 2022",INDEX('6. CY 2022'!U:U,MATCH($C48,'6. CY 2022'!$A:$A,0)),0),0) -> 0 | AD48: =IFERROR(IF($Y48="CY 2022",INDEX('6. CY 2022'!V:V,MATCH($C48,'6. CY 2022'!$A:$A,0)),0),0) -> 0 | AE48: =IFERROR(IF($Y48="CY 2022",INDEX('6. CY 2022'!W:W,MATCH($C48,'6. CY 2022'!$A:$A,0)),0),0) -> 0 | AF48: =IFERROR(IF($Y48="CY 2022",INDEX('6. CY 2022'!X:X,MATCH($C48,'6. CY 2022'!$A:$A,0)),0),0) -> 0 | AG48: =IFERROR(IF(Y48="CY 2022",AF48/'4. Calculated Fee'!$D$35*'4. Calculated Fee'!$D$26,0),0) -> 0 | AH48: =IFERROR(IF($Y48="CY 2022",INDEX('6. CY 2022'!X:X,MATCH($C48,'6. CY 2022'!$A:$A,0)),0),0) -> 0 | AI48: =IFERROR(IF(Y48="CY 2022",INDEX('6. CY 2022'!AG:AG,MATCH(C48,'6. CY 2022'!A:A,0)),0),0) -> 0 | AJ48: =IFERROR(IF($Y48="CY 2022",INDEX('6. CY 2022'!AH:AH,MATCH($C48,'6. CY 2022'!$A:$A,0)),0),0) -> 0 | AK48: =IFERROR(IF($Y48="CY 2022",INDEX('6. CY 2022'!AI:AI,MATCH($C48,'6. CY 2022'!$A:$A,0)),0),0) -> 0 | AL48: =IFERROR(IF($Y48="CY 2022",INDEX('6. CY 2022'!AJ:AJ,MATCH($C48,'6. CY 2022'!$A:$A,0)),0),0) -> 0 | AM48: =IFERROR(IF($Y48="CY 2022",INDEX('6. CY 2022'!AK:AK,MATCH($C48,'6. CY 2022'!$A:$A,0)),0),0) -> 0 | AN48: =IFERROR(IF($Y48="CY 2022",INDEX('6. CY 2022'!AL:AL,MATCH($C48,'6. CY 2022'!$A:$A,0)),0),0) -> 0 | AO48: =IFERROR(IF($Y48="CY 2022",INDEX('6. CY 2022'!AM:AM,MATCH($C48,'6. CY 2022'!$A:$A,0)),0),0) -> 0 | AP48: =IFERROR(IF($Y48="CY 2022",INDEX('6. CY 2022'!AN:AN,MATCH($C48,'6. CY 2022'!$A:$A,0)),0),0) -> 0 | AQ48: =IFERROR(IF($Y48="CY 2022",INDEX('6. CY 2022'!AQ:AQ,MATCH($C48,'6. CY 2022'!$A:$A,0)),0),0) -> 0 | AR48: =IFERROR(IF($Y48="CY 2022",INDEX('6. CY 2022'!AS:AS,MATCH($C48,'6. CY 2022'!A:A,0)),0),0) -> 0 | AS48: =IFERROR(IF(Y48="CY 2022",INDEX('6. CY 2022'!AT:AT,MATCH(C48,'6. CY 2022'!A:A,0)),0),0) -> 0 | AT48: =IFERROR(IF($Y48="CY 2022",INDEX('6. CY 2022'!AU:AU,MATCH($C48,'6. CY 2022'!A:A,0)),0),0) -> 0 | AW48: =IFERROR(IF(Y48="CY 2022",INDEX('6. CY 2022'!H:H,MATCH(C48,'6. CY 2022'!A:A,0)),0),0) -> 85234231.21 | AZ48: 106504081
A49: 47 | B49: CATALINA ISLAND MEDICAL CENTER | C49: 106190045 | D49: CATALINA ISLAND MEDICAL CENTER | F49: =IFERROR(INDEX('8. 2018 OSHPD (FEE) DAYS'!G:G,MATCH(C49,'8. 2018 OSHPD (FEE) DAYS'!A:A,0)),0) -> 2017-07-01 | G49: =IFERROR(INDEX('8. 2018 OSHPD (FEE) DAYS'!H:H,MATCH(C49,'8. 2018 OSHPD (FEE) DAYS'!A:A,0)),0) -> 2018-06-30 | H49: =IFERROR(INDEX('8. 2018 OSHPD (FEE) DAYS'!W:W,MATCH(C49,'8. 2018 OSHPD (FEE) DAYS'!A:A,0)),0) -> 2017-07-01 | I49: =IFERROR(INDEX('11. Hospital Statuses'!M:M,MATCH(C49,'11. Hospital Statuses'!A:A,0)),"") -> Open | J49: Los Angeles | K49: 11 | L49: 933 | M49: Non-Profit | N49: Comparable | O49: Rural | P49: https://cimedicalcenter.org/ | Q49: HTTPS.https://cimedicalcenter.org/ | R49: AVALON MEDICAL DEVELOPMENT CORPORATION | S49: 310-510-0700 | T49: 100 FALLS CANYON ROAD | U49: AVALON | V49: 90704 | W49: JASON PARET | X49: =IFERROR(IF(INDEX(#REF!,MATCH(C49,#REF!,0)),"Yes","No"),"") ->  | Y49: CY 2022 | Z49: =IFERROR(IF($Y49="CY 2022",INDEX('6. CY 2022'!R:R,MATCH($C49,'6. CY 2022'!$A:$A,0)),0),0) -> 0 | AA49: =IFERROR(IF($Y49="CY 2022",INDEX('6. CY 2022'!S:S,MATCH($C49,'6. CY 2022'!$A:$A,0)),0),0) -> 0 | AB49: =IFERROR(IF($Y49="CY 2022",INDEX('6. CY 2022'!T:T,MATCH($C49,'6. CY 2022'!$A:$A,0)),0),0) -> 0 | AC49: =IFERROR(IF($Y49="CY 2022",INDEX('6. CY 2022'!U:U,MATCH($C49,'6. CY 2022'!$A:$A,0)),0),0) -> 0 | AD49: =IFERROR(IF($Y49="CY 2022",INDEX('6. CY 2022'!V:V,MATCH($C49,'6. CY 2022'!$A:$A,0)),0),0) -> 0 | AE49: =IFERROR(IF($Y49="CY 2022",INDEX('6. CY 2022'!W:W,MATCH($C49,'6. CY 2022'!$A:$A,0)),0),0) -> 0 | AF49: =IFERROR(IF($Y49="CY 2022",INDEX('6. CY 2022'!X:X,MATCH($C49,'6. CY 2022'!$A:$A,0)),0),0) -> 0 | AG49: =IFERROR(IF(Y49="CY 2022",AF49/'4. Calculated Fee'!$D$35*'4. Calculated Fee'!$D$26,0),0) -> 0 | AH49: =IFERROR(IF($Y49="CY 2022",INDEX('6. CY 2022'!X:X,MATCH($C49,'6. CY 2022'!$A:$A,0)),0),0) -> 0 | AI49: =IFERROR(IF(Y49="CY 2022",INDEX('6. CY 2022'!AG:AG,MATCH(C49,'6. CY 2022'!A:A,0)),0),0) -> 354087.9559 | AJ49: =IFERROR(IF($Y49="CY 2022",INDEX('6. CY 2022'!AH:AH,MATCH($C49,'6. CY 2022'!$A:$A,0)),0),0) -> 0 | AK49: =IFERROR(IF($Y49="CY 2022",INDEX('6. CY 2022'!AI:AI,MATCH($C49,'6. CY 2022'!$A:$A,0)),0),0) -> 0 | AL49: =IFERROR(IF($Y49="CY 2022",INDEX('6. CY 2022'!AJ:AJ,MATCH($C49,'6. CY 2022'!$A:$A,0)),0),0) -> 0 | AM49: =IFERROR(IF($Y49="CY 2022",INDEX('6. CY 2022'!AK:AK,MATCH($C49,'6. CY 2022'!$A:$A,0)),0),0) -> 0 | AN49: =IFERROR(IF($Y49="CY 2022",INDEX('6. CY 2022'!AL:AL,MATCH($C49,'6. CY 2022'!$A:$A,0)),0),0) -> 0 | AO49: =IFERROR(IF($Y49="CY 2022",INDEX('6. CY 2022'!AM:AM,MATCH($C49,'6. CY 2022'!$A:$A,0)),0),0) -> 0 | AP49: =IFERROR(IF($Y49="CY 2022",INDEX('6. CY 2022'!AN:AN,MATCH($C49,'6. CY 2022'!$A:$A,0)),0),0) -> 0 | AQ49: =IFERROR(IF($Y49="CY 2022",INDEX('6. CY 2022'!AQ:AQ,MATCH($C49,'6. CY 2022'!$A:$A,0)),0),0) -> 354087.9559 | AR49: =IFERROR(IF($Y49="CY 2022",INDEX('6. CY 2022'!AS:AS,MATCH($C49,'6. CY 2022'!A:A,0)),0),0) -> 0 | AS49: =IFERROR(IF(Y49="CY 2022",INDEX('6. CY 2022'!AT:AT,MATCH(C49,'6. CY 2022'!A:A,0)),0),0) -> 3743.45 | AT49: =IFERROR(IF($Y49="CY 2022",INDEX('6. CY 2022'!AU:AU,MATCH($C49,'6. CY 2022'!A:A,0)),0),0) -> 3743.45 | AW49: =IFERROR(IF(Y49="CY 2022",INDEX('6. CY 2022'!H:H,MATCH(C49,'6. CY 2022'!A:A,0)),0),0) -> 10733354.83 | AZ49: 106014226
A50: 48 | B50: CEDARS-SINAI MEDICAL CENTER | C50: 106190555 | D50: CEDARS-SINAI MEDICAL CENTER | F50: =IFERROR(INDEX('8. 2018 OSHPD (FEE) DAYS'!G:G,MATCH(C50,'8. 2018 OSHPD (FEE) DAYS'!A:A,0)),0) -> 2017-07-01 | G50: =IFERROR(INDEX('8. 2018 OSHPD (FEE) DAYS'!H:H,MATCH(C50,'8. 2018 OSHPD (FEE) DAYS'!A:A,0)),0) -> 2018-06-30 | H50: =IFERROR(INDEX('8. 2018 OSHPD (FEE) DAYS'!W:W,MATCH(C50,'8. 2018 OSHPD (FEE) DAYS'!A:A,0)),0) -> 2017-07-01 | I50: =IFERROR(INDEX('11. Hospital Statuses'!M:M,MATCH(C50,'11. Hospital Statuses'!A:A,0)),"") -> Open | J50: Los Angeles | K50: 11 | L50: 925 | M50: Non-Profit | N50: Comparable | O50: Teaching | P50: https://www.cedars-sinai.org/ | Q50: HTTPS.https://www.cedars-sinai.org/ | R50: CEDARS-SINAI MEDICAL CENTER | S50: 323-568-8504 | T50: 8700 BEVERLY BLVD | U50: LOS ANGELES | V50: 90048-1865 | W50: PRISELAC THOMAS | X50: =IFERROR(IF(INDEX(#REF!,MATCH(C50,#REF!,0)),"Yes","No"),"") ->  | Y50: CY 2022 | Z50: =IFERROR(IF($Y50="CY 2022",INDEX('6. CY 2022'!R:R,MATCH($C50,'6. CY 2022'!$A:$A,0)),0),0) -> 0 | AA50: =IFERROR(IF($Y50="CY 2022",INDEX('6. CY 2022'!S:S,MATCH($C50,'6. CY 2022'!$A:$A,0)),0),0) -> 26703281.25 | AB50: =IFERROR(IF($Y50="CY 2022",INDEX('6. CY 2022'!T:T,MATCH($C50,'6. CY 2022'!$A:$A,0)),0),0) -> 37397202.96 | AC50: =IFERROR(IF($Y50="CY 2022",INDEX('6. CY 2022'!U:U,MATCH($C50,'6. CY 2022'!$A:$A,0)),0),0) -> 0 | AD50: =IFERROR(IF($Y50="CY 2022",INDEX('6. CY 2022'!V:V,MATCH($C50,'6. CY 2022'!$A:$A,0)),0),0) -> 8971987.75 | AE50: =IFERROR(IF($Y50="CY 2022",INDEX('6. CY 2022'!W:W,MATCH($C50,'6. CY 2022'!$A:$A,0)),0),0) -> 8349175.25 | AF50: =IFERROR(IF($Y50="CY 2022",INDEX('6. CY 2022'!X:X,MATCH($C50,'6. CY 2022'!$A:$A,0)),0),0) -> 81421647.21 | AG50: =IFERROR(IF(Y50="CY 2022",AF50/'4. Calculated Fee'!$D$35*'4. Calculated Fee'!$D$26,0),0) -> 23933713.34 | AH50: =IFERROR(IF($Y50="CY 2022",INDEX('6. CY 2022'!X:X,MATCH($C50,'6. CY 2022'!$A:$A,0)),0),0) -> 81421647.21 | AI50: =IFERROR(IF(Y50="CY 2022",INDEX('6. CY 2022'!AG:AG,MATCH(C50,'6. CY 2022'!A:A,0)),0),0) -> 12998278.19 | AJ50: =IFERROR(IF($Y50="CY 2022",INDEX('6. CY 2022'!AH:AH,MATCH($C50,'6. CY 2022'!$A:$A,0)),0),0) -> 21643280.81 | AK50: =IFERROR(IF($Y50="CY 2022",INDEX('6. CY 2022'!AI:AI,MATCH($C50,'6. CY 2022'!$A:$A,0)),0),0) -> 0 | AL50: =IFERROR(IF($Y50="CY 2022",INDEX('6. CY 2022'!AJ:AJ,MATCH($C50,'6. CY 2022'!$A:$A,0)),0),0) -> 0 | AM50: =IFERROR(IF($Y50="CY 2022",INDEX('6. CY 2022'!AK:AK,MATCH($C50,'6. CY 2022'!$A:$A,0)),0),0) -> 6887500 | AN50: =IFERROR(IF($Y50="CY 2022",INDEX('6. CY 2022'!AL:AL,MATCH($C50,'6. CY 2022'!$A:$A,0)),0),0) -> 6887500 | AO50: =IFERROR(IF($Y50="CY 2022",INDEX('6. CY 2022'!AM:AM,MATCH($C50,'6. CY 2022'!$A:$A,0)),0),0) -> 6080000 | AP50: =IFERROR(IF($Y50="CY 2022",INDEX('6. CY 2022'!AN:AN,MATCH($C50,'6. CY 2022'!$A:$A,0)),0),0) -> 0 | AQ50: =IFERROR(IF($Y50="CY 2022",INDEX('6. CY 2022'!AQ:AQ,MATCH($C50,'6. CY 2022'!$A:$A,0)),0),0) -> 54496559 | AR50: =IFERROR(IF($Y50="CY 2022",INDEX('6. CY 2022'!AS:AS,MATCH($C50,'6. CY 2022'!A:A,0)),0),0) -> 8240809.64 | AS50: =IFERROR(IF(Y50="CY 2022",INDEX('6. CY 2022'!AT:AT,MATCH(C50,'6. CY 2022'!A:A,0)),0),0) -> 11016993.14 | AT50: =IFERROR(IF($Y50="CY 2022",INDEX('6. CY 2022'!AU:AU,MATCH($C50,'6. CY 2022'!A:A,0)),0),0) -> 19257802.78 | AW50: =IFERROR(IF(Y50="CY 2022",INDEX('6. CY 2022'!H:H,MATCH(C50,'6. CY 2022'!A:A,0)),0),0) -> 4445677980 | AZ50: 106330120
A51: 49 | B51: CENTINELA HOSPITAL MEDICAL CENTER | C51: 106190148 | D51: CENTINELA HOSPITAL MEDICAL CENTER | F51: =IFERROR(INDEX('8. 2018 OSHPD (FEE) DAYS'!G:G,MATCH(C51,'8. 2018 OSHPD (FEE) DAYS'!A:A,0)),0) -> 2018-01-01 | G51: =IFERROR(INDEX('8. 2018 OSHPD (FEE) DAYS'!H:H,MATCH(C51,'8. 2018 OSHPD (FEE) DAYS'!A:A,0)),0) -> 2018-12-31 | H51: =IFERROR(INDEX('8. 2018 OSHPD (FEE) DAYS'!W:W,MATCH(C51,'8. 2018 OSHPD (FEE) DAYS'!A:A,0)),0) -> 2018-01-01 | I51: =IFERROR(INDEX('11. Hospital Statuses'!M:M,MATCH(C51,'11. Hospital Statuses'!A:A,0)),"") -> Open | J51: Los Angeles | K51: 11 | L51: 929 | M51: Investor | N51: Comparable | P51: https://www.centinelamed.com/ | Q51: HTTPS.https://www.centinelamed.com/ | R51: PRIME HEALTHCARE SERVICES, INC. | S51: 310-680-8200 | T51: 555 EAST HARDY STREET | U51: INGLEWOOD | V51: 90301 | W51: MOHAMMAD ABDELNASER, RN | X51: =IFERROR(IF(INDEX(#REF!,MATCH(C51,#REF!,0)),"Yes","No"),"") ->  | Y51: CY 2022 | Z51: =IFERROR(IF($Y51="CY 2022",INDEX('6. CY 2022'!R:R,MATCH($C51,'6. CY 2022'!$A:$A,0)),0),0) -> 0 | AA51: =IFERROR(IF($Y51="CY 2022",INDEX('6. CY 2022'!S:S,MATCH($C51,'6. CY 2022'!$A:$A,0)),0),0) -> 2449301.75 | AB51: =IFERROR(IF($Y51="CY 2022",INDEX('6. CY 2022'!T:T,MATCH($C51,'6. CY 2022'!$A:$A,0)),0),0) -> 8654642.88 | AC51: =IFERROR(IF($Y51="CY 2022",INDEX('6. CY 2022'!U:U,MATCH($C51,'6. CY 2022'!$A:$A,0)),0),0) -> 0 | AD51: =IFERROR(IF($Y51="CY 2022",INDEX('6. CY 2022'!V:V,MATCH($C51,'6. CY 2022'!$A:$A,0)),0),0) -> 9434862 | AE51: =IFERROR(IF($Y51="CY 2022",INDEX('6. CY 2022'!W:W,MATCH($C51,'6. CY 2022'!$A:$A,0)),0),0) -> 3134490.75 | AF51: =IFERROR(IF($Y51="CY 2022",INDEX('6. CY 2022'!X:X,MATCH($C51,'6. CY 2022'!$A:$A,0)),0),0) -> 23673297.38 | AG51: =IFERROR(IF(Y51="CY 2022",AF51/'4. Calculated Fee'!$D$35*'4. Calculated Fee'!$D$26,0),0) -> 6958713.472 | AH51: =IFERROR(IF($Y51="CY 2022",INDEX('6. CY 2022'!X:X,MATCH($C51,'6. CY 2022'!$A:$A,0)),0),0) -> 23673297.38 | AI51: =IFERROR(IF(Y51="CY 2022",INDEX('6. CY 2022'!AG:AG,MATCH(C51,'6. CY 2022'!A:A,0)),0),0) -> 1931893.161 | AJ51: =IFERROR(IF($Y51="CY 2022",INDEX('6. CY 2022'!AH:AH,MATCH($C51,'6. CY 2022'!$A:$A,0)),0),0) -> 6559526.351 | AK51: =IFERROR(IF($Y51="CY 2022",INDEX('6. CY 2022'!AI:AI,MATCH($C51,'6. CY 2022'!$A:$A,0)),0),0) -> 0 | AL51: =IFERROR(IF($Y51="CY 2022",INDEX('6. CY 2022'!AJ:AJ,MATCH($C51,'6. CY 2022'!$A:$A,0)),0),0) -> 0 | AM51: =IFERROR(IF($Y51="CY 2022",INDEX('6. CY 2022'!AK:AK,MATCH($C51,'6. CY 2022'!$A:$A,0)),0),0) -> 1802500 | AN51: =IFERROR(IF($Y51="CY 2022",INDEX('6. CY 2022'!AL:AL,MATCH($C51,'6. CY 2022'!$A:$A,0)),0),0) -> 0 | AO51: =IFERROR(IF($Y51="CY 2022",INDEX('6. CY 2022'!AM:AM,MATCH($C51,'6. CY 2022'!$A:$A,0)),0),0) -> 0 | AP51: =IFERROR(IF($Y51="CY 2022",INDEX('6. CY 2022'!AN:AN,MATCH($C51,'6. CY 2022'!$A:$A,0)),0),0) -> 0 | AQ51: =IFERROR(IF($Y51="CY 2022",INDEX('6. CY 2022'!AQ:AQ,MATCH($C51,'6. CY 2022'!$A:$A,0)),0),0) -> 10293919.51 | AR51: =IFERROR(IF($Y51="CY 2022",INDEX('6. CY 2022'!AS:AS,MATCH($C51,'6. CY 2022'!A:A,0)),0),0) -> 5905178.6 | AS51: =IFERROR(IF(Y51="CY 2022",INDEX('6. CY 2022'!AT:AT,MATCH(C51,'6. CY 2022'!A:A,0)),0),0) -> 24543262.27 | AT51: =IFERROR(IF($Y51="CY 2022",INDEX('6. CY 2022'!AU:AU,MATCH($C51,'6. CY 2022'!A:A,0)),0),0) -> 30448440.87 | AW51: =IFERROR(IF(Y51="CY 2022",INDEX('6. CY 2022'!H:H,MATCH(C51,'6. CY 2022'!A:A,0)),0),0) -> 304760677.4 | AZ51: 106191225
A52: 50 | B52: CENTRAL VALLEY SPECIALTY HOSPITAL | C52: 106500954 | D52: CENTRAL VALLEY SPECIALTY HOSPITAL | F52: =IFERROR(INDEX('8. 2018 OSHPD (FEE) DAYS'!G:G,MATCH(C52,'8. 2018 OSHPD (FEE) DAYS'!A:A,0)),0) -> 2018-01-01 | G52: =IFERROR(INDEX('8. 2018 OSHPD (FEE) DAYS'!H:H,MATCH(C52,'8. 2018 OSHPD (FEE) DAYS'!A:A,0)),0) -> 2018-12-31 | H52: =IFERROR(INDEX('8. 2018 OSHPD (FEE) DAYS'!W:W,MATCH(C52,'8. 2018 OSHPD (FEE) DAYS'!A:A,0)),0) -> 2018-01-01 | I52: =IFERROR(INDEX('11. Hospital Statuses'!M:M,MATCH(C52,'11. Hospital Statuses'!A:A,0)),"") -> Open | J52: Stanislaus | K52: 6 | L52: 511 | M52: Investor | N52: Comparable | P52: https://healthy.kaiserpermanente.org/northern-california/facilities/central-valley-specialty-hospital-339541 | Q52: HTTPS.https://healthy.kaiserpermanente.org/northern-california/facilities/central-valley-specialty-hospital-339541 | R52: GURPREET SINGH | S52: 209-576-2532 | T52: 730 17TH STREET | U52: MODESTO | V52: 95354-1209 | W52: TAMMY THOMPSON | X52: =IFERROR(IF(INDEX(#REF!,MATCH(C52,#REF!,0)),"Yes","No"),"") ->  | Y52: CY 2022 | Z52: =IFERROR(IF($Y52="CY 2022",INDEX('6. CY 2022'!R:R,MATCH($C52,'6. CY 2022'!$A:$A,0)),0),0) -> 0 | AA52: =IFERROR(IF($Y52="CY 2022",INDEX('6. CY 2022'!S:S,MATCH($C52,'6. CY 2022'!$A:$A,0)),0),0) -> 0 | AB52: =IFERROR(IF($Y52="CY 2022",INDEX('6. CY 2022'!T:T,MATCH($C52,'6. CY 2022'!$A:$A,0)),0),0) -> 0 | AC52: =IFERROR(IF($Y52="CY 2022",INDEX('6. CY 2022'!U:U,MATCH($C52,'6. CY 2022'!$A:$A,0)),0),0) -> 0 | AD52: =IFERROR(IF($Y52="CY 2022",INDEX('6. CY 2022'!V:V,MATCH($C52,'6. CY 2022'!$A:$A,0)),0),0) -> 0 | AE52: =IFERROR(IF($Y52="CY 2022",INDEX('6. CY 2022'!W:W,MATCH($C52,'6. CY 2022'!$A:$A,0)),0),0) -> 0 | AF52: =IFERROR(IF($Y52="CY 2022",INDEX('6. CY 2022'!X:X,MATCH($C52,'6. CY 2022'!$A:$A,0)),0),0) -> 0 | AG52: =IFERROR(IF(Y52="CY 2022",AF52/'4. Calculated Fee'!$D$35*'4. Calculated Fee'!$D$26,0),0) -> 0 | AH52: =IFERROR(IF($Y52="CY 2022",INDEX('6. CY 2022'!X:X,MATCH($C52,'6. CY 2022'!$A:$A,0)),0),0) -> 0 | AI52: =IFERROR(IF(Y52="CY 2022",INDEX('6. CY 2022'!AG:AG,MATCH(C52,'6. CY 2022'!A:A,0)),0),0) -> 0 | AJ52: =IFERROR(IF($Y52="CY 2022",INDEX('6. CY 2022'!AH:AH,MATCH($C52,'6. CY 2022'!$A:$A,0)),0),0) -> 0 | AK52: =IFERROR(IF($Y52="CY 2022",INDEX('6. CY 2022'!AI:AI,MATCH($C52,'6. CY 2022'!$A:$A,0)),0),0) -> 0 | AL52: =IFERROR(IF($Y52="CY 2022",INDEX('6. CY 2022'!AJ:AJ,MATCH($C52,'6. CY 2022'!$A:$A,0)),0),0) -> 0 | AM52: =IFERROR(IF($Y52="CY 2022",INDEX('6. CY 2022'!AK:AK,MATCH($C52,'6. CY 2022'!$A:$A,0)),0),0) -> 0 | AN52: =IFERROR(IF($Y52="CY 2022",INDEX('6. CY 2022'!AL:AL,MATCH($C52,'6. CY 2022'!$A:$A,0)),0),0) -> 0 | AO52: =IFERROR(IF($Y52="CY 2022",INDEX('6. CY 2022'!AM:AM,MATCH($C52,'6. CY 2022'!$A:$A,0)),0),0) -> 0 | AP52: =IFERROR(IF($Y52="CY 2022",INDEX('6. CY 2022'!AN:AN,MATCH($C52,'6. CY 2022'!$A:$A,0)),0),0) -> 0 | AQ52: =IFERROR(IF($Y52="CY 2022",INDEX('6. CY 2022'!AQ:AQ,MATCH($C52,'6. CY 2022'!$A:$A,0)),0),0) -> 0 | AR52: =IFERROR(IF($Y52="CY 2022",INDEX('6. CY 2022'!AS:AS,MATCH($C52,'6. CY 2022'!A:A,0)),0),0) -> 0 | AS52: =IFERROR(IF(Y52="CY 2022",INDEX('6. CY 2022'!AT:AT,MATCH(C52,'6. CY 2022'!A:A,0)),0),0) -> 0 | AT52: =IFERROR(IF($Y52="CY 2022",INDEX('6. CY 2022'!AU:AU,MATCH($C52,'6. CY 2022'!A:A,0)),0),0) -> 0 | AW52: =IFERROR(IF(Y52="CY 2022",INDEX('6. CY 2022'!H:H,MATCH(C52,'6. CY 2022'!A:A,0)),0),0) -> 52792598.52 | AZ52: 106334533
A53: 51 | B53: CHAPMAN GLOBAL MEDICAL CENTER | C53: 106301140 | D53: CHAPMAN GLOBAL MEDICAL CENTER | F53: =IFERROR(INDEX('8. 2018 OSHPD (FEE) DAYS'!G:G,MATCH(C53,'8. 2018 OSHPD (FEE) DAYS'!A:A,0)),0) -> 2018-01-01 | G53: =IFERROR(INDEX('8. 2018 OSHPD (FEE) DAYS'!H:H,MATCH(C53,'8. 2018 OSHPD (FEE) DAYS'!A:A,0)),0) -> 2018-12-31 | H53: =IFERROR(INDEX('8. 2018 OSHPD (FEE) DAYS'!W:W,MATCH(C53,'8. 2018 OSHPD (FEE) DAYS'!A:A,0)),0) -> 2018-01-01 | I53: =IFERROR(INDEX('11. Hospital Statuses'!M:M,MATCH(C53,'11. Hospital Statuses'!A:A,0)),"") -> Open | J53: Orange | K53: 13 | L53: 1015 | M53: Investor | N53: Comparable | P53: https://chapmanglobalmedicalcenter.com/ | Q53: HTTPS.https://chapmanglobalmedicalcenter.com/ | R53: KPC HEALTHCARE INC. | S53: 714-633-0011 | T53: 2601 EAST CHAPMAN AVENUE | U53: ORANGE | V53: 92869-3206 | W53: PETER BARONOFF | X53: =IFERROR(IF(INDEX(#REF!,MATCH(C53,#REF!,0)),"Yes","No"),"") ->  | Y53: CY 2022 | Z53: =IFERROR(IF($Y53="CY 2022",INDEX('6. CY 2022'!R:R,MATCH($C53,'6. CY 2022'!$A:$A,0)),0),0) -> 0 | AA53: =IFERROR(IF($Y53="CY 2022",INDEX('6. CY 2022'!S:S,MATCH($C53,'6. CY 2022'!$A:$A,0)),0),0) -> 905049.25 | AB53: =IFERROR(IF($Y53="CY 2022",INDEX('6. CY 2022'!T:T,MATCH($C53,'6. CY 2022'!$A:$A,0)),0),0) -> 1381994.64 | AC53: =IFERROR(IF($Y53="CY 2022",INDEX('6. CY 2022'!U:U,MATCH($C53,'6. CY 2022'!$A:$A,0)),0),0) -> 0 | AD53: =IFERROR(IF($Y53="CY 2022",INDEX('6. CY 2022'!V:V,MATCH($C53,'6. CY 2022'!$A:$A,0)),0),0) -> 362227.75 | AE53: =IFERROR(IF($Y53="CY 2022",INDEX('6. CY 2022'!W:W,MATCH($C53,'6. CY 2022'!$A:$A,0)),0),0) -> 167910.25 | AF53: =IFERROR(IF($Y53="CY 2022",INDEX('6. CY 2022'!X:X,MATCH($C53,'6. CY 2022'!$A:$A,0)),0),0) -> 2817181.89 | AG53: =IFERROR(IF(Y53="CY 2022",AF53/'4. Calculated Fee'!$D$35*'4. Calculated Fee'!$D$26,0),0) -> 828104.3936 | AH53: =IFERROR(IF($Y53="CY 2022",INDEX('6. CY 2022'!X:X,MATCH($C53,'6. CY 2022'!$A:$A,0)),0),0) -> 2817181.89 | AI53: =IFERROR(IF(Y53="CY 2022",INDEX('6. CY 2022'!AG:AG,MATCH(C53,'6. CY 2022'!A:A,0)),0),0) -> 225888.7335 | AJ53: =IFERROR(IF($Y53="CY 2022",INDEX('6. CY 2022'!AH:AH,MATCH($C53,'6. CY 2022'!$A:$A,0)),0),0) -> 430025.0836 | AK53: =IFERROR(IF($Y53="CY 2022",INDEX('6. CY 2022'!AI:AI,MATCH($C53,'6. CY 2022'!$A:$A,0)),0),0) -> 37005.7415 | AL53: =IFERROR(IF($Y53="CY 2022",INDEX('6. CY 2022'!AJ:AJ,MATCH($C53,'6. CY 2022'!$A:$A,0)),0),0) -> 0 | AM53: =IFERROR(IF($Y53="CY 2022",INDEX('6. CY 2022'!AK:AK,MATCH($C53,'6. CY 2022'!$A:$A,0)),0),0) -> 222500 | AN53: =IFERROR(IF($Y53="CY 2022",INDEX('6. CY 2022'!AL:AL,MATCH($C53,'6. CY 2022'!$A:$A,0)),0),0) -> 0 | AO53: =IFERROR(IF($Y53="CY 2022",INDEX('6. CY 2022'!AM:AM,MATCH($C53,'6. CY 2022'!$A:$A,0)),0),0) -> 0 | AP53: =IFERROR(IF($Y53="CY 2022",INDEX('6. CY 2022'!AN:AN,MATCH($C53,'6. CY 2022'!$A:$A,0)),0),0) -> 0 | AQ53: =IFERROR(IF($Y53="CY 2022",INDEX('6. CY 2022'!AQ:AQ,MATCH($C53,'6. CY 2022'!$A:$A,0)),0),0) -> 915419.5586 | AR53: =IFERROR(IF($Y53="CY 2022",INDEX('6. CY 2022'!AS:AS,MATCH($C53,'6. CY 2022'!A:A,0)),0),0) -> 4033558.06 | AS53: =IFERROR(IF(Y53="CY 2022",INDEX('6. CY 2022'!AT:AT,MATCH(C53,'6. CY 2022'!A:A,0)),0),0) -> 1331375.29 | AT53: =IFERROR(IF($Y53="CY 2022",INDEX('6. CY 2022'!AU:AU,MATCH($C53,'6. CY 2022'!A:A,0)),0),0) -> 5364933.35 | AW53: =IFERROR(IF(Y53="CY 2022",INDEX('6. CY 2022'!H:H,MATCH(C53,'6. CY 2022'!A:A,0)),0),0) -> 54839622.8
A54: 52 | B54: CHILDREN'S HOSPITAL AND RESEARCH CENTER AT OAKLAND | C54: 106010776 | D54: CHILDREN'S HOSPITAL AND RESEARCH CENTER AT OAKLAND | F54: =IFERROR(INDEX('8. 2018 OSHPD (FEE) DAYS'!G:G,MATCH(C54,'8. 2018 OSHPD (FEE) DAYS'!A:A,0)),0) -> 2017-07-01 | G54: =IFERROR(INDEX('8. 2018 OSHPD (FEE) DAYS'!H:H,MATCH(C54,'8. 2018 OSHPD (FEE) DAYS'!A:A,0)),0) -> 2018-06-30 | H54: =IFERROR(INDEX('8. 2018 OSHPD (FEE) DAYS'!W:W,MATCH(C54,'8. 2018 OSHPD (FEE) DAYS'!A:A,0)),0) -> 2017-07-01 | I54: =IFERROR(INDEX('11. Hospital Statuses'!M:M,MATCH(C54,'11. Hospital Statuses'!A:A,0)),"") -> Open | J54: Alameda | K54: 5 | L54: 417 | M54: Non-Profit | N54: Comparable | P54: https://www.ucsfbenioffchildrens.org/ | Q54: HTTPS.https://www.ucsfbenioffchildrens.org/ | R54: CHILDREN'S HOSPITAL & RESEARCH CENTER OAKLAND | S54: 510-428-3000 | T54: 747 52ND STREET | U54: OAKLAND | V54: 94609 | W54: MATTHEW COOK | X54: =IFERROR(IF(INDEX(#REF!,MATCH(C54,#REF!,0)),"Yes","No"),"") ->  | Y54: CY 2022 | Z54: =IFERROR(IF($Y54="CY 2022",INDEX('6. CY 2022'!R:R,MATCH($C54,'6. CY 2022'!$A:$A,0)),0),0) -> 0 | AA54: =IFERROR(IF($Y54="CY 2022",INDEX('6. CY 2022'!S:S,MATCH($C54,'6. CY 2022'!$A:$A,0)),0),0) -> 3221148.75 | AB54: =IFERROR(IF($Y54="CY 2022",INDEX('6. CY 2022'!T:T,MATCH($C54,'6. CY 2022'!$A:$A,0)),0),0) -> 250887.78 | AC54: =IFERROR(IF($Y54="CY 2022",INDEX('6. CY 2022'!U:U,MATCH($C54,'6. CY 2022'!$A:$A,0)),0),0) -> 0 | AD54: =IFERROR(IF($Y54="CY 2022",INDEX('6. CY 2022'!V:V,MATCH($C54,'6. CY 2022'!$A:$A,0)),0),0) -> 3362191 | AE54: =IFERROR(IF($Y54="CY 2022",INDEX('6. CY 2022'!W:W,MATCH($C54,'6. CY 2022'!$A:$A,0)),0),0) -> 12785095 | AF54: =IFERROR(IF($Y54="CY 2022",INDEX('6. CY 2022'!X:X,MATCH($C54,'6. CY 2022'!$A:$A,0)),0),0) -> 19619322.53 | AG54: =IFERROR(IF(Y54="CY 2022",AF54/'4. Calculated Fee'!$D$35*'4. Calculated Fee'!$D$26,0),0) -> 5767056.52 | AH54: =IFERROR(IF($Y54="CY 2022",INDEX('6. CY 2022'!X:X,MATCH($C54,'6. CY 2022'!$A:$A,0)),0),0) -> 19619322.53 | AI54: =IFERROR(IF(Y54="CY 2022",INDEX('6. CY 2022'!AG:AG,MATCH(C54,'6. CY 2022'!A:A,0)),0),0) -> 51392393.69 | AJ54: =IFERROR(IF($Y54="CY 2022",INDEX('6. CY 2022'!AH:AH,MATCH($C54,'6. CY 2022'!$A:$A,0)),0),0) -> 11644868.85 | AK54: =IFERROR(IF($Y54="CY 2022",INDEX('6. CY 2022'!AI:AI,MATCH($C54,'6. CY 2022'!$A:$A,0)),0),0) -> 0 | AL54: =IFERROR(IF($Y54="CY 2022",INDEX('6. CY 2022'!AJ:AJ,MATCH($C54,'6. CY 2022'!$A:$A,0)),0),0) -> 0 | AM54: =IFERROR(IF($Y54="CY 2022",INDEX('6. CY 2022'!AK:AK,MATCH($C54,'6. CY 2022'!$A:$A,0)),0),0) -> 0 | AN54: =IFERROR(IF($Y54="CY 2022",INDEX('6. CY 2022'!AL:AL,MATCH($C54,'6. CY 2022'!$A:$A,0)),0),0) -> 0 | AO54: =IFERROR(IF($Y54="CY 2022",INDEX('6. CY 2022'!AM:AM,MATCH($C54,'6. CY 2022'!$A:$A,0)),0),0) -> 0 | AP54: =IFERROR(IF($Y54="CY 2022",INDEX('6. CY 2022'!AN:AN,MATCH($C54,'6. CY 2022'!$A:$A,0)),0),0) -> 0 | AQ54: =IFERROR(IF($Y54="CY 2022",INDEX('6. CY 2022'!AQ:AQ,MATCH($C54,'6. CY 2022'!$A:$A,0)),0),0) -> 63037262.55 | AR54: =IFERROR(IF($Y54="CY 2022",INDEX('6. CY 2022'!AS:AS,MATCH($C54,'6. CY 2022'!A:A,0)),0),0) -> 26664441.37 | AS54: =IFERROR(IF(Y54="CY 2022",INDEX('6. CY 2022'!AT:AT,MATCH(C54,'6. CY 2022'!A:A,0)),0),0) -> 18028555.39 | AT54: =IFERROR(IF($Y54="CY 2022",INDEX('6. CY 2022'!AU:AU,MATCH($C54,'6. CY 2022'!A:A,0)),0),0) -> 44692996.76 | AW54: =IFERROR(IF(Y54="CY 2022",INDEX('6. CY 2022'!H:H,MATCH(C54,'6. CY 2022'!A:A,0)),0),0) -> 681855622.7
A55: 53 | B55: CHILDREN'S HOSPITAL AT MISSION | C55: 106304113 | D55: CHILDREN'S HOSPITAL AT MISSION | F55: =IFERROR(INDEX('8. 2018 OSHPD (FEE) DAYS'!G:G,MATCH(C55,'8. 2018 OSHPD (FEE) DAYS'!A:A,0)),0) -> 2017-07-01 | G55: =IFERROR(INDEX('8. 2018 OSHPD (FEE) DAYS'!H:H,MATCH(C55,'8. 2018 OSHPD (FEE) DAYS'!A:A,0)),0) -> 2018-06-30 | H55: =IFERROR(INDEX('8. 2018 OSHPD (FEE) DAYS'!W:W,MATCH(C55,'8. 2018 OSHPD (FEE) DAYS'!A:A,0)),0) -> 2017-07-01 | I55: =IFERROR(INDEX('11. Hospital Statuses'!M:M,MATCH(C55,'11. Hospital Statuses'!A:A,0)),"") -> Open | J55: Orange | K55: 13 | L55: 1017 | M55: Non-Profit | N55: Comparable | P55: https://www.choc.org/choc-childrens-mission-hospital/ | Q55: HTTPS.https://www.choc.org/choc-childrens-mission-hospital/ | R55: CHILDREN'S HOSPITAL AT MISSION | S55: 714-509-8471 | T55: 27700 MEDICAL CENTER ROAD | U55: MISSION VIEJO | V55: 92691 | W55: KIMBERLY CRIPE | X55: =IFERROR(IF(INDEX(#REF!,MATCH(C55,#REF!,0)),"Yes","No"),"") ->  | Y55: CY 2022 | Z55: =IFERROR(IF($Y55="CY 2022",INDEX('6. CY 2022'!R:R,MATCH($C55,'6. CY 2022'!$A:$A,0)),0),0) -> 0 | AA55: =IFERROR(IF($Y55="CY 2022",INDEX('6. CY 2022'!S:S,MATCH($C55,'6. CY 2022'!$A:$A,0)),0),0) -> 1057519.75 | AB55: =IFERROR(IF($Y55="CY 2022",INDEX('6. CY 2022'!T:T,MATCH($C55,'6. CY 2022'!$A:$A,0)),0),0) -> 50402.82 | AC55: =IFERROR(IF($Y55="CY 2022",INDEX('6. CY 2022'!U:U,MATCH($C55,'6. CY 2022'!$A:$A,0)),0),0) -> 0 | AD55: =IFERROR(IF($Y55="CY 2022",INDEX('6. CY 2022'!V:V,MATCH($C55,'6. CY 2022'!$A:$A,0)),0),0) -> 663669 | AE55: =IFERROR(IF($Y55="CY 2022",INDEX('6. CY 2022'!W:W,MATCH($C55,'6. CY 2022'!$A:$A,0)),0),0) -> 896850 | AF55: =IFERROR(IF($Y55="CY 2022",INDEX('6. CY 2022'!X:X,MATCH($C55,'6. CY 2022'!$A:$A,0)),0),0) -> 2668441.57 | AG55: =IFERROR(IF(Y55="CY 2022",AF55/'4. Calculated Fee'!$D$35*'4. Calculated Fee'!$D$26,0),0) -> 784382.5051 | AH55: =IFERROR(IF($Y55="CY 2022",INDEX('6. CY 2022'!X:X,MATCH($C55,'6. CY 2022'!$A:$A,0)),0),0) -> 2668441.57 | AI55: =IFERROR(IF(Y55="CY 2022",INDEX('6. CY 2022'!AG:AG,MATCH(C55,'6. CY 2022'!A:A,0)),0),0) -> 368535.5733 | AJ55: =IFERROR(IF($Y55="CY 2022",INDEX('6. CY 2022'!AH:AH,MATCH($C55,'6. CY 2022'!$A:$A,0)),0),0) -> 973145.4491 | AK55: =IFERROR(IF($Y55="CY 2022",INDEX('6. CY 2022'!AI:AI,MATCH($C55,'6. CY 2022'!$A:$A,0)),0),0) -> 0 | AL55: =IFERROR(IF($Y55="CY 2022",INDEX('6. CY 2022'!AJ:AJ,MATCH($C55,'6. CY 2022'!$A:$A,0)),0),0) -> 0 | AM55: =IFERROR(IF($Y55="CY 2022",INDEX('6. CY 2022'!AK:AK,MATCH($C55,'6. CY 2022'!$A:$A,0)),0),0) -> 517500 | AN55: =IFERROR(IF($Y55="CY 2022",INDEX('6. CY 2022'!AL:AL,MATCH($C55,'6. CY 2022'!$A:$A,0)),0),0) -> 0 | AO55: =IFERROR(IF($Y55="CY 2022",INDEX('6. CY 2022'!AM:AM,MATCH($C55,'6. CY 2022'!$A:$A,0)),0),0) -> 0 | AP55: =IFERROR(IF($Y55="CY 2022",INDEX('6. CY 2022'!AN:AN,MATCH($C55,'6. CY 2022'!$A:$A,0)),0),0) -> 0 | AQ55: =IFERROR(IF($Y55="CY 2022",INDEX('6. CY 2022'!AQ:AQ,MATCH($C55,'6. CY 2022'!$A:$A,0)),0),0) -> 1859181.022 | AR55: =IFERROR(IF($Y55="CY 2022",INDEX('6. CY 2022'!AS:AS,MATCH($C55,'6. CY 2022'!A:A,0)),0),0) -> 1642443.27 | AS55: =IFERROR(IF(Y55="CY 2022",INDEX('6. CY 2022'!AT:AT,MATCH(C55,'6. CY 2022'!A:A,0)),0),0) -> 3448082.15 | AT55: =IFERROR(IF($Y55="CY 2022",INDEX('6. CY 2022'!AU:AU,MATCH($C55,'6. CY 2022'!A:A,0)),0),0) -> 5090525.42 | AW55: =IFERROR(IF(Y55="CY 2022",INDEX('6. CY 2022'!H:H,MATCH(C55,'6. CY 2022'!A:A,0)),0),0) -> 75676276.67
A56: 54 | B56: CHILDREN'S HOSPITAL LOS ANGELES | C56: 106190170 | D56: CHILDREN'S HOSPITAL LOS ANGELES | F56: =IFERROR(INDEX('8. 2018 OSHPD (FEE) DAYS'!G:G,MATCH(C56,'8. 2018 OSHPD (FEE) DAYS'!A:A,0)),0) -> 2017-07-01 | G56: =IFERROR(INDEX('8. 2018 OSHPD (FEE) DAYS'!H:H,MATCH(C56,'8. 2018 OSHPD (FEE) DAYS'!A:A,0)),0) -> 2018-06-30 | H56: =IFERROR(INDEX('8. 2018 OSHPD (FEE) DAYS'!W:W,MATCH(C56,'8. 2018 OSHPD (FEE) DAYS'!A:A,0)),0) -> 2017-07-01 | I56: =IFERROR(INDEX('11. Hospital Statuses'!M:M,MATCH(C56,'11. Hospital Statuses'!A:A,0)),"") -> Open | J56: Los Angeles | K56: 11 | L56: 925 | M56: Non-Profit | N56: Comparable | O56: Teaching | P56: https://www.chla.org/ | R56: CHILDREN'S HOSPITAL LOS ANGELES | S56: 323-660-2450 | T56: 4650 SUNSET BOULEVARD, MS 21 | U56: LOS ANGELES | V56: 90027 | W56: PAUL VIVIANO | X56: =IFERROR(IF(INDEX(#REF!,MATCH(C56,#REF!,0)),"Yes","No"),"") ->  | Y56: CY 2022 | Z56: =IFERROR(IF($Y56="CY 2022",INDEX('6. CY 2022'!R:R,MATCH($C56,'6. CY 2022'!$A:$A,0)),0),0) -> 0 | AA56: =IFERROR(IF($Y56="CY 2022",INDEX('6. CY 2022'!S:S,MATCH($C56,'6. CY 2022'!$A:$A,0)),0),0) -> 8247648.75 | AB56: =IFERROR(IF($Y56="CY 2022",INDEX('6. CY 2022'!T:T,MATCH($C56,'6. CY 2022'!$A:$A,0)),0),0) -> 995948.46 | AC56: =IFERROR(IF($Y56="CY 2022",INDEX('6. CY 2022'!U:U,MATCH($C56,'6. CY 2022'!$A:$A,0)),0),0) -> 0 | AD56: =IFERROR(IF($Y56="CY 2022",INDEX('6. CY 2022'!V:V,MATCH($C56,'6. CY 2022'!$A:$A,0)),0),0) -> 6458316.5 | AE56: =IFERROR(IF($Y56="CY 2022",INDEX('6. CY 2022'!W:W,MATCH($C56,'6. CY 2022'!$A:$A,0)),0),0) -> 34321951.25 | AF56: =IFERROR(IF($Y56="CY 2022",INDEX('6. CY 2022'!X:X,MATCH($C56,'6. CY 2022'!$A:$A,0)),0),0) -> 50023864.96 | AG56: =IFERROR(IF(Y56="CY 2022",AF56/'4. Calculated Fee'!$D$35*'4. Calculated Fee'!$D$26,0),0) -> 14704404.6 | AH56: =IFERROR(IF($Y56="CY 2022",INDEX('6. CY 2022'!X:X,MATCH($C56,'6. CY 2022'!$A:$A,0)),0),0) -> 50023864.96 | AI56: =IFERROR(IF(Y56="CY 2022",INDEX('6. CY 2022'!AG:AG,MATCH(C56,'6. CY 2022'!A:A,0)),0),0) -> 151863457.1 | AJ56: =IFERROR(IF($Y56="CY 2022",INDEX('6. CY 2022'!AH:AH,MATCH($C56,'6. CY 2022'!$A:$A,0)),0),0) -> 31006518.11 | AK56: =IFERROR(IF($Y56="CY 2022",INDEX('6. CY 2022'!AI:AI,MATCH($C56,'6. CY 2022'!$A:$A,0)),0),0) -> 0 | AL56: =IFERROR(IF($Y56="CY 2022",INDEX('6. CY 2022'!AJ:AJ,MATCH($C56,'6. CY 2022'!$A:$A,0)),0),0) -> 0 | AM56: =IFERROR(IF($Y56="CY 2022",INDEX('6. CY 2022'!AK:AK,MATCH($C56,'6. CY 2022'!$A:$A,0)),0),0) -> 0 | AN56: =IFERROR(IF($Y56="CY 2022",INDEX('6. CY 2022'!AL:AL,MATCH($C56,'6. CY 2022'!$A:$A,0)),0),0) -> 0 | AO56: =IFERROR(IF($Y56="CY 2022",INDEX('6. CY 2022'!AM:AM,MATCH($C56,'6. CY 2022'!$A:$A,0)),0),0) -> 0 | AP56: =IFERROR(IF($Y56="CY 2022",INDEX('6. CY 2022'!AN:AN,MATCH($C56,'6. CY 2022'!$A:$A,0)),0),0) -> 0 | AQ56: =IFERROR(IF($Y56="CY 2022",INDEX('6. CY 2022'!AQ:AQ,MATCH($C56,'6. CY 2022'!$A:$A,0)),0),0) -> 182869975.3 | AR56: =IFERROR(IF($Y56="CY 2022",INDEX('6. CY 2022'!AS:AS,MATCH($C56,'6. CY 2022'!A:A,0)),0),0) -> 69887006.96 | AS56: =IFERROR(IF(Y56="CY 2022",INDEX('6. CY 2022'!AT:AT,MATCH(C56,'6. CY 2022'!A:A,0)),0),0) -> 36110286.61 | AT56: =IFERROR(IF($Y56="CY 2022",INDEX('6. CY 2022'!AU:AU,MATCH($C56,'6. CY 2022'!A:A,0)),0),0) -> 105997293.6 | AW56: =IFERROR(IF(Y56="CY 2022",INDEX('6. CY 2022'!H:H,MATCH(C56,'6. CY 2022'!A:A,0)),0),0) -> 1273401868
A57: 55 | B57: CHILDREN'S HOSPITAL OF ORANGE COUNTY | C57: 106300032 | D57: CHILDREN'S HOSPITAL OF ORANGE COUNTY | F57: =IFERROR(INDEX('8. 2018 OSHPD (FEE) DAYS'!G:G,MATCH(C57,'8. 2018 OSHPD (FEE) DAYS'!A:A,0)),0) -> 2017-07-01 | G57: =IFERROR(INDEX('8. 2018 OSHPD (FEE) DAYS'!H:H,MATCH(C57,'8. 2018 OSHPD (FEE) DAYS'!A:A,0)),0) -> 2018-06-30 | H57: =IFERROR(INDEX('8. 2018 OSHPD (FEE) DAYS'!W:W,MATCH(C57,'8. 2018 OSHPD (FEE) DAYS'!A:A,0)),0) -> 2017-07-01 | I57: =IFERROR(INDEX('11. Hospital Statuses'!M:M,MATCH(C57,'11. Hospital Statuses'!A:A,0)),"") -> Open | J57: Orange | K57: 13 | L57: 1015 | M57: Non-Profit | N57: Comparable | P57: https://www.choc.org/choc-childrens-mission-hospital/ | R57: CHILDREN'S HOSPITAL OF ORANGE COUNTY | S57: 714-997-3000 | T57: 1201 W. LA VETA AVE | U57: ORANGE | V57: 92868 | W57: KIMBERLY CRIPE | X57: =IFERROR(IF(INDEX(#REF!,MATCH(C57,#REF!,0)),"Yes","No"),"") ->  | Y57: CY 2022 | Z57: =IFERROR(IF($Y57="CY 2022",INDEX('6. CY 2022'!R:R,MATCH($C57,'6. CY 2022'!$A:$A,0)),0),0) -> 0 | AA57: =IFERROR(IF($Y57="CY 2022",INDEX('6. CY 2022'!S:S,MATCH($C57,'6. CY 2022'!$A:$A,0)),0),0) -> 6506525 | AB57: =IFERROR(IF($Y57="CY 2022",INDEX('6. CY 2022'!T:T,MATCH($C57,'6. CY 2022'!$A:$A,0)),0),0) -> 421243.68 | AC57: =IFERROR(IF($Y57="CY 2022",INDEX('6. CY 2022'!U:U,MATCH($C57,'6. CY 2022'!$A:$A,0)),0),0) -> 0 | AD57: =IFERROR(IF($Y57="CY 2022",INDEX('6. CY 2022'!V:V,MATCH($C57,'6. CY 2022'!$A:$A,0)),0),0) -> 3694523.75 | AE57: =IFERROR(IF($Y57="CY 2022",INDEX('6. CY 2022'!W:W,MATCH($C57,'6. CY 2022'!$A:$A,0)),0),0) -> 16624609.5 | AF57: =IFERROR(IF($Y57="CY 2022",INDEX('6. CY 2022'!X:X,MATCH($C57,'6. CY 2022'!$A:$A,0)),0),0) -> 27246901.93 | AG57: =IFERROR(IF(Y57="CY 2022",AF57/'4. Calculated Fee'!$D$35*'4. Calculated Fee'!$D$26,0),0) -> 8009166.635 | AH57: =IFERROR(IF($Y57="CY 2022",INDEX('6. CY 2022'!X:X,MATCH($C57,'6. CY 2022'!$A:$A,0)),0),0) -> 27246901.93 | AI57: =IFERROR(IF(Y57="CY 2022",INDEX('6. CY 2022'!AG:AG,MATCH(C57,'6. CY 2022'!A:A,0)),0),0) -> 48449252.82 | AJ57: =IFERROR(IF($Y57="CY 2022",INDEX('6. CY 2022'!AH:AH,MATCH($C57,'6. CY 2022'!$A:$A,0)),0),0) -> 11794785.86 | AK57: =IFERROR(IF($Y57="CY 2022",INDEX('6. CY 2022'!AI:AI,MATCH($C57,'6. CY 2022'!$A:$A,0)),0),0) -> 0 | AL57: =IFERROR(IF($Y57="CY 2022",INDEX('6. CY 2022'!AJ:AJ,MATCH($C57,'6. CY 2022'!$A:$A,0)),0),0) -> 154050 | AM57: =IFERROR(IF($Y57="CY 2022",INDEX('6. CY 2022'!AK:AK,MATCH($C57,'6. CY 2022'!$A:$A,0)),0),0) -> 0 | AN57: =IFERROR(IF($Y57="CY 2022",INDEX('6. CY 2022'!AL:AL,MATCH($C57,'6. CY 2022'!$A:$A,0)),0),0) -> 0 | AO57: =IFERROR(IF($Y57="CY 2022",INDEX('6. CY 2022'!AM:AM,MATCH($C57,'6. CY 2022'!$A:$A,0)),0),0) -> 0 | AP57: =IFERROR(IF($Y57="CY 2022",INDEX('6. CY 2022'!AN:AN,MATCH($C57,'6. CY 2022'!$A:$A,0)),0),0) -> 0 | AQ57: =IFERROR(IF($Y57="CY 2022",INDEX('6. CY 2022'!AQ:AQ,MATCH($C57,'6. CY 2022'!$A:$A,0)),0),0) -> 60398088.68 | AR57: =IFERROR(IF($Y57="CY 2022",INDEX('6. CY 2022'!AS:AS,MATCH($C57,'6. CY 2022'!A:A,0)),0),0) -> 38356013.74 | AS57: =IFERROR(IF(Y57="CY 2022",INDEX('6. CY 2022'!AT:AT,MATCH(C57,'6. CY 2022'!A:A,0)),0),0) -> 38782621.42 | AT57: =IFERROR(IF($Y57="CY 2022",INDEX('6. CY 2022'!AU:AU,MATCH($C57,'6. CY 2022'!A:A,0)),0),0) -> 77138635.16 | AW57: =IFERROR(IF(Y57="CY 2022",INDEX('6. CY 2022'!H:H,MATCH(C57,'6. CY 2022'!A:A,0)),0),0) -> 875000383.1
A58: 56 | B58: CHINESE HOSPITAL | C58: 106382715 | D58: CHINESE HOSPITAL | F58: =IFERROR(INDEX('8. 2018 OSHPD (FEE) DAYS'!G:G,MATCH(C58,'8. 2018 OSHPD (FEE) DAYS'!A:A,0)),0) -> 2018-01-01 | G58: =IFERROR(INDEX('8. 2018 OSHPD (FEE) DAYS'!H:H,MATCH(C58,'8. 2018 OSHPD (FEE) DAYS'!A:A,0)),0) -> 2018-12-31 | H58: =IFERROR(INDEX('8. 2018 OSHPD (FEE) DAYS'!W:W,MATCH(C58,'8. 2018 OSHPD (FEE) DAYS'!A:A,0)),0) -> 2018-01-01 | I58: =IFERROR(INDEX('11. Hospital Statuses'!M:M,MATCH(C58,'11. Hospital Statuses'!A:A,0)),"") -> Open | J58: San Francisco | K58: 4 | L58: 423 | M58: Non-Profit | N58: Comparable | P58: https://www.chinesehospital-sf.org/ | R58: CHINESE HOSPITAL ASSOCIATION | S58: 415-982-2400 | T58: 845 JACKSON STREET | U58: SAN FRANCISCO | V58: 94133 | W58: JIAN ZHANG | X58: =IFERROR(IF(INDEX(#REF!,MATCH(C58,#REF!,0)),"Yes","No"),"") ->  | Y58: CY 2022 | Z58: =IFERROR(IF($Y58="CY 2022",INDEX('6. CY 2022'!R:R,MATCH($C58,'6. CY 2022'!$A:$A,0)),0),0) -> 0 | AA58: =IFERROR(IF($Y58="CY 2022",INDEX('6. CY 2022'!S:S,MATCH($C58,'6. CY 2022'!$A:$A,0)),0),0) -> 549564 | AB58: =IFERROR(IF($Y58="CY 2022",INDEX('6. CY 2022'!T:T,MATCH($C58,'6. CY 2022'!$A:$A,0)),0),0) -> 865295.34 | AC58: =IFERROR(IF($Y58="CY 2022",INDEX('6. CY 2022'!U:U,MATCH($C58,'6. CY 2022'!$A:$A,0)),0),0) -> 0 | AD58: =IFERROR(IF($Y58="CY 2022",INDEX('6. CY 2022'!V:V,MATCH($C58,'6. CY 2022'!$A:$A,0)),0),0) -> 118583.5 | AE58: =IFERROR(IF($Y58="CY 2022",INDEX('6. CY 2022'!W:W,MATCH($C58,'6. CY 2022'!$A:$A,0)),0),0) -> 38863.5 | AF58: =IFERROR(IF($Y58="CY 2022",INDEX('6. CY 2022'!X:X,MATCH($C58,'6. CY 2022'!$A:$A,0)),0),0) -> 1572306.34 | AG58: =IFERROR(IF(Y58="CY 2022",AF58/'4. Calculated Fee'!$D$35*'4. Calculated Fee'!$D$26,0),0) -> 462175.9755 | AH58: =IFERROR(IF($Y58="CY 2022",INDEX('6. CY 2022'!X:X,MATCH($C58,'6. CY 2022'!$A:$A,0)),0),0) -> 1572306.34 | AI58: =IFERROR(IF(Y58="CY 2022",INDEX('6. CY 2022'!AG:AG,MATCH(C58,'6. CY 2022'!A:A,0)),0),0) -> 26836.65563 | AJ58: =IFERROR(IF($Y58="CY 2022",INDEX('6. CY 2022'!AH:AH,MATCH($C58,'6. CY 2022'!$A:$A,0)),0),0) -> 1315.061418 | AK58: =IFERROR(IF($Y58="CY 2022",INDEX('6. CY 2022'!AI:AI,MATCH($C58,'6. CY 2022'!$A:$A,0)),0),0) -> 0 | AL58: =IFERROR(IF($Y58="CY 2022",INDEX('6. CY 2022'!AJ:AJ,MATCH($C58,'6. CY 2022'!$A:$A,0)),0),0) -> 0 | AM58: =IFERROR(IF($Y58="CY 2022",INDEX('6. CY 2022'!AK:AK,MATCH($C58,'6. CY 2022'!$A:$A,0)),0),0) -> 2500 | AN58: =IFERROR(IF($Y58="CY 2022",INDEX('6. CY 2022'!AL:AL,MATCH($C58,'6. CY 2022'!$A:$A,0)),0),0) -> 0 | AO58: =IFERROR(IF($Y58="CY 2022",INDEX('6. CY 2022'!AM:AM,MATCH($C58,'6. CY 2022'!$A:$A,0)),0),0) -> 0 | AP58: =IFERROR(IF($Y58="CY 2022",INDEX('6. CY 2022'!AN:AN,MATCH($C58,'6. CY 2022'!$A:$A,0)),0),0) -> 0 | AQ58: =IFERROR(IF($Y58="CY 2022",INDEX('6. CY 2022'!AQ:AQ,MATCH($C58,'6. CY 2022'!$A:$A,0)),0),0) -> 30651.71704 | AR58: =IFERROR(IF($Y58="CY 2022",INDEX('6. CY 2022'!AS:AS,MATCH($C58,'6. CY 2022'!A:A,0)),0),0) -> 218870.76 | AS58: =IFERROR(IF(Y58="CY 2022",INDEX('6. CY 2022'!AT:AT,MATCH(C58,'6. CY 2022'!A:A,0)),0),0) -> 449186.78 | AT58: =IFERROR(IF($Y58="CY 2022",INDEX('6. CY 2022'!AU:AU,MATCH($C58,'6. CY 2022'!A:A,0)),0),0) -> 668057.54 | AW58: =IFERROR(IF(Y58="CY 2022",INDEX('6. CY 2022'!H:H,MATCH(C58,'6. CY 2022'!A:A,0)),0),0) -> 112677413.5
A59: 57 | B59: CHINO VALLEY MEDICAL CENTER | C59: 106361144 | D59: CHINO VALLEY MEDICAL CENTER | F59: =IFERROR(INDEX('8. 2018 OSHPD (FEE) DAYS'!G:G,MATCH(C59,'8. 2018 OSHPD (FEE) DAYS'!A:A,0)),0) -> 2018-01-01 | G59: =IFERROR(INDEX('8. 2018 OSHPD (FEE) DAYS'!H:H,MATCH(C59,'8. 2018 OSHPD (FEE) DAYS'!A:A,0)),0) -> 2018-12-31 | H59: =IFERROR(INDEX('8. 2018 OSHPD (FEE) DAYS'!W:W,MATCH(C59,'8. 2018 OSHPD (FEE) DAYS'!A:A,0)),0) -> 2018-01-01 | I59: =IFERROR(INDEX('11. Hospital Statuses'!M:M,MATCH(C59,'11. Hospital Statuses'!A:A,0)),"") -> Open | J59: San Bernardino | K59: 12 | L59: 1207 | M59: Investor | N59: Comparable | P59: https://www.cvmc.com/ | R59: VERITAS HEALTH SERVICES INCORPORATED | S59: 909-464-8600 | T59: 5451 WALNUT AVENUE | U59: CHINO | V59: 91710 | W59: TIMOTHY MORAN | X59: =IFERROR(IF(INDEX(#REF!,MATCH(C59,#REF!,0)),"Yes","No"),"") ->  | Y59: CY 2022 | Z59: =IFERROR(IF($Y59="CY 2022",INDEX('6. CY 2022'!R:R,MATCH($C59,'6. CY 2022'!$A:$A,0)),0),0) -> 0 | AA59: =IFERROR(IF($Y59="CY 2022",INDEX('6. CY 2022'!S:S,MATCH($C59,'6. CY 2022'!$A:$A,0)),0),0) -> 1071482.25 | AB59: =IFERROR(IF($Y59="CY 2022",INDEX('6. CY 2022'!T:T,MATCH($C59,'6. CY 2022'!$A:$A,0)),0),0) -> 1311881.22 | AC59: =IFERROR(IF($Y59="CY 2022",INDEX('6. CY 2022'!U:U,MATCH($C59,'6. CY 2022'!$A:$A,0)),0),0) -> 0 | AD59: =IFERROR(IF($Y59="CY 2022",INDEX('6. CY 2022'!V:V,MATCH($C59,'6. CY 2022'!$A:$A,0)),0),0) -> 2174363 | AE59: =IFERROR(IF($Y59="CY 2022",INDEX('6. CY 2022'!W:W,MATCH($C59,'6. CY 2022'!$A:$A,0)),0),0) -> 1104122 | AF59: =IFERROR(IF($Y59="CY 2022",INDEX('6. CY 2022'!X:X,MATCH($C59,'6. CY 2022'!$A:$A,0)),0),0) -> 5661848.47 | AG59: =IFERROR(IF(Y59="CY 2022",AF59/'4. Calculated Fee'!$D$35*'4. Calculated Fee'!$D$26,0),0) -> 1664287.851 | AH59: =IFERROR(IF($Y59="CY 2022",INDEX('6. CY 2022'!X:X,MATCH($C59,'6. CY 2022'!$A:$A,0)),0),0) -> 5661848.47 | AI59: =IFERROR(IF(Y59="CY 2022",INDEX('6. CY 2022'!AG:AG,MATCH(C59,'6. CY 2022'!A:A,0)),0),0) -> 2081147.239 | AJ59: =IFERROR(IF($Y59="CY 2022",INDEX('6. CY 2022'!AH:AH,MATCH($C59,'6. CY 2022'!$A:$A,0)),0),0) -> 2710341.582 | AK59: =IFERROR(IF($Y59="CY 2022",INDEX('6. CY 2022'!AI:AI,MATCH($C59,'6. CY 2022'!$A:$A,0)),0),0) -> 0 | AL59: =IFERROR(IF($Y59="CY 2022",INDEX('6. CY 2022'!AJ:AJ,MATCH($C59,'6. CY 2022'!$A:$A,0)),0),0) -> 0 | AM59: =IFERROR(IF($Y59="CY 2022",INDEX('6. CY 2022'!AK:AK,MATCH($C59,'6. CY 2022'!$A:$A,0)),0),0) -> 272500 | AN59: =IFERROR(IF($Y59="CY 2022",INDEX('6. CY 2022'!AL:AL,MATCH($C59,'6. CY 2022'!$A:$A,0)),0),0) -> 0 | AO59: =IFERROR(IF($Y59="CY 2022",INDEX('6. CY 2022'!AM:AM,MATCH($C59,'6. CY 2022'!$A:$A,0)),0),0) -> 0 | AP59: =IFERROR(IF($Y59="CY 2022",INDEX('6. CY 2022'!AN:AN,MATCH($C59,'6. CY 2022'!$A:$A,0)),0),0) -> 0 | AQ59: =IFERROR(IF($Y59="CY 2022",INDEX('6. CY 2022'!AQ:AQ,MATCH($C59,'6. CY 2022'!$A:$A,0)),0),0) -> 5063988.821 | AR59: =IFERROR(IF($Y59="CY 2022",INDEX('6. CY 2022'!AS:AS,MATCH($C59,'6. CY 2022'!A:A,0)),0),0) -> 1846121.61 | AS59: =IFERROR(IF(Y59="CY 2022",INDEX('6. CY 2022'!AT:AT,MATCH(C59,'6. CY 2022'!A:A,0)),0),0) -> 7513841.12 | AT59: =IFERROR(IF($Y59="CY 2022",INDEX('6. CY 2022'!AU:AU,MATCH($C59,'6. CY 2022'!A:A,0)),0),0) -> 9359962.73 | AW59: =IFERROR(IF(Y59="CY 2022",INDEX('6. CY 2022'!H:H,MATCH(C59,'6. CY 2022'!A:A,0)),0),0) -> 100579574.6
A60: 58 | B60: CITY OF HOPE HELFORD CLINICAL RESEARCH HOSPITAL | C60: 106190176 | D60: CITY OF HOPE HELFORD CLINICAL RESEARCH HOSPITAL | F60: =IFERROR(INDEX('8. 2018 OSHPD (FEE) DAYS'!G:G,MATCH(C60,'8. 2018 OSHPD (FEE) DAYS'!A:A,0)),0) -> 2017-10-01 | G60: =IFERROR(INDEX('8. 2018 OSHPD (FEE) DAYS'!H:H,MATCH(C60,'8. 2018 OSHPD (FEE) DAYS'!A:A,0)),0) -> 2018-09-30 | H60: =IFERROR(INDEX('8. 2018 OSHPD (FEE) DAYS'!W:W,MATCH(C60,'8. 2018 OSHPD (FEE) DAYS'!A:A,0)),0) -> 2017-10-01 | I60: =IFERROR(INDEX('11. Hospital Statuses'!M:M,MATCH(C60,'11. Hospital Statuses'!A:A,0)),"") -> Open | J60: Los Angeles | K60: 11 | L60: 913 | M60: Non-Profit | N60: Comparable | P60: https://www.cityofhope.org/homepage | R60: CITY OF HOPE NATIONAL MEDICAL CENTER | S60: 626-256-4673 | T60: 1500 EAST DUARTE ROAD | U60: DUARTE | V60: 91010 | W60: ROBERT W. STONE | X60: =IFERROR(IF(INDEX(#REF!,MATCH(C60,#REF!,0)),"Yes","No"),"") ->  | Y60: CY 2022 | Z60: =IFERROR(IF($Y60="CY 2022",INDEX('6. CY 2022'!R:R,MATCH($C60,'6. CY 2022'!$A:$A,0)),0),0) -> 0 | AA60: =IFERROR(IF($Y60="CY 2022",INDEX('6. CY 2022'!S:S,MATCH($C60,'6. CY 2022'!$A:$A,0)),0),0) -> 884105.5 | AB60: =IFERROR(IF($Y60="CY 2022",INDEX('6. CY 2022'!T:T,MATCH($C60,'6. CY 2022'!$A:$A,0)),0),0) -> 15702027.12 | AC60: =IFERROR(IF($Y60="CY 2022",INDEX('6. CY 2022'!U:U,MATCH($C60,'6. CY 2022'!$A:$A,0)),0),0) -> 0 | AD60: =IFERROR(IF($Y60="CY 2022",INDEX('6. CY 2022'!V:V,MATCH($C60,'6. CY 2022'!$A:$A,0)),0),0) -> 2002466.75 | AE60: =IFERROR(IF($Y60="CY 2022",INDEX('6. CY 2022'!W:W,MATCH($C60,'6. CY 2022'!$A:$A,0)),0),0) -> 5866893.75 | AF60: =IFERROR(IF($Y60="CY 2022",INDEX('6. CY 2022'!X:X,MATCH($C60,'6. CY 2022'!$A:$A,0)),0),0) -> 24455493.12 | AG60: =IFERROR(IF(Y60="CY 2022",AF60/'4. Calculated Fee'!$D$35*'4. Calculated Fee'!$D$26,0),0) -> 7188638.182 | AH60: =IFERROR(IF($Y60="CY 2022",INDEX('6. CY 2022'!X:X,MATCH($C60,'6. CY 2022'!$A:$A,0)),0),0) -> 24455493.12 | AI60: =IFERROR(IF(Y60="CY 2022",INDEX('6. CY 2022'!AG:AG,MATCH(C60,'6. CY 2022'!A:A,0)),0),0) -> 50856761.13 | AJ60: =IFERROR(IF($Y60="CY 2022",INDEX('6. CY 2022'!AH:AH,MATCH($C60,'6. CY 2022'!$A:$A,0)),0),0) -> 13083546.04 | AK60: =IFERROR(IF($Y60="CY 2022",INDEX('6. CY 2022'!AI:AI,MATCH($C60,'6. CY 2022'!$A:$A,0)),0),0) -> 0 | AL60: =IFERROR(IF($Y60="CY 2022",INDEX('6. CY 2022'!AJ:AJ,MATCH($C60,'6. CY 2022'!$A:$A,0)),0),0) -> 0 | AM60: =IFERROR(IF($Y60="CY 2022",INDEX('6. CY 2022'!AK:AK,MATCH($C60,'6. CY 2022'!$A:$A,0)),0),0) -> 2502500 | AN60: =IFERROR(IF($Y60="CY 2022",INDEX('6. CY 2022'!AL:AL,MATCH($C60,'6. CY 2022'!$A:$A,0)),0),0) -> 0 | AO60: =IFERROR(IF($Y60="CY 2022",INDEX('6. CY 2022'!AM:AM,MATCH($C60,'6. CY 2022'!$A:$A,0)),0),0) -> 10077500 | AP60: =IFERROR(IF($Y60="CY 2022",INDEX('6. CY 2022'!AN:AN,MATCH($C60,'6. CY 2022'!$A:$A,0)),0),0) -> 0 | AQ60: =IFERROR(IF($Y60="CY 2022",INDEX('6. CY 2022'!AQ:AQ,MATCH($C60,'6. CY 2022'!$A:$A,0)),0),0) -> 76520307.17 | AR60: =IFERROR(IF($Y60="CY 2022",INDEX('6. CY 2022'!AS:AS,MATCH($C60,'6. CY 2022'!A:A,0)),0),0) -> 4345517.81 | AS60: =IFERROR(IF(Y60="CY 2022",INDEX('6. CY 2022'!AT:AT,MATCH(C60,'6. CY 2022'!A:A,0)),0),0) -> 4995824.96 | AT60: =IFERROR(IF($Y60="CY 2022",INDEX('6. CY 2022'!AU:AU,MATCH($C60,'6. CY 2022'!A:A,0)),0),0) -> 9341342.77 | AW60: =IFERROR(IF(Y60="CY 2022",INDEX('6. CY 2022'!H:H,MATCH(C60,'6. CY 2022'!A:A,0)),0),0) -> 1484005189
A61: 59 | B61: CLOVIS COMMUNITY MEDICAL CENTER | C61: 106100005 | D61: CLOVIS COMMUNITY MEDICAL CENTER | F61: =IFERROR(INDEX('8. 2018 OSHPD (FEE) DAYS'!G:G,MATCH(C61,'8. 2018 OSHPD (FEE) DAYS'!A:A,0)),0) -> 2017-09-01 | G61: =IFERROR(INDEX('8. 2018 OSHPD (FEE) DAYS'!H:H,MATCH(C61,'8. 2018 OSHPD (FEE) DAYS'!A:A,0)),0) -> 2018-08-31 | H61: =IFERROR(INDEX('8. 2018 OSHPD (FEE) DAYS'!W:W,MATCH(C61,'8. 2018 OSHPD (FEE) DAYS'!A:A,0)),0) -> 2017-09-01 | I61: =IFERROR(INDEX('11. Hospital Statuses'!M:M,MATCH(C61,'11. Hospital Statuses'!A:A,0)),"") -> Open | J61: Fresno | K61: 9 | L61: 605 | M61: Non-Profit | N61: Comparable | P61: https://www.communitymedical.org/home | R61: COMMUNITY MEDICAL CENTERS | S61: 559-324-4000 | T61: 2755 HERNDON AVE | U61: CLOVIS | V61: 93611 | W61: TIM A JOSLIN | X61: =IFERROR(IF(INDEX(#REF!,MATCH(C61,#REF!,0)),"Yes","No"),"") ->  | Y61: CY 2022 | Z61: =IFERROR(IF($Y61="CY 2022",INDEX('6. CY 2022'!R:R,MATCH($C61,'6. CY 2022'!$A:$A,0)),0),0) -> 0 | AA61: =IFERROR(IF($Y61="CY 2022",INDEX('6. CY 2022'!S:S,MATCH($C61,'6. CY 2022'!$A:$A,0)),0),0) -> 7153268 | AB61: =IFERROR(IF($Y61="CY 2022",INDEX('6. CY 2022'!T:T,MATCH($C61,'6. CY 2022'!$A:$A,0)),0),0) -> 6988815.6 | AC61: =IFERROR(IF($Y61="CY 2022",INDEX('6. CY 2022'!U:U,MATCH($C61,'6. CY 2022'!$A:$A,0)),0),0) -> 0 | AD61: =IFERROR(IF($Y61="CY 2022",INDEX('6. CY 2022'!V:V,MATCH($C61,'6. CY 2022'!$A:$A,0)),0),0) -> 6587861.5 | AE61: =IFERROR(IF($Y61="CY 2022",INDEX('6. CY 2022'!W:W,MATCH($C61,'6. CY 2022'!$A:$A,0)),0),0) -> 1544575 | AF61: =IFERROR(IF($Y61="CY 2022",INDEX('6. CY 2022'!X:X,MATCH($C61,'6. CY 2022'!$A:$A,0)),0),0) -> 22274520.1 | AG61: =IFERROR(IF(Y61="CY 2022",AF61/'4. Calculated Fee'!$D$35*'4. Calculated Fee'!$D$26,0),0) -> 6547545.98 | AH61: =IFERROR(IF($Y61="CY 2022",INDEX('6. CY 2022'!X:X,MATCH($C61,'6. CY 2022'!$A:$A,0)),0),0) -> 22274520.1 | AI61: =IFERROR(IF(Y61="CY 2022",INDEX('6. CY 2022'!AG:AG,MATCH(C61,'6. CY 2022'!A:A,0)),0),0) -> 2289683.244 | AJ61: =IFERROR(IF($Y61="CY 2022",INDEX('6. CY 2022'!AH:AH,MATCH($C61,'6. CY 2022'!$A:$A,0)),0),0) -> 6310979.743 | AK61: =IFERROR(IF($Y61="CY 2022",INDEX('6. CY 2022'!AI:AI,MATCH($C61,'6. CY 2022'!$A:$A,0)),0),0) -> 0 | AL61: =IFERROR(IF($Y61="CY 2022",INDEX('6. CY 2022'!AJ:AJ,MATCH($C61,'6. CY 2022'!$A:$A,0)),0),0) -> 0 | AM61: =IFERROR(IF($Y61="CY 2022",INDEX('6. CY 2022'!AK:AK,MATCH($C61,'6. CY 2022'!$A:$A,0)),0),0) -> 780000 | AN61: =IFERROR(IF($Y61="CY 2022",INDEX('6. CY 2022'!AL:AL,MATCH($C61,'6. CY 2022'!$A:$A,0)),0),0) -> 0 | AO61: =IFERROR(IF($Y61="CY 2022",INDEX('6. CY 2022'!AM:AM,MATCH($C61,'6. CY 2022'!$A:$A,0)),0),0) -> 0 | AP61: =IFERROR(IF($Y61="CY 2022",INDEX('6. CY 2022'!AN:AN,MATCH($C61,'6. CY 2022'!$A:$A,0)),0),0) -> 0 | AQ61: =IFERROR(IF($Y61="CY 2022",INDEX('6. CY 2022'!AQ:AQ,MATCH($C61,'6. CY 2022'!$A:$A,0)),0),0) -> 9380662.987 | AR61: =IFERROR(IF($Y61="CY 2022",INDEX('6. CY 2022'!AS:AS,MATCH($C61,'6. CY 2022'!A:A,0)),0),0) -> 5931215.35 | AS61: =IFERROR(IF(Y61="CY 2022",INDEX('6. CY 2022'!AT:AT,MATCH(C61,'6. CY 2022'!A:A,0)),0),0) -> 29466302.86 | AT61: =IFERROR(IF($Y61="CY 2022",INDEX('6. CY 2022'!AU:AU,MATCH($C61,'6. CY 2022'!A:A,0)),0),0) -> 35397518.21 | AW61: =IFERROR(IF(Y61="CY 2022",INDEX('6. CY 2022'!H:H,MATCH(C61,'6. CY 2022'!A:A,0)),0),0) -> 538590379.4
A62: 60 | B62: COALINGA REGIONAL MEDICAL CENTER | C62: 106100697 | D62: COALINGA REGIONAL MEDICAL CENTER | F62: =IFERROR(INDEX('8. 2018 OSHPD (FEE) DAYS'!G:G,MATCH(C62,'8. 2018 OSHPD (FEE) DAYS'!A:A,0)),0) -> 2017-07-01 | G62: =IFERROR(INDEX('8. 2018 OSHPD (FEE) DAYS'!H:H,MATCH(C62,'8. 2018 OSHPD (FEE) DAYS'!A:A,0)),0) -> 2018-06-30 | H62: =IFERROR(INDEX('8. 2018 OSHPD (FEE) DAYS'!W:W,MATCH(C62,'8. 2018 OSHPD (FEE) DAYS'!A:A,0)),0) -> 2017-07-01 | I62: =IFERROR(INDEX('11. Hospital Statuses'!M:M,MATCH(C62,'11. Hospital Statuses'!A:A,0)),"") -> Open | X62: =IFERROR(IF(INDEX(#REF!,MATCH(C62,#REF!,0)),"Yes","No"),"") ->  | Y62: CY 2022 | Z62: =IFERROR(IF($Y62="CY 2022",INDEX('6. CY 2022'!R:R,MATCH($C62,'6. CY 2022'!$A:$A,0)),0),0) -> 0 | AA62: =IFERROR(IF($Y62="CY 2022",INDEX('6. CY 2022'!S:S,MATCH($C62,'6. CY 2022'!$A:$A,0)),0),0) -> 0 | AB62: =IFERROR(IF($Y62="CY 2022",INDEX('6. CY 2022'!T:T,MATCH($C62,'6. CY 2022'!$A:$A,0)),0),0) -> 0 | AC62: =IFERROR(IF($Y62="CY 2022",INDEX('6. CY 2022'!U:U,MATCH($C62,'6. CY 2022'!$A:$A,0)),0),0) -> 0 | AD62: =IFERROR(IF($Y62="CY 2022",INDEX('6. CY 2022'!V:V,MATCH($C62,'6. CY 2022'!$A:$A,0)),0),0) -> 0 | AE62: =IFERROR(IF($Y62="CY 2022",INDEX('6. CY 2022'!W:W,MATCH($C62,'6. CY 2022'!$A:$A,0)),0),0) -> 0 | AF62: =IFERROR(IF($Y62="CY 2022",INDEX('6. CY 2022'!X:X,MATCH($C62,'6. CY 2022'!$A:$A,0)),0),0) -> 0 | AG62: =IFERROR(IF(Y62="CY 2022",AF62/'4. Calculated Fee'!$D$35*'4. Calculated Fee'!$D$26,0),0) -> 0 | AH62: =IFERROR(IF($Y62="CY 2022",INDEX('6. CY 2022'!X:X,MATCH($C62,'6. CY 2022'!$A:$A,0)),0),0) -> 0 | AI62: =IFERROR(IF(Y62="CY 2022",INDEX('6. CY 2022'!AG:AG,MATCH(C62,'6. CY 2022'!A:A,0)),0),0) -> 184915.9435 | AJ62: =IFERROR(IF($Y62="CY 2022",INDEX('6. CY 2022'!AH:AH,MATCH($C62,'6. CY 2022'!$A:$A,0)),0),0) -> 11835.55276 | AK62: =IFERROR(IF($Y62="CY 2022",INDEX('6. CY 2022'!AI:AI,MATCH($C62,'6. CY 2022'!$A:$A,0)),0),0) -> 0 | AL62: =IFERROR(IF($Y62="CY 2022",INDEX('6. CY 2022'!AJ:AJ,MATCH($C62,'6. CY 2022'!$A:$A,0)),0),0) -> 0 | AM62: =IFERROR(IF($Y62="CY 2022",INDEX('6. CY 2022'!AK:AK,MATCH($C62,'6. CY 2022'!$A:$A,0)),0),0) -> 0 | AN62: =IFERROR(IF($Y62="CY 2022",INDEX('6. CY 2022'!AL:AL,MATCH($C62,'6. CY 2022'!$A:$A,0)),0),0) -> 0 | AO62: =IFERROR(IF($Y62="CY 2022",INDEX('6. CY 2022'!AM:AM,MATCH($C62,'6. CY 2022'!$A:$A,0)),0),0) -> 0 | AP62: =IFERROR(IF($Y62="CY 2022",INDEX('6. CY 2022'!AN:AN,MATCH($C62,'6. CY 2022'!$A:$A,0)),0),0) -> 0 | AQ62: =IFERROR(IF($Y62="CY 2022",INDEX('6. CY 2022'!AQ:AQ,MATCH($C62,'6. CY 2022'!$A:$A,0)),0),0) -> 196751.4963 | AR62: =IFERROR(IF($Y62="CY 2022",INDEX('6. CY 2022'!AS:AS,MATCH($C62,'6. CY 2022'!A:A,0)),0),0) -> 454733.49 | AS62: =IFERROR(IF(Y62="CY 2022",INDEX('6. CY 2022'!AT:AT,MATCH(C62,'6. CY 2022'!A:A,0)),0),0) -> 0 | AT62: =IFERROR(IF($Y62="CY 2022",INDEX('6. CY 2022'!AU:AU,MATCH($C62,'6. CY 2022'!A:A,0)),0),0) -> 454733.49 | AW62: =IFERROR(IF(Y62="CY 2022",INDEX('6. CY 2022'!H:H,MATCH(C62,'6. CY 2022'!A:A,0)),0),0) -> 15924599.91
A63: 61 | B63: COAST PLAZA HOSPITAL | C63: 106190766 | D63: COAST PLAZA HOSPITAL | F63: =IFERROR(INDEX('8. 2018 OSHPD (FEE) DAYS'!G:G,MATCH(C63,'8. 2018 OSHPD (FEE) DAYS'!A:A,0)),0) -> 2018-01-01 | G63: =IFERROR(INDEX('8. 2018 OSHPD (FEE) DAYS'!H:H,MATCH(C63,'8. 2018 OSHPD (FEE) DAYS'!A:A,0)),0) -> 2018-12-31 | H63: =IFERROR(INDEX('8. 2018 OSHPD (FEE) DAYS'!W:W,MATCH(C63,'8. 2018 OSHPD (FEE) DAYS'!A:A,0)),0) -> 2018-01-01 | I63: =IFERROR(INDEX('11. Hospital Statuses'!M:M,MATCH(C63,'11. Hospital Statuses'!A:A,0)),"") -> Open | J63: Los Angeles | K63: 11 | L63: 921 | M63: Investor | N63: Comparable | P63: https://www.coastplazahospital.com/ | R63: AVANTI HOSPITALS, LLC | S63: 562-868-3751 | T63: 13100 STUDEBAKER ROAD | U63: NORWALK | V63: 90650 | W63: PATRICK RAFFERTY | X63: =IFERROR(IF(INDEX(#REF!,MATCH(C63,#REF!,0)),"Yes","No"),"") ->  | Y63: CY 2022 | Z63: =IFERROR(IF($Y63="CY 2022",INDEX('6. CY 2022'!R:R,MATCH($C63,'6. CY 2022'!$A:$A,0)),0),0) -> 0 | AA63: =IFERROR(IF($Y63="CY 2022",INDEX('6. CY 2022'!S:S,MATCH($C63,'6. CY 2022'!$A:$A,0)),0),0) -> 583632.5 | AB63: =IFERROR(IF($Y63="CY 2022",INDEX('6. CY 2022'!T:T,MATCH($C63,'6. CY 2022'!$A:$A,0)),0),0) -> 1134204.24 | AC63: =IFERROR(IF($Y63="CY 2022",INDEX('6. CY 2022'!U:U,MATCH($C63,'6. CY 2022'!$A:$A,0)),0),0) -> 0 | AD63: =IFERROR(IF($Y63="CY 2022",INDEX('6. CY 2022'!V:V,MATCH($C63,'6. CY 2022'!$A:$A,0)),0),0) -> 1729924 | AE63: =IFERROR(IF($Y63="CY 2022",INDEX('6. CY 2022'!W:W,MATCH($C63,'6. CY 2022'!$A:$A,0)),0),0) -> 631282.75 | AF63: =IFERROR(IF($Y63="CY 2022",INDEX('6. CY 2022'!X:X,MATCH($C63,'6. CY 2022'!$A:$A,0)),0),0) -> 4079043.49 | AG63: =IFERROR(IF(Y63="CY 2022",AF63/'4. Calculated Fee'!$D$35*'4. Calculated Fee'!$D$26,0),0) -> 1199025.823 | AH63: =IFERROR(IF($Y63="CY 2022",INDEX('6. CY 2022'!X:X,MATCH($C63,'6. CY 2022'!$A:$A,0)),0),0) -> 4079043.49 | AI63: =IFERROR(IF(Y63="CY 2022",INDEX('6. CY 2022'!AG:AG,MATCH(C63,'6. CY 2022'!A:A,0)),0),0) -> 773297.2945 | AJ63: =IFERROR(IF($Y63="CY 2022",INDEX('6. CY 2022'!AH:AH,MATCH($C63,'6. CY 2022'!$A:$A,0)),0),0) -> 1365033.752 | AK63: =IFERROR(IF($Y63="CY 2022",INDEX('6. CY 2022'!AI:AI,MATCH($C63,'6. CY 2022'!$A:$A,0)),0),0) -> 0 | AL63: =IFERROR(IF($Y63="CY 2022",INDEX('6. CY 2022'!AJ:AJ,MATCH($C63,'6. CY 2022'!$A:$A,0)),0),0) -> 0 | AM63: =IFERROR(IF($Y63="CY 2022",INDEX('6. CY 2022'!AK:AK,MATCH($C63,'6. CY 2022'!$A:$A,0)),0),0) -> 522500 | AN63: =IFERROR(IF($Y63="CY 2022",INDEX('6. CY 2022'!AL:AL,MATCH($C63,'6. CY 2022'!$A:$A,0)),0),0) -> 0 | AO63: =IFERROR(IF($Y63="CY 2022",INDEX('6. CY 2022'!AM:AM,MATCH($C63,'6. CY 2022'!$A:$A,0)),0),0) -> 0 | AP63: =IFERROR(IF($Y63="CY 2022",INDEX('6. CY 2022'!AN:AN,MATCH($C63,'6. CY 2022'!$A:$A,0)),0),0) -> 0 | AQ63: =IFERROR(IF($Y63="CY 2022",INDEX('6. CY 2022'!AQ:AQ,MATCH($C63,'6. CY 2022'!$A:$A,0)),0),0) -> 2660831.046 | AR63: =IFERROR(IF($Y63="CY 2022",INDEX('6. CY 2022'!AS:AS,MATCH($C63,'6. CY 2022'!A:A,0)),0),0) -> 836531.46 | AS63: =IFERROR(IF(Y63="CY 2022",INDEX('6. CY 2022'!AT:AT,MATCH(C63,'6. CY 2022'!A:A,0)),0),0) -> 4705026.84 | AT63: =IFERROR(IF($Y63="CY 2022",INDEX('6. CY 2022'!AU:AU,MATCH($C63,'6. CY 2022'!A:A,0)),0),0) -> 5541558.3 | AW63: =IFERROR(IF(Y63="CY 2022",INDEX('6. CY 2022'!H:H,MATCH(C63,'6. CY 2022'!A:A,0)),0),0) -> 44591287.94 | AX63: =SUM(AG63:AG66) -> 14979282.21
A64: 62 | B64: COLLEGE HOSPITAL | C64: 106190184 | D64: COLLEGE HOSPITAL | F64: =IFERROR(INDEX('8. 2018 OSHPD (FEE) DAYS'!G:G,MATCH(C64,'8. 2018 OSHPD (FEE) DAYS'!A:A,0)),0) -> 2018-01-01 | G64: =IFERROR(INDEX('8. 2018 OSHPD (FEE) DAYS'!H:H,MATCH(C64,'8. 2018 OSHPD (FEE) DAYS'!A:A,0)),0) -> 2018-12-31 | H64: =IFERROR(INDEX('8. 2018 OSHPD (FEE) DAYS'!W:W,MATCH(C64,'8. 2018 OSHPD (FEE) DAYS'!A:A,0)),0) -> 2018-01-01 | I64: =IFERROR(INDEX('11. Hospital Statuses'!M:M,MATCH(C64,'11. Hospital Statuses'!A:A,0)),"") -> Open | J64: Los Angeles | K64: 11 | L64: 921 | M64: Investor | N64: Comparable | P64: https://www.chc.la/cerHome | R64: CERRITOS TOWNHOUSE INVESTMENT CO. | S64: 562-924-9581 | T64: 10802 COLLEGE PLACE | U64: CERRITOS | V64: 90703-1570 | W64: STEPHEN WITT | X64: =IFERROR(IF(INDEX(#REF!,MATCH(C64,#REF!,0)),"Yes","No"),"") ->  | Y64: CY 2022 | Z64: =IFERROR(IF($Y64="CY 2022",INDEX('6. CY 2022'!R:R,MATCH($C64,'6. CY 2022'!$A:$A,0)),0),0) -> 0 | AA64: =IFERROR(IF($Y64="CY 2022",INDEX('6. CY 2022'!S:S,MATCH($C64,'6. CY 2022'!$A:$A,0)),0),0) -> 0 | AB64: =IFERROR(IF($Y64="CY 2022",INDEX('6. CY 2022'!T:T,MATCH($C64,'6. CY 2022'!$A:$A,0)),0),0) -> 0 | AC64: =IFERROR(IF($Y64="CY 2022",INDEX('6. CY 2022'!U:U,MATCH($C64,'6. CY 2022'!$A:$A,0)),0),0) -> 0 | AD64: =IFERROR(IF($Y64="CY 2022",INDEX('6. CY 2022'!V:V,MATCH($C64,'6. CY 2022'!$A:$A,0)),0),0) -> 0 | AE64: =IFERROR(IF($Y64="CY 2022",INDEX('6. CY 2022'!W:W,MATCH($C64,'6. CY 2022'!$A:$A,0)),0),0) -> 0 | AF64: =IFERROR(IF($Y64="CY 2022",INDEX('6. CY 2022'!X:X,MATCH($C64,'6. CY 2022'!$A:$A,0)),0),0) -> 0 | AG64: =IFERROR(IF(Y64="CY 2022",AF64/'4. Calculated Fee'!$D$35*'4. Calculated Fee'!$D$26,0),0) -> 0 | AH64: =IFERROR(IF($Y64="CY 2022",INDEX('6. CY 2022'!X:X,MATCH($C64,'6. CY 2022'!$A:$A,0)),0),0) -> 0 | AI64: =IFERROR(IF(Y64="CY 2022",INDEX('6. CY 2022'!AG:AG,MATCH(C64,'6. CY 2022'!A:A,0)),0),0) -> 0 | AJ64: =IFERROR(IF($Y64="CY 2022",INDEX('6. CY 2022'!AH:AH,MATCH($C64,'6. CY 2022'!$A:$A,0)),0),0) -> 0 | AK64: =IFERROR(IF($Y64="CY 2022",INDEX('6. CY 2022'!AI:AI,MATCH($C64,'6. CY 2022'!$A:$A,0)),0),0) -> 0 | AL64: =IFERROR(IF($Y64="CY 2022",INDEX('6. CY 2022'!AJ:AJ,MATCH($C64,'6. CY 2022'!$A:$A,0)),0),0) -> 0 | AM64: =IFERROR(IF($Y64="CY 2022",INDEX('6. CY 2022'!AK:AK,MATCH($C64,'6. CY 2022'!$A:$A,0)),0),0) -> 0 | AN64: =IFERROR(IF($Y64="CY 2022",INDEX('6. CY 2022'!AL:AL,MATCH($C64,'6. CY 2022'!$A:$A,0)),0),0) -> 0 | AO64: =IFERROR(IF($Y64="CY 2022",INDEX('6. CY 2022'!AM:AM,MATCH($C64,'6. CY 2022'!$A:$A,0)),0),0) -> 0 | AP64: =IFERROR(IF($Y64="CY 2022",INDEX('6. CY 2022'!AN:AN,MATCH($C64,'6. CY 2022'!$A:$A,0)),0),0) -> 0 | AQ64: =IFERROR(IF($Y64="CY 2022",INDEX('6. CY 2022'!AQ:AQ,MATCH($C64,'6. CY 2022'!$A:$A,0)),0),0) -> 0 | AR64: =IFERROR(IF($Y64="CY 2022",INDEX('6. CY 2022'!AS:AS,MATCH($C64,'6. CY 2022'!A:A,0)),0),0) -> 0 | AS64: =IFERROR(IF(Y64="CY 2022",INDEX('6. CY 2022'!AT:AT,MATCH(C64,'6. CY 2022'!A:A,0)),0),0) -> 0 | AT64: =IFERROR(IF($Y64="CY 2022",INDEX('6. CY 2022'!AU:AU,MATCH($C64,'6. CY 2022'!A:A,0)),0),0) -> 0 | AW64: =IFERROR(IF(Y64="CY 2022",INDEX('6. CY 2022'!H:H,MATCH(C64,'6. CY 2022'!A:A,0)),0),0) -> 91086631.93
A65: 63 | B65: COLLEGE HOSPITAL COSTA MESA | C65: 106301155 | D65: COLLEGE HOSPITAL COSTA MESA | F65: =IFERROR(INDEX('8. 2018 OSHPD (FEE) DAYS'!G:G,MATCH(C65,'8. 2018 OSHPD (FEE) DAYS'!A:A,0)),0) -> 2018-01-01 | G65: =IFERROR(INDEX('8. 2018 OSHPD (FEE) DAYS'!H:H,MATCH(C65,'8. 2018 OSHPD (FEE) DAYS'!A:A,0)),0) -> 2018-12-31 | H65: =IFERROR(INDEX('8. 2018 OSHPD (FEE) DAYS'!W:W,MATCH(C65,'8. 2018 OSHPD (FEE) DAYS'!A:A,0)),0) -> 2018-01-01 | I65: =IFERROR(INDEX('11. Hospital Statuses'!M:M,MATCH(C65,'11. Hospital Statuses'!A:A,0)),"") -> Open | J65: Orange | K65: 13 | L65: 1016 | M65: Investor | N65: Comparable | P65: https://www.chc.la/index.php?q=cosHome | R65: CHCM, INC. | S65: 949-642-2734 | T65: 301 VICTORIA STREET | U65: COSTA MESA | V65: 92627 | W65: SUSAN L. TAYLOR, JD. | X65: =IFERROR(IF(INDEX(#REF!,MATCH(C65,#REF!,0)),"Yes","No"),"") ->  | Y65: CY 2022 | Z65: =IFERROR(IF($Y65="CY 2022",INDEX('6. CY 2022'!R:R,MATCH($C65,'6. CY 2022'!$A:$A,0)),0),0) -> 0 | AA65: =IFERROR(IF($Y65="CY 2022",INDEX('6. CY 2022'!S:S,MATCH($C65,'6. CY 2022'!$A:$A,0)),0),0) -> 583074 | AB65: =IFERROR(IF($Y65="CY 2022",INDEX('6. CY 2022'!T:T,MATCH($C65,'6. CY 2022'!$A:$A,0)),0),0) -> 518388.78 | AC65: =IFERROR(IF($Y65="CY 2022",INDEX('6. CY 2022'!U:U,MATCH($C65,'6. CY 2022'!$A:$A,0)),0),0) -> 0 | AD65: =IFERROR(IF($Y65="CY 2022",INDEX('6. CY 2022'!V:V,MATCH($C65,'6. CY 2022'!$A:$A,0)),0),0) -> 11958 | AE65: =IFERROR(IF($Y65="CY 2022",INDEX('6. CY 2022'!W:W,MATCH($C65,'6. CY 2022'!$A:$A,0)),0),0) -> 16666462.5 | AF65: =IFERROR(IF($Y65="CY 2022",INDEX('6. CY 2022'!X:X,MATCH($C65,'6. CY 2022'!$A:$A,0)),0),0) -> 17779883.28 | AG65: =IFERROR(IF(Y65="CY 2022",AF65/'4. Calculated Fee'!$D$35*'4. Calculated Fee'!$D$26,0),0) -> 5226357.415 | AH65: =IFERROR(IF($Y65="CY 2022",INDEX('6. CY 2022'!X:X,MATCH($C65,'6. CY 2022'!$A:$A,0)),0),0) -> 17779883.28 | AI65: =IFERROR(IF(Y65="CY 2022",INDEX('6. CY 2022'!AG:AG,MATCH(C65,'6. CY 2022'!A:A,0)),0),0) -> 0 | AJ65: =IFERROR(IF($Y65="CY 2022",INDEX('6. CY 2022'!AH:AH,MATCH($C65,'6. CY 2022'!$A:$A,0)),0),0) -> 3420474.747 | AK65: =IFERROR(IF($Y65="CY 2022",INDEX('6. CY 2022'!AI:AI,MATCH($C65,'6. CY 2022'!$A:$A,0)),0),0) -> 0 | AL65: =IFERROR(IF($Y65="CY 2022",INDEX('6. CY 2022'!AJ:AJ,MATCH($C65,'6. CY 2022'!$A:$A,0)),0),0) -> 5688150 | AM65: =IFERROR(IF($Y65="CY 2022",INDEX('6. CY 2022'!AK:AK,MATCH($C65,'6. CY 2022'!$A:$A,0)),0),0) -> 0 | AN65: =IFERROR(IF($Y65="CY 2022",INDEX('6. CY 2022'!AL:AL,MATCH($C65,'6. CY 2022'!$A:$A,0)),0),0) -> 0 | AO65: =IFERROR(IF($Y65="CY 2022",INDEX('6. CY 2022'!AM:AM,MATCH($C65,'6. CY 2022'!$A:$A,0)),0),0) -> 0 | AP65: =IFERROR(IF($Y65="CY 2022",INDEX('6. CY 2022'!AN:AN,MATCH($C65,'6. CY 2022'!$A:$A,0)),0),0) -> 0 | AQ65: =IFERROR(IF($Y65="CY 2022",INDEX('6. CY 2022'!AQ:AQ,MATCH($C65,'6. CY 2022'!$A:$A,0)),0),0) -> 9108624.747 | AR65: =IFERROR(IF($Y65="CY 2022",INDEX('6. CY 2022'!AS:AS,MATCH($C65,'6. CY 2022'!A:A,0)),0),0) -> 41234850.42 | AS65: =IFERROR(IF(Y65="CY 2022",INDEX('6. CY 2022'!AT:AT,MATCH(C65,'6. CY 2022'!A:A,0)),0),0) -> 164237.38 | AT65: =IFERROR(IF($Y65="CY 2022",INDEX('6. CY 2022'!AU:AU,MATCH($C65,'6. CY 2022'!A:A,0)),0),0) -> 41399087.8 | AW65: =IFERROR(IF(Y65="CY 2022",INDEX('6. CY 2022'!H:H,MATCH(C65,'6. CY 2022'!A:A,0)),0),0) -> 137432606.5
A66: 64 | B66: COLLEGE MEDICAL CENTER | C66: 106190587 | D66: COLLEGE MEDICAL CENTER | F66: =IFERROR(INDEX('8. 2018 OSHPD (FEE) DAYS'!G:G,MATCH(C66,'8. 2018 OSHPD (FEE) DAYS'!A:A,0)),0) -> 2018-01-01 | G66: =IFERROR(INDEX('8. 2018 OSHPD (FEE) DAYS'!H:H,MATCH(C66,'8. 2018 OSHPD (FEE) DAYS'!A:A,0)),0) -> 2018-12-31 | H66: =IFERROR(INDEX('8. 2018 OSHPD (FEE) DAYS'!W:W,MATCH(C66,'8. 2018 OSHPD (FEE) DAYS'!A:A,0)),0) -> 2018-01-01 | I66: =IFERROR(INDEX('11. Hospital Statuses'!M:M,MATCH(C66,'11. Hospital Statuses'!A:A,0)),"") -> Open | J66: Los Angeles | K66: 11 | L66: 933 | M66: Investor | N66: Comparable | P66: https://www.collegemedicalcenter.com/ | R66: CHLB, LLC | S66: 562-997-2000 | T66: 2776 PACIFIC AVE | U66: LONG BEACH | V66: 90806 | W66: JOE AVELINO | X66: =IFERROR(IF(INDEX(#REF!,MATCH(C66,#REF!,0)),"Yes","No"),"") ->  | Y66: CY 2022 | Z66: =IFERROR(IF($Y66="CY 2022",INDEX('6. CY 2022'!R:R,MATCH($C66,'6. CY 2022'!$A:$A,0)),0),0) -> 0 | AA66: =IFERROR(IF($Y66="CY 2022",INDEX('6. CY 2022'!S:S,MATCH($C66,'6. CY 2022'!$A:$A,0)),0),0) -> 738616.25 | AB66: =IFERROR(IF($Y66="CY 2022",INDEX('6. CY 2022'!T:T,MATCH($C66,'6. CY 2022'!$A:$A,0)),0),0) -> 2661212.58 | AC66: =IFERROR(IF($Y66="CY 2022",INDEX('6. CY 2022'!U:U,MATCH($C66,'6. CY 2022'!$A:$A,0)),0),0) -> 0 | AD66: =IFERROR(IF($Y66="CY 2022",INDEX('6. CY 2022'!V:V,MATCH($C66,'6. CY 2022'!$A:$A,0)),0),0) -> 2155927.75 | AE66: =IFERROR(IF($Y66="CY 2022",INDEX('6. CY 2022'!W:W,MATCH($C66,'6. CY 2022'!$A:$A,0)),0),0) -> 23544305.5 | AF66: =IFERROR(IF($Y66="CY 2022",INDEX('6. CY 2022'!X:X,MATCH($C66,'6. CY 2022'!$A:$A,0)),0),0) -> 29100062.08 | AG66: =IFERROR(IF(Y66="CY 2022",AF66/'4. Calculated Fee'!$D$35*'4. Calculated Fee'!$D$26,0),0) -> 8553898.968 | AH66: =IFERROR(IF($Y66="CY 2022",INDEX('6. CY 2022'!X:X,MATCH($C66,'6. CY 2022'!$A:$A,0)),0),0) -> 29100062.08 | AI66: =IFERROR(IF(Y66="CY 2022",INDEX('6. CY 2022'!AG:AG,MATCH(C66,'6. CY 2022'!A:A,0)),0),0) -> 403961.4601 | AJ66: =IFERROR(IF($Y66="CY 2022",INDEX('6. CY 2022'!AH:AH,MATCH($C66,'6. CY 2022'!$A:$A,0)),0),0) -> 2979929.172 | AK66: =IFERROR(IF($Y66="CY 2022",INDEX('6. CY 2022'!AI:AI,MATCH($C66,'6. CY 2022'!$A:$A,0)),0),0) -> 0 | AL66: =IFERROR(IF($Y66="CY 2022",INDEX('6. CY 2022'!AJ:AJ,MATCH($C66,'6. CY 2022'!$A:$A,0)),0),0) -> 8275800 | AM66: =IFERROR(IF($Y66="CY 2022",INDEX('6. CY 2022'!AK:AK,MATCH($C66,'6. CY 2022'!$A:$A,0)),0),0) -> 0 | AN66: =IFERROR(IF($Y66="CY 2022",INDEX('6. CY 2022'!AL:AL,MATCH($C66,'6. CY 2022'!$A:$A,0)),0),0) -> 0 | AO66: =IFERROR(IF($Y66="CY 2022",INDEX('6. CY 2022'!AM:AM,MATCH($C66,'6. CY 2022'!$A:$A,0)),0),0) -> 0 | AP66: =IFERROR(IF($Y66="CY 2022",INDEX('6. CY 2022'!AN:AN,MATCH($C66,'6. CY 2022'!$A:$A,0)),0),0) -> 0 | AQ66: =IFERROR(IF($Y66="CY 2022",INDEX('6. CY 2022'!AQ:AQ,MATCH($C66,'6. CY 2022'!$A:$A,0)),0),0) -> 11659690.63 | AR66: =IFERROR(IF($Y66="CY 2022",INDEX('6. CY 2022'!AS:AS,MATCH($C66,'6. CY 2022'!A:A,0)),0),0) -> 54909835.94 | AS66: =IFERROR(IF(Y66="CY 2022",INDEX('6. CY 2022'!AT:AT,MATCH(C66,'6. CY 2022'!A:A,0)),0),0) -> 5247165.75 | AT66: =IFERROR(IF($Y66="CY 2022",INDEX('6. CY 2022'!AU:AU,MATCH($C66,'6. CY 2022'!A:A,0)),0),0) -> 60157001.69 | AW66: =IFERROR(IF(Y66="CY 2022",INDEX('6. CY 2022'!H:H,MATCH(C66,'6. CY 2022'!A:A,0)),0),0) -> 165537227.7
A67: 65 | B67: COLORADO RIVER MEDICAL CENTER | C67: 106361458 | D67: COLORADO RIVER MEDICAL CENTER | F67: =IFERROR(INDEX('8. 2018 OSHPD (FEE) DAYS'!G:G,MATCH(C67,'8. 2018 OSHPD (FEE) DAYS'!A:A,0)),0) -> 2018-01-01 | G67: =IFERROR(INDEX('8. 2018 OSHPD (FEE) DAYS'!H:H,MATCH(C67,'8. 2018 OSHPD (FEE) DAYS'!A:A,0)),0) -> 2018-12-31 | H67: =IFERROR(INDEX('8. 2018 OSHPD (FEE) DAYS'!W:W,MATCH(C67,'8. 2018 OSHPD (FEE) DAYS'!A:A,0)),0) -> 2018-01-01 | I67: =IFERROR(INDEX('11. Hospital Statuses'!M:M,MATCH(C67,'11. Hospital Statuses'!A:A,0)),"") -> Open | J67: San Bernardino | K67: 12 | L67: 1215 | M67: Non-Profit | N67: Comparable | O67: Rural | P67: https://crmccares.com/ | R67: COMMUNITY HEALTH PARTNER, INC. | S67: 760-326-7267 | T67: 1401 BAILEY AVE | U67: NEEDLES | V67: 92363 | W67: STEVE LOPEZ | X67: =IFERROR(IF(INDEX(#REF!,MATCH(C67,#REF!,0)),"Yes","No"),"") ->  | Y67: CY 2022 | Z67: =IFERROR(IF($Y67="CY 2022",INDEX('6. CY 2022'!R:R,MATCH($C67,'6. CY 2022'!$A:$A,0)),0),0) -> 0 | AA67: =IFERROR(IF($Y67="CY 2022",INDEX('6. CY 2022'!S:S,MATCH($C67,'6. CY 2022'!$A:$A,0)),0),0) -> 0 | AB67: =IFERROR(IF($Y67="CY 2022",INDEX('6. CY 2022'!T:T,MATCH($C67,'6. CY 2022'!$A:$A,0)),0),0) -> 0 | AC67: =IFERROR(IF($Y67="CY 2022",INDEX('6. CY 2022'!U:U,MATCH($C67,'6. CY 2022'!$A:$A,0)),0),0) -> 0 | AD67: =IFERROR(IF($Y67="CY 2022",INDEX('6. CY 2022'!V:V,MATCH($C67,'6. CY 2022'!$A:$A,0)),0),0) -> 0 | AE67: =IFERROR(IF($Y67="CY 2022",INDEX('6. CY 2022'!W:W,MATCH($C67,'6. CY 2022'!$A:$A,0)),0),0) -> 0 | AF67: =IFERROR(IF($Y67="CY 2022",INDEX('6. CY 2022'!X:X,MATCH($C67,'6. CY 2022'!$A:$A,0)),0),0) -> 0 | AG67: =IFERROR(IF(Y67="CY 2022",AF67/'4. Calculated Fee'!$D$35*'4. Calculated Fee'!$D$26,0),0) -> 0 | AH67: =IFERROR(IF($Y67="CY 2022",INDEX('6. CY 2022'!X:X,MATCH($C67,'6. CY 2022'!$A:$A,0)),0),0) -> 0 | AI67: =IFERROR(IF(Y67="CY 2022",INDEX('6. CY 2022'!AG:AG,MATCH(C67,'6. CY 2022'!A:A,0)),0),0) -> 1345815.86 | AJ67: =IFERROR(IF($Y67="CY 2022",INDEX('6. CY 2022'!AH:AH,MATCH($C67,'6. CY 2022'!$A:$A,0)),0),0) -> 648325.2789 | AK67: =IFERROR(IF($Y67="CY 2022",INDEX('6. CY 2022'!AI:AI,MATCH($C67,'6. CY 2022'!$A:$A,0)),0),0) -> 0 | AL67: =IFERROR(IF($Y67="CY 2022",INDEX('6. CY 2022'!AJ:AJ,MATCH($C67,'6. CY 2022'!$A:$A,0)),0),0) -> 0 | AM67: =IFERROR(IF($Y67="CY 2022",INDEX('6. CY 2022'!AK:AK,MATCH($C67,'6. CY 2022'!$A:$A,0)),0),0) -> 0 | AN67: =IFERROR(IF($Y67="CY 2022",INDEX('6. CY 2022'!AL:AL,MATCH($C67,'6. CY 2022'!$A:$A,0)),0),0) -> 0 | AO67: =IFERROR(IF($Y67="CY 2022",INDEX('6. CY 2022'!AM:AM,MATCH($C67,'6. CY 2022'!$A:$A,0)),0),0) -> 0 | AP67: =IFERROR(IF($Y67="CY 2022",INDEX('6. CY 2022'!AN:AN,MATCH($C67,'6. CY 2022'!$A:$A,0)),0),0) -> 0 | AQ67: =IFERROR(IF($Y67="CY 2022",INDEX('6. CY 2022'!AQ:AQ,MATCH($C67,'6. CY 2022'!$A:$A,0)),0),0) -> 1994141.139 | AR67: =IFERROR(IF($Y67="CY 2022",INDEX('6. CY 2022'!AS:AS,MATCH($C67,'6. CY 2022'!A:A,0)),0),0) -> 4284.62 | AS67: =IFERROR(IF(Y67="CY 2022",INDEX('6. CY 2022'!AT:AT,MATCH(C67,'6. CY 2022'!A:A,0)),0),0) -> 0 | AT67: =IFERROR(IF($Y67="CY 2022",INDEX('6. CY 2022'!AU:AU,MATCH($C67,'6. CY 2022'!A:A,0)),0),0) -> 4284.62 | AW67: =IFERROR(IF(Y67="CY 2022",INDEX('6. CY 2022'!H:H,MATCH(C67,'6. CY 2022'!A:A,0)),0),0) -> 10723168.68
A68: 66 | B68: COLUSA MEDICAL CENTER | C68: 106060870 | D68: COLUSA MEDICAL CENTER | F68: =IFERROR(INDEX('8. 2018 OSHPD (FEE) DAYS'!G:G,MATCH(C68,'8. 2018 OSHPD (FEE) DAYS'!A:A,0)),0) -> 2017-11-30 | G68: =IFERROR(INDEX('8. 2018 OSHPD (FEE) DAYS'!H:H,MATCH(C68,'8. 2018 OSHPD (FEE) DAYS'!A:A,0)),0) -> 2018-12-31 | H68: =IFERROR(INDEX('8. 2018 OSHPD (FEE) DAYS'!W:W,MATCH(C68,'8. 2018 OSHPD (FEE) DAYS'!A:A,0)),0) -> 2017-11-30 | I68: =IFERROR(INDEX('11. Hospital Statuses'!M:M,MATCH(C68,'11. Hospital Statuses'!A:A,0)),"") -> Open | J68: Colusa | K68: 1 | L68: 225 | M68: Non-Profit | N68: Comparable | O68: Rural | P68: https://colusamedcenter.com/ | R68: AMERICAN SPECIALTY HEALTHCARE, INC | S68: 530-619-0800 | T68: 199 E WEBSTER ST | U68: COLUSA | V68: 95932-3310 | W68: SHAMSHER SINGH | X68: =IFERROR(IF(INDEX(#REF!,MATCH(C68,#REF!,0)),"Yes","No"),"") ->  | Y68: CY 2022 | Z68: =IFERROR(IF($Y68="CY 2022",INDEX('6. CY 2022'!R:R,MATCH($C68,'6. CY 2022'!$A:$A,0)),0),0) -> 0 | AA68: =IFERROR(IF($Y68="CY 2022",INDEX('6. CY 2022'!S:S,MATCH($C68,'6. CY 2022'!$A:$A,0)),0),0) -> 0 | AB68: =IFERROR(IF($Y68="CY 2022",INDEX('6. CY 2022'!T:T,MATCH($C68,'6. CY 2022'!$A:$A,0)),0),0) -> 0 | AC68: =IFERROR(IF($Y68="CY 2022",INDEX('6. CY 2022'!U:U,MATCH($C68,'6. CY 2022'!$A:$A,0)),0),0) -> 0 | AD68: =IFERROR(IF($Y68="CY 2022",INDEX('6. CY 2022'!V:V,MATCH($C68,'6. CY 2022'!$A:$A,0)),0),0) -> 0 | AE68: =IFERROR(IF($Y68="CY 2022",INDEX('6. CY 2022'!W:W,MATCH($C68,'6. CY 2022'!$A:$A,0)),0),0) -> 0 | AF68: =IFERROR(IF($Y68="CY 2022",INDEX('6. CY 2022'!X:X,MATCH($C68,'6. CY 2022'!$A:$A,0)),0),0) -> 0 | AG68: =IFERROR(IF(Y68="CY 2022",AF68/'4. Calculated Fee'!$D$35*'4. Calculated Fee'!$D$26,0),0) -> 0 | AH68: =IFERROR(IF($Y68="CY 2022",INDEX('6. CY 2022'!X:X,MATCH($C68,'6. CY 2022'!$A:$A,0)),0),0) -> 0 | AI68: =IFERROR(IF(Y68="CY 2022",INDEX('6. CY 2022'!AG:AG,MATCH(C68,'6. CY 2022'!A:A,0)),0),0) -> 130894.9925 | AJ68: =IFERROR(IF($Y68="CY 2022",INDEX('6. CY 2022'!AH:AH,MATCH($C68,'6. CY 2022'!$A:$A,0)),0),0) -> 10520.49134 | AK68: =IFERROR(IF($Y68="CY 2022",INDEX('6. CY 2022'!AI:AI,MATCH($C68,'6. CY 2022'!$A:$A,0)),0),0) -> 0 | AL68: =IFERROR(IF($Y68="CY 2022",INDEX('6. CY 2022'!AJ:AJ,MATCH($C68,'6. CY 2022'!$A:$A,0)),0),0) -> 0 | AM68: =IFERROR(IF($Y68="CY 2022",INDEX('6. CY 2022'!AK:AK,MATCH($C68,'6. CY 2022'!$A:$A,0)),0),0) -> 0 | AN68: =IFERROR(IF($Y68="CY 2022",INDEX('6. CY 2022'!AL:AL,MATCH($C68,'6. CY 2022'!$A:$A,0)),0),0) -> 0 | AO68: =IFERROR(IF($Y68="CY 2022",INDEX('6. CY 2022'!AM:AM,MATCH($C68,'6. CY 2022'!$A:$A,0)),0),0) -> 0 | AP68: =IFERROR(IF($Y68="CY 2022",INDEX('6. CY 2022'!AN:AN,MATCH($C68,'6. CY 2022'!$A:$A,0)),0),0) -> 0 | AQ68: =IFERROR(IF($Y68="CY 2022",INDEX('6. CY 2022'!AQ:AQ,MATCH($C68,'6. CY 2022'!$A:$A,0)),0),0) -> 141415.4838 | AR68: =IFERROR(IF($Y68="CY 2022",INDEX('6. CY 2022'!AS:AS,MATCH($C68,'6. CY 2022'!A:A,0)),0),0) -> 153422.43 | AS68: =IFERROR(IF(Y68="CY 2022",INDEX('6. CY 2022'!AT:AT,MATCH(C68,'6. CY 2022'!A:A,0)),0),0) -> 1437577.19 | AT68: =IFERROR(IF($Y68="CY 2022",INDEX('6. CY 2022'!AU:AU,MATCH($C68,'6. CY 2022'!A:A,0)),0),0) -> 1590999.62 | AW68: =IFERROR(IF(Y68="CY 2022",INDEX('6. CY 2022'!H:H,MATCH(C68,'6. CY 2022'!A:A,0)),0),0) -> 17081736.11
A69: 67 | B69: COMMUNITY HOSPITAL OF HUNTINGTON PARK | C69: 106190197 | D69: COMMUNITY HOSPITAL OF HUNTINGTON PARK | F69: =IFERROR(INDEX('8. 2018 OSHPD (FEE) DAYS'!G:G,MATCH(C69,'8. 2018 OSHPD (FEE) DAYS'!A:A,0)),0) -> 2018-01-01 | G69: =IFERROR(INDEX('8. 2018 OSHPD (FEE) DAYS'!H:H,MATCH(C69,'8. 2018 OSHPD (FEE) DAYS'!A:A,0)),0) -> 2018-12-31 | H69: =IFERROR(INDEX('8. 2018 OSHPD (FEE) DAYS'!W:W,MATCH(C69,'8. 2018 OSHPD (FEE) DAYS'!A:A,0)),0) -> 2018-01-01 | I69: =IFERROR(INDEX('11. Hospital Statuses'!M:M,MATCH(C69,'11. Hospital Statuses'!A:A,0)),"") -> Open | J69: Los Angeles | K69: 11 | L69: 923 | M69: Investor | N69: Comparable | P69: https://www.communityhospitalhp.com/ | R69: AVANTI HOSPITALS, LLC | S69: 323-583-1931 | T69: 2623 EAST SLAUSON AVENUE | U69: HUNTINGTON PARK | V69: 90255 | W69: GREG MONETTE | X69: =IFERROR(IF(INDEX(#REF!,MATCH(C69,#REF!,0)),"Yes","No"),"") ->  | Y69: CY 2022 | Z69: =IFERROR(IF($Y69="CY 2022",INDEX('6. CY 2022'!R:R,MATCH($C69,'6. CY 2022'!$A:$A,0)),0),0) -> 0 | AA69: =IFERROR(IF($Y69="CY 2022",INDEX('6. CY 2022'!S:S,MATCH($C69,'6. CY 2022'!$A:$A,0)),0),0) -> 727167 | AB69: =IFERROR(IF($Y69="CY 2022",INDEX('6. CY 2022'!T:T,MATCH($C69,'6. CY 2022'!$A:$A,0)),0),0) -> 781102.92 | AC69: =IFERROR(IF($Y69="CY 2022",INDEX('6. CY 2022'!U:U,MATCH($C69,'6. CY 2022'!$A:$A,0)),0),0) -> 0 | AD69: =IFERROR(IF($Y69="CY 2022",INDEX('6. CY 2022'!V:V,MATCH($C69,'6. CY 2022'!$A:$A,0)),0),0) -> 2421495 | AE69: =IFERROR(IF($Y69="CY 2022",INDEX('6. CY 2022'!W:W,MATCH($C69,'6. CY 2022'!$A:$A,0)),0),0) -> 1807152.75 | AF69: =IFERROR(IF($Y69="CY 2022",INDEX('6. CY 2022'!X:X,MATCH($C69,'6. CY 2022'!$A:$A,0)),0),0) -> 5736917.67 | AG69: =IFERROR(IF(Y69="CY 2022",AF69/'4. Calculated Fee'!$D$35*'4. Calculated Fee'!$D$26,0),0) -> 1686354.277 | AH69: =IFERROR(IF($Y69="CY 2022",INDEX('6. CY 2022'!X:X,MATCH($C69,'6. CY 2022'!$A:$A,0)),0),0) -> 5736917.67 | AI69: =IFERROR(IF(Y69="CY 2022",INDEX('6. CY 2022'!AG:AG,MATCH(C69,'6. CY 2022'!A:A,0)),0),0) -> 4636210.068 | AJ69: =IFERROR(IF($Y69="CY 2022",INDEX('6. CY 2022'!AH:AH,MATCH($C69,'6. CY 2022'!$A:$A,0)),0),0) -> 4375209.337 | AK69: =IFERROR(IF($Y69="CY 2022",INDEX('6. CY 2022'!AI:AI,MATCH($C69,'6. CY 2022'!$A:$A,0)),0),0) -> 0 | AL69: =IFERROR(IF($Y69="CY 2022",INDEX('6. CY 2022'!AJ:AJ,MATCH($C69,'6. CY 2022'!$A:$A,0)),0),0) -> 0 | AM69: =IFERROR(IF($Y69="CY 2022",INDEX('6. CY 2022'!AK:AK,MATCH($C69,'6. CY 2022'!$A:$A,0)),0),0) -> 0 | AN69: =IFERROR(IF($Y69="CY 2022",INDEX('6. CY 2022'!AL:AL,MATCH($C69,'6. CY 2022'!$A:$A,0)),0),0) -> 0 | AO69: =IFERROR(IF($Y69="CY 2022",INDEX('6. CY 2022'!AM:AM,MATCH($C69,'6. CY 2022'!$A:$A,0)),0),0) -> 0 | AP69: =IFERROR(IF($Y69="CY 2022",INDEX('6. CY 2022'!AN:AN,MATCH($C69,'6. CY 2022'!$A:$A,0)),0),0) -> 0 | AQ69: =IFERROR(IF($Y69="CY 2022",INDEX('6. CY 2022'!AQ:AQ,MATCH($C69,'6. CY 2022'!$A:$A,0)),0),0) -> 9011419.405 | AR69: =IFERROR(IF($Y69="CY 2022",INDEX('6. CY 2022'!AS:AS,MATCH($C69,'6. CY 2022'!A:A,0)),0),0) -> 2016091.37 | AS69: =IFERROR(IF(Y69="CY 2022",INDEX('6. CY 2022'!AT:AT,MATCH(C69,'6. CY 2022'!A:A,0)),0),0) -> 8955980.41 | AT69: =IFERROR(IF($Y69="CY 2022",INDEX('6. CY 2022'!AU:AU,MATCH($C69,'6. CY 2022'!A:A,0)),0),0) -> 10972071.78 | AW69: =IFERROR(IF(Y69="CY 2022",INDEX('6. CY 2022'!H:H,MATCH(C69,'6. CY 2022'!A:A,0)),0),0) -> 68762582.55
A70: 68 | B70: COMMUNITY HOSPITAL OF LONG BEACH | C70: 106190475 | D70: COMMUNITY HOSPITAL OF LONG BEACH | F70: =IFERROR(INDEX('8. 2018 OSHPD (FEE) DAYS'!G:G,MATCH(C70,'8. 2018 OSHPD (FEE) DAYS'!A:A,0)),0) -> 00:00:00 | G70: =IFERROR(INDEX('8. 2018 OSHPD (FEE) DAYS'!H:H,MATCH(C70,'8. 2018 OSHPD (FEE) DAYS'!A:A,0)),0) -> 00:00:00 | H70: =IFERROR(INDEX('8. 2018 OSHPD (FEE) DAYS'!W:W,MATCH(C70,'8. 2018 OSHPD (FEE) DAYS'!A:A,0)),0) -> 00:00:00 | I70: =IFERROR(INDEX('11. Hospital Statuses'!M:M,MATCH(C70,'11. Hospital Statuses'!A:A,0)),"") -> Closed | P70: https://chlb.org/ | X70: =IFERROR(IF(INDEX(#REF!,MATCH(C70,#REF!,0)),"Yes","No"),"") ->  | Y70: CY 2022 | Z70: =IFERROR(IF($Y70="CY 2022",INDEX('6. CY 2022'!R:R,MATCH($C70,'6. CY 2022'!$A:$A,0)),0),0) -> 0 | AA70: =IFERROR(IF($Y70="CY 2022",INDEX('6. CY 2022'!S:S,MATCH($C70,'6. CY 2022'!$A:$A,0)),0),0) -> 0 | AB70: =IFERROR(IF($Y70="CY 2022",INDEX('6. CY 2022'!T:T,MATCH($C70,'6. CY 2022'!$A:$A,0)),0),0) -> 0 | AC70: =IFERROR(IF($Y70="CY 2022",INDEX('6. CY 2022'!U:U,MATCH($C70,'6. CY 2022'!$A:$A,0)),0),0) -> 0 | AD70: =IFERROR(IF($Y70="CY 2022",INDEX('6. CY 2022'!V:V,MATCH($C70,'6. CY 2022'!$A:$A,0)),0),0) -> 0 | AE70: =IFERROR(IF($Y70="CY 2022",INDEX('6. CY 2022'!W:W,MATCH($C70,'6. CY 2022'!$A:$A,0)),0),0) -> 0 | AF70: =IFERROR(IF($Y70="CY 2022",INDEX('6. CY 2022'!X:X,MATCH($C70,'6. CY 2022'!$A:$A,0)),0),0) -> 0 | AG70: =IFERROR(IF(Y70="CY 2022",AF70/'4. Calculated Fee'!$D$35*'4. Calculated Fee'!$D$26,0),0) -> 0 | AH70: =IFERROR(IF($Y70="CY 2022",INDEX('6. CY 2022'!X:X,MATCH($C70,'6. CY 2022'!$A:$A,0)),0),0) -> 0 | AI70: =IFERROR(IF(Y70="CY 2022",INDEX('6. CY 2022'!AG:AG,MATCH(C70,'6. CY 2022'!A:A,0)),0),0) -> 0 | AJ70: =IFERROR(IF($Y70="CY 2022",INDEX('6. CY 2022'!AH:AH,MATCH($C70,'6. CY 2022'!$A:$A,0)),0),0) -> 0 | AK70: =IFERROR(IF($Y70="CY 2022",INDEX('6. CY 2022'!AI:AI,MATCH($C70,'6. CY 2022'!$A:$A,0)),0),0) -> 0 | AL70: =IFERROR(IF($Y70="CY 2022",INDEX('6. CY 2022'!AJ:AJ,MATCH($C70,'6. CY 2022'!$A:$A,0)),0),0) -> 0 | AM70: =IFERROR(IF($Y70="CY 2022",INDEX('6. CY 2022'!AK:AK,MATCH($C70,'6. CY 2022'!$A:$A,0)),0),0) -> 0 | AN70: =IFERROR(IF($Y70="CY 2022",INDEX('6. CY 2022'!AL:AL,MATCH($C70,'6. CY 2022'!$A:$A,0)),0),0) -> 0 | AO70: =IFERROR(IF($Y70="CY 2022",INDEX('6. CY 2022'!AM:AM,MATCH($C70,'6. CY 2022'!$A:$A,0)),0),0) -> 0 | AP70: =IFERROR(IF($Y70="CY 2022",INDEX('6. CY 2022'!AN:AN,MATCH($C70,'6. CY 2022'!$A:$A,0)),0),0) -> 0 | AQ70: =IFERROR(IF($Y70="CY 2022",INDEX('6. CY 2022'!AQ:AQ,MATCH($C70,'6. CY 2022'!$A:$A,0)),0),0) -> 0 | AR70: =IFERROR(IF($Y70="CY 2022",INDEX('6. CY 2022'!AS:AS,MATCH($C70,'6. CY 2022'!A:A,0)),0),0) -> 0 | AS70: =IFERROR(IF(Y70="CY 2022",INDEX('6. CY 2022'!AT:AT,MATCH(C70,'6. CY 2022'!A:A,0)),0),0) -> 0 | AT70: =IFERROR(IF($Y70="CY 2022",INDEX('6. CY 2022'!AU:AU,MATCH($C70,'6. CY 2022'!A:A,0)),0),0) -> 0 | AW70: =IFERROR(IF(Y70="CY 2022",INDEX('6. CY 2022'!H:H,MATCH(C70,'6. CY 2022'!A:A,0)),0),0) -> 0
A71: 69 | B71: COMMUNITY HOSPITAL OF SAN BERNARDINO | C71: 106361323 | D71: COMMUNITY HOSPITAL OF SAN BERNARDINO | F71: =IFERROR(INDEX('8. 2018 OSHPD (FEE) DAYS'!G:G,MATCH(C71,'8. 2018 OSHPD (FEE) DAYS'!A:A,0)),0) -> 2017-07-01 | G71: =IFERROR(INDEX('8. 2018 OSHPD (FEE) DAYS'!H:H,MATCH(C71,'8. 2018 OSHPD (FEE) DAYS'!A:A,0)),0) -> 2018-06-30 | H71: =IFERROR(INDEX('8. 2018 OSHPD (FEE) DAYS'!W:W,MATCH(C71,'8. 2018 OSHPD (FEE) DAYS'!A:A,0)),0) -> 2017-07-01 | I71: =IFERROR(INDEX('11. Hospital Statuses'!M:M,MATCH(C71,'11. Hospital Statuses'!A:A,0)),"") -> Open | J71: San Bernardino | K71: 12 | L71: 1209 | M71: Non-Profit | N71: Comparable | P71: https://www.dignityhealth.org/socal/locations/san-bernardino | R71: DIGNITY HEALTH | S71: 909-887-6333 | T71: 1805 MEDICAL CENTER DRIVE | U71: SAN BERNARDINO | V71: 92411 | W71: JUNE COLLISON | X71: =IFERROR(IF(INDEX(#REF!,MATCH(C71,#REF!,0)),"Yes","No"),"") ->  | Y71: CY 2022 | Z71: =IFERROR(IF($Y71="CY 2022",INDEX('6. CY 2022'!R:R,MATCH($C71,'6. CY 2022'!$A:$A,0)),0),0) -> 0 | AA71: =IFERROR(IF($Y71="CY 2022",INDEX('6. CY 2022'!S:S,MATCH($C71,'6. CY 2022'!$A:$A,0)),0),0) -> 2017302 | AB71: =IFERROR(IF($Y71="CY 2022",INDEX('6. CY 2022'!T:T,MATCH($C71,'6. CY 2022'!$A:$A,0)),0),0) -> 2031881.28 | AC71: =IFERROR(IF($Y71="CY 2022",INDEX('6. CY 2022'!U:U,MATCH($C71,'6. CY 2022'!$A:$A,0)),0),0) -> 0 | AD71: =IFERROR(IF($Y71="CY 2022",INDEX('6. CY 2022'!V:V,MATCH($C71,'6. CY 2022'!$A:$A,0)),0),0) -> 6464793.75 | AE71: =IFERROR(IF($Y71="CY 2022",INDEX('6. CY 2022'!W:W,MATCH($C71,'6. CY 2022'!$A:$A,0)),0),0) -> 8901236.25 | AF71: =IFERROR(IF($Y71="CY 2022",INDEX('6. CY 2022'!X:X,MATCH($C71,'6. CY 2022'!$A:$A,0)),0),0) -> 19415213.28 | AG71: =IFERROR(IF(Y71="CY 2022",AF71/'4. Calculated Fee'!$D$35*'4. Calculated Fee'!$D$26,0),0) -> 5707059.056 | AH71: =IFERROR(IF($Y71="CY 2022",INDEX('6. CY 2022'!X:X,MATCH($C71,'6. CY 2022'!$A:$A,0)),0),0) -> 19415213.28 | AI71: =IFERROR(IF(Y71="CY 2022",INDEX('6. CY 2022'!AG:AG,MATCH(C71,'6. CY 2022'!A:A,0)),0),0) -> 3487120.791 | AJ71: =IFERROR(IF($Y71="CY 2022",INDEX('6. CY 2022'!AH:AH,MATCH($C71,'6. CY 2022'!$A:$A,0)),0),0) -> 9229101.029 | AK71: =IFERROR(IF($Y71="CY 2022",INDEX('6. CY 2022'!AI:AI,MATCH($C71,'6. CY 2022'!$A:$A,0)),0),0) -> 6640620.89 | AL71: =IFERROR(IF($Y71="CY 2022",INDEX('6. CY 2022'!AJ:AJ,MATCH($C71,'6. CY 2022'!$A:$A,0)),0),0) -> 2952300 | AM71: =IFERROR(IF($Y71="CY 2022",INDEX('6. CY 2022'!AK:AK,MATCH($C71,'6. CY 2022'!$A:$A,0)),0),0) -> 0 | AN71: =IFERROR(IF($Y71="CY 2022",INDEX('6. CY 2022'!AL:AL,MATCH($C71,'6. CY 2022'!$A:$A,0)),0),0) -> 0 | AO71: =IFERROR(IF($Y71="CY 2022",INDEX('6. CY 2022'!AM:AM,MATCH($C71,'6. CY 2022'!$A:$A,0)),0),0) -> 0 | AP71: =IFERROR(IF($Y71="CY 2022",INDEX('6. CY 2022'!AN:AN,MATCH($C71,'6. CY 2022'!$A:$A,0)),0),0) -> 0 | AQ71: =IFERROR(IF($Y71="CY 2022",INDEX('6. CY 2022'!AQ:AQ,MATCH($C71,'6. CY 2022'!$A:$A,0)),0),0) -> 22309142.71 | AR71: =IFERROR(IF($Y71="CY 2022",INDEX('6. CY 2022'!AS:AS,MATCH($C71,'6. CY 2022'!A:A,0)),0),0) -> 25897774.52 | AS71: =IFERROR(IF(Y71="CY 2022",INDEX('6. CY 2022'!AT:AT,MATCH(C71,'6. CY 2022'!A:A,0)),0),0) -> 26148191.6 | AT71: =IFERROR(IF($Y71="CY 2022",INDEX('6. CY 2022'!AU:AU,MATCH($C71,'6. CY 2022'!A:A,0)),0),0) -> 52045966.12 | AW71: =IFERROR(IF(Y71="CY 2022",INDEX('6. CY 2022'!H:H,MATCH(C71,'6. CY 2022'!A:A,0)),0),0) -> 115789795.9
A72: 70 | B72: COMMUNITY HOSPITAL OF THE MONTEREY PENINSULA | C72: 106270744 | D72: COMMUNITY HOSPITAL OF THE MONTEREY PENINSULA | F72: =IFERROR(INDEX('8. 2018 OSHPD (FEE) DAYS'!G:G,MATCH(C72,'8. 2018 OSHPD (FEE) DAYS'!A:A,0)),0) -> 2018-01-01 | G72: =IFERROR(INDEX('8. 2018 OSHPD (FEE) DAYS'!H:H,MATCH(C72,'8. 2018 OSHPD (FEE) DAYS'!A:A,0)),0) -> 2018-12-31 | H72: =IFERROR(INDEX('8. 2018 OSHPD (FEE) DAYS'!W:W,MATCH(C72,'8. 2018 OSHPD (FEE) DAYS'!A:A,0)),0) -> 2018-01-01 | I72: =IFERROR(INDEX('11. Hospital Statuses'!M:M,MATCH(C72,'11. Hospital Statuses'!A:A,0)),"") -> Open | J72: Monterey | K72: 8 | L72: 707 | M72: Non-Profit | N72: Comparable | P72: https://www.montagehealth.org/locations/profile/community-hospital-monterey-peninsula/ | R72: COMMUNITY HOSPITAL FOUNDATION | S72: 831-624-5311 | T72: 23625 W.R. HOLMAN HIGHWAY | U72: MONTEREY | V72: 93940 | W72: STEVEN PACKER M.D. | X72: =IFERROR(IF(INDEX(#REF!,MATCH(C72,#REF!,0)),"Yes","No"),"") ->  | Y72: CY 2022 | Z72: =IFERROR(IF($Y72="CY 2022",INDEX('6. CY 2022'!R:R,MATCH($C72,'6. CY 2022'!$A:$A,0)),0),0) -> 0 | AA72: =IFERROR(IF($Y72="CY 2022",INDEX('6. CY 2022'!S:S,MATCH($C72,'6. CY 2022'!$A:$A,0)),0),0) -> 3874035.25 | AB72: =IFERROR(IF($Y72="CY 2022",INDEX('6. CY 2022'!T:T,MATCH($C72,'6. CY 2022'!$A:$A,0)),0),0) -> 10684834.68 | AC72: =IFERROR(IF($Y72="CY 2022",INDEX('6. CY 2022'!U:U,MATCH($C72,'6. CY 2022'!$A:$A,0)),0),0) -> 0 | AD72: =IFERROR(IF($Y72="CY 2022",INDEX('6. CY 2022'!V:V,MATCH($C72,'6. CY 2022'!$A:$A,0)),0),0) -> 3418493.25 | AE72: =IFERROR(IF($Y72="CY 2022",INDEX('6. CY 2022'!W:W,MATCH($C72,'6. CY 2022'!$A:$A,0)),0),0) -> 1329829.25 | AF72: =IFERROR(IF($Y72="CY 2022",INDEX('6. CY 2022'!X:X,MATCH($C72,'6. CY 2022'!$A:$A,0)),0),0) -> 19307192.43 | AG72: =IFERROR(IF(Y72="CY 2022",AF72/'4. Calculated Fee'!$D$35*'4. Calculated Fee'!$D$26,0),0) -> 5675306.566 | AH72: =IFERROR(IF($Y72="CY 2022",INDEX('6. CY 2022'!X:X,MATCH($C72,'6. CY 2022'!$A:$A,0)),0),0) -> 19307192.43 | AI72: =IFERROR(IF(Y72="CY 2022",INDEX('6. CY 2022'!AG:AG,MATCH(C72,'6. CY 2022'!A:A,0)),0),0) -> 1433348.637 | AJ72: =IFERROR(IF($Y72="CY 2022",INDEX('6. CY 2022'!AH:AH,MATCH($C72,'6. CY 2022'!$A:$A,0)),0),0) -> 2040975.32 | AK72: =IFERROR(IF($Y72="CY 2022",INDEX('6. CY 2022'!AI:AI,MATCH($C72,'6. CY 2022'!$A:$A,0)),0),0) -> 0 | AL72: =IFERROR(IF($Y72="CY 2022",INDEX('6. CY 2022'!AJ:AJ,MATCH($C72,'6. CY 2022'!$A:$A,0)),0),0) -> 131625 | AM72: =IFERROR(IF($Y72="CY 2022",INDEX('6. CY 2022'!AK:AK,MATCH($C72,'6. CY 2022'!$A:$A,0)),0),0) -> 252500 | AN72: =IFERROR(IF($Y72="CY 2022",INDEX('6. CY 2022'!AL:AL,MATCH($C72,'6. CY 2022'!$A:$A,0)),0),0) -> 0 | AO72: =IFERROR(IF($Y72="CY 2022",INDEX('6. CY 2022'!AM:AM,MATCH($C72,'6. CY 2022'!$A:$A,0)),0),0) -> 0 | AP72: =IFERROR(IF($Y72="CY 2022",INDEX('6. CY 2022'!AN:AN,MATCH($C72,'6. CY 2022'!$A:$A,0)),0),0) -> 0 | AQ72: =IFERROR(IF($Y72="CY 2022",INDEX('6. CY 2022'!AQ:AQ,MATCH($C72,'6. CY 2022'!$A:$A,0)),0),0) -> 3858448.957 | AR72: =IFERROR(IF($Y72="CY 2022",INDEX('6. CY 2022'!AS:AS,MATCH($C72,'6. CY 2022'!A:A,0)),0),0) -> 5170143.55 | AS72: =IFERROR(IF(Y72="CY 2022",INDEX('6. CY 2022'!AT:AT,MATCH(C72,'6. CY 2022'!A:A,0)),0),0) -> 15355423.9 | AT72: =IFERROR(IF($Y72="CY 2022",INDEX('6. CY 2022'!AU:AU,MATCH($C72,'6. CY 2022'!A:A,0)),0),0) -> 20525567.45 | AW72: =IFERROR(IF(Y72="CY 2022",INDEX('6. CY 2022'!H:H,MATCH(C72,'6. CY 2022'!A:A,0)),0),0) -> 797026172.8
A73: 71 | B73: COMMUNITY MEMORIAL HOSPITAL OF SAN BUENAVENTURA | C73: 106560473 | D73: COMMUNITY MEMORIAL HOSPITAL OF SAN BUENAVENTURA | F73: =IFERROR(INDEX('8. 2018 OSHPD (FEE) DAYS'!G:G,MATCH(C73,'8. 2018 OSHPD (FEE) DAYS'!A:A,0)),0) -> 2018-01-01 | G73: =IFERROR(INDEX('8. 2018 OSHPD (FEE) DAYS'!H:H,MATCH(C73,'8. 2018 OSHPD (FEE) DAYS'!A:A,0)),0) -> 2018-12-31 | H73: =IFERROR(INDEX('8. 2018 OSHPD (FEE) DAYS'!W:W,MATCH(C73,'8. 2018 OSHPD (FEE) DAYS'!A:A,0)),0) -> 2018-01-01 | I73: =IFERROR(INDEX('11. Hospital Statuses'!M:M,MATCH(C73,'11. Hospital Statuses'!A:A,0)),"") -> Open | J73: Ventura | K73: 10 | L73: 809 | M73: Non-Profit | N73: Comparable | P73: https://healthy.kaiserpermanente.org/southern-california/facilities/community-memorial-hospital-of-san-buenaventura-100145 | R73: COMMUNITY MEMORIAL HOSPITAL | S73: 805-652-5011 | T73: 147 N. BRENT STREET | U73: VENTURA | V73: 93003-2809 | W73: GARY K. WILDE | X73: =IFERROR(IF(INDEX(#REF!,MATCH(C73,#REF!,0)),"Yes","No"),"") ->  | Y73: CY 2022 | Z73: =IFERROR(IF($Y73="CY 2022",INDEX('6. CY 2022'!R:R,MATCH($C73,'6. CY 2022'!$A:$A,0)),0),0) -> 0 | AA73: =IFERROR(IF($Y73="CY 2022",INDEX('6. CY 2022'!S:S,MATCH($C73,'6. CY 2022'!$A:$A,0)),0),0) -> 6411859.25 | AB73: =IFERROR(IF($Y73="CY 2022",INDEX('6. CY 2022'!T:T,MATCH($C73,'6. CY 2022'!$A:$A,0)),0),0) -> 3956199 | AC73: =IFERROR(IF($Y73="CY 2022",INDEX('6. CY 2022'!U:U,MATCH($C73,'6. CY 2022'!$A:$A,0)),0),0) -> 0 | AD73: =IFERROR(IF($Y73="CY 2022",INDEX('6. CY 2022'!V:V,MATCH($C73,'6. CY 2022'!$A:$A,0)),0),0) -> 2824579.25 | AE73: =IFERROR(IF($Y73="CY 2022",INDEX('6. CY 2022'!W:W,MATCH($C73,'6. CY 2022'!$A:$A,0)),0),0) -> 1636751.25 | AF73: =IFERROR(IF($Y73="CY 2022",INDEX('6. CY 2022'!X:X,MATCH($C73,'6. CY 2022'!$A:$A,0)),0),0) -> 14829388.75 | AG73: =IFERROR(IF(Y73="CY 2022",AF73/'4. Calculated Fee'!$D$35*'4. Calculated Fee'!$D$26,0),0) -> 4359066.066 | AH73: =IFERROR(IF($Y73="CY 2022",INDEX('6. CY 2022'!X:X,MATCH($C73,'6. CY 2022'!$A:$A,0)),0),0) -> 14829388.75 | AI73: =IFERROR(IF(Y73="CY 2022",INDEX('6. CY 2022'!AG:AG,MATCH(C73,'6. CY 2022'!A:A,0)),0),0) -> 5066373.535 | AJ73: =IFERROR(IF($Y73="CY 2022",INDEX('6. CY 2022'!AH:AH,MATCH($C73,'6. CY 2022'!$A:$A,0)),0),0) -> 4661892.726 | AK73: =IFERROR(IF($Y73="CY 2022",INDEX('6. CY 2022'!AI:AI,MATCH($C73,'6. CY 2022'!$A:$A,0)),0),0) -> 0 | AL73: =IFERROR(IF($Y73="CY 2022",INDEX('6. CY 2022'!AJ:AJ,MATCH($C73,'6. CY 2022'!$A:$A,0)),0),0) -> 0 | AM73: =IFERROR(IF($Y73="CY 2022",INDEX('6. CY 2022'!AK:AK,MATCH($C73,'6. CY 2022'!$A:$A,0)),0),0) -> 1032500 | AN73: =IFERROR(IF($Y73="CY 2022",INDEX('6. CY 2022'!AL:AL,MATCH($C73,'6. CY 2022'!$A:$A,0)),0),0) -> 0 | AO73: =IFERROR(IF($Y73="CY 2022",INDEX('6. CY 2022'!AM:AM,MATCH($C73,'6. CY 2022'!$A:$A,0)),0),0) -> 0 | AP73: =IFERROR(IF($Y73="CY 2022",INDEX('6. CY 2022'!AN:AN,MATCH($C73,'6. CY 2022'!$A:$A,0)),0),0) -> 0 | AQ73: =IFERROR(IF($Y73="CY 2022",INDEX('6. CY 2022'!AQ:AQ,MATCH($C73,'6. CY 2022'!$A:$A,0)),0),0) -> 10760766.26 | AR73: =IFERROR(IF($Y73="CY 2022",INDEX('6. CY 2022'!AS:AS,MATCH($C73,'6. CY 2022'!A:A,0)),0),0) -> 4211262.03 | AS73: =IFERROR(IF(Y73="CY 2022",INDEX('6. CY 2022'!AT:AT,MATCH(C73,'6. CY 2022'!A:A,0)),0),0) -> 26773353.21 | AT73: =IFERROR(IF($Y73="CY 2022",INDEX('6. CY 2022'!AU:AU,MATCH($C73,'6. CY 2022'!A:A,0)),0),0) -> 30984615.24 | AW73: =IFERROR(IF(Y73="CY 2022",INDEX('6. CY 2022'!H:H,MATCH(C73,'6. CY 2022'!A:A,0)),0),0) -> 545140509.3
A74: 72 | B74: COMMUNITY REGIONAL MEDICAL CENTER - FRESNO | C74: 106100717 | D74: COMMUNITY REGIONAL MEDICAL CENTER - FRESNO | F74: =IFERROR(INDEX('8. 2018 OSHPD (FEE) DAYS'!G:G,MATCH(C74,'8. 2018 OSHPD (FEE) DAYS'!A:A,0)),0) -> 2017-09-01 | G74: =IFERROR(INDEX('8. 2018 OSHPD (FEE) DAYS'!H:H,MATCH(C74,'8. 2018 OSHPD (FEE) DAYS'!A:A,0)),0) -> 2018-08-31 | H74: =IFERROR(INDEX('8. 2018 OSHPD (FEE) DAYS'!W:W,MATCH(C74,'8. 2018 OSHPD (FEE) DAYS'!A:A,0)),0) -> 2017-09-01 | I74: =IFERROR(INDEX('11. Hospital Statuses'!M:M,MATCH(C74,'11. Hospital Statuses'!A:A,0)),"") -> Open | J74: Fresno | K74: 9 | L74: 605 | M74: Non-Profit | N74: Comparable | O74: Teaching | P74: https://www.universitymds.com/medical-practice-locations/community-regional-medical-center/ | R74: COMMUNITY MEDICAL CENTERS | S74: 559-459-6000 | T74: 2823 FRESNO STREET | U74: FRESNO | V74: 93715 | W74: TIM A JOSLIN | X74: =IFERROR(IF(INDEX(#REF!,MATCH(C74,#REF!,0)),"Yes","No"),"") ->  | Y74: CY 2022 | Z74: =IFERROR(IF($Y74="CY 2022",INDEX('6. CY 2022'!R:R,MATCH($C74,'6. CY 2022'!$A:$A,0)),0),0) -> 0 | AA74: =IFERROR(IF($Y74="CY 2022",INDEX('6. CY 2022'!S:S,MATCH($C74,'6. CY 2022'!$A:$A,0)),0),0) -> 6789963.75 | AB74: =IFERROR(IF($Y74="CY 2022",INDEX('6. CY 2022'!T:T,MATCH($C74,'6. CY 2022'!$A:$A,0)),0),0) -> 17834432.46 | AC74: =IFERROR(IF($Y74="CY 2022",INDEX('6. CY 2022'!U:U,MATCH($C74,'6. CY 2022'!$A:$A,0)),0),0) -> 0 | AD74: =IFERROR(IF($Y74="CY 2022",INDEX('6. CY 2022'!V:V,MATCH($C74,'6. CY 2022'!$A:$A,0)),0),0) -> 45119028.75 | AE74: =IFERROR(IF($Y74="CY 2022",INDEX('6. CY 2022'!W:W,MATCH($C74,'6. CY 2022'!$A:$A,0)),0),0) -> 27354423.25 | AF74: =IFERROR(IF($Y74="CY 2022",INDEX('6. CY 2022'!X:X,MATCH($C74,'6. CY 2022'!$A:$A,0)),0),0) -> 97097848.21 | AG74: =IFERROR(IF(Y74="CY 2022",AF74/'4. Calculated Fee'!$D$35*'4. Calculated Fee'!$D$26,0),0) -> 28541698 | AH74: =IFERROR(IF($Y74="CY 2022",INDEX('6. CY 2022'!X:X,MATCH($C74,'6. CY 2022'!$A:$A,0)),0),0) -> 97097848.21 | AI74: =IFERROR(IF(Y74="CY 2022",INDEX('6. CY 2022'!AG:AG,MATCH(C74,'6. CY 2022'!A:A,0)),0),0) -> 12073689.11 | AJ74: =IFERROR(IF($Y74="CY 2022",INDEX('6. CY 2022'!AH:AH,MATCH($C74,'6. CY 2022'!$A:$A,0)),0),0) -> 42635606.22 | AK74: =IFERROR(IF($Y74="CY 2022",INDEX('6. CY 2022'!AI:AI,MATCH($C74,'6. CY 2022'!$A:$A,0)),0),0) -> 3634511.816 | AL74: =IFERROR(IF($Y74="CY 2022",INDEX('6. CY 2022'!AJ:AJ,MATCH($C74,'6. CY 2022'!$A:$A,0)),0),0) -> 2269800 | AM74: =IFERROR(IF($Y74="CY 2022",INDEX('6. CY 2022'!AK:AK,MATCH($C74,'6. CY 2022'!$A:$A,0)),0),0) -> 0 | AN74: =IFERROR(IF($Y74="CY 2022",INDEX('6. CY 2022'!AL:AL,MATCH($C74,'6. CY 2022'!$A:$A,0)),0),0) -> 0 | AO74: =IFERROR(IF($Y74="CY 2022",INDEX('6. CY 2022'!AM:AM,MATCH($C74,'6. CY 2022'!$A:$A,0)),0),0) -> 0 | AP74: =IFERROR(IF($Y74="CY 2022",INDEX('6. CY 2022'!AN:AN,MATCH($C74,'6. CY 2022'!$A:$A,0)),0),0) -> 0 | AQ74: =IFERROR(IF($Y74="CY 2022",INDEX('6. CY 2022'!AQ:AQ,MATCH($C74,'6. CY 2022'!$A:$A,0)),0),0) -> 60613607.15 | AR74: =IFERROR(IF($Y74="CY 2022",INDEX('6. CY 2022'!AS:AS,MATCH($C74,'6. CY 2022'!A:A,0)),0),0) -> 56194105.24 | AS74: =IFERROR(IF(Y74="CY 2022",INDEX('6. CY 2022'!AT:AT,MATCH(C74,'6. CY 2022'!A:A,0)),0),0) -> 110689746.6 | AT74: =IFERROR(IF($Y74="CY 2022",INDEX('6. CY 2022'!AU:AU,MATCH($C74,'6. CY 2022'!A:A,0)),0),0) -> 166883851.8 | AW74: =IFERROR(IF(Y74="CY 2022",INDEX('6. CY 2022'!H:H,MATCH(C74,'6. CY 2022'!A:A,0)),0),0) -> 1898172012
A75: 73 | B75: CONTRA COSTA REGIONAL MEDICAL CENTER | C75: 106070924 | D75: CONTRA COSTA REGIONAL MEDICAL CENTER | F75: =IFERROR(INDEX('8. 2018 OSHPD (FEE) DAYS'!G:G,MATCH(C75,'8. 2018 OSHPD (FEE) DAYS'!A:A,0)),0) -> 2017-07-01 | G75: =IFERROR(INDEX('8. 2018 OSHPD (FEE) DAYS'!H:H,MATCH(C75,'8. 2018 OSHPD (FEE) DAYS'!A:A,0)),0) -> 2018-06-30 | H75: =IFERROR(INDEX('8. 2018 OSHPD (FEE) DAYS'!W:W,MATCH(C75,'8. 2018 OSHPD (FEE) DAYS'!A:A,0)),0) -> 2017-07-01 | I75: =IFERROR(INDEX('11. Hospital Statuses'!M:M,MATCH(C75,'11. Hospital Statuses'!A:A,0)),"") -> Open | J75: Contra Costa | K75: 5 | L75: 411 | M75: City/County | N75: Comparable | P75: https://cchealth.org/medicalcenter/ | R75: COUNTY OF CONTRA COSTA | S75: 925-370-4222 | T75: 2500 ALHAMBRA STREET | U75: MARTINEZ | V75: 94533 | W75: SAMIR SHAH | X75: =IFERROR(IF(INDEX(#REF!,MATCH(C75,#REF!,0)),"Yes","No"),"") ->  | Y75: CY 2022 | Z75: =IFERROR(IF($Y75="CY 2022",INDEX('6. CY 2022'!R:R,MATCH($C75,'6. CY 2022'!$A:$A,0)),0),0) -> 0 | AA75: =IFERROR(IF($Y75="CY 2022",INDEX('6. CY 2022'!S:S,MATCH($C75,'6. CY 2022'!$A:$A,0)),0),0) -> 0 | AB75: =IFERROR(IF($Y75="CY 2022",INDEX('6. CY 2022'!T:T,MATCH($C75,'6. CY 2022'!$A:$A,0)),0),0) -> 0 | AC75: =IFERROR(IF($Y75="CY 2022",INDEX('6. CY 2022'!U:U,MATCH($C75,'6. CY 2022'!$A:$A,0)),0),0) -> 0 | AD75: =IFERROR(IF($Y75="CY 2022",INDEX('6. CY 2022'!V:V,MATCH($C75,'6. CY 2022'!$A:$A,0)),0),0) -> 0 | AE75: =IFERROR(IF($Y75="CY 2022",INDEX('6. CY 2022'!W:W,MATCH($C75,'6. CY 2022'!$A:$A,0)),0),0) -> 0 | AF75: =IFERROR(IF($Y75="CY 2022",INDEX('6. CY 2022'!X:X,MATCH($C75,'6. CY 2022'!$A:$A,0)),0),0) -> 0 | AG75: =IFERROR(IF(Y75="CY 2022",AF75/'4. Calculated Fee'!$D$35*'4. Calculated Fee'!$D$26,0),0) -> 0 | AH75: =IFERROR(IF($Y75="CY 2022",INDEX('6. CY 2022'!X:X,MATCH($C75,'6. CY 2022'!$A:$A,0)),0),0) -> 0 | AI75: =IFERROR(IF(Y75="CY 2022",INDEX('6. CY 2022'!AG:AG,MATCH(C75,'6. CY 2022'!A:A,0)),0),0) -> 0 | AJ75: =IFERROR(IF($Y75="CY 2022",INDEX('6. CY 2022'!AH:AH,MATCH($C75,'6. CY 2022'!$A:$A,0)),0),0) -> 0 | AK75: =IFERROR(IF($Y75="CY 2022",INDEX('6. CY 2022'!AI:AI,MATCH($C75,'6. CY 2022'!$A:$A,0)),0),0) -> 0 | AL75: =IFERROR(IF($Y75="CY 2022",INDEX('6. CY 2022'!AJ:AJ,MATCH($C75,'6. CY 2022'!$A:$A,0)),0),0) -> 0 | AM75: =IFERROR(IF($Y75="CY 2022",INDEX('6. CY 2022'!AK:AK,MATCH($C75,'6. CY 2022'!$A:$A,0)),0),0) -> 0 | AN75: =IFERROR(IF($Y75="CY 2022",INDEX('6. CY 2022'!AL:AL,MATCH($C75,'6. CY 2022'!$A:$A,0)),0),0) -> 0 | AO75: =IFERROR(IF($Y75="CY 2022",INDEX('6. CY 2022'!AM:AM,MATCH($C75,'6. CY 2022'!$A:$A,0)),0),0) -> 0 | AP75: =IFERROR(IF($Y75="CY 2022",INDEX('6. CY 2022'!AN:AN,MATCH($C75,'6. CY 2022'!$A:$A,0)),0),0) -> 0 | AQ75: =IFERROR(IF($Y75="CY 2022",INDEX('6. CY 2022'!AQ:AQ,MATCH($C75,'6. CY 2022'!$A:$A,0)),0),0) -> 0 | AR75: =IFERROR(IF($Y75="CY 2022",INDEX('6. CY 2022'!AS:AS,MATCH($C75,'6. CY 2022'!A:A,0)),0),0) -> 0 | AS75: =IFERROR(IF(Y75="CY 2022",INDEX('6. CY 2022'!AT:AT,MATCH(C75,'6. CY 2022'!A:A,0)),0),0) -> 0 | AT75: =IFERROR(IF($Y75="CY 2022",INDEX('6. CY 2022'!AU:AU,MATCH($C75,'6. CY 2022'!A:A,0)),0),0) -> 0 | AW75: =IFERROR(IF(Y75="CY 2022",INDEX('6. CY 2022'!H:H,MATCH(C75,'6. CY 2022'!A:A,0)),0),0) -> 524382395.1
A76: 74 | B76: CORONA REGIONAL MEDICAL CENTER - MAIN | C76: 106331152 | D76: CORONA REGIONAL MEDICAL CENTER - MAIN | F76: =IFERROR(INDEX('8. 2018 OSHPD (FEE) DAYS'!G:G,MATCH(C76,'8. 2018 OSHPD (FEE) DAYS'!A:A,0)),0) -> 2018-01-01 | G76: =IFERROR(INDEX('8. 2018 OSHPD (FEE) DAYS'!H:H,MATCH(C76,'8. 2018 OSHPD (FEE) DAYS'!A:A,0)),0) -> 2018-12-31 | H76: =IFERROR(INDEX('8. 2018 OSHPD (FEE) DAYS'!W:W,MATCH(C76,'8. 2018 OSHPD (FEE) DAYS'!A:A,0)),0) -> 2018-01-01 | I76: =IFERROR(INDEX('11. Hospital Statuses'!M:M,MATCH(C76,'11. Hospital Statuses'!A:A,0)),"") -> Open | J76: Riverside | K76: 12 | L76: 1111 | M76: Investor | N76: Comparable | P76: https://www.coronaregional.com/ | R76: UNIVERSAL HEALTH SERVICES, INC. | S76: 909-737-4343 | T76: 800 SOUTH MAIN STREET | U76: CORONA | V76: 92880 | W76: MARK UFFER | X76: =IFERROR(IF(INDEX(#REF!,MATCH(C76,#REF!,0)),"Yes","No"),"") ->  | Y76: CY 2022 | Z76: =IFERROR(IF($Y76="CY 2022",INDEX('6. CY 2022'!R:R,MATCH($C76,'6. CY 2022'!$A:$A,0)),0),0) -> 0 | AA76: =IFERROR(IF($Y76="CY 2022",INDEX('6. CY 2022'!S:S,MATCH($C76,'6. CY 2022'!$A:$A,0)),0),0) -> 3977357.75 | AB76: =IFERROR(IF($Y76="CY 2022",INDEX('6. CY 2022'!T:T,MATCH($C76,'6. CY 2022'!$A:$A,0)),0),0) -> 3061619.34 | AC76: =IFERROR(IF($Y76="CY 2022",INDEX('6. CY 2022'!U:U,MATCH($C76,'6. CY 2022'!$A:$A,0)),0),0) -> 0 | AD76: =IFERROR(IF($Y76="CY 2022",INDEX('6. CY 2022'!V:V,MATCH($C76,'6. CY 2022'!$A:$A,0)),0),0) -> 3425468.75 | AE76: =IFERROR(IF($Y76="CY 2022",INDEX('6. CY 2022'!W:W,MATCH($C76,'6. CY 2022'!$A:$A,0)),0),0) -> 3560494.5 | AF76: =IFERROR(IF($Y76="CY 2022",INDEX('6. CY 2022'!X:X,MATCH($C76,'6. CY 2022'!$A:$A,0)),0),0) -> 14024940.34 | AG76: =IFERROR(IF(Y76="CY 2022",AF76/'4. Calculated Fee'!$D$35*'4. Calculated Fee'!$D$26,0),0) -> 4122600.233 | AH76: =IFERROR(IF($Y76="CY 2022",INDEX('6. CY 2022'!X:X,MATCH($C76,'6. CY 2022'!$A:$A,0)),0),0) -> 14024940.34 | AI76: =IFERROR(IF(Y76="CY 2022",INDEX('6. CY 2022'!AG:AG,MATCH(C76,'6. CY 2022'!A:A,0)),0),0) -> 1721044.479 | AJ76: =IFERROR(IF($Y76="CY 2022",INDEX('6. CY 2022'!AH:AH,MATCH($C76,'6. CY 2022'!$A:$A,0)),0),0) -> 4291045.406 | AK76: =IFERROR(IF($Y76="CY 2022",INDEX('6. CY 2022'!AI:AI,MATCH($C76,'6. CY 2022'!$A:$A,0)),0),0) -> 1946595.736 | AL76: =IFERROR(IF($Y76="CY 2022",INDEX('6. CY 2022'!AJ:AJ,MATCH($C76,'6. CY 2022'!$A:$A,0)),0),0) -> 1209000 | AM76: =IFERROR(IF($Y76="CY 2022",INDEX('6. CY 2022'!AK:AK,MATCH($C76,'6. CY 2022'!$A:$A,0)),0),0) -> 632500 | AN76: =IFERROR(IF($Y76="CY 2022",INDEX('6. CY 2022'!AL:AL,MATCH($C76,'6. CY 2022'!$A:$A,0)),0),0) -> 0 | AO76: =IFERROR(IF($Y76="CY 2022",INDEX('6. CY 2022'!AM:AM,MATCH($C76,'6. CY 2022'!$A:$A,0)),0),0) -> 0 | AP76: =IFERROR(IF($Y76="CY 2022",INDEX('6. CY 2022'!AN:AN,MATCH($C76,'6. CY 2022'!$A:$A,0)),0),0) -> 0 | AQ76: =IFERROR(IF($Y76="CY 2022",INDEX('6. CY 2022'!AQ:AQ,MATCH($C76,'6. CY 2022'!$A:$A,0)),0),0) -> 9800185.621 | AR76: =IFERROR(IF($Y76="CY 2022",INDEX('6. CY 2022'!AS:AS,MATCH($C76,'6. CY 2022'!A:A,0)),0),0) -> 7815848.32 | AS76: =IFERROR(IF(Y76="CY 2022",INDEX('6. CY 2022'!AT:AT,MATCH(C76,'6. CY 2022'!A:A,0)),0),0) -> 14227756.96 | AT76: =IFERROR(IF($Y76="CY 2022",INDEX('6. CY 2022'!AU:AU,MATCH($C76,'6. CY 2022'!A:A,0)),0),0) -> 22043605.28 | AW76: =IFERROR(IF(Y76="CY 2022",INDEX('6. CY 2022'!H:H,MATCH(C76,'6. CY 2022'!A:A,0)),0),0) -> 226684350.9
A77: 75 | B77: DAMERON HOSPITAL ASSOCIATION | C77: 106390846 | D77: DAMERON HOSPITAL ASSOCIATION | F77: =IFERROR(INDEX('8. 2018 OSHPD (FEE) DAYS'!G:G,MATCH(C77,'8. 2018 OSHPD (FEE) DAYS'!A:A,0)),0) -> 2018-01-01 | G77: =IFERROR(INDEX('8. 2018 OSHPD (FEE) DAYS'!H:H,MATCH(C77,'8. 2018 OSHPD (FEE) DAYS'!A:A,0)),0) -> 2018-12-31 | H77: =IFERROR(INDEX('8. 2018 OSHPD (FEE) DAYS'!W:W,MATCH(C77,'8. 2018 OSHPD (FEE) DAYS'!A:A,0)),0) -> 2018-01-01 | I77: =IFERROR(INDEX('11. Hospital Statuses'!M:M,MATCH(C77,'11. Hospital Statuses'!A:A,0)),"") -> Open | J77: San Joaquin | K77: 6 | L77: 507 | M77: Non-Profit | N77: Comparable | P77: https://www.dameronhospital.org/ | R77: DAMERON HOSPITAL ASSOCIATION | S77: 209-944-5550 | T77: 525 WEST ACACIA STREET | U77: STOCKTON | V77: 95203 | W77: LORRAINE AUERBACH | X77: =IFERROR(IF(INDEX(#REF!,MATCH(C77,#REF!,0)),"Yes","No"),"") ->  | Y77: CY 2022 | Z77: =IFERROR(IF($Y77="CY 2022",INDEX('6. CY 2022'!R:R,MATCH($C77,'6. CY 2022'!$A:$A,0)),0),0) -> 0 | AA77: =IFERROR(IF($Y77="CY 2022",INDEX('6. CY 2022'!S:S,MATCH($C77,'6. CY 2022'!$A:$A,0)),0),0) -> 994409.25 | AB77: =IFERROR(IF($Y77="CY 2022",INDEX('6. CY 2022'!T:T,MATCH($C77,'6. CY 2022'!$A:$A,0)),0),0) -> 1462526.52 | AC77: =IFERROR(IF($Y77="CY 2022",INDEX('6. CY 2022'!U:U,MATCH($C77,'6. CY 2022'!$A:$A,0)),0),0) -> 0 | AD77: =IFERROR(IF($Y77="CY 2022",INDEX('6. CY 2022'!V:V,MATCH($C77,'6. CY 2022'!$A:$A,0)),0),0) -> 1738394.25 | AE77: =IFERROR(IF($Y77="CY 2022",INDEX('6. CY 2022'!W:W,MATCH($C77,'6. CY 2022'!$A:$A,0)),0),0) -> 525155.5 | AF77: =IFERROR(IF($Y77="CY 2022",INDEX('6. CY 2022'!X:X,MATCH($C77,'6. CY 2022'!$A:$A,0)),0),0) -> 4720485.52 | AG77: =IFERROR(IF(Y77="CY 2022",AF77/'4. Calculated Fee'!$D$35*'4. Calculated Fee'!$D$26,0),0) -> 1387576.291 | AH77: =IFERROR(IF($Y77="CY 2022",INDEX('6. CY 2022'!X:X,MATCH($C77,'6. CY 2022'!$A:$A,0)),0),0) -> 4720485.52 | AI77: =IFERROR(IF(Y77="CY 2022",INDEX('6. CY 2022'!AG:AG,MATCH(C77,'6. CY 2022'!A:A,0)),0),0) -> 1339066.618 | AJ77: =IFERROR(IF($Y77="CY 2022",INDEX('6. CY 2022'!AH:AH,MATCH($C77,'6. CY 2022'!$A:$A,0)),0),0) -> 1626730.974 | AK77: =IFERROR(IF($Y77="CY 2022",INDEX('6. CY 2022'!AI:AI,MATCH($C77,'6. CY 2022'!$A:$A,0)),0),0) -> 0 | AL77: =IFERROR(IF($Y77="CY 2022",INDEX('6. CY 2022'!AJ:AJ,MATCH($C77,'6. CY 2022'!$A:$A,0)),0),0) -> 0 | AM77: =IFERROR(IF($Y77="CY 2022",INDEX('6. CY 2022'!AK:AK,MATCH($C77,'6. CY 2022'!$A:$A,0)),0),0) -> 645000 | AN77: =IFERROR(IF($Y77="CY 2022",INDEX('6. CY 2022'!AL:AL,MATCH($C77,'6. CY 2022'!$A:$A,0)),0),0) -> 0 | AO77: =IFERROR(IF($Y77="CY 2022",INDEX('6. CY 2022'!AM:AM,MATCH($C77,'6. CY 2022'!$A:$A,0)),0),0) -> 0 | AP77: =IFERROR(IF($Y77="CY 2022",INDEX('6. CY 2022'!AN:AN,MATCH($C77,'6. CY 2022'!$A:$A,0)),0),0) -> 0 | AQ77: =IFERROR(IF($Y77="CY 2022",INDEX('6. CY 2022'!AQ:AQ,MATCH($C77,'6. CY 2022'!$A:$A,0)),0),0) -> 3610797.592 | AR77: =IFERROR(IF($Y77="CY 2022",INDEX('6. CY 2022'!AS:AS,MATCH($C77,'6. CY 2022'!A:A,0)),0),0) -> 1954051.07 | AS77: =IFERROR(IF(Y77="CY 2022",INDEX('6. CY 2022'!AT:AT,MATCH(C77,'6. CY 2022'!A:A,0)),0),0) -> 7675091.19 | AT77: =IFERROR(IF($Y77="CY 2022",INDEX('6. CY 2022'!AU:AU,MATCH($C77,'6. CY 2022'!A:A,0)),0),0) -> 9629142.26 | AW77: =IFERROR(IF(Y77="CY 2022",INDEX('6. CY 2022'!H:H,MATCH(C77,'6. CY 2022'!A:A,0)),0),0) -> 155625470.9
A78: 76 | B78: DEL AMO HOSPITAL | C78: 106190232 | D78: DEL AMO HOSPITAL | F78: =IFERROR(INDEX('8. 2018 OSHPD (FEE) DAYS'!G:G,MATCH(C78,'8. 2018 OSHPD (FEE) DAYS'!A:A,0)),0) -> 2018-01-01 | G78: =IFERROR(INDEX('8. 2018 OSHPD (FEE) DAYS'!H:H,MATCH(C78,'8. 2018 OSHPD (FEE) DAYS'!A:A,0)),0) -> 2018-12-31 | H78: =IFERROR(INDEX('8. 2018 OSHPD (FEE) DAYS'!W:W,MATCH(C78,'8. 2018 OSHPD (FEE) DAYS'!A:A,0)),0) -> 2018-01-01 | I78: =IFERROR(INDEX('11. Hospital Statuses'!M:M,MATCH(C78,'11. Hospital Statuses'!A:A,0)),"") -> Open | J78: Los Angeles | K78: 11 | L78: 931 | M78: Investor | N78: Comparable | P78: https://delamohospital.com/ | R78: UNIVERSAL HEALTH SERVICES, INC. | S78: 310-530-1151 | T78: 23700 CAMINO DEL SOL | U78: TORRANCE | V78: 90505 | W78: STEVEN HYTRY | X78: =IFERROR(IF(INDEX(#REF!,MATCH(C78,#REF!,0)),"Yes","No"),"") ->  | Y78: CY 2022 | Z78: =IFERROR(IF($Y78="CY 2022",INDEX('6. CY 2022'!R:R,MATCH($C78,'6. CY 2022'!$A:$A,0)),0),0) -> 0 | AA78: =IFERROR(IF($Y78="CY 2022",INDEX('6. CY 2022'!S:S,MATCH($C78,'6. CY 2022'!$A:$A,0)),0),0) -> 0 | AB78: =IFERROR(IF($Y78="CY 2022",INDEX('6. CY 2022'!T:T,MATCH($C78,'6. CY 2022'!$A:$A,0)),0),0) -> 0 | AC78: =IFERROR(IF($Y78="CY 2022",INDEX('6. CY 2022'!U:U,MATCH($C78,'6. CY 2022'!$A:$A,0)),0),0) -> 0 | AD78: =IFERROR(IF($Y78="CY 2022",INDEX('6. CY 2022'!V:V,MATCH($C78,'6. CY 2022'!$A:$A,0)),0),0) -> 0 | AE78: =IFERROR(IF($Y78="CY 2022",INDEX('6. CY 2022'!W:W,MATCH($C78,'6. CY 2022'!$A:$A,0)),0),0) -> 0 | AF78: =IFERROR(IF($Y78="CY 2022",INDEX('6. CY 2022'!X:X,MATCH($C78,'6. CY 2022'!$A:$A,0)),0),0) -> 0 | AG78: =IFERROR(IF(Y78="CY 2022",AF78/'4. Calculated Fee'!$D$35*'4. Calculated Fee'!$D$26,0),0) -> 0 | AH78: =IFERROR(IF($Y78="CY 2022",INDEX('6. CY 2022'!X:X,MATCH($C78,'6. CY 2022'!$A:$A,0)),0),0) -> 0 | AI78: =IFERROR(IF(Y78="CY 2022",INDEX('6. CY 2022'!AG:AG,MATCH(C78,'6. CY 2022'!A:A,0)),0),0) -> 0 | AJ78: =IFERROR(IF($Y78="CY 2022",INDEX('6. CY 2022'!AH:AH,MATCH($C78,'6. CY 2022'!$A:$A,0)),0),0) -> 0 | AK78: =IFERROR(IF($Y78="CY 2022",INDEX('6. CY 2022'!AI:AI,MATCH($C78,'6. CY 2022'!$A:$A,0)),0),0) -> 0 | AL78: =IFERROR(IF($Y78="CY 2022",INDEX('6. CY 2022'!AJ:AJ,MATCH($C78,'6. CY 2022'!$A:$A,0)),0),0) -> 0 | AM78: =IFERROR(IF($Y78="CY 2022",INDEX('6. CY 2022'!AK:AK,MATCH($C78,'6. CY 2022'!$A:$A,0)),0),0) -> 0 | AN78: =IFERROR(IF($Y78="CY 2022",INDEX('6. CY 2022'!AL:AL,MATCH($C78,'6. CY 2022'!$A:$A,0)),0),0) -> 0 | AO78: =IFERROR(IF($Y78="CY 2022",INDEX('6. CY 2022'!AM:AM,MATCH($C78,'6. CY 2022'!$A:$A,0)),0),0) -> 0 | AP78: =IFERROR(IF($Y78="CY 2022",INDEX('6. CY 2022'!AN:AN,MATCH($C78,'6. CY 2022'!$A:$A,0)),0),0) -> 0 | AQ78: =IFERROR(IF($Y78="CY 2022",INDEX('6. CY 2022'!AQ:AQ,MATCH($C78,'6. CY 2022'!$A:$A,0)),0),0) -> 0 | AR78: =IFERROR(IF($Y78="CY 2022",INDEX('6. CY 2022'!AS:AS,MATCH($C78,'6. CY 2022'!A:A,0)),0),0) -> 0 | AS78: =IFERROR(IF(Y78="CY 2022",INDEX('6. CY 2022'!AT:AT,MATCH(C78,'6. CY 2022'!A:A,0)),0),0) -> 0 | AT78: =IFERROR(IF($Y78="CY 2022",INDEX('6. CY 2022'!AU:AU,MATCH($C78,'6. CY 2022'!A:A,0)),0),0) -> 0 | AW78: =IFERROR(IF(Y78="CY 2022",INDEX('6. CY 2022'!H:H,MATCH(C78,'6. CY 2022'!A:A,0)),0),0) -> 57360952.65
A79: 77 | B79: DELANO REGIONAL MEDICAL CENTER | C79: 106150706 | D79: DELANO REGIONAL MEDICAL CENTER | F79: =IFERROR(INDEX('8. 2018 OSHPD (FEE) DAYS'!G:G,MATCH(C79,'8. 2018 OSHPD (FEE) DAYS'!A:A,0)),0) -> 2018-01-01 | G79: =IFERROR(INDEX('8. 2018 OSHPD (FEE) DAYS'!H:H,MATCH(C79,'8. 2018 OSHPD (FEE) DAYS'!A:A,0)),0) -> 2018-12-31 | H79: =IFERROR(INDEX('8. 2018 OSHPD (FEE) DAYS'!W:W,MATCH(C79,'8. 2018 OSHPD (FEE) DAYS'!A:A,0)),0) -> 2018-01-01 | I79: =IFERROR(INDEX('11. Hospital Statuses'!M:M,MATCH(C79,'11. Hospital Statuses'!A:A,0)),"") -> Open | J79: Kern | K79: 9 | L79: 617 | M79: Non-Profit | N79: Comparable | P79: https://www.adventisthealth.org/delano/ | R79: ADVENTIST HEALTH | S79: 661-725-4800 | T79: 1401 GARCES HIGHWAY | U79: DELANO | V79: 93215 | W79: DAVID A. BUTLER | X79: =IFERROR(IF(INDEX(#REF!,MATCH(C79,#REF!,0)),"Yes","No"),"") ->  | Y79: CY 2022 | Z79: =IFERROR(IF($Y79="CY 2022",INDEX('6. CY 2022'!R:R,MATCH($C79,'6. CY 2022'!$A:$A,0)),0),0) -> 0 | AA79: =IFERROR(IF($Y79="CY 2022",INDEX('6. CY 2022'!S:S,MATCH($C79,'6. CY 2022'!$A:$A,0)),0),0) -> 173693.5 | AB79: =IFERROR(IF($Y79="CY 2022",INDEX('6. CY 2022'!T:T,MATCH($C79,'6. CY 2022'!$A:$A,0)),0),0) -> 989753.7 | AC79: =IFERROR(IF($Y79="CY 2022",INDEX('6. CY 2022'!U:U,MATCH($C79,'6. CY 2022'!$A:$A,0)),0),0) -> 0 | AD79: =IFERROR(IF($Y79="CY 2022",INDEX('6. CY 2022'!V:V,MATCH($C79,'6. CY 2022'!$A:$A,0)),0),0) -> 1296944.75 | AE79: =IFERROR(IF($Y79="CY 2022",INDEX('6. CY 2022'!W:W,MATCH($C79,'6. CY 2022'!$A:$A,0)),0),0) -> 508215 | AF79: =IFERROR(IF($Y79="CY 2022",INDEX('6. CY 2022'!X:X,MATCH($C79,'6. CY 2022'!$A:$A,0)),0),0) -> 2968606.95 | AG79: =IFERROR(IF(Y79="CY 2022",AF79/'4. Calculated Fee'!$D$35*'4. Calculated Fee'!$D$26,0),0) -> 872615.4555 | AH79: =IFERROR(IF($Y79="CY 2022",INDEX('6. CY 2022'!X:X,MATCH($C79,'6. CY 2022'!$A:$A,0)),0),0) -> 2968606.95 | AI79: =IFERROR(IF(Y79="CY 2022",INDEX('6. CY 2022'!AG:AG,MATCH(C79,'6. CY 2022'!A:A,0)),0),0) -> 1909761.933 | AJ79: =IFERROR(IF($Y79="CY 2022",INDEX('6. CY 2022'!AH:AH,MATCH($C79,'6. CY 2022'!$A:$A,0)),0),0) -> 2451274.483 | AK79: =IFERROR(IF($Y79="CY 2022",INDEX('6. CY 2022'!AI:AI,MATCH($C79,'6. CY 2022'!$A:$A,0)),0),0) -> 8049042.333 | AL79: =IFERROR(IF($Y79="CY 2022",INDEX('6. CY 2022'!AJ:AJ,MATCH($C79,'6. CY 2022'!$A:$A,0)),0),0) -> 0 | AM79: =IFERROR(IF($Y79="CY 2022",INDEX('6. CY 2022'!AK:AK,MATCH($C79,'6. CY 2022'!$A:$A,0)),0),0) -> 0 | AN79: =IFERROR(IF($Y79="CY 2022",INDEX('6. CY 2022'!AL:AL,MATCH($C79,'6. CY 2022'!$A:$A,0)),0),0) -> 0 | AO79: =IFERROR(IF($Y79="CY 2022",INDEX('6. CY 2022'!AM:AM,MATCH($C79,'6. CY 2022'!$A:$A,0)),0),0) -> 0 | AP79: =IFERROR(IF($Y79="CY 2022",INDEX('6. CY 2022'!AN:AN,MATCH($C79,'6. CY 2022'!$A:$A,0)),0),0) -> 0 | AQ79: =IFERROR(IF($Y79="CY 2022",INDEX('6. CY 2022'!AQ:AQ,MATCH($C79,'6. CY 2022'!$A:$A,0)),0),0) -> 12410078.75 | AR79: =IFERROR(IF($Y79="CY 2022",INDEX('6. CY 2022'!AS:AS,MATCH($C79,'6. CY 2022'!A:A,0)),0),0) -> 1563597.26 | AS79: =IFERROR(IF(Y79="CY 2022",INDEX('6. CY 2022'!AT:AT,MATCH(C79,'6. CY 2022'!A:A,0)),0),0) -> 8431724.35 | AT79: =IFERROR(IF($Y79="CY 2022",INDEX('6. CY 2022'!AU:AU,MATCH($C79,'6. CY 2022'!A:A,0)),0),0) -> 9995321.61 | AW79: =IFERROR(IF(Y79="CY 2022",INDEX('6. CY 2022'!H:H,MATCH(C79,'6. CY 2022'!A:A,0)),0),0) -> 119183305.5
A80: 78 | B80: DESERT REGIONAL MEDICAL CENTER | C80: 106331164 | D80: DESERT REGIONAL MEDICAL CENTER | F80: =IFERROR(INDEX('8. 2018 OSHPD (FEE) DAYS'!G:G,MATCH(C80,'8. 2018 OSHPD (FEE) DAYS'!A:A,0)),0) -> 2018-01-01 | G80: =IFERROR(INDEX('8. 2018 OSHPD (FEE) DAYS'!H:H,MATCH(C80,'8. 2018 OSHPD (FEE) DAYS'!A:A,0)),0) -> 2018-12-31 | H80: =IFERROR(INDEX('8. 2018 OSHPD (FEE) DAYS'!W:W,MATCH(C80,'8. 2018 OSHPD (FEE) DAYS'!A:A,0)),0) -> 2018-01-01 | I80: =IFERROR(INDEX('11. Hospital Statuses'!M:M,MATCH(C80,'11. Hospital Statuses'!A:A,0)),"") -> Open | J80: Riverside | K80: 12 | L80: 1105 | M80: Investor | N80: Comparable | P80: https://www.desertcarenetwork.com/locations/detail/desert-regional-medical-center | R80: TENET HEALTHCARE CORPORATION | S80: 760-323-6511 | T80: 1150 N INDIAN CANYON DRIVE | U80: PALM SPRINGS | V80: 92262 | W80: MICHELE FINNEY | X80: =IFERROR(IF(INDEX(#REF!,MATCH(C80,#REF!,0)),"Yes","No"),"") ->  | Y80: CY 2022 | Z80: =IFERROR(IF($Y80="CY 2022",INDEX('6. CY 2022'!R:R,MATCH($C80,'6. CY 2022'!$A:$A,0)),0),0) -> 0 | AA80: =IFERROR(IF($Y80="CY 2022",INDEX('6. CY 2022'!S:S,MATCH($C80,'6. CY 2022'!$A:$A,0)),0),0) -> 8316623.5 | AB80: =IFERROR(IF($Y80="CY 2022",INDEX('6. CY 2022'!T:T,MATCH($C80,'6. CY 2022'!$A:$A,0)),0),0) -> 6187720.5 | AC80: =IFERROR(IF($Y80="CY 2022",INDEX('6. CY 2022'!U:U,MATCH($C80,'6. CY 2022'!$A:$A,0)),0),0) -> 0 | AD80: =IFERROR(IF($Y80="CY 2022",INDEX('6. CY 2022'!V:V,MATCH($C80,'6. CY 2022'!$A:$A,0)),0),0) -> 9515080.25 | AE80: =IFERROR(IF($Y80="CY 2022",INDEX('6. CY 2022'!W:W,MATCH($C80,'6. CY 2022'!$A:$A,0)),0),0) -> 7617246 | AF80: =IFERROR(IF($Y80="CY 2022",INDEX('6. CY 2022'!X:X,MATCH($C80,'6. CY 2022'!$A:$A,0)),0),0) -> 31636670.25 | AG80: =IFERROR(IF(Y80="CY 2022",AF80/'4. Calculated Fee'!$D$35*'4. Calculated Fee'!$D$26,0),0) -> 9299529.336 | AH80: =IFERROR(IF($Y80="CY 2022",INDEX('6. CY 2022'!X:X,MATCH($C80,'6. CY 2022'!$A:$A,0)),0),0) -> 31636670.25 | AI80: =IFERROR(IF(Y80="CY 2022",INDEX('6. CY 2022'!AG:AG,MATCH(C80,'6. CY 2022'!A:A,0)),0),0) -> 9964850.846 | AJ80: =IFERROR(IF($Y80="CY 2022",INDEX('6. CY 2022'!AH:AH,MATCH($C80,'6. CY 2022'!$A:$A,0)),0),0) -> 18000560.69 | AK80: =IFERROR(IF($Y80="CY 2022",INDEX('6. CY 2022'!AI:AI,MATCH($C80,'6. CY 2022'!$A:$A,0)),0),0) -> 0 | AL80: =IFERROR(IF($Y80="CY 2022",INDEX('6. CY 2022'!AJ:AJ,MATCH($C80,'6. CY 2022'!$A:$A,0)),0),0) -> 0 | AM80: =IFERROR(IF($Y80="CY 2022",INDEX('6. CY 2022'!AK:AK,MATCH($C80,'6. CY 2022'!$A:$A,0)),0),0) -> 5905000 | AN80: =IFERROR(IF($Y80="CY 2022",INDEX('6. CY 2022'!AL:AL,MATCH($C80,'6. CY 2022'!$A:$A,0)),0),0) -> 5905000 | AO80: =IFERROR(IF($Y80="CY 2022",INDEX('6. CY 2022'!AM:AM,MATCH($C80,'6. CY 2022'!$A:$A,0)),0),0) -> 0 | AP80: =IFERROR(IF($Y80="CY 2022",INDEX('6. CY 2022'!AN:AN,MATCH($C80,'6. CY 2022'!$A:$A,0)),0),0) -> 0 | AQ80: =IFERROR(IF($Y80="CY 2022",INDEX('6. CY 2022'!AQ:AQ,MATCH($C80,'6. CY 2022'!$A:$A,0)),0),0) -> 39775411.53 | AR80: =IFERROR(IF($Y80="CY 2022",INDEX('6. CY 2022'!AS:AS,MATCH($C80,'6. CY 2022'!A:A,0)),0),0) -> 8719494.09 | AS80: =IFERROR(IF(Y80="CY 2022",INDEX('6. CY 2022'!AT:AT,MATCH(C80,'6. CY 2022'!A:A,0)),0),0) -> 31065008.09 | AT80: =IFERROR(IF($Y80="CY 2022",INDEX('6. CY 2022'!AU:AU,MATCH($C80,'6. CY 2022'!A:A,0)),0),0) -> 39784502.18 | AW80: =IFERROR(IF(Y80="CY 2022",INDEX('6. CY 2022'!H:H,MATCH(C80,'6. CY 2022'!A:A,0)),0),0) -> 670475053.5 | AX80: =SUM(AG80:AG91) -> 56085397.71
A81: 79 | B81: DESERT VALLEY HOSPITAL | C81: 106364144 | D81: DESERT VALLEY HOSPITAL | F81: =IFERROR(INDEX('8. 2018 OSHPD (FEE) DAYS'!G:G,MATCH(C81,'8. 2018 OSHPD (FEE) DAYS'!A:A,0)),0) -> 2018-01-01 | G81: =IFERROR(INDEX('8. 2018 OSHPD (FEE) DAYS'!H:H,MATCH(C81,'8. 2018 OSHPD (FEE) DAYS'!A:A,0)),0) -> 2018-12-31 | H81: =IFERROR(INDEX('8. 2018 OSHPD (FEE) DAYS'!W:W,MATCH(C81,'8. 2018 OSHPD (FEE) DAYS'!A:A,0)),0) -> 2018-01-01 | I81: =IFERROR(INDEX('11. Hospital Statuses'!M:M,MATCH(C81,'11. Hospital Statuses'!A:A,0)),"") -> Open | J81: San Bernardino | K81: 12 | L81: 1211 | M81: Investor | N81: Comparable | P81: https://www.dvmc.com/ | R81: DR. PREM N. REDDY | S81: 760-241-8000 | T81: 16850 BEAR VALLEY ROAD | U81: VICTORVILLE | V81: 92395 | W81: FRED HUNTER | X81: =IFERROR(IF(INDEX(#REF!,MATCH(C81,#REF!,0)),"Yes","No"),"") ->  | Y81: CY 2022 | Z81: =IFERROR(IF($Y81="CY 2022",INDEX('6. CY 2022'!R:R,MATCH($C81,'6. CY 2022'!$A:$A,0)),0),0) -> 0 | AA81: =IFERROR(IF($Y81="CY 2022",INDEX('6. CY 2022'!S:S,MATCH($C81,'6. CY 2022'!$A:$A,0)),0),0) -> 2718219.5 | AB81: =IFERROR(IF($Y81="CY 2022",INDEX('6. CY 2022'!T:T,MATCH($C81,'6. CY 2022'!$A:$A,0)),0),0) -> 4521330.06 | AC81: =IFERROR(IF($Y81="CY 2022",INDEX('6. CY 2022'!U:U,MATCH($C81,'6. CY 2022'!$A:$A,0)),0),0) -> 0 | AD81: =IFERROR(IF($Y81="CY 2022",INDEX('6. CY 2022'!V:V,MATCH($C81,'6. CY 2022'!$A:$A,0)),0),0) -> 5396047.5 | AE81: =IFERROR(IF($Y81="CY 2022",INDEX('6. CY 2022'!W:W,MATCH($C81,'6. CY 2022'!$A:$A,0)),0),0) -> 1391612.25 | AF81: =IFERROR(IF($Y81="CY 2022",INDEX('6. CY 2022'!X:X,MATCH($C81,'6. CY 2022'!$A:$A,0)),0),0) -> 14027209.31 | AG81: =IFERROR(IF(Y81="CY 2022",AF81/'4. Calculated Fee'!$D$35*'4. Calculated Fee'!$D$26,0),0) -> 4123267.191 | AH81: =IFERROR(IF($Y81="CY 2022",INDEX('6. CY 2022'!X:X,MATCH($C81,'6. CY 2022'!$A:$A,0)),0),0) -> 14027209.31 | AI81: =IFERROR(IF(Y81="CY 2022",INDEX('6. CY 2022'!AG:AG,MATCH(C81,'6. CY 2022'!A:A,0)),0),0) -> 1583954.008 | AJ81: =IFERROR(IF($Y81="CY 2022",INDEX('6. CY 2022'!AH:AH,MATCH($C81,'6. CY 2022'!$A:$A,0)),0),0) -> 3467816.958 | AK81: =IFERROR(IF($Y81="CY 2022",INDEX('6. CY 2022'!AI:AI,MATCH($C81,'6. CY 2022'!$A:$A,0)),0),0) -> 0 | AL81: =IFERROR(IF($Y81="CY 2022",INDEX('6. CY 2022'!AJ:AJ,MATCH($C81,'6. CY 2022'!$A:$A,0)),0),0) -> 0 | AM81: =IFERROR(IF($Y81="CY 2022",INDEX('6. CY 2022'!AK:AK,MATCH($C81,'6. CY 2022'!$A:$A,0)),0),0) -> 405000 | AN81: =IFERROR(IF($Y81="CY 2022",INDEX('6. CY 2022'!AL:AL,MATCH($C81,'6. CY 2022'!$A:$A,0)),0),0) -> 0 | AO81: =IFERROR(IF($Y81="CY 2022",INDEX('6. CY 2022'!AM:AM,MATCH($C81,'6. CY 2022'!$A:$A,0)),0),0) -> 0 | AP81: =IFERROR(IF($Y81="CY 2022",INDEX('6. CY 2022'!AN:AN,MATCH($C81,'6. CY 2022'!$A:$A,0)),0),0) -> 0 | AQ81: =IFERROR(IF($Y81="CY 2022",INDEX('6. CY 2022'!AQ:AQ,MATCH($C81,'6. CY 2022'!$A:$A,0)),0),0) -> 5456770.966 | AR81: =IFERROR(IF($Y81="CY 2022",INDEX('6. CY 2022'!AS:AS,MATCH($C81,'6. CY 2022'!A:A,0)),0),0) -> 3435405.31 | AS81: =IFERROR(IF(Y81="CY 2022",INDEX('6. CY 2022'!AT:AT,MATCH(C81,'6. CY 2022'!A:A,0)),0),0) -> 15731236.74 | AT81: =IFERROR(IF($Y81="CY 2022",INDEX('6. CY 2022'!AU:AU,MATCH($C81,'6. CY 2022'!A:A,0)),0),0) -> 19166642.05 | AW81: =IFERROR(IF(Y81="CY 2022",INDEX('6. CY 2022'!H:H,MATCH(C81,'6. CY 2022'!A:A,0)),0),0) -> 388884522.6
A82: 80 | B82: DOCTORS HOSPITAL OF MANTECA | C82: 106392287 | D82: DOCTORS HOSPITAL OF MANTECA | F82: =IFERROR(INDEX('8. 2018 OSHPD (FEE) DAYS'!G:G,MATCH(C82,'8. 2018 OSHPD (FEE) DAYS'!A:A,0)),0) -> 2018-01-01 | G82: =IFERROR(INDEX('8. 2018 OSHPD (FEE) DAYS'!H:H,MATCH(C82,'8. 2018 OSHPD (FEE) DAYS'!A:A,0)),0) -> 2018-12-31 | H82: =IFERROR(INDEX('8. 2018 OSHPD (FEE) DAYS'!W:W,MATCH(C82,'8. 2018 OSHPD (FEE) DAYS'!A:A,0)),0) -> 2018-01-01 | I82: =IFERROR(INDEX('11. Hospital Statuses'!M:M,MATCH(C82,'11. Hospital Statuses'!A:A,0)),"") -> Open | J82: San Joaquin | K82: 6 | L82: 507 | M82: Investor | N82: Comparable | P82: https://www.doctorsmanteca.com/ | R82: TENET HEALTHCARE CORPORATION | S82: 209-823-3111 | T82: 1205 EAST NORTH STREET | U82: MANTECA | V82: 95336 | W82: MURALI NAIDO | X82: =IFERROR(IF(INDEX(#REF!,MATCH(C82,#REF!,0)),"Yes","No"),"") ->  | Y82: CY 2022 | Z82: =IFERROR(IF($Y82="CY 2022",INDEX('6. CY 2022'!R:R,MATCH($C82,'6. CY 2022'!$A:$A,0)),0),0) -> 0 | AA82: =IFERROR(IF($Y82="CY 2022",INDEX('6. CY 2022'!S:S,MATCH($C82,'6. CY 2022'!$A:$A,0)),0),0) -> 1165868.75 | AB82: =IFERROR(IF($Y82="CY 2022",INDEX('6. CY 2022'!T:T,MATCH($C82,'6. CY 2022'!$A:$A,0)),0),0) -> 1832522.64 | AC82: =IFERROR(IF($Y82="CY 2022",INDEX('6. CY 2022'!U:U,MATCH($C82,'6. CY 2022'!$A:$A,0)),0),0) -> 0 | AD82: =IFERROR(IF($Y82="CY 2022",INDEX('6. CY 2022'!V:V,MATCH($C82,'6. CY 2022'!$A:$A,0)),0),0) -> 1673123.5 | AE82: =IFERROR(IF($Y82="CY 2022",INDEX('6. CY 2022'!W:W,MATCH($C82,'6. CY 2022'!$A:$A,0)),0),0) -> 421021.25 | AF82: =IFERROR(IF($Y82="CY 2022",INDEX('6. CY 2022'!X:X,MATCH($C82,'6. CY 2022'!$A:$A,0)),0),0) -> 5092536.14 | AG82: =IFERROR(IF(Y82="CY 2022",AF82/'4. Calculated Fee'!$D$35*'4. Calculated Fee'!$D$26,0),0) -> 1496939.749 | AH82: =IFERROR(IF($Y82="CY 2022",INDEX('6. CY 2022'!X:X,MATCH($C82,'6. CY 2022'!$A:$A,0)),0),0) -> 5092536.14 | AI82: =IFERROR(IF(Y82="CY 2022",INDEX('6. CY 2022'!AG:AG,MATCH(C82,'6. CY 2022'!A:A,0)),0),0) -> 960346.2671 | AJ82: =IFERROR(IF($Y82="CY 2022",INDEX('6. CY 2022'!AH:AH,MATCH($C82,'6. CY 2022'!$A:$A,0)),0),0) -> 1355828.322 | AK82: =IFERROR(IF($Y82="CY 2022",INDEX('6. CY 2022'!AI:AI,MATCH($C82,'6. CY 2022'!$A:$A,0)),0),0) -> 0 | AL82: =IFERROR(IF($Y82="CY 2022",INDEX('6. CY 2022'!AJ:AJ,MATCH($C82,'6. CY 2022'!$A:$A,0)),0),0) -> 0 | AM82: =IFERROR(IF($Y82="CY 2022",INDEX('6. CY 2022'!AK:AK,MATCH($C82,'6. CY 2022'!$A:$A,0)),0),0) -> 172500 | AN82: =IFERROR(IF($Y82="CY 2022",INDEX('6. CY 2022'!AL:AL,MATCH($C82,'6. CY 2022'!$A:$A,0)),0),0) -> 0 | AO82: =IFERROR(IF($Y82="CY 2022",INDEX('6. CY 2022'!AM:AM,MATCH($C82,'6. CY 2022'!$A:$A,0)),0),0) -> 0 | AP82: =IFERROR(IF($Y82="CY 2022",INDEX('6. CY 2022'!AN:AN,MATCH($C82,'6. CY 2022'!$A:$A,0)),0),0) -> 0 | AQ82: =IFERROR(IF($Y82="CY 2022",INDEX('6. CY 2022'!AQ:AQ,MATCH($C82,'6. CY 2022'!$A:$A,0)),0),0) -> 2488674.589 | AR82: =IFERROR(IF($Y82="CY 2022",INDEX('6. CY 2022'!AS:AS,MATCH($C82,'6. CY 2022'!A:A,0)),0),0) -> 1864801.46 | AS82: =IFERROR(IF(Y82="CY 2022",INDEX('6. CY 2022'!AT:AT,MATCH(C82,'6. CY 2022'!A:A,0)),0),0) -> 6942748.67 | AT82: =IFERROR(IF($Y82="CY 2022",INDEX('6. CY 2022'!AU:AU,MATCH($C82,'6. CY 2022'!A:A,0)),0),0) -> 8807550.13 | AW82: =IFERROR(IF(Y82="CY 2022",INDEX('6. CY 2022'!H:H,MATCH(C82,'6. CY 2022'!A:A,0)),0),0) -> 130737104.9
A83: 81 | B83: DOCTORS MEDICAL CENTER - MODESTO | C83: 106500852 | D83: DOCTORS MEDICAL CENTER - MODESTO | F83: =IFERROR(INDEX('8. 2018 OSHPD (FEE) DAYS'!G:G,MATCH(C83,'8. 2018 OSHPD (FEE) DAYS'!A:A,0)),0) -> 2018-01-01 | G83: =IFERROR(INDEX('8. 2018 OSHPD (FEE) DAYS'!H:H,MATCH(C83,'8. 2018 OSHPD (FEE) DAYS'!A:A,0)),0) -> 2018-12-31 | H83: =IFERROR(INDEX('8. 2018 OSHPD (FEE) DAYS'!W:W,MATCH(C83,'8. 2018 OSHPD (FEE) DAYS'!A:A,0)),0) -> 2018-01-01 | I83: =IFERROR(INDEX('11. Hospital Statuses'!M:M,MATCH(C83,'11. Hospital Statuses'!A:A,0)),"") -> Open | J83: Stanislaus | K83: 6 | L83: 511 | M83: Investor | N83: Comparable | P83: https://www.dmc-modesto.com/ | R83: TENET HEALTHCARE CORPORATION | S83: 209-578-1211 | T83: 1441 FLORIDA AVENUE | U83: MODESTO | V83: 95350 | W83: WARREN KIRK | X83: =IFERROR(IF(INDEX(#REF!,MATCH(C83,#REF!,0)),"Yes","No"),"") ->  | Y83: CY 2022 | Z83: =IFERROR(IF($Y83="CY 2022",INDEX('6. CY 2022'!R:R,MATCH($C83,'6. CY 2022'!$A:$A,0)),0),0) -> 0 | AA83: =IFERROR(IF($Y83="CY 2022",INDEX('6. CY 2022'!S:S,MATCH($C83,'6. CY 2022'!$A:$A,0)),0),0) -> 8256584.75 | AB83: =IFERROR(IF($Y83="CY 2022",INDEX('6. CY 2022'!T:T,MATCH($C83,'6. CY 2022'!$A:$A,0)),0),0) -> 11733720.18 | AC83: =IFERROR(IF($Y83="CY 2022",INDEX('6. CY 2022'!U:U,MATCH($C83,'6. CY 2022'!$A:$A,0)),0),0) -> 0 | AD83: =IFERROR(IF($Y83="CY 2022",INDEX('6. CY 2022'!V:V,MATCH($C83,'6. CY 2022'!$A:$A,0)),0),0) -> 17907603.25 | AE83: =IFERROR(IF($Y83="CY 2022",INDEX('6. CY 2022'!W:W,MATCH($C83,'6. CY 2022'!$A:$A,0)),0),0) -> 12906668 | AF83: =IFERROR(IF($Y83="CY 2022",INDEX('6. CY 2022'!X:X,MATCH($C83,'6. CY 2022'!$A:$A,0)),0),0) -> 50804576.18 | AG83: =IFERROR(IF(Y83="CY 2022",AF83/'4. Calculated Fee'!$D$35*'4. Calculated Fee'!$D$26,0),0) -> 14933892.94 | AH83: =IFERROR(IF($Y83="CY 2022",INDEX('6. CY 2022'!X:X,MATCH($C83,'6. CY 2022'!$A:$A,0)),0),0) -> 50804576.18 | AI83: =IFERROR(IF(Y83="CY 2022",INDEX('6. CY 2022'!AG:AG,MATCH(C83,'6. CY 2022'!A:A,0)),0),0) -> 3590292.734 | AJ83: =IFERROR(IF($Y83="CY 2022",INDEX('6. CY 2022'!AH:AH,MATCH($C83,'6. CY 2022'!$A:$A,0)),0),0) -> 17830917.76 | AK83: =IFERROR(IF($Y83="CY 2022",INDEX('6. CY 2022'!AI:AI,MATCH($C83,'6. CY 2022'!$A:$A,0)),0),0) -> 0 | AL83: =IFERROR(IF($Y83="CY 2022",INDEX('6. CY 2022'!AJ:AJ,MATCH($C83,'6. CY 2022'!$A:$A,0)),0),0) -> 1925625 | AM83: =IFERROR(IF($Y83="CY 2022",INDEX('6. CY 2022'!AK:AK,MATCH($C83,'6. CY 2022'!$A:$A,0)),0),0) -> 5345000 | AN83: =IFERROR(IF($Y83="CY 2022",INDEX('6. CY 2022'!AL:AL,MATCH($C83,'6. CY 2022'!$A:$A,0)),0),0) -> 5345000 | AO83: =IFERROR(IF($Y83="CY 2022",INDEX('6. CY 2022'!AM:AM,MATCH($C83,'6. CY 2022'!$A:$A,0)),0),0) -> 0 | AP83: =IFERROR(IF($Y83="CY 2022",INDEX('6. CY 2022'!AN:AN,MATCH($C83,'6. CY 2022'!$A:$A,0)),0),0) -> 0 | AQ83: =IFERROR(IF($Y83="CY 2022",INDEX('6. CY 2022'!AQ:AQ,MATCH($C83,'6. CY 2022'!$A:$A,0)),0),0) -> 34036835.5 | AR83: =IFERROR(IF($Y83="CY 2022",INDEX('6. CY 2022'!AS:AS,MATCH($C83,'6. CY 2022'!A:A,0)),0),0) -> 25137235.6 | AS83: =IFERROR(IF(Y83="CY 2022",INDEX('6. CY 2022'!AT:AT,MATCH(C83,'6. CY 2022'!A:A,0)),0),0) -> 53722416.1 | AT83: =IFERROR(IF($Y83="CY 2022",INDEX('6. CY 2022'!AU:AU,MATCH($C83,'6. CY 2022'!A:A,0)),0),0) -> 78859651.7 | AW83: =IFERROR(IF(Y83="CY 2022",INDEX('6. CY 2022'!H:H,MATCH(C83,'6. CY 2022'!A:A,0)),0),0) -> 766655149.2
A84: 82 | B84: DOMINICAN HOSPITAL | C84: 106440755 | D84: DOMINICAN HOSPITAL | F84: =IFERROR(INDEX('8. 2018 OSHPD (FEE) DAYS'!G:G,MATCH(C84,'8. 2018 OSHPD (FEE) DAYS'!A:A,0)),0) -> 2017-07-01 | G84: =IFERROR(INDEX('8. 2018 OSHPD (FEE) DAYS'!H:H,MATCH(C84,'8. 2018 OSHPD (FEE) DAYS'!A:A,0)),0) -> 2018-06-30 | H84: =IFERROR(INDEX('8. 2018 OSHPD (FEE) DAYS'!W:W,MATCH(C84,'8. 2018 OSHPD (FEE) DAYS'!A:A,0)),0) -> 2017-07-01 | I84: =IFERROR(INDEX('11. Hospital Statuses'!M:M,MATCH(C84,'11. Hospital Statuses'!A:A,0)),"") -> Open | J84: Santa Cruz | K84: 8 | L84: 703 | M84: Non-Profit | N84: Comparable | P84: https://www.dignityhealth.org/bayarea/locations/dominican | R84: DIGNITY HEALTH | S84: 831-462-7700 | T84: 1555 SOQUEL DRIVE | U84: SANTA CRUZ | V84: 95065 | W84: NANETTE MICKIEWICZ, MD | X84: =IFERROR(IF(INDEX(#REF!,MATCH(C84,#REF!,0)),"Yes","No"),"") ->  | Y84: CY 2022 | Z84: =IFERROR(IF($Y84="CY 2022",INDEX('6. CY 2022'!R:R,MATCH($C84,'6. CY 2022'!$A:$A,0)),0),0) -> 0 | AA84: =IFERROR(IF($Y84="CY 2022",INDEX('6. CY 2022'!S:S,MATCH($C84,'6. CY 2022'!$A:$A,0)),0),0) -> 2840531 | AB84: =IFERROR(IF($Y84="CY 2022",INDEX('6. CY 2022'!T:T,MATCH($C84,'6. CY 2022'!$A:$A,0)),0),0) -> 8034603.72 | AC84: =IFERROR(IF($Y84="CY 2022",INDEX('6. CY 2022'!U:U,MATCH($C84,'6. CY 2022'!$A:$A,0)),0),0) -> 0 | AD84: =IFERROR(IF($Y84="CY 2022",INDEX('6. CY 2022'!V:V,MATCH($C84,'6. CY 2022'!$A:$A,0)),0),0) -> 4775228 | AE84: =IFERROR(IF($Y84="CY 2022",INDEX('6. CY 2022'!W:W,MATCH($C84,'6. CY 2022'!$A:$A,0)),0),0) -> 1772773.5 | AF84: =IFERROR(IF($Y84="CY 2022",INDEX('6. CY 2022'!X:X,MATCH($C84,'6. CY 2022'!$A:$A,0)),0),0) -> 17423136.22 | AG84: =IFERROR(IF(Y84="CY 2022",AF84/'4. Calculated Fee'!$D$35*'4. Calculated Fee'!$D$26,0),0) -> 5121492.405 | AH84: =IFERROR(IF($Y84="CY 2022",INDEX('6. CY 2022'!X:X,MATCH($C84,'6. CY 2022'!$A:$A,0)),0),0) -> 17423136.22 | AI84: =IFERROR(IF(Y84="CY 2022",INDEX('6. CY 2022'!AG:AG,MATCH(C84,'6. CY 2022'!A:A,0)),0),0) -> 939745.3849 | AJ84: =IFERROR(IF($Y84="CY 2022",INDEX('6. CY 2022'!AH:AH,MATCH($C84,'6. CY 2022'!$A:$A,0)),0),0) -> 4016197.57 | AK84: =IFERROR(IF($Y84="CY 2022",INDEX('6. CY 2022'!AI:AI,MATCH($C84,'6. CY 2022'!$A:$A,0)),0),0) -> 0 | AL84: =IFERROR(IF($Y84="CY 2022",INDEX('6. CY 2022'!AJ:AJ,MATCH($C84,'6. CY 2022'!$A:$A,0)),0),0) -> 0 | AM84: =IFERROR(IF($Y84="CY 2022",INDEX('6. CY 2022'!AK:AK,MATCH($C84,'6. CY 2022'!$A:$A,0)),0),0) -> 965000 | AN84: =IFERROR(IF($Y84="CY 2022",INDEX('6. CY 2022'!AL:AL,MATCH($C84,'6. CY 2022'!$A:$A,0)),0),0) -> 0 | AO84: =IFERROR(IF($Y84="CY 2022",INDEX('6. CY 2022'!AM:AM,MATCH($C84,'6. CY 2022'!$A:$A,0)),0),0) -> 0 | AP84: =IFERROR(IF($Y84="CY 2022",INDEX('6. CY 2022'!AN:AN,MATCH($C84,'6. CY 2022'!$A:$A,0)),0),0) -> 0 | AQ84: =IFERROR(IF($Y84="CY 2022",INDEX('6. CY 2022'!AQ:AQ,MATCH($C84,'6. CY 2022'!$A:$A,0)),0),0) -> 5920942.954 | AR84: =IFERROR(IF($Y84="CY 2022",INDEX('6. CY 2022'!AS:AS,MATCH($C84,'6. CY 2022'!A:A,0)),0),0) -> 3931192.29 | AS84: =IFERROR(IF(Y84="CY 2022",INDEX('6. CY 2022'!AT:AT,MATCH(C84,'6. CY 2022'!A:A,0)),0),0) -> 18342331.69 | AT84: =IFERROR(IF($Y84="CY 2022",INDEX('6. CY 2022'!AU:AU,MATCH($C84,'6. CY 2022'!A:A,0)),0),0) -> 22273523.98 | AW84: =IFERROR(IF(Y84="CY 2022",INDEX('6. CY 2022'!H:H,MATCH(C84,'6. CY 2022'!A:A,0)),0),0) -> 543784456.9
A85: 83 | B85: EARL AND LORRAINE MILLER CHILDRENS HOSPITAL | C85: 106196168 | D85: EARL AND LORRAINE MILLER CHILDRENS HOSPITAL | F85: =IFERROR(INDEX('8. 2018 OSHPD (FEE) DAYS'!G:G,MATCH(C85,'8. 2018 OSHPD (FEE) DAYS'!A:A,0)),0) -> 2017-07-01 | G85: =IFERROR(INDEX('8. 2018 OSHPD (FEE) DAYS'!H:H,MATCH(C85,'8. 2018 OSHPD (FEE) DAYS'!A:A,0)),0) -> 2018-06-30 | H85: =IFERROR(INDEX('8. 2018 OSHPD (FEE) DAYS'!W:W,MATCH(C85,'8. 2018 OSHPD (FEE) DAYS'!A:A,0)),0) -> 2017-07-01 | I85: =IFERROR(INDEX('11. Hospital Statuses'!M:M,MATCH(C85,'11. Hospital Statuses'!A:A,0)),"") -> Open | J85: Los Angeles | K85: 11 | L85: 933 | M85: Non-Profit | N85: Comparable | O85: Teaching | P85: https://www.memorialcare.org/ | R85: MEMORIAL HEALTH SERVICES | S85: 562-933-2000 | T85: 2801 ATLANTIC AVENUE | U85: LONG BEACH | V85: 90806 | W85: JOHN BISHOP | X85: =IFERROR(IF(INDEX(#REF!,MATCH(C85,#REF!,0)),"Yes","No"),"") ->  | Y85: CY 2022 | Z85: =IFERROR(IF($Y85="CY 2022",INDEX('6. CY 2022'!R:R,MATCH($C85,'6. CY 2022'!$A:$A,0)),0),0) -> 0 | AA85: =IFERROR(IF($Y85="CY 2022",INDEX('6. CY 2022'!S:S,MATCH($C85,'6. CY 2022'!$A:$A,0)),0),0) -> 6830455 | AB85: =IFERROR(IF($Y85="CY 2022",INDEX('6. CY 2022'!T:T,MATCH($C85,'6. CY 2022'!$A:$A,0)),0),0) -> 649041.9 | AC85: =IFERROR(IF($Y85="CY 2022",INDEX('6. CY 2022'!U:U,MATCH($C85,'6. CY 2022'!$A:$A,0)),0),0) -> 0 | AD85: =IFERROR(IF($Y85="CY 2022",INDEX('6. CY 2022'!V:V,MATCH($C85,'6. CY 2022'!$A:$A,0)),0),0) -> 7394528.25 | AE85: =IFERROR(IF($Y85="CY 2022",INDEX('6. CY 2022'!W:W,MATCH($C85,'6. CY 2022'!$A:$A,0)),0),0) -> 14396933.75 | AF85: =IFERROR(IF($Y85="CY 2022",INDEX('6. CY 2022'!X:X,MATCH($C85,'6. CY 2022'!$A:$A,0)),0),0) -> 29270958.9 | AG85: =IFERROR(IF(Y85="CY 2022",AF85/'4. Calculated Fee'!$D$35*'4. Calculated Fee'!$D$26,0),0) -> 8604133.711 | AH85: =IFERROR(IF($Y85="CY 2022",INDEX('6. CY 2022'!X:X,MATCH($C85,'6. CY 2022'!$A:$A,0)),0),0) -> 29270958.9 | AI85: =IFERROR(IF(Y85="CY 2022",INDEX('6. CY 2022'!AG:AG,MATCH(C85,'6. CY 2022'!A:A,0)),0),0) -> 27988492.84 | AJ85: =IFERROR(IF($Y85="CY 2022",INDEX('6. CY 2022'!AH:AH,MATCH($C85,'6. CY 2022'!$A:$A,0)),0),0) -> 19366909.5 | AK85: =IFERROR(IF($Y85="CY 2022",INDEX('6. CY 2022'!AI:AI,MATCH($C85,'6. CY 2022'!$A:$A,0)),0),0) -> 0 | AL85: =IFERROR(IF($Y85="CY 2022",INDEX('6. CY 2022'!AJ:AJ,MATCH($C85,'6. CY 2022'!$A:$A,0)),0),0) -> 0 | AM85: =IFERROR(IF($Y85="CY 2022",INDEX('6. CY 2022'!AK:AK,MATCH($C85,'6. CY 2022'!$A:$A,0)),0),0) -> 0 | AN85: =IFERROR(IF($Y85="CY 2022",INDEX('6. CY 2022'!AL:AL,MATCH($C85,'6. CY 2022'!$A:$A,0)),0),0) -> 0 | AO85: =IFERROR(IF($Y85="CY 2022",INDEX('6. CY 2022'!AM:AM,MATCH($C85,'6. CY 2022'!$A:$A,0)),0),0) -> 0 | AP85: =IFERROR(IF($Y85="CY 2022",INDEX('6. CY 2022'!AN:AN,MATCH($C85,'6. CY 2022'!$A:$A,0)),0),0) -> 0 | AQ85: =IFERROR(IF($Y85="CY 2022",INDEX('6. CY 2022'!AQ:AQ,MATCH($C85,'6. CY 2022'!$A:$A,0)),0),0) -> 47355402.34 | AR85: =IFERROR(IF($Y85="CY 2022",INDEX('6. CY 2022'!AS:AS,MATCH($C85,'6. CY 2022'!A:A,0)),0),0) -> 26471091.61 | AS85: =IFERROR(IF(Y85="CY 2022",INDEX('6. CY 2022'!AT:AT,MATCH(C85,'6. CY 2022'!A:A,0)),0),0) -> 28981852.57 | AT85: =IFERROR(IF($Y85="CY 2022",INDEX('6. CY 2022'!AU:AU,MATCH($C85,'6. CY 2022'!A:A,0)),0),0) -> 55452944.18 | AW85: =IFERROR(IF(Y85="CY 2022",INDEX('6. CY 2022'!H:H,MATCH(C85,'6. CY 2022'!A:A,0)),0),0) -> 610097538.6 | AX85: =SUM(AG85:AG88) -> 13903345.73
A86: 84 | B86: EAST LOS ANGELES DOCTOR'S HOSPITAL | C86: 106190256 | D86: EAST LOS ANGELES DOCTOR'S HOSPITAL | F86: =IFERROR(INDEX('8. 2018 OSHPD (FEE) DAYS'!G:G,MATCH(C86,'8. 2018 OSHPD (FEE) DAYS'!A:A,0)),0) -> 2018-01-01 | G86: =IFERROR(INDEX('8. 2018 OSHPD (FEE) DAYS'!H:H,MATCH(C86,'8. 2018 OSHPD (FEE) DAYS'!A:A,0)),0) -> 2018-12-31 | H86: =IFERROR(INDEX('8. 2018 OSHPD (FEE) DAYS'!W:W,MATCH(C86,'8. 2018 OSHPD (FEE) DAYS'!A:A,0)),0) -> 2018-01-01 | I86: =IFERROR(INDEX('11. Hospital Statuses'!M:M,MATCH(C86,'11. Hospital Statuses'!A:A,0)),"") -> Open | J86: Los Angeles | K86: 11 | L86: 925 | M86: Investor | N86: Comparable | P86: https://www.pipelinehealth.us/locations/ | R86: AVANTI HOSPITALS, LLC | S86: 323-268-5514 | T86: 4060 WHITTIER BOULEVARD | U86: LOS ANGELES | V86: 90023 | W86: VICTOR CARRASCO | X86: =IFERROR(IF(INDEX(#REF!,MATCH(C86,#REF!,0)),"Yes","No"),"") ->  | Y86: CY 2022 | Z86: =IFERROR(IF($Y86="CY 2022",INDEX('6. CY 2022'!R:R,MATCH($C86,'6. CY 2022'!$A:$A,0)),0),0) -> 0 | AA86: =IFERROR(IF($Y86="CY 2022",INDEX('6. CY 2022'!S:S,MATCH($C86,'6. CY 2022'!$A:$A,0)),0),0) -> 376987.5 | AB86: =IFERROR(IF($Y86="CY 2022",INDEX('6. CY 2022'!T:T,MATCH($C86,'6. CY 2022'!$A:$A,0)),0),0) -> 834884.7 | AC86: =IFERROR(IF($Y86="CY 2022",INDEX('6. CY 2022'!U:U,MATCH($C86,'6. CY 2022'!$A:$A,0)),0),0) -> 0 | AD86: =IFERROR(IF($Y86="CY 2022",INDEX('6. CY 2022'!V:V,MATCH($C86,'6. CY 2022'!$A:$A,0)),0),0) -> 2731406.5 | AE86: =IFERROR(IF($Y86="CY 2022",INDEX('6. CY 2022'!W:W,MATCH($C86,'6. CY 2022'!$A:$A,0)),0),0) -> 1360222.5 | AF86: =IFERROR(IF($Y86="CY 2022",INDEX('6. CY 2022'!X:X,MATCH($C86,'6. CY 2022'!$A:$A,0)),0),0) -> 5303501.2 | AG86: =IFERROR(IF(Y86="CY 2022",AF86/'4. Calculated Fee'!$D$35*'4. Calculated Fee'!$D$26,0),0) -> 1558952.463 | AH86: =IFERROR(IF($Y86="CY 2022",INDEX('6. CY 2022'!X:X,MATCH($C86,'6. CY 2022'!$A:$A,0)),0),0) -> 5303501.2 | AI86: =IFERROR(IF(Y86="CY 2022",INDEX('6. CY 2022'!AG:AG,MATCH(C86,'6. CY 2022'!A:A,0)),0),0) -> 1456907.77 | AJ86: =IFERROR(IF($Y86="CY 2022",INDEX('6. CY 2022'!AH:AH,MATCH($C86,'6. CY 2022'!$A:$A,0)),0),0) -> 4085895.825 | AK86: =IFERROR(IF($Y86="CY 2022",INDEX('6. CY 2022'!AI:AI,MATCH($C86,'6. CY 2022'!$A:$A,0)),0),0) -> 1250890.069 | AL86: =IFERROR(IF($Y86="CY 2022",INDEX('6. CY 2022'!AJ:AJ,MATCH($C86,'6. CY 2022'!$A:$A,0)),0),0) -> 0 | AM86: =IFERROR(IF($Y86="CY 2022",INDEX('6. CY 2022'!AK:AK,MATCH($C86,'6. CY 2022'!$A:$A,0)),0),0) -> 0 | AN86: =IFERROR(IF($Y86="CY 2022",INDEX('6. CY 2022'!AL:AL,MATCH($C86,'6. CY 2022'!$A:$A,0)),0),0) -> 0 | AO86: =IFERROR(IF($Y86="CY 2022",INDEX('6. CY 2022'!AM:AM,MATCH($C86,'6. CY 2022'!$A:$A,0)),0),0) -> 0 | AP86: =IFERROR(IF($Y86="CY 2022",INDEX('6. CY 2022'!AN:AN,MATCH($C86,'6. CY 2022'!$A:$A,0)),0),0) -> 0 | AQ86: =IFERROR(IF($Y86="CY 2022",INDEX('6. CY 2022'!AQ:AQ,MATCH($C86,'6. CY 2022'!$A:$A,0)),0),0) -> 6793693.664 | AR86: =IFERROR(IF($Y86="CY 2022",INDEX('6. CY 2022'!AS:AS,MATCH($C86,'6. CY 2022'!A:A,0)),0),0) -> 4703140.62 | AS86: =IFERROR(IF(Y86="CY 2022",INDEX('6. CY 2022'!AT:AT,MATCH(C86,'6. CY 2022'!A:A,0)),0),0) -> 8385993.77 | AT86: =IFERROR(IF($Y86="CY 2022",INDEX('6. CY 2022'!AU:AU,MATCH($C86,'6. CY 2022'!A:A,0)),0),0) -> 13089134.39 | AW86: =IFERROR(IF(Y86="CY 2022",INDEX('6. CY 2022'!H:H,MATCH(C86,'6. CY 2022'!A:A,0)),0),0) -> 89318189.24
A87: 85 | B87: EASTERN PLUMAS HEALTH CARE | C87: 106320859 | D87: EASTERN PLUMAS HEALTH CARE | F87: =IFERROR(INDEX('8. 2018 OSHPD (FEE) DAYS'!G:G,MATCH(C87,'8. 2018 OSHPD (FEE) DAYS'!A:A,0)),0) -> 2017-07-01 | G87: =IFERROR(INDEX('8. 2018 OSHPD (FEE) DAYS'!H:H,MATCH(C87,'8. 2018 OSHPD (FEE) DAYS'!A:A,0)),0) -> 2018-06-30 | H87: =IFERROR(INDEX('8. 2018 OSHPD (FEE) DAYS'!W:W,MATCH(C87,'8. 2018 OSHPD (FEE) DAYS'!A:A,0)),0) -> 2017-07-01 | I87: =IFERROR(INDEX('11. Hospital Statuses'!M:M,MATCH(C87,'11. Hospital Statuses'!A:A,0)),"") -> Open | J87: Plumas | K87: 1 | L87: 217 | M87: District | N87: Comparable | O87: Rural | P87: http://www.ephc.org/ | R87: EASTERN PLUMAS HEALTH CARE | S87: 530-832-6500 | T87: 500 FIRST AVE | U87: PORTOLA | V87: 96122 | W87: DOUGLAS MCCOY | X87: =IFERROR(IF(INDEX(#REF!,MATCH(C87,#REF!,0)),"Yes","No"),"") ->  | Y87: CY 2022 | Z87: =IFERROR(IF($Y87="CY 2022",INDEX('6. CY 2022'!R:R,MATCH($C87,'6. CY 2022'!$A:$A,0)),0),0) -> 0 | AA87: =IFERROR(IF($Y87="CY 2022",INDEX('6. CY 2022'!S:S,MATCH($C87,'6. CY 2022'!$A:$A,0)),0),0) -> 0 | AB87: =IFERROR(IF($Y87="CY 2022",INDEX('6. CY 2022'!T:T,MATCH($C87,'6. CY 2022'!$A:$A,0)),0),0) -> 0 | AC87: =IFERROR(IF($Y87="CY 2022",INDEX('6. CY 2022'!U:U,MATCH($C87,'6. CY 2022'!$A:$A,0)),0),0) -> 0 | AD87: =IFERROR(IF($Y87="CY 2022",INDEX('6. CY 2022'!V:V,MATCH($C87,'6. CY 2022'!$A:$A,0)),0),0) -> 0 | AE87: =IFERROR(IF($Y87="CY 2022",INDEX('6. CY 2022'!W:W,MATCH($C87,'6. CY 2022'!$A:$A,0)),0),0) -> 0 | AF87: =IFERROR(IF($Y87="CY 2022",INDEX('6. CY 2022'!X:X,MATCH($C87,'6. CY 2022'!$A:$A,0)),0),0) -> 0 | AG87: =IFERROR(IF(Y87="CY 2022",AF87/'4. Calculated Fee'!$D$35*'4. Calculated Fee'!$D$26,0),0) -> 0 | AH87: =IFERROR(IF($Y87="CY 2022",INDEX('6. CY 2022'!X:X,MATCH($C87,'6. CY 2022'!$A:$A,0)),0),0) -> 0 | AI87: =IFERROR(IF(Y87="CY 2022",INDEX('6. CY 2022'!AG:AG,MATCH(C87,'6. CY 2022'!A:A,0)),0),0) -> 0 | AJ87: =IFERROR(IF($Y87="CY 2022",INDEX('6. CY 2022'!AH:AH,MATCH($C87,'6. CY 2022'!$A:$A,0)),0),0) -> 0 | AK87: =IFERROR(IF($Y87="CY 2022",INDEX('6. CY 2022'!AI:AI,MATCH($C87,'6. CY 2022'!$A:$A,0)),0),0) -> 0 | AL87: =IFERROR(IF($Y87="CY 2022",INDEX('6. CY 2022'!AJ:AJ,MATCH($C87,'6. CY 2022'!$A:$A,0)),0),0) -> 0 | AM87: =IFERROR(IF($Y87="CY 2022",INDEX('6. CY 2022'!AK:AK,MATCH($C87,'6. CY 2022'!$A:$A,0)),0),0) -> 0 | AN87: =IFERROR(IF($Y87="CY 2022",INDEX('6. CY 2022'!AL:AL,MATCH($C87,'6. CY 2022'!$A:$A,0)),0),0) -> 0 | AO87: =IFERROR(IF($Y87="CY 2022",INDEX('6. CY 2022'!AM:AM,MATCH($C87,'6. CY 2022'!$A:$A,0)),0),0) -> 0 | AP87: =IFERROR(IF($Y87="CY 2022",INDEX('6. CY 2022'!AN:AN,MATCH($C87,'6. CY 2022'!$A:$A,0)),0),0) -> 0 | AQ87: =IFERROR(IF($Y87="CY 2022",INDEX('6. CY 2022'!AQ:AQ,MATCH($C87,'6. CY 2022'!$A:$A,0)),0),0) -> 0 | AR87: =IFERROR(IF($Y87="CY 2022",INDEX('6. CY 2022'!AS:AS,MATCH($C87,'6. CY 2022'!A:A,0)),0),0) -> 0 | AS87: =IFERROR(IF(Y87="CY 2022",INDEX('6. CY 2022'!AT:AT,MATCH(C87,'6. CY 2022'!A:A,0)),0),0) -> 0 | AT87: =IFERROR(IF($Y87="CY 2022",INDEX('6. CY 2022'!AU:AU,MATCH($C87,'6. CY 2022'!A:A,0)),0),0) -> 0 | AW87: =IFERROR(IF(Y87="CY 2022",INDEX('6. CY 2022'!H:H,MATCH(C87,'6. CY 2022'!A:A,0)),0),0) -> 37431953.77
A88: 86 | B88: EDEN MEDICAL CENTER | C88: 106014233 | D88: EDEN MEDICAL CENTER | F88: =IFERROR(INDEX('8. 2018 OSHPD (FEE) DAYS'!G:G,MATCH(C88,'8. 2018 OSHPD (FEE) DAYS'!A:A,0)),0) -> 2018-01-01 | G88: =IFERROR(INDEX('8. 2018 OSHPD (FEE) DAYS'!H:H,MATCH(C88,'8. 2018 OSHPD (FEE) DAYS'!A:A,0)),0) -> 2018-12-31 | H88: =IFERROR(INDEX('8. 2018 OSHPD (FEE) DAYS'!W:W,MATCH(C88,'8. 2018 OSHPD (FEE) DAYS'!A:A,0)),0) -> 2018-01-01 | I88: =IFERROR(INDEX('11. Hospital Statuses'!M:M,MATCH(C88,'11. Hospital Statuses'!A:A,0)),"") -> Open | J88: Alameda | K88: 5 | L88: 421 | M88: Non-Profit | N88: Comparable | P88: https://www.sutterhealth.org/eden | R88: SUTTER HEALTH | S88: 510-537-1234 | T88: 20103 LAKE CHABOT ROAD | U88: CASTRO VALLEY | V88: 94546 | W88: STEPHEN GRAY | X88: =IFERROR(IF(INDEX(#REF!,MATCH(C88,#REF!,0)),"Yes","No"),"") ->  | Y88: CY 2022 | Z88: =IFERROR(IF($Y88="CY 2022",INDEX('6. CY 2022'!R:R,MATCH($C88,'6. CY 2022'!$A:$A,0)),0),0) -> 0 | AA88: =IFERROR(IF($Y88="CY 2022",INDEX('6. CY 2022'!S:S,MATCH($C88,'6. CY 2022'!$A:$A,0)),0),0) -> 2854214.25 | AB88: =IFERROR(IF($Y88="CY 2022",INDEX('6. CY 2022'!T:T,MATCH($C88,'6. CY 2022'!$A:$A,0)),0),0) -> 4869081.36 | AC88: =IFERROR(IF($Y88="CY 2022",INDEX('6. CY 2022'!U:U,MATCH($C88,'6. CY 2022'!$A:$A,0)),0),0) -> 0 | AD88: =IFERROR(IF($Y88="CY 2022",INDEX('6. CY 2022'!V:V,MATCH($C88,'6. CY 2022'!$A:$A,0)),0),0) -> 2991493 | AE88: =IFERROR(IF($Y88="CY 2022",INDEX('6. CY 2022'!W:W,MATCH($C88,'6. CY 2022'!$A:$A,0)),0),0) -> 2009442.25 | AF88: =IFERROR(IF($Y88="CY 2022",INDEX('6. CY 2022'!X:X,MATCH($C88,'6. CY 2022'!$A:$A,0)),0),0) -> 12724230.86 | AG88: =IFERROR(IF(Y88="CY 2022",AF88/'4. Calculated Fee'!$D$35*'4. Calculated Fee'!$D$26,0),0) -> 3740259.554 | AH88: =IFERROR(IF($Y88="CY 2022",INDEX('6. CY 2022'!X:X,MATCH($C88,'6. CY 2022'!$A:$A,0)),0),0) -> 12724230.86 | AI88: =IFERROR(IF(Y88="CY 2022",INDEX('6. CY 2022'!AG:AG,MATCH(C88,'6. CY 2022'!A:A,0)),0),0) -> 2175655.772 | AJ88: =IFERROR(IF($Y88="CY 2022",INDEX('6. CY 2022'!AH:AH,MATCH($C88,'6. CY 2022'!$A:$A,0)),0),0) -> 6237336.304 | AK88: =IFERROR(IF($Y88="CY 2022",INDEX('6. CY 2022'!AI:AI,MATCH($C88,'6. CY 2022'!$A:$A,0)),0),0) -> 0 | AL88: =IFERROR(IF($Y88="CY 2022",INDEX('6. CY 2022'!AJ:AJ,MATCH($C88,'6. CY 2022'!$A:$A,0)),0),0) -> 0 | AM88: =IFERROR(IF($Y88="CY 2022",INDEX('6. CY 2022'!AK:AK,MATCH($C88,'6. CY 2022'!$A:$A,0)),0),0) -> 1920000 | AN88: =IFERROR(IF($Y88="CY 2022",INDEX('6. CY 2022'!AL:AL,MATCH($C88,'6. CY 2022'!$A:$A,0)),0),0) -> 1920000 | AO88: =IFERROR(IF($Y88="CY 2022",INDEX('6. CY 2022'!AM:AM,MATCH($C88,'6. CY 2022'!$A:$A,0)),0),0) -> 0 | AP88: =IFERROR(IF($Y88="CY 2022",INDEX('6. CY 2022'!AN:AN,MATCH($C88,'6. CY 2022'!$A:$A,0)),0),0) -> 0 | AQ88: =IFERROR(IF($Y88="CY 2022",INDEX('6. CY 2022'!AQ:AQ,MATCH($C88,'6. CY 2022'!$A:$A,0)),0),0) -> 12252992.08 | AR88: =IFERROR(IF($Y88="CY 2022",INDEX('6. CY 2022'!AS:AS,MATCH($C88,'6. CY 2022'!A:A,0)),0),0) -> 2148225.8 | AS88: =IFERROR(IF(Y88="CY 2022",INDEX('6. CY 2022'!AT:AT,MATCH(C88,'6. CY 2022'!A:A,0)),0),0) -> 12417669.43 | AT88: =IFERROR(IF($Y88="CY 2022",INDEX('6. CY 2022'!AU:AU,MATCH($C88,'6. CY 2022'!A:A,0)),0),0) -> 14565895.23 | AW88: =IFERROR(IF(Y88="CY 2022",INDEX('6. CY 2022'!H:H,MATCH(C88,'6. CY 2022'!A:A,0)),0),0) -> 426974461.3
A89: 87 | B89: EISENHOWER MEDICAL CENTER | C89: 106331168 | D89: EISENHOWER MEDICAL CENTER | F89: =IFERROR(INDEX('8. 2018 OSHPD (FEE) DAYS'!G:G,MATCH(C89,'8. 2018 OSHPD (FEE) DAYS'!A:A,0)),0) -> 2017-07-01 | G89: =IFERROR(INDEX('8. 2018 OSHPD (FEE) DAYS'!H:H,MATCH(C89,'8. 2018 OSHPD (FEE) DAYS'!A:A,0)),0) -> 2018-06-30 | H89: =IFERROR(INDEX('8. 2018 OSHPD (FEE) DAYS'!W:W,MATCH(C89,'8. 2018 OSHPD (FEE) DAYS'!A:A,0)),0) -> 2017-07-01 | I89: =IFERROR(INDEX('11. Hospital Statuses'!M:M,MATCH(C89,'11. Hospital Statuses'!A:A,0)),"") -> Open | J89: Riverside | K89: 12 | L89: 1105 | M89: Non-Profit | N89: Comparable | P89: https://eisenhowerhealth.org/ | R89: EISENHOWER MEDICAL CENTER | S89: 760-340-3911 | T89: 39000 BOB HOPE DRIVE | U89: RANCHO MIRAGE | V89: 92270 | W89: G. AUBREY SERFLING | X89: =IFERROR(IF(INDEX(#REF!,MATCH(C89,#REF!,0)),"Yes","No"),"") ->  | Y89: CY 2022 | Z89: =IFERROR(IF($Y89="CY 2022",INDEX('6. CY 2022'!R:R,MATCH($C89,'6. CY 2022'!$A:$A,0)),0),0) -> 0 | AA89: =IFERROR(IF($Y89="CY 2022",INDEX('6. CY 2022'!S:S,MATCH($C89,'6. CY 2022'!$A:$A,0)),0),0) -> 6861451.75 | AB89: =IFERROR(IF($Y89="CY 2022",INDEX('6. CY 2022'!T:T,MATCH($C89,'6. CY 2022'!$A:$A,0)),0),0) -> 11702183.22 | AC89: =IFERROR(IF($Y89="CY 2022",INDEX('6. CY 2022'!U:U,MATCH($C89,'6. CY 2022'!$A:$A,0)),0),0) -> 0 | AD89: =IFERROR(IF($Y89="CY 2022",INDEX('6. CY 2022'!V:V,MATCH($C89,'6. CY 2022'!$A:$A,0)),0),0) -> 4516138 | AE89: =IFERROR(IF($Y89="CY 2022",INDEX('6. CY 2022'!W:W,MATCH($C89,'6. CY 2022'!$A:$A,0)),0),0) -> 1437949.5 | AF89: =IFERROR(IF($Y89="CY 2022",INDEX('6. CY 2022'!X:X,MATCH($C89,'6. CY 2022'!$A:$A,0)),0),0) -> 24517722.47 | AG89: =IFERROR(IF(Y89="CY 2022",AF89/'4. Calculated Fee'!$D$35*'4. Calculated Fee'!$D$26,0),0) -> 7206930.362 | AH89: =IFERROR(IF($Y89="CY 2022",INDEX('6. CY 2022'!X:X,MATCH($C89,'6. CY 2022'!$A:$A,0)),0),0) -> 24517722.47 | AI89: =IFERROR(IF(Y89="CY 2022",INDEX('6. CY 2022'!AG:AG,MATCH(C89,'6. CY 2022'!A:A,0)),0),0) -> 2400678.799 | AJ89: =IFERROR(IF($Y89="CY 2022",INDEX('6. CY 2022'!AH:AH,MATCH($C89,'6. CY 2022'!$A:$A,0)),0),0) -> 3746609.979 | AK89: =IFERROR(IF($Y89="CY 2022",INDEX('6. CY 2022'!AI:AI,MATCH($C89,'6. CY 2022'!$A:$A,0)),0),0) -> 0 | AL89: =IFERROR(IF($Y89="CY 2022",INDEX('6. CY 2022'!AJ:AJ,MATCH($C89,'6. CY 2022'!$A:$A,0)),0),0) -> 0 | AM89: =IFERROR(IF($Y89="CY 2022",INDEX('6. CY 2022'!AK:AK,MATCH($C89,'6. CY 2022'!$A:$A,0)),0),0) -> 727500 | AN89: =IFERROR(IF($Y89="CY 2022",INDEX('6. CY 2022'!AL:AL,MATCH($C89,'6. CY 2022'!$A:$A,0)),0),0) -> 0 | AO89: =IFERROR(IF($Y89="CY 2022",INDEX('6. CY 2022'!AM:AM,MATCH($C89,'6. CY 2022'!$A:$A,0)),0),0) -> 0 | AP89: =IFERROR(IF($Y89="CY 2022",INDEX('6. CY 2022'!AN:AN,MATCH($C89,'6. CY 2022'!$A:$A,0)),0),0) -> 0 | AQ89: =IFERROR(IF($Y89="CY 2022",INDEX('6. CY 2022'!AQ:AQ,MATCH($C89,'6. CY 2022'!$A:$A,0)),0),0) -> 6874788.778 | AR89: =IFERROR(IF($Y89="CY 2022",INDEX('6. CY 2022'!AS:AS,MATCH($C89,'6. CY 2022'!A:A,0)),0),0) -> 3498579.65 | AS89: =IFERROR(IF(Y89="CY 2022",INDEX('6. CY 2022'!AT:AT,MATCH(C89,'6. CY 2022'!A:A,0)),0),0) -> 19505926.69 | AT89: =IFERROR(IF($Y89="CY 2022",INDEX('6. CY 2022'!AU:AU,MATCH($C89,'6. CY 2022'!A:A,0)),0),0) -> 23004506.34 | AW89: =IFERROR(IF(Y89="CY 2022",INDEX('6. CY 2022'!H:H,MATCH(C89,'6. CY 2022'!A:A,0)),0),0) -> 876660829.6
A90: 88 | B90: EL CAMINO HOSPITAL | C90: 106430763 | D90: EL CAMINO HOSPITAL | F90: =IFERROR(INDEX('8. 2018 OSHPD (FEE) DAYS'!G:G,MATCH(C90,'8. 2018 OSHPD (FEE) DAYS'!A:A,0)),0) -> 2017-07-01 | G90: =IFERROR(INDEX('8. 2018 OSHPD (FEE) DAYS'!H:H,MATCH(C90,'8. 2018 OSHPD (FEE) DAYS'!A:A,0)),0) -> 2018-06-30 | H90: =IFERROR(INDEX('8. 2018 OSHPD (FEE) DAYS'!W:W,MATCH(C90,'8. 2018 OSHPD (FEE) DAYS'!A:A,0)),0) -> 2017-07-01 | I90: =IFERROR(INDEX('11. Hospital Statuses'!M:M,MATCH(C90,'11. Hospital Statuses'!A:A,0)),"") -> Open | J90: Santa Clara | K90: 7 | L90: 429 | M90: Non-Profit | N90: Comparable | P90: https://www.elcaminohealth.org/ | R90: EL CAMINO HOSPITAL DISTRICT | S90: 650-940-7300 | T90: 2500 GRANT ROAD | U90: MOUNTAIN VIEW | V90: 94040 | W90: DAN WOODS | X90: =IFERROR(IF(INDEX(#REF!,MATCH(C90,#REF!,0)),"Yes","No"),"") ->  | Y90: CY 2022 | Z90: =IFERROR(IF($Y90="CY 2022",INDEX('6. CY 2022'!R:R,MATCH($C90,'6. CY 2022'!$A:$A,0)),0),0) -> 0 | AA90: =IFERROR(IF($Y90="CY 2022",INDEX('6. CY 2022'!S:S,MATCH($C90,'6. CY 2022'!$A:$A,0)),0),0) -> 0 | AB90: =IFERROR(IF($Y90="CY 2022",INDEX('6. CY 2022'!T:T,MATCH($C90,'6. CY 2022'!$A:$A,0)),0),0) -> 0 | AC90: =IFERROR(IF($Y90="CY 2022",INDEX('6. CY 2022'!U:U,MATCH($C90,'6. CY 2022'!$A:$A,0)),0),0) -> 0 | AD90: =IFERROR(IF($Y90="CY 2022",INDEX('6. CY 2022'!V:V,MATCH($C90,'6. CY 2022'!$A:$A,0)),0),0) -> 0 | AE90: =IFERROR(IF($Y90="CY 2022",INDEX('6. CY 2022'!W:W,MATCH($C90,'6. CY 2022'!$A:$A,0)),0),0) -> 0 | AF90: =IFERROR(IF($Y90="CY 2022",INDEX('6. CY 2022'!X:X,MATCH($C90,'6. CY 2022'!$A:$A,0)),0),0) -> 0 | AG90: =IFERROR(IF(Y90="CY 2022",AF90/'4. Calculated Fee'!$D$35*'4. Calculated Fee'!$D$26,0),0) -> 0 | AH90: =IFERROR(IF($Y90="CY 2022",INDEX('6. CY 2022'!X:X,MATCH($C90,'6. CY 2022'!$A:$A,0)),0),0) -> 0 | AI90: =IFERROR(IF(Y90="CY 2022",INDEX('6. CY 2022'!AG:AG,MATCH(C90,'6. CY 2022'!A:A,0)),0),0) -> 0 | AJ90: =IFERROR(IF($Y90="CY 2022",INDEX('6. CY 2022'!AH:AH,MATCH($C90,'6. CY 2022'!$A:$A,0)),0),0) -> 0 | AK90: =IFERROR(IF($Y90="CY 2022",INDEX('6. CY 2022'!AI:AI,MATCH($C90,'6. CY 2022'!$A:$A,0)),0),0) -> 0 | AL90: =IFERROR(IF($Y90="CY 2022",INDEX('6. CY 2022'!AJ:AJ,MATCH($C90,'6. CY 2022'!$A:$A,0)),0),0) -> 0 | AM90: =IFERROR(IF($Y90="CY 2022",INDEX('6. CY 2022'!AK:AK,MATCH($C90,'6. CY 2022'!$A:$A,0)),0),0) -> 0 | AN90: =IFERROR(IF($Y90="CY 2022",INDEX('6. CY 2022'!AL:AL,MATCH($C90,'6. CY 2022'!$A:$A,0)),0),0) -> 0 | AO90: =IFERROR(IF($Y90="CY 2022",INDEX('6. CY 2022'!AM:AM,MATCH($C90,'6. CY 2022'!$A:$A,0)),0),0) -> 0 | AP90: =IFERROR(IF($Y90="CY 2022",INDEX('6. CY 2022'!AN:AN,MATCH($C90,'6. CY 2022'!$A:$A,0)),0),0) -> 0 | AQ90: =IFERROR(IF($Y90="CY 2022",INDEX('6. CY 2022'!AQ:AQ,MATCH($C90,'6. CY 2022'!$A:$A,0)),0),0) -> 0 | AR90: =IFERROR(IF($Y90="CY 2022",INDEX('6. CY 2022'!AS:AS,MATCH($C90,'6. CY 2022'!A:A,0)),0),0) -> 0 | AS90: =IFERROR(IF(Y90="CY 2022",INDEX('6. CY 2022'!AT:AT,MATCH(C90,'6. CY 2022'!A:A,0)),0),0) -> 0 | AT90: =IFERROR(IF($Y90="CY 2022",INDEX('6. CY 2022'!AU:AU,MATCH($C90,'6. CY 2022'!A:A,0)),0),0) -> 0 | AW90: =IFERROR(IF(Y90="CY 2022",INDEX('6. CY 2022'!H:H,MATCH(C90,'6. CY 2022'!A:A,0)),0),0) -> 1143401105
A91: 89 | B91: EL CENTRO REGIONAL MEDICAL CENTER | C91: 106130699 | D91: EL CENTRO REGIONAL MEDICAL CENTER | F91: =IFERROR(INDEX('8. 2018 OSHPD (FEE) DAYS'!G:G,MATCH(C91,'8. 2018 OSHPD (FEE) DAYS'!A:A,0)),0) -> 2017-07-01 | G91: =IFERROR(INDEX('8. 2018 OSHPD (FEE) DAYS'!H:H,MATCH(C91,'8. 2018 OSHPD (FEE) DAYS'!A:A,0)),0) -> 2018-06-30 | H91: =IFERROR(INDEX('8. 2018 OSHPD (FEE) DAYS'!W:W,MATCH(C91,'8. 2018 OSHPD (FEE) DAYS'!A:A,0)),0) -> 2017-07-01 | I91: =IFERROR(INDEX('11. Hospital Statuses'!M:M,MATCH(C91,'11. Hospital Statuses'!A:A,0)),"") -> Open | J91: Imperial | K91: 14 | L91: 1424 | M91: City/County | N91: Comparable | P91: https://www.ecrmc.org/ | R91: CITY OF EL CENTRO | S91: 619-339-7100 | T91: 1415 ROSS AVENUE | U91: EL CENTRO | V91: 92243 | W91: DR. ADOLPHE EDWARD | X91: =IFERROR(IF(INDEX(#REF!,MATCH(C91,#REF!,0)),"Yes","No"),"") ->  | Y91: CY 2022 | Z91: =IFERROR(IF($Y91="CY 2022",INDEX('6. CY 2022'!R:R,MATCH($C91,'6. CY 2022'!$A:$A,0)),0),0) -> 0 | AA91: =IFERROR(IF($Y91="CY 2022",INDEX('6. CY 2022'!S:S,MATCH($C91,'6. CY 2022'!$A:$A,0)),0),0) -> 0 | AB91: =IFERROR(IF($Y91="CY 2022",INDEX('6. CY 2022'!T:T,MATCH($C91,'6. CY 2022'!$A:$A,0)),0),0) -> 0 | AC91: =IFERROR(IF($Y91="CY 2022",INDEX('6. CY 2022'!U:U,MATCH($C91,'6. CY 2022'!$A:$A,0)),0),0) -> 0 | AD91: =IFERROR(IF($Y91="CY 2022",INDEX('6. CY 2022'!V:V,MATCH($C91,'6. CY 2022'!$A:$A,0)),0),0) -> 0 | AE91: =IFERROR(IF($Y91="CY 2022",INDEX('6. CY 2022'!W:W,MATCH($C91,'6. CY 2022'!$A:$A,0)),0),0) -> 0 | AF91: =IFERROR(IF($Y91="CY 2022",INDEX('6. CY 2022'!X:X,MATCH($C91,'6. CY 2022'!$A:$A,0)),0),0) -> 0 | AG91: =IFERROR(IF(Y91="CY 2022",AF91/'4. Calculated Fee'!$D$35*'4. Calculated Fee'!$D$26,0),0) -> 0 | AH91: =IFERROR(IF($Y91="CY 2022",INDEX('6. CY 2022'!X:X,MATCH($C91,'6. CY 2022'!$A:$A,0)),0),0) -> 0 | AI91: =IFERROR(IF(Y91="CY 2022",INDEX('6. CY 2022'!AG:AG,MATCH(C91,'6. CY 2022'!A:A,0)),0),0) -> 0 | AJ91: =IFERROR(IF($Y91="CY 2022",INDEX('6. CY 2022'!AH:AH,MATCH($C91,'6. CY 2022'!$A:$A,0)),0),0) -> 0 | AK91: =IFERROR(IF($Y91="CY 2022",INDEX('6. CY 2022'!AI:AI,MATCH($C91,'6. CY 2022'!$A:$A,0)),0),0) -> 0 | AL91: =IFERROR(IF($Y91="CY 2022",INDEX('6. CY 2022'!AJ:AJ,MATCH($C91,'6. CY 2022'!$A:$A,0)),0),0) -> 0 | AM91: =IFERROR(IF($Y91="CY 2022",INDEX('6. CY 2022'!AK:AK,MATCH($C91,'6. CY 2022'!$A:$A,0)),0),0) -> 0 | AN91: =IFERROR(IF($Y91="CY 2022",INDEX('6. CY 2022'!AL:AL,MATCH($C91,'6. CY 2022'!$A:$A,0)),0),0) -> 0 | AO91: =IFERROR(IF($Y91="CY 2022",INDEX('6. CY 2022'!AM:AM,MATCH($C91,'6. CY 2022'!$A:$A,0)),0),0) -> 0 | AP91: =IFERROR(IF($Y91="CY 2022",INDEX('6. CY 2022'!AN:AN,MATCH($C91,'6. CY 2022'!$A:$A,0)),0),0) -> 0 | AQ91: =IFERROR(IF($Y91="CY 2022",INDEX('6. CY 2022'!AQ:AQ,MATCH($C91,'6. CY 2022'!$A:$A,0)),0),0) -> 0 | AR91: =IFERROR(IF($Y91="CY 2022",INDEX('6. CY 2022'!AS:AS,MATCH($C91,'6. CY 2022'!A:A,0)),0),0) -> 0 | AS91: =IFERROR(IF(Y91="CY 2022",INDEX('6. CY 2022'!AT:AT,MATCH(C91,'6. CY 2022'!A:A,0)),0),0) -> 0 | AT91: =IFERROR(IF($Y91="CY 2022",INDEX('6. CY 2022'!AU:AU,MATCH($C91,'6. CY 2022'!A:A,0)),0),0) -> 0 | AW91: =IFERROR(IF(Y91="CY 2022",INDEX('6. CY 2022'!H:H,MATCH(C91,'6. CY 2022'!A:A,0)),0),0) -> 175063941.4
A92: 90 | B92: EMANATE HEALTH FOOTHILL PRESBYTERIAN HOSPITAL | C92: 106190298 | D92: EMANATE HEALTH FOOTHILL PRESBYTERIAN HOSPITAL | F92: =IFERROR(INDEX('8. 2018 OSHPD (FEE) DAYS'!G:G,MATCH(C92,'8. 2018 OSHPD (FEE) DAYS'!A:A,0)),0) -> 2018-01-01 | G92: =IFERROR(INDEX('8. 2018 OSHPD (FEE) DAYS'!H:H,MATCH(C92,'8. 2018 OSHPD (FEE) DAYS'!A:A,0)),0) -> 2018-12-31 | H92: =IFERROR(INDEX('8. 2018 OSHPD (FEE) DAYS'!W:W,MATCH(C92,'8. 2018 OSHPD (FEE) DAYS'!A:A,0)),0) -> 2018-01-01 | I92: =IFERROR(INDEX('11. Hospital Statuses'!M:M,MATCH(C92,'11. Hospital Statuses'!A:A,0)),"") -> Open | J92: Los Angeles | K92: 11 | L92: 915 | M92: Non-Profit | N92: Comparable | P92: https://www.emanatehealth.org/locations/emanate-health-foothill-presbyterian-hospital/ | R92: EMANATE HEALTH | S92: 626-858-8541 | T92: 250 SO. GRAND AVE | U92: GLENDORA | V92: 91741 | W92: ROBERT CURRY | X92: =IFERROR(IF(INDEX(#REF!,MATCH(C92,#REF!,0)),"Yes","No"),"") ->  | Y92: CY 2022 | Z92: =IFERROR(IF($Y92="CY 2022",INDEX('6. CY 2022'!R:R,MATCH($C92,'6. CY 2022'!$A:$A,0)),0),0) -> 0 | AA92: =IFERROR(IF($Y92="CY 2022",INDEX('6. CY 2022'!S:S,MATCH($C92,'6. CY 2022'!$A:$A,0)),0),0) -> 2848629.25 | AB92: =IFERROR(IF($Y92="CY 2022",INDEX('6. CY 2022'!T:T,MATCH($C92,'6. CY 2022'!$A:$A,0)),0),0) -> 2006257.5 | AC92: =IFERROR(IF($Y92="CY 2022",INDEX('6. CY 2022'!U:U,MATCH($C92,'6. CY 2022'!$A:$A,0)),0),0) -> 0 | AD92: =IFERROR(IF($Y92="CY 2022",INDEX('6. CY 2022'!V:V,MATCH($C92,'6. CY 2022'!$A:$A,0)),0),0) -> 2095639.5 | AE92: =IFERROR(IF($Y92="CY 2022",INDEX('6. CY 2022'!W:W,MATCH($C92,'6. CY 2022'!$A:$A,0)),0),0) -> 746378.5 | AF92: =IFERROR(IF($Y92="CY 2022",INDEX('6. CY 2022'!X:X,MATCH($C92,'6. CY 2022'!$A:$A,0)),0),0) -> 7696904.75 | AG92: =IFERROR(IF(Y92="CY 2022",AF92/'4. Calculated Fee'!$D$35*'4. Calculated Fee'!$D$26,0),0) -> 2262488.149 | AH92: =IFERROR(IF($Y92="CY 2022",INDEX('6. CY 2022'!X:X,MATCH($C92,'6. CY 2022'!$A:$A,0)),0),0) -> 7696904.75 | AI92: =IFERROR(IF(Y92="CY 2022",INDEX('6. CY 2022'!AG:AG,MATCH(C92,'6. CY 2022'!A:A,0)),0),0) -> 1077018.587 | AJ92: =IFERROR(IF($Y92="CY 2022",INDEX('6. CY 2022'!AH:AH,MATCH($C92,'6. CY 2022'!$A:$A,0)),0),0) -> 1913414.363 | AK92: =IFERROR(IF($Y92="CY 2022",INDEX('6. CY 2022'!AI:AI,MATCH($C92,'6. CY 2022'!$A:$A,0)),0),0) -> 0 | AL92: =IFERROR(IF($Y92="CY 2022",INDEX('6. CY 2022'!AJ:AJ,MATCH($C92,'6. CY 2022'!$A:$A,0)),0),0) -> 0 | AM92: =IFERROR(IF($Y92="CY 2022",INDEX('6. CY 2022'!AK:AK,MATCH($C92,'6. CY 2022'!$A:$A,0)),0),0) -> 492500 | AN92: =IFERROR(IF($Y92="CY 2022",INDEX('6. CY 2022'!AL:AL,MATCH($C92,'6. CY 2022'!$A:$A,0)),0),0) -> 0 | AO92: =IFERROR(IF($Y92="CY 2022",INDEX('6. CY 2022'!AM:AM,MATCH($C92,'6. CY 2022'!$A:$A,0)),0),0) -> 0 | AP92: =IFERROR(IF($Y92="CY 2022",INDEX('6. CY 2022'!AN:AN,MATCH($C92,'6. CY 2022'!$A:$A,0)),0),0) -> 0 | AQ92: =IFERROR(IF($Y92="CY 2022",INDEX('6. CY 2022'!AQ:AQ,MATCH($C92,'6. CY 2022'!$A:$A,0)),0),0) -> 3482932.95 | AR92: =IFERROR(IF($Y92="CY 2022",INDEX('6. CY 2022'!AS:AS,MATCH($C92,'6. CY 2022'!A:A,0)),0),0) -> 1831643.79 | AS92: =IFERROR(IF(Y92="CY 2022",INDEX('6. CY 2022'!AT:AT,MATCH(C92,'6. CY 2022'!A:A,0)),0),0) -> 7205051.21 | AT92: =IFERROR(IF($Y92="CY 2022",INDEX('6. CY 2022'!AU:AU,MATCH($C92,'6. CY 2022'!A:A,0)),0),0) -> 9036695 | AW92: =IFERROR(IF(Y92="CY 2022",INDEX('6. CY 2022'!H:H,MATCH(C92,'6. CY 2022'!A:A,0)),0),0) -> 136523794.7
A93: 91 | B93: EMANATE HEALTH QUEEN OF THE VALLEY HOSPITAL | C93: 106190636 | D93: EMANATE HEALTH QUEEN OF THE VALLEY HOSPITAL | F93: =IFERROR(INDEX('8. 2018 OSHPD (FEE) DAYS'!G:G,MATCH(C93,'8. 2018 OSHPD (FEE) DAYS'!A:A,0)),0) -> 2018-01-01 | G93: =IFERROR(INDEX('8. 2018 OSHPD (FEE) DAYS'!H:H,MATCH(C93,'8. 2018 OSHPD (FEE) DAYS'!A:A,0)),0) -> 2018-12-31 | H93: =IFERROR(INDEX('8. 2018 OSHPD (FEE) DAYS'!W:W,MATCH(C93,'8. 2018 OSHPD (FEE) DAYS'!A:A,0)),0) -> 2018-01-01 | I93: =IFERROR(INDEX('11. Hospital Statuses'!M:M,MATCH(C93,'11. Hospital Statuses'!A:A,0)),"") -> Open | J93: Los Angeles | K93: 11 | L93: 915 | M93: Non-Profit | N93: Comparable | P93: https://www.emanatehealth.org/locations/emanate-health-queen-of-the-valley-hospital/ | R93: EMANATE HEALTH | S93: 626-858-8541 | T93: 1115 SO. SUNSET AVE | U93: WEST COVINA | V93: 91790 | W93: ROBERT CURRY | X93: =IFERROR(IF(INDEX(#REF!,MATCH(C93,#REF!,0)),"Yes","No"),"") ->  | Y93: CY 2022 | Z93: =IFERROR(IF($Y93="CY 2022",INDEX('6. CY 2022'!R:R,MATCH($C93,'6. CY 2022'!$A:$A,0)),0),0) -> 0 | AA93: =IFERROR(IF($Y93="CY 2022",INDEX('6. CY 2022'!S:S,MATCH($C93,'6. CY 2022'!$A:$A,0)),0),0) -> 7772644.5 | AB93: =IFERROR(IF($Y93="CY 2022",INDEX('6. CY 2022'!T:T,MATCH($C93,'6. CY 2022'!$A:$A,0)),0),0) -> 8809793.46 | AC93: =IFERROR(IF($Y93="CY 2022",INDEX('6. CY 2022'!U:U,MATCH($C93,'6. CY 2022'!$A:$A,0)),0),0) -> 0 | AD93: =IFERROR(IF($Y93="CY 2022",INDEX('6. CY 2022'!V:V,MATCH($C93,'6. CY 2022'!$A:$A,0)),0),0) -> 10595784.5 | AE93: =IFERROR(IF($Y93="CY 2022",INDEX('6. CY 2022'!W:W,MATCH($C93,'6. CY 2022'!$A:$A,0)),0),0) -> 9916669.75 | AF93: =IFERROR(IF($Y93="CY 2022",INDEX('6. CY 2022'!X:X,MATCH($C93,'6. CY 2022'!$A:$A,0)),0),0) -> 37094892.21 | AG93: =IFERROR(IF(Y93="CY 2022",AF93/'4. Calculated Fee'!$D$35*'4. Calculated Fee'!$D$26,0),0) -> 10903961.62 | AH93: =IFERROR(IF($Y93="CY 2022",INDEX('6. CY 2022'!X:X,MATCH($C93,'6. CY 2022'!$A:$A,0)),0),0) -> 37094892.21 | AI93: =IFERROR(IF(Y93="CY 2022",INDEX('6. CY 2022'!AG:AG,MATCH(C93,'6. CY 2022'!A:A,0)),0),0) -> 4568348.267 | AJ93: =IFERROR(IF($Y93="CY 2022",INDEX('6. CY 2022'!AH:AH,MATCH($C93,'6. CY 2022'!$A:$A,0)),0),0) -> 18012396.24 | AK93: =IFERROR(IF($Y93="CY 2022",INDEX('6. CY 2022'!AI:AI,MATCH($C93,'6. CY 2022'!$A:$A,0)),0),0) -> 0 | AL93: =IFERROR(IF($Y93="CY 2022",INDEX('6. CY 2022'!AJ:AJ,MATCH($C93,'6. CY 2022'!$A:$A,0)),0),0) -> 702975 | AM93: =IFERROR(IF($Y93="CY 2022",INDEX('6. CY 2022'!AK:AK,MATCH($C93,'6. CY 2022'!$A:$A,0)),0),0) -> 5887500 | AN93: =IFERROR(IF($Y93="CY 2022",INDEX('6. CY 2022'!AL:AL,MATCH($C93,'6. CY 2022'!$A:$A,0)),0),0) -> 0 | AO93: =IFERROR(IF($Y93="CY 2022",INDEX('6. CY 2022'!AM:AM,MATCH($C93,'6. CY 2022'!$A:$A,0)),0),0) -> 0 | AP93: =IFERROR(IF($Y93="CY 2022",INDEX('6. CY 2022'!AN:AN,MATCH($C93,'6. CY 2022'!$A:$A,0)),0),0) -> 0 | AQ93: =IFERROR(IF($Y93="CY 2022",INDEX('6. CY 2022'!AQ:AQ,MATCH($C93,'6. CY 2022'!$A:$A,0)),0),0) -> 29171219.5 | AR93: =IFERROR(IF($Y93="CY 2022",INDEX('6. CY 2022'!AS:AS,MATCH($C93,'6. CY 2022'!A:A,0)),0),0) -> 17516067.5 | AS93: =IFERROR(IF(Y93="CY 2022",INDEX('6. CY 2022'!AT:AT,MATCH(C93,'6. CY 2022'!A:A,0)),0),0) -> 35353843.75 | AT93: =IFERROR(IF($Y93="CY 2022",INDEX('6. CY 2022'!AU:AU,MATCH($C93,'6. CY 2022'!A:A,0)),0),0) -> 52869911.25 | AW93: =IFERROR(IF(Y93="CY 2022",INDEX('6. CY 2022'!H:H,MATCH(C93,'6. CY 2022'!A:A,0)),0),0) -> 584361682
